Workbook

Sheet Ocupaciones (hidden)
A1: F
B2: ACTIVIDAD | C2: OCUPACION | D2: Basico - Vida | E2: Indemnizacion Adicional por Muerte Accidental ó Desmembración- IA | F2: Incapacidad Total y Permanente - ITP | G2: Enfermedades Graves - EG | H2: Auxilio Funerario | I2: Renta diaria por hospitalización
B3: AGRICULTURA | C3: Criador de cocodrilos | D3: 2 | E3: 2 | F3: R | G3: Ex | H3: 2 | I3: R
B4: ALIMENTOS_Y_BEBIDAS | C4: Campesino | D4: 0 | E4: 0 | F4: 2 | G4: 0 | H4: 0 | I4: 2
B5: ARTES_Y_OFICIOS | C5: Esquilador | D5: 0 | E5: 0.5 | F5: 2 | G5: 0 | H5: 0 | I5: 2
B6: ASBESTO | C6: Ganadero | D6: 0 | E6: 0.5 | F6: 1 | G6: 0 | H6: 0 | I6: 1
B7: AVIACIÓN_COMERCIAL_NO_TRANSPORTE | C7: Horticultor | D7: 0 | E7: 0 | F7: 1 | G7: 0 | H7: 0 | I7: 1
B8: AVIACIÓN_COMERCIAL_TRANSPORTE | C8: Inseminador | D8: 0 | E8: 0 | F8: 1 | G8: 0 | H8: 0 | I8: 1
B9: AVIACIÓN_PERSONAL_TIERRA | C9: Ordeñador | D9: 0 | E9: 0 | F9: 1 | G9: 0 | H9: 0 | I9: 1
B10: BUCEO_COMERCIAL | C10: Pastor | D10: 0 | E10: 0.5 | F10: 1 | G10: 0 | H10: 0 | I10: 1
B11: CANTERAS | C11: Acondicionador | D11: 0 | E11: 0 | F11: 1 | G11: 0 | H11: 0 | I11: 1
B12: CONDUCCIÓN | C12: Activador | D12: 0 | E12: 0 | F12: 1 | G12: 0 | H12: 0 | I12: 1
B13: CONSTRUCCIÓN | C13: Ahumador | D13: 0 | E13: 0 | F13: 1 | G13: 0 | H13: 0 | I13: 1
B14: CONSTRUCCIÓN_Y_REPARACION_DE_BUQUES | C14: Alimentador de horno | D14: 0 | E14: 0.5 | F14: 1 | G14: 0 | H14: 0 | I14: 1
B15: CUIDADORES_DE_ANIMALES | C15: Amasador | D15: 0 | E15: 0 | F15: 1 | G15: 0 | H15: 0 | I15: 1
B16: DIRECCION_Y_SUPERVISION | C16: Camarero de Club o Bar | D16: 0 | E16: 0 | F16: 1 | G16: 0 | H16: 0 | I16: 1
B17: ENERGIA_Y_SERVICIOS | C17: Camarero, Camarera, Mesonero, Mesonera | D17: 0 | E17: 0 | F17: 1 | G17: 0 | H17: 0 | I17: 1
B18: EXPLOTACION_FORESTAL | C18: Cargador - Alimentos y Bebidas | D18: 0 | E18: 0.5 | F18: 1 | G18: 0 | H18: 0 | I18: 1
B19: FERROCARRILES | C19: Cargador (Molino de harina) | D19: 0 | E19: 0.5 | F19: 1 | G19: 0 | H19: 0 | I19: 1
B20: IMPRENTA | C20: Carnicero | D20: 0 | E20: 0.5 | F20: 1 | G20: 0 | H20: 0 | I20: 1
B21: INDUSTRIA_MANUFACTURERA | C21: Cocedor Azúcar | D21: 0 | E21: 0 | F21: 1 | G21: 0 | H21: 0 | I21: 1
B22: MARINA_MERCANTE | C22: Cortador de remolacha de azúcar | D22: 0 | E22: 0 | F22: 1 | G22: 0 | H22: 0 | I22: 1
B23: MINAS | C23: Curador | D23: 0 | E23: 0 | F23: 1 | G23: 0 | H23: 0 | I23: 1
B24: MUELLES | C24: Dueño de bar | D24: 0 | E24: 0 | F24: 1 | G24: 0 | H24: 0 | I24: 1
B25: OCIO | C25: Embarrilador | D25: 0 | E25: 0 | F25: 1 | G25: 0 | H25: 0 | I25: 1
B26: OFICIOS_ESPECIALIZADOS | C26: Encargado de cámara frigorífica | D26: 0 | E26: 0 | F26: 1 | G26: 0 | H26: 0 | I26: 1
B27: OFICIOS_NO_ESPECIALIZADOS | C27: Encargado de depósito (Alimentos y Bebidas) | D27: 0 | E27: 0 | F27: 1 | G27: 0 | H27: 0 | I27: 1
B28: PERIODISMO | C28: Encargado de inversión (Producción de azúcar) | D28: 0 | E28: 0 | F28: 1 | G28: 0 | H28: 0 | I28: 1
B29: PESCA | C29: Encargado de limpieza con líquido | D29: 0 | E29: 0.5 | F29: 2 | G29: 0 | H29: 0 | I29: 2
B30: SERVICIO_DE_URGENCIAS | C30: Escabechador | D30: 0 | E30: 0 | F30: 1 | G30: 0 | H30: 0 | I30: 1
B31: TELECOMUNICACIONES | C31: Gerente de Club o Bar (Asalariado) | D31: 0 | E31: 0 | F31: 1 | G31: 0 | H31: 0 | I31: 1
... 38 more rows

Sheet Conditionals (hidden)
C3: ACCIDENTES PERSONALES
C6: Masculino | F6: Grupo I | I6: Anual | J6: 0
C7: Femenino | F7: Grupo II | I7: Semestral | J7: 0.05
F8: Grupo III | I8: Trimestral | J8: 0.08
I9: Mensual
M10: TASAS COMERCIALES ACCIDENTES PERSONALES INDIVIDUAL
C11: Prima Mínima AP Individual | E11: Periodo Pago | G11: Prima Mínima (SMLMV) | J11: Prima Mínima (Pesos) | M11: Amparos | N11: Tipo de Riesgo | O11: G. Adm: 10% Comisión: 27.5% Utilidad:3%
F12: Anual | I12: 1/19 SMLMV | J12: 30000 | M12: Muerte Accidental | N12: Grupo I | P12: 0.487394958
F13: Semestral | I13: 1/25 SMLMV | J13: 20000 | M13: Muerte Accidental | N13: Grupo II | P13: 0.731092437
F14: Trimestral | I14: 1/50 SMLMV | J14: 10000 | M14: Muerte Accidental | N14: Grupo III | P14: 0.974789916
F15: Mensual | I15: 1/50 SMLMV | J15: 10000 | M15: Invalidez Accidental y/o desmembración | N15: Grupo I | P15: 0.2521008403
M16: Invalidez Accidental y/o desmembración | N16: Grupo II | P16: 0.3781512605
M17: Invalidez Accidental y/o desmembración | N17: Grupo III | P17: 0.5042016807
F18: Delegación para aprobación de negocios | M18: Auxilio funerario por muerte accidental | N18: Grupo I | P18: 0.487394958
F19: Límites de Valor | I19: 150000000 | J19: Sucursal | M19: Auxilio funerario por muerte accidental | N19: Grupo II | P19: 0.731092437
F20: Asegurado | I20: 300000000 | J20: Regional | M20: Auxilio funerario por muerte accidental | N20: Grupo III | P20: 0.974789916
F21: AP Individual | I21: 1000000000 | J21: Compañía | M21: Gastos médicos por accidente | N21: Grupo I | P21: 15.58585698
M22: Gastos médicos por accidente | N22: Grupo II | P22: 23.37878548
M23: Gastos médicos por accidente | N23: Grupo III | P23: 31.17171397
C24: No conduce moto | F24: Recargo por Fracionamiento productos de AP Individual | I24: Anual | M24: Renta diaria por hospitalización | N24: Todos | P24: 43.523
C25: Medio de Transporte | I25: Semestral | J25: 0.507 | M25: Gastos de Traslado por Accidente | N25: Todos | P25: 0.171
C26: Medio de Trabajo | I26: Trimestral | J26: 0.255
I27: Mensual | J27: 0.086 | M27: Recargo por Conducir Motocicleta | N27: Trabajo
M28: No conduce moto | N28: Básico - Muerte | O28: 0
M29: Medio de Transporte | N29: Básico - Muerte | O29: 0.18
C30: Amparo | I30: Limite Vr. Asegurado | M30: Medio de Trabajo | N30: Básico - Muerte | O30: 0.35
C31: Básico - Muerte Accidental | I31: 300000000 | M31: No conduce moto | N31: Invalidez Accidente | O31: 0
... 35 more rows

Sheet Extraprima (hidden)
B1: COTIZADOR EXTRAPRIMA PRODUCTO AHORRO Y VIDA
C3: =IF(C4="60_años",60,IF(C4="65_años",65,VLOOKUP($C$4,Conditionals!$F$47:$G$50,2,0))) -> 
B4: Cobertura | C4: =#REF! ->  | D4: =C3 ->  | F4: Valor presente Extraprima | H4: =+IF(OR(C18<1000000,C18>2000000000,C20<0),"ERROR",C18*C20/1000*'Ex1'!$W$13) -> 
B6: Tasa de Crecimiento | C6: =#REF! ->  | F6: Tasa valor presente extraprima (por mil) | H6: =$H$4/C18*1000 -> 
B8: Opción de Pago | C8: =#REF! ->  | D8: =IF(D4=5,VLOOKUP($C$8,Conditionals!$C$53:$E$56,3,0),IF(D4=10,VLOOKUP($C8,Conditionals!$F$54:$H$57,3,0),IF(D4=15,VLOOKUP($C$8,Conditionals!$I$54:$K$58,3,0),IF(D4=20,VLOOKUP($C$8,Conditionals!$C$61:$E$66,3,0),IF(D4=60,VLOOKUP($C$8,Conditionals!$F$61:$H$63,3,0),IF(D4=65,VLOOKUP($C$8,Conditionals!$I$61:$K$63,3,0))))))) ->  | F8: Valor extraprima anualizada | H8: ='Ex1'!W16 -> 
B10: Forma de Pago | C10: =#REF! ->  | D10: =VLOOKUP($C$10,Conditionals!$M$77:$N$80,2,0) ->  | E10: =VLOOKUP($C10,Conditionals!$M$77:$O$80,3,0) ->  | F10: Valor extraprima según forma de pago | H10: =+H8*D10 -> 
B12: Fecha de nacimiento | C12: ='Proteccion a Largo Plazo'!J24 ->  | F12: No. de cuotas | H12: =D8*E10 -> 
B14: Fecha de cotización | C14: =#REF! -> 
B16: Genero | C16: ='Proteccion a Largo Plazo'!J28 -> 
B18: Valor Asegurado | C18: ='Proteccion a Largo Plazo'!X30 -> 
B20: Tasa de Extraprima por Mil | C20: =#REF! -> 
B24: COTIZADOR EXTRAPRIMA PRODUCTO LARGO PLAZO INVERSIÓN
B26: Cobertura | C26: =D4 ->  | G26: ='Ex2'!T15 -> 
B28: Tasa de Crecimiento | C28: =C6 ->  | F28: Tasa extraprima nivelada anual(por mil) | G28: =Extraprima!G26/Extraprima!C40*1000 -> 
B30: Opción de Pago | C30: =D8 ->  | F30: Valor extraprima según forma de pago | G30: =C40/1000*G28*D32 -> 
B32: Forma de Pago | C32: =C10 ->  | D32: =VLOOKUP($C$10,Conditionals!$M$77:$N$80,2,0) ->  | E32: =VLOOKUP($C32,Conditionals!$M$77:$O$80,3,0) ->  | F32: No. de pagos durante la cobertura | G32: =+IF(OR(C30=65,C30=60),G34*E32,C30*E32) -> 
B34: Fecha de nacimiento | C34: =C12 ->  | G34: ='Ex2'!U5-'Ex2'!U3 -> 
B36: Fecha de cotización | C36: =C14 -> 
B38: Genero | C38: =C16 -> 
B40: Valor Asegurado | C40: =C18 ->  | F40: Valor Extraprima Anualizada | G40: =C40*G28/1000 -> 
B42: Tasa de Extraprima por Mil | C42: =C20 -> 

Sheet Ex1 (hidden)
B1: AHORRO Y VIDA | J1: AHORRO Y VIDA
B2: Tablas de anualidades contingentes hombres | J2: Tablas de anualidades contingentes mujeres | W2: i | X2: 0.055
B3: a x:1 | C3: a x:3 | D3: a x:5 | E3: a x:10 | F3: a x:15 | G3: a x:20 | J3: a x:1 | K3: a x:3 | L3: a x:5 | M3: a x:10 | N3: a x:15 | O3: a x:20 | W3: v | X3: =1/(1+X2) -> 0.9478672986
A4: 18 | B4: 1 | C4: 2.836553875 | D4: 4.474858747 | E4: 7.836940014 | F4: 10.36139034 | G4: 12.2562731 | I4: 18 | J4: 1 | K4: 2.842760764 | L4: 4.494059644 | M4: 7.908933067 | N4: 10.50139575 | O4: 12.4674303 | W4: Edad | X4: =IF(OR(INT((Extraprima!C14-Extraprima!C12+1)/365.25)<18,INT((Extraprima!C14-Extraprima!C12+1)/365.25)>VLOOKUP(X6,$X$24:$Y$30,2,FALSE)),"NO SE LE VENDE ESTE PRODUCTO A ALGUIEN MENOR DE 18 AÑOS O MAYOR DE 60 AÑOS",INT((Extraprima!C14-Extraprima!C12+1)/365.25)) -> 
A5: 19 | B5: 1 | C5: 2.836564688 | D5: 4.474788535 | E5: 7.836328033 | F5: 10.36017879 | G5: 12.25449223 | I5: 19 | J5: 1 | K5: 2.842756143 | L5: 4.493946732 | M5: 7.908164734 | N5: 10.49962617 | O5: 12.46441495 | S5: FORMA DE PAGO | W5: GENERO | X5: =Extraprima!C16 ->  | Y5: =X5 -> 
A6: 20 | B6: 1 | C6: 2.836530356 | D6: 4.474590068 | E6: 7.835494511 | F6: 10.35870121 | G6: 12.2524029 | I6: 20 | J6: 1 | K6: 2.842715572 | L6: 4.493739306 | M6: 7.90717607 | N6: 10.4975293 | O6: 12.46096816 | R6: 1 | S6: ANUAL | T6: 1 | U6: 1 | W6: COBERTURA | X6: =Extraprima!D4 ->  | Y6: =IF(OR(Extraprima!D4=60,Extraprima!D4=65),0,IF(OR(Extraprima!D4=5,Extraprima!D4=10,Extraprima!D4=15,Extraprima!D4=20),VLOOKUP(Extraprima!D4,'Ex1'!$R$28:$S$31,2,FALSE),"ERROR")) -> 
A7: 21 | B7: 1 | C7: 2.836431274 | D7: 4.474267395 | E7: 7.83449123 | F7: 10.35703008 | G7: 12.2501009 | I7: 21 | J7: 1 | K7: 2.842600947 | L7: 4.493399479 | M7: 7.905935639 | N7: 10.49506241 | O7: 12.45704319 | R7: 2 | S7: SEMESTRAL | T7: 0.53 | U7: 2 | W7: OPCION DE PAGO | X7: =Extraprima!D8 ->  | Y7: =+VLOOKUP(X7,$R$14:$T$21,2,FALSE) ->  | Z7: =+IF(X7=X6,"PP",Y7) -> 
A8: 22 | B8: 1 | C8: 2.836312683 | D8: 4.473939444 | E8: 7.833543979 | F8: 10.35546126 | G8: 12.24793568 | I8: 22 | J8: 1 | K8: 2.842494878 | L8: 4.493075384 | M8: 7.904720976 | N8: 10.4926011 | O8: 12.45308638 | R8: 4 | S8: TRIMESTRAL | T8: 0.27 | U8: 4 | W8: FORMA DE PAGO | X8: =Extraprima!D10 ->  | Y8: =VLOOKUP(X8,$R$6:$T$9,2,FALSE) ->  | Z8: =+VLOOKUP(X8,$R$6:$T$9,3,FALSE) -> 
A9: 23 | B9: 1 | C9: 2.836202009 | D9: 4.47365939 | E9: 7.832748595 | F9: 10.35412134 | G9: 12.24604491 | I9: 23 | J9: 1 | K9: 2.842397882 | L9: 4.492767985 | M9: 7.903533742 | N9: 10.49014121 | O9: 12.44908901 | R9: 12 | S9: MENSUAL | T9: 0.093 | U9: 12 | W9: Tasa de crecimiento | X9: =Extraprima!C6 -> 
A10: 24 | B10: 1 | C10: 2.836127178 | D10: 4.473455133 | E10: 7.832134435 | F10: 10.35304076 | G10: 12.24445538 | I10: 24 | J10: 1 | K10: 2.842290965 | L10: 4.492441258 | M10: 7.902296249 | N10: 10.48757292 | O10: 12.4449131
A11: 25 | B11: 1 | C11: 2.836080038 | D11: 4.473310954 | E11: 7.83165939 | F11: 10.35214656 | G11: 12.24307099 | I11: 25 | J11: 1 | K11: 2.842193122 | L11: 4.492131198 | M11: 7.901072787 | N11: 10.48498618 | O11: 12.4406629
A12: 26 | B12: 1 | C12: 2.836022856 | D12: 4.473156008 | E12: 7.83117927 | F12: 10.35124982 | G12: 12.24165607 | I12: 26 | J12: 1 | K12: 2.842085307 | L12: 4.491801681 | M12: 7.899778457 | N12: 10.48226496 | O12: 12.43619815 | V12: Anualidad contingente | W12: =IF(OR(Extraprima!D4=60,Extraprima!D4=65),0,IF(Extraprima!C16="Masculino",VLOOKUP(X4,$A$4:$G$46,VLOOKUP(X7,$R$34:$S$39,2,FALSE),FALSE),VLOOKUP(X4,$I$4:$O$46,VLOOKUP(X7,$R$34:$S$39,2,FALSE),FALSE))) -> 
A13: 27 | B13: 1 | C13: 2.835984082 | D13: 4.473043814 | E13: 7.830774279 | F13: 10.35045209 | G13: 12.24033103 | I13: 27 | J13: 1 | K13: 2.841986568 | L13: 4.4914888 | M13: 7.8984765 | N13: 10.47948835 | O13: 12.43161759 | S13: OPCIONES DE PAGO | V13: VP Extrapima | W13: =IF(X7>X6,"ERROR",(1-(X3^X6))/(1-X3)+(X9*((1-(X3^X6))/(1-X3)-5*(X3^(X6-1))))/X2) -> 
A14: 28 | B14: 1 | C14: 2.835945016 | D14: 4.472939543 | E14: 7.830381749 | F14: 10.34965385 | G14: 12.23897285 | I14: 28 | J14: 1 | K14: 2.841877802 | L14: 4.491148166 | M14: 7.897080503 | N14: 10.47653786 | O14: 12.42677818 | R14: 1 | S14: PU
A15: 29 | B15: 1 | C15: 2.835914941 | D15: 4.472843769 | E15: 7.830002677 | F15: 10.34885052 | G15: 12.23757239 | I15: 29 | J15: 1 | K15: 2.841778114 | L15: 4.490815483 | M15: 7.89565251 | N15: 10.47349045 | O15: 12.4217763 | R15: 3 | S15: 3P
A16: 30 | B16: 1 | C16: 2.835894474 | D16: 4.47276548 | E16: 7.829638125 | F16: 10.34803718 | G16: 12.23611614 | I16: 30 | J16: 1 | K16: 2.841659225 | L16: 4.490437516 | M16: 7.894104413 | N16: 10.47022486 | O16: 12.41646216 | R16: 5 | S16: 5P | T16: PP | V16: Valor extraprima anualizada | W16: =IF(W12=0,0,Extraprima!H4/'Ex1'!W12) -> 
A17: 31 | B17: 1 | C17: 2.835854725 | D17: 4.472650878 | E17: 7.829207661 | F17: 10.34709586 | G17: 12.23445469 | I17: 31 | J17: 1 | K17: 2.84153975 | L17: 4.490040828 | M17: 7.89249061 | N17: 10.46681561 | O17: 12.41091816 | R17: 10 | S17: 10P | T17: PP
A18: 32 | B18: 1 | C18: 2.835824068 | D18: 4.472535889 | E18: 7.828775935 | F18: 10.34611658 | G18: 12.2326687 | I18: 32 | J18: 1 | K18: 2.841410523 | L18: 4.489616125 | M18: 7.890788494 | N18: 10.46324008 | O18: 12.40510175 | R18: 15 | S18: 15P | T18: PP | V18: Valor cuota | W18: =Extraprima!H10 -> 
A19: 33 | B19: 1 | C19: 2.835793694 | D19: 4.472429009 | E19: 7.828336559 | F19: 10.34508728 | G19: 12.230705 | I19: 33 | J19: 1 | K19: 2.841261806 | L19: 4.48915354 | M19: 7.888980369 | N19: 10.45947425 | O19: 12.39895671 | R19: 20 | S19: 20P | V19: No. de cuotas | W19: =Extraprima!E10*X7 -> 
A20: 34 | B20: 1 | C20: 2.835733753 | D20: 4.4722837 | E20: 7.827800212 | F20: 10.34388606 | G20: 12.22835505 | I20: 34 | J20: 1 | K20: 2.841112295 | L20: 4.488688469 | M20: 7.887121744 | N20: 10.45559952 | O20: 12.39253153 | R20: 0 | S20: 0
A21: 35 | B21: 1 | C21: 2.835702271 | D21: 4.472183503 | E21: 7.827313079 | F21: 10.34270061 | G21: 12.22576059 | I21: 35 | J21: 1 | K21: 2.840961962 | L21: 4.488220827 | M21: 7.885203486 | N21: 10.45159528 | O21: 12.3857397 | R21: 0 | S21: 0
A22: 36 | B22: 1 | C22: 2.835680611 | D22: 4.472092593 | E22: 7.82678906 | F22: 10.34140269 | G22: 12.22266142 | I22: 36 | J22: 1 | K22: 2.840810778 | L22: 4.487742246 | M22: 7.883209568 | N22: 10.44742997 | O22: 12.37846337 | S22: GENERO
A23: 37 | B23: 1 | C23: 2.835639212 | D23: 4.471955354 | E23: 7.826135877 | F23: 10.33983475 | G23: 12.21875198 | I23: 37 | J23: 1 | K23: 2.840658716 | L23: 4.487235535 | M23: 7.881122966 | N23: 10.44306038 | O23: 12.37055503 | R23: M | S23: MASCULINO
A24: 38 | B24: 1 | C24: 2.835597489 | D24: 4.471799288 | E24: 7.825408977 | F24: 10.33802408 | G24: 12.21392424 | I24: 38 | J24: 1 | K24: 2.840496492 | L24: 4.486690737 | M24: 7.878925601 | N24: 10.43842596 | O24: 12.36182435 | R24: F | S24: FEMENINO | X24: 5 | Y24: 60
A25: 39 | B25: 1 | C25: 2.835545786 | D25: 4.471614522 | E25: 7.824590433 | F25: 10.33586369 | G25: 12.2079047 | I25: 39 | J25: 1 | K25: 2.84030496 | L25: 4.486088932 | M25: 7.876598259 | N25: 10.433438 | O25: 12.35203913 | X25: 10 | Y25: 55
A26: 40 | B26: 1 | C26: 2.83547376 | D26: 4.471390491 | E26: 7.82365443 | F26: 10.33321369 | G26: 12.20036597 | I26: 40 | J26: 1 | K26: 2.84010243 | L26: 4.48546475 | M26: 7.874195595 | N26: 10.42809047 | O26: 12.34104649 | X26: 15 | Y26: 50
A27: 41 | B27: 1 | C27: 2.835401046 | D27: 4.47115558 | E27: 7.822644717 | F27: 10.32999539 | G27: 12.19106275 | I27: 41 | J27: 1 | K27: 2.839908378 | L27: 4.484855034 | M27: 7.871769322 | N27: 10.42234751 | O27: 12.32865725 | S27: COBERTURA | V27: 1 | X27: 20 | Y27: 45
A28: 42 | B28: 1 | C28: 2.835327634 | D28: 4.470909167 | E28: 7.82150979 | F28: 10.32598687 | G28: 12.17958494 | I28: 42 | J28: 1 | K28: 2.83970319 | L28: 4.484214176 | M28: 7.86920448 | N28: 10.41592974 | O28: 12.31439878 | R28: 5 | S28: 5 AÑOS | V28: 3 | X28: 60 | Y28: 55
A29: 43 | B29: 1 | C29: 2.835243705 | D29: 4.470641784 | E29: 7.820167549 | F29: 10.32089912 | G29: 12.16549029 | I29: 43 | J29: 1 | K29: 2.839506424 | L29: 4.483578641 | M29: 7.866516909 | N29: 10.40870761 | O29: 12.29800579 | R29: 10 | S29: 10 AÑOS | V29: 5 | X29: 65 | Y29: 60
A30: 44 | B30: 1 | C30: 2.835148588 | D30: 4.470343291 | E30: 7.818489491 | F30: 10.31438156 | G30: 12.14831029 | I30: 44 | J30: 1 | K30: 2.839288994 | L30: 4.482902058 | M30: 7.863533407 | N30: 10.40029121 | O30: 12.27894263 | R30: 15 | S30: 15 AÑOS | V30: 100
A31: 45 | B31: 1 | C31: 2.835062881 | D31: 4.47004315 | E31: 7.816390087 | F31: 10.3061258 | G31: 12.12768195 | I31: 45 | J31: 1 | K31: 2.839069958 | L31: 4.482212001 | M31: 7.860201817 | N31: 10.39043357 | O31: 12.25688858 | R31: 20 | S31: 20 AÑOS
A32: 46 | B32: 1 | C32: 2.834955944 | D32: 4.469665251 | E32: 7.813557388 | F32: 10.29554309 | G32: 12.10299385 | I32: 46 | J32: 1 | K32: 2.838849256 | L32: 4.481482329 | M32: 7.856345138 | N32: 10.37872767 | O32: 12.23140706
A33: 47 | B33: 1 | C33: 2.834837899 | D33: 4.469191373 | E33: 7.80978269 | F33: 10.28220045 | G33: 12.0738776 | I33: 47 | J33: 1 | K33: 2.83861737 | L33: 4.480668194 | M33: 7.851735718 | N33: 10.3647148 | O33: 12.2020405
A34: 48 | B34: 1 | C34: 2.834678016 | D34: 4.468525253 | E34: 7.804693704 | F34: 10.26552034 | G34: 12.03983775 | I34: 48 | J34: 1 | K34: 2.838345187 | L34: 4.479696221 | M34: 7.84607219 | N34: 10.34788606 | O34: 12.16832803 | R34: 1 | S34: 2
A35: 49 | B35: 1 | C35: 2.834444909 | D35: 4.467559532 | E35: 7.797923784 | F35: 10.24500503 | G35: 12.00049612 | I35: 49 | J35: 1 | K35: 2.838012679 | L35: 4.478492843 | M35: 7.839063837 | N35: 10.32780813 | O35: 12.12991446 | R35: 3 | S35: 3
A36: 50 | B36: 1 | C36: 2.834106497 | D36: 4.466193064 | E36: 7.789112234 | F36: 10.22024731 | G36: 11.95547717 | I36: 50 | J36: 1 | K36: 2.837609515 | L36: 4.47700135 | M36: 7.830430937 | N36: 10.30412743 | O36: 12.08644441 | R36: 5 | S36: 4
A37: 51 | B37: 1 | C37: 2.833619799 | D37: 4.464313116 | E37: 7.777925173 | F37: 10.1909893 | G37: 11.90460132 | I37: 51 | J37: 1 | K37: 2.837095935 | L37: 4.475118111 | M37: 7.819834734 | N37: 10.27651507 | O37: 12.03761622 | R37: 10 | S37: 5
A38: 52 | B38: 1 | C38: 2.832950416 | D38: 4.461821744 | E38: 7.764077629 | F38: 10.15711027 | G38: 11.84778586 | I38: 52 | J38: 1 | K38: 2.83644053 | L38: 4.472745545 | M38: 7.806975997 | N38: 10.24474691 | O38: 11.98320475 | R38: 15 | S38: 6
A39: 53 | B39: 1 | C39: 2.832084902 | D39: 4.458659843 | E39: 7.747459278 | F39: 10.11876573 | G39: 11.7851493 | I39: 53 | J39: 1 | K39: 2.835631896 | L39: 4.469822896 | M39: 7.79169337 | N39: 10.20884858 | O39: 11.92315605 | R39: 20 | S39: 7
A40: 54 | B40: 1 | C40: 2.830976147 | D40: 4.4546935 | E40: 7.727908105 | F40: 10.07605208 | G40: 11.71662453 | I40: 54 | J40: 1 | K40: 2.834617436 | L40: 4.46621023 | M40: 7.773759818 | N40: 10.16876524 | O40: 11.85722119
A41: 55 | B41: 1 | C41: 2.829619131 | D41: 4.449893949 | E41: 7.705553418 | F41: 10.02929001 | G41: 11.64239768 | I41: 55 | J41: 1 | K41: 2.83338385 | L41: 4.461857738 | M41: 7.753199205 | N41: 10.12463554 | O41: 11.78536629
A42: 56 | B42: 1 | C42: 2.827942279 | D42: 4.444134328 | E42: 7.680476106 | F42: 9.978730059 | G42: 11.56227078 | I42: 56 | J42: 1 | K42: 2.831875831 | L42: 4.456652968 | M42: 7.730045881 | N42: 10.07661737 | O42: 11.70727942 | S42: 0.02
A43: 57 | B43: 1 | C43: 2.825967884 | D43: 4.437491482 | E43: 7.653190794 | F43: 9.925079707 | G43: 11.47641585 | I43: 57 | J43: 1 | K43: 2.830096518 | L43: 4.450627382 | M43: 7.704634605 | N43: 10.02517848 | O43: 11.62284885 | S43: 0.03
A44: 58 | B44: 1 | C44: 2.823684101 | D44: 4.430025702 | E44: 7.624184767 | F44: 9.86880996 | G44: 11.38461048 | I44: 58 | J44: 1 | K44: 2.82802704 | L44: 4.443806921 | M44: 7.677337885 | N44: 9.970639656 | O44: 11.53166492 | S44: 0.04
A45: 59 | B45: 1 | C45: 2.821142009 | D45: 4.42193674 | E45: 7.594152856 | F45: 9.810477928 | G45: 11.2866082 | I45: 59 | J45: 1 | K45: 2.825706796 | L45: 4.43633625 | M45: 7.648699083 | N45: 9.913384206 | O45: 11.43325525 | S45: 0.05
A46: 60 | B46: 1 | C46: 2.818414184 | D46: 4.41342873 | E46: 7.563526561 | F46: 9.750283442 | G46: 11.18171319 | I46: 60 | J46: 1 | K46: 2.823195581 | L46: 4.428390434 | M46: 7.619079122 | N46: 9.853537086 | O46: 11.3267883 | S46: 0.06
S47: 0.07

Sheet Ex2 (hidden)
B1: Tablas de anualidades contingentes hombres | I1: Tablas de anualidades contingentes mujeres | T1: i | U1: 0.055
B2: a x:1 | C2: a x:5 | D2: a x:65 | E2: a x:60 | I2: a x:1 | J2: a x:5 | K2: a x:65 | L2: a x:60 | T2: v | U2: =1/(1+U1) -> 0.9478672986
A3: 18 | B3: 1 | C3: 4.474858747 | D3: 16.71964634 | E3: 16.33245617 | H3: 18 | I3: 1 | J3: 4.494059644 | K3: 17.19607928 | L3: 16.77713271 | T3: Edad | U3: =++IF(OR(INT((Extraprima!C14-Extraprima!C12+1)/365.25)<18,INT((Extraprima!C14-Extraprima!C12+1)/365.25)>VLOOKUP(U5,$U$23:$V$24,2,FALSE)),"NO SE LE VENDE ESTE PRODUCTO A ALGUIEN MENOR DE 18 AÑOS O MAYOR DE 59 AÑOS",INT((Extraprima!C14-Extraprima!C12+1)/365.25)) -> 
A4: 19 | B4: 1 | C4: 4.474788535 | D4: 16.64355247 | E4: 16.2336056 | H4: 19 | I4: 1 | J4: 4.493946732 | K4: 17.10904772 | L4: 16.66648525 | P4: FORMA DE PAGO | T4: GENERO | U4: =Extraprima!C16 ->  | V4: =U4 -> 
A5: 20 | B5: 1 | C5: 4.474590068 | D5: 16.56286695 | E5: 16.128829 | H5: 20 | I5: 1 | J5: 4.493739306 | K5: 17.0171389 | L5: 16.54962853 | O5: 1 | P5: ANUAL | Q5: 1 | R5: 1 | T5: COBERTURA | U5: =Extraprima!C26 ->  | V5: =+IF(OR(Extraprima!C4=5,Extraprima!C4=10,Extraprima!C4=15,Extraprima!C4=20),VLOOKUP(Extraprima!C4,'Ex2'!$O$26:$P$30,2,FALSE),"ERROR") -> 
A6: 21 | B6: 1 | C6: 4.474267395 | D6: 16.47748447 | E6: 16.01793845 | H6: 21 | I6: 1 | J6: 4.493399479 | K6: 16.92007764 | L6: 16.42621217 | O6: 2 | P6: SEMESTRAL | Q6: 0.53 | R6: 2 | T6: OPCION DE PAGO | U6: =Extraprima!C30 ->  | V6: =+VLOOKUP(U6,$O$13:$Q$18,2,FALSE) ->  | W6: =+IF(U6=U5,"PP",V6) -> 
A7: 22 | B7: 1 | C7: 4.473939444 | D7: 16.38762341 | E7: 15.90105422 | H7: 22 | I7: 1 | J7: 4.493075384 | K7: 16.8182477 | L7: 16.2965196 | O7: 4 | P7: TRIMESTRAL | Q7: 0.27 | R7: 4
A8: 23 | B8: 1 | C8: 4.47365939 | D8: 16.29318408 | E8: 15.77798032 | H8: 23 | I8: 1 | J8: 4.492767985 | K8: 16.71137407 | L8: 16.16018827 | O8: 12 | P8: MENSUAL | Q8: 0.093 | R8: 12 | T8: Tasa de crecimiento | U8: =Extraprima!C28 -> 
A9: 24 | B9: 1 | C9: 4.473455133 | D9: 16.19389554 | E9: 15.6483482 | H9: 24 | I9: 1 | J9: 4.492441258 | K9: 16.59899869 | L9: 16.01667329
A10: 25 | B10: 1 | C10: 4.473310954 | D10: 16.08930641 | E10: 15.51160872 | H10: 25 | I10: 1 | J10: 4.492131198 | K10: 16.4809715 | L10: 15.86572122
A11: 26 | B11: 1 | C11: 4.473156008 | D11: 15.97877559 | E11: 15.36702437 | H11: 26 | I11: 1 | J11: 4.491801681 | K11: 16.3568007 | L11: 15.7067429 | S11: Anualidad contingente | T11: =+IF(Extraprima!C38="Masculino",VLOOKUP(U3,$A$3:$E$45,VLOOKUP(U6,$O$33:$P$36,2,FALSE),FALSE),VLOOKUP(U3,$H$3:$L$45,VLOOKUP(U6,$O$33:$P$36,2,FALSE),FALSE)) -> 
A12: 27 | B12: 1 | C12: 4.473043814 | D12: 15.86211407 | E12: 15.21428625 | H12: 27 | I12: 1 | J12: 4.4914888 | K12: 16.22629664 | L12: 15.53943283 | P12: OPCIONES DE PAGO | S12: VP Extraprima | T12: =IF(ABS(U6-U5)=5,"ERROR",(1-(U2^(U5-U3)))/(1-U2)+(U8*((1-(U2^(U5-U3)))/(1-U2)-(U5-U3)*(U2^((U5-U3)-1))))/U1) ->  | U12: =+T12/T11 -> 
A13: 28 | B13: 1 | C13: 4.472939543 | D13: 15.73879589 | E13: 15.05275419 | H13: 28 | I13: 1 | J13: 4.491148166 | K13: 16.08892964 | L13: 15.36315214 | O13: 1 | P13: PU
A14: 29 | B14: 1 | C14: 4.472843769 | D14: 15.60842644 | E14: 14.88190635 | H14: 29 | I14: 1 | J14: 4.490815483 | K14: 15.94446559 | L14: 15.17753681 | O14: 5 | P14: 5P
A15: 30 | B15: 1 | C15: 4.47276548 | D15: 15.47058754 | E15: 14.70118964 | H15: 30 | I15: 1 | J15: 4.490437516 | K15: 15.79233227 | L15: 14.98189217 | O15: 60 | P15: 60P | S15: Valor extraprima anualizada | T15: =U33/T11 -> 
A16: 31 | B16: 1 | C16: 4.472650878 | D16: 15.3246763 | E16: 14.50986669 | H16: 31 | I16: 1 | J16: 4.490040828 | K16: 15.63224562 | L16: 14.77578847 | O16: 65 | P16: 65P
A17: 32 | B17: 1 | C17: 4.472535889 | D17: 15.17037356 | E17: 14.30745939 | H17: 32 | I17: 1 | J17: 4.489616125 | K17: 15.46374309 | L17: 14.55861659 | S17: Valor cuota | T17: =Extraprima!G30 -> 
A18: 33 | B18: 1 | C18: 4.472429009 | D18: 15.00718096 | E18: 14.09330885 | H18: 33 | I18: 1 | J18: 4.48915354 | K18: 15.28633473 | L18: 14.32973127 | S18: No. de cuotas | T18: =Extraprima!E32*U6 -> 
A19: 34 | B19: 1 | C19: 4.4722837 | D19: 14.83441394 | E19: 13.86657057 | H19: 34 | I19: 1 | J19: 4.488688469 | K19: 15.09965581 | L19: 14.08859291 | P19: GENERO
A20: 35 | B20: 1 | C20: 4.472183503 | D20: 14.65181542 | E20: 13.62678737 | H20: 35 | I20: 1 | J20: 4.488220827 | K20: 14.90316208 | L20: 13.83448108 | O20: M | P20: MASCULINO
A21: 36 | B21: 1 | C21: 4.472092593 | D21: 14.45864487 | E21: 13.37303713 | H21: 36 | I21: 1 | J21: 4.487742246 | K21: 14.69627661 | L21: 13.56663204 | O21: F | P21: FEMENINO
A22: 37 | B22: 1 | C22: 4.471955354 | D22: 14.25412122 | E22: 13.10434838 | H22: 37 | I22: 1 | J22: 4.487235535 | K22: 14.47838779 | L22: 13.28423608
A23: 38 | B23: 1 | C23: 4.471799288 | D23: 14.0377217 | E23: 12.81997283 | H23: 38 | I23: 1 | J23: 4.486690737 | K23: 14.24884715 | L23: 12.98643465 | U23: 60 | V23: 55
A24: 39 | B24: 1 | C24: 4.471614522 | D24: 13.80873909 | E24: 12.51897568 | H24: 39 | I24: 1 | J24: 4.486088932 | K24: 14.00696712 | L24: 12.67231738 | U24: 65 | V24: 60
A25: 40 | B25: 1 | C25: 4.471390491 | D25: 13.56642369 | E25: 12.20036597 | H25: 40 | I25: 1 | J25: 4.48546475 | K25: 13.75216083 | L25: 12.34104649 | P25: COBERTURA
A26: 41 | B26: 1 | C26: 4.47115558 | D26: 13.3101249 | E26: 11.86322167 | H26: 41 | I26: 1 | J26: 4.484855034 | K26: 13.48379837 | L26: 11.9917233 | O26: 60 | P26: 60 AÑOS | S26: 1
A27: 42 | B27: 1 | C27: 4.470909167 | D27: 13.03900454 | E27: 11.50643051 | H27: 42 | I27: 1 | J27: 4.484214176 | K27: 13.20092887 | L27: 11.6231417 | O27: 65 | P27: 65 AÑOS | S27: 3
A28: 43 | B28: 1 | C28: 4.470641784 | D28: 12.75217345 | E28: 11.12881251 | H28: 43 | I28: 1 | J28: 4.483578641 | K28: 12.90282004 | L28: 11.23426643 | S28: 5
A29: 44 | B29: 1 | C29: 4.470343291 | D29: 12.44868836 | E29: 10.72911584 | H29: 44 | I29: 1 | J29: 4.482902058 | K29: 12.58842265 | L29: 10.82376033 | S29: 100
A30: 45 | B30: 1 | C30: 4.47004315 | D30: 12.12768195 | E30: 10.3061258 | H30: 45 | I30: 1 | J30: 4.482212001 | K30: 12.25688858 | L30: 10.39043357
A31: 46 | B31: 1 | C31: 4.469665251 | D31: 11.78796421 | E31: 9.858322554 | H31: 46 | I31: 1 | J31: 4.481482329 | K31: 11.90718221 | L31: 9.93290489 | S31: Valor Extraprima Anualizada | U31: =+'Ex2'!AJ42 -> 0
A32: 47 | B32: 1 | C32: 4.469191373 | D32: 11.42853542 | E32: 9.384314882 | H32: 47 | I32: 1 | J32: 4.480668194 | K32: 11.5382033 | L32: 9.449706688
A33: 48 | B33: 1 | C33: 4.468525253 | D33: 11.04820085 | E33: 8.882512362 | H33: 48 | I33: 1 | J33: 4.479696221 | K33: 11.14878278 | L33: 8.939279467 | O33: 1 | P33: 2 | S33: Valor Presente Extraprima | U33: =+IF(OR(Extraprima!C18<1000000,Extraprima!C18>2000000000,Extraprima!C20<0),"ERROR",Extraprima!C18*Extraprima!C20/1000*T12) -> 
A34: 49 | B34: 1 | C34: 4.467559532 | D34: 10.64581097 | E34: 8.351319589 | H34: 49 | I34: 1 | J34: 4.478492843 | K34: 10.73779192 | L34: 8.400054742 | O34: 5 | P34: 3
A35: 50 | B35: 1 | C35: 4.466193064 | D35: 10.22024731 | E35: 7.789112234 | H35: 50 | I35: 1 | J35: 4.47700135 | K35: 10.30412743 | L35: 7.830430937 | O35: 60 | P35: 5 | S35: Tasa Valor Presente extraprima (por mil) | U35: =U33/Extraprima!C18*1000 -> 
A36: 51 | B36: 1 | C36: 4.464313116 | D36: 9.770404274 | E36: 7.194207375 | H36: 51 | I36: 1 | J36: 4.475118111 | K36: 9.846588116 | L36: 7.228667123 | O36: 65 | P36: 4
A37: 52 | B37: 1 | C37: 4.461821744 | D37: 9.295166531 | E37: 6.564827262 | H37: 52 | I37: 1 | J37: 4.472745545 | K37: 9.363965117 | L37: 6.592939662
A38: 53 | B38: 1 | C38: 4.458659843 | D38: 8.793481444 | E38: 5.89912271 | H38: 53 | I38: 1 | J38: 4.469822896 | K38: 8.855111864 | L38: 5.921366919
A39: 54 | B39: 1 | C39: 4.4546935 | D39: 8.264025929 | E39: 5.194915443 | H39: 54 | I39: 1 | J39: 4.46621023 | K39: 8.318629664 | L39: 5.211769043
A40: 55 | B40: 1 | C40: 4.449893949 | D40: 7.705553418 | E40: 4.449893949 | H40: 55 | I40: 1 | J40: 4.461857738 | K40: 7.753199205 | L40: 4.461857738
A41: 56 | B41: 1 | C41: 4.444134328 | D41: 7.116397894 | E41: 3.661266492 | H41: 56 | I41: 1 | J41: 4.456652968 | K41: 7.157191606 | L41: 3.668954282 | P41: 0.02
A42: 57 | B42: 1 | C42: 4.437491482 | D42: 6.494931668 | E42: 2.825967884 | H42: 57 | I42: 1 | J42: 4.450627382 | K42: 6.528941557 | L42: 2.830096518 | P42: 0.03
A43: 58 | B43: 1 | C43: 4.430025702 | D43: 5.839021652 | E43: 1.940309116 | H43: 58 | I43: 1 | J43: 4.443806921 | K43: 5.86638691 | L43: 1.94179196 | P43: 0.04
A44: 59 | B44: 1 | C44: 4.42193674 | D44: 5.146203061 | E44: 1 | H44: 59 | I44: 1 | J44: 4.43633625 | K44: 5.167156993 | L44: 1 | P44: 0.05
A45: 60 | B45: 1 | C45: 4.41342873 | D45: 4.41342873 | H45: 60 | I45: 1 | J45: 4.428390434 | K45: 4.428390434 | P45: 0.06
A46: 61 | B46: 1 | C46: 4.404780834 | D46: 3.637049529 | H46: 61 | I46: 1 | J46: 4.420152193 | K46: 3.64661136 | P46: 0.07
A47: 62 | B47: 1 | C47: 4.396181796 | D47: 2.812726009 | H47: 62 | I47: 1 | J47: 4.411832721 | K47: 2.817810119
A48: 63 | B48: 1 | C48: 4.387811821 | D48: 1.935535757 | H48: 63 | I48: 1 | J48: 4.403562379 | K48: 1.937330983
A49: 64 | B49: 1 | C49: 4.37990284 | D49: 1 | H49: 64 | I49: 1 | J49: 4.395555083 | K49: 1

Sheet Productos (hidden)

Sheet Resumen
A1: Fecha efecto: | B1: 2020-01-21
A2: Fecha nacimiento: | B2: 1978-04-05
A3: Edad inicial | B3: =+ROUNDDOWN((B1-B2)/365.25,0) -> 41
A4: Género | B4: Femenino
B5: Valor asegurado | C5: Prima
A6: inicialBásico - Muerte por Cualquier Causa | B6: 80000000 | C6: 149600
A7: Exoneración de pago de primas: | B7: 80000000 | C7: 11200
A8: Incapacidad Total y Permanente: | B8: 80000000 | C8: 52800
A9: Muerte Accidental y/o Desmembración: | B9: 40000000 | C9: 24800
A10: Enfermedades Graves: | B10: 20000000 | C10: 87200
A11: Auxilio Funerario: | B11: 6000000 | C11: 11220
A12: Renta diaria por Hospitalización: | B12: 50000 | C12: 19457

Sheet Vida Anual
S13: Fecha de Cotización: | AB13: =TODAY() -> 2021-01-05
C15: DATOS PERSONALES
D17: Propuesta presentada a: | G17: EDGAR RAMIREZ
D19: Fecha de nacimiento: | G19: 1972-01-12 | S19: Género: | U19: Masculino
D21: Edad: | G21: =IF(OR(ROUNDDOWN((AB13-G19)/365.25,0)<18,ROUNDDOWN((AB13-G19)/365.25,0)>70),0,ROUNDDOWN((AB13-G19)/365.25,0)) -> 48 | L21: años | Q21: =IF(U19="Masculino",1,2) -> 1 | S21: Ciudad: | U21: BOGOTA
D23: Actividad: | G23: OTROS
D25: Ocupación: | G25: Otras Ocupaciones
D27: Recargo conductor moto: | G27: No conduce Moto | Q27: Código Salesforce: | S27: Código Salesforce:
G28: =IF(W36>V36,W36,V36) -> 0 | H28: Unidades por Mil
G29: OCUPACION | T29: Recargo por Moto | Y29: =AB51 -> 1189410
G30: =G25 -> Otras Ocupaciones | T30: =IF(G27="No conduce Moto",0,G27) -> 0 | Y30: =AB76 -> 1189410
... 18 more rows

Sheet Proyección Vida Anual (hidden)
C3: PROYECCIÓN SEGURO DE VIDA INDIVIDUAL
C4: VIDA ANUAL
C6: Nombre del Asegurado: | E6: =+'Vida Anual'!G17 -> EDGAR RAMIREZ
C8: Fecha de nacimiento: | E8: =+'Vida Anual'!G19 -> 1972-01-12 | AA8: 8500 | AD8: =+'Vida Anual'!D36 -> Básico - Muerte por Cualquier Causa: | AE8: =+'Vida Anual'!V36 -> 0 | AF8: =+'Vida Anual'!W36 -> 0
AA9: 9180 | AD9: EXPP | AE9: =+'Vida Anual'!V38 -> 0 | AF9: =+'Vida Anual'!W38 -> 0
C10: Edad: | E10: =+'Vida Anual'!G21 -> 48 | AA10: 9860 | AD10: =+'Vida Anual'!D40 -> Incapacidad Total y Permanente: | AE10: =+'Vida Anual'!V40 -> 0 | AF10: =+'Vida Anual'!W40 -> 0
AA11: 10540 | AD11: =+'Vida Anual'!D42 -> Muerte Accidental y/o Desmembración: | AE11: =+'Vida Anual'!V42 -> 0 | AF11: =+'Vida Anual'!W42 -> 0
C12: Tasa de Crecimiento: | E12: ='Vida Anual'!K76 -> 0 | AA12: 11220 | AD12: =+'Vida Anual'!D44 -> Enfermedades Graves: | AE12: =+'Vida Anual'!V44 -> 0 | AF12: =+'Vida Anual'!W44 -> 0
AA13: 11900 | AD13: =+'Vida Anual'!D46 -> Auxilio Funerario: | AE13: =+'Vida Anual'!V46 -> 0 | AF13: =+'Vida Anual'!W46 -> 0
C14: Forma de Pago: | E14: =+'Vida Anual'!X76 -> Anual | AA14: 12580 | AD14: =+'Vida Anual'!D48 -> Renta diaria por Hospitalización: | AE14: =+'Vida Anual'!V48 -> 0 | AF14: =+'Vida Anual'!W48 -> 0
D16: 2000000000 | E16: =+'Vida Anual'!U19 -> Masculino | G16: 800000000 | H16: 400000000 | J16: 7000000 | K16: 500000 | L16: 65 | O16: =IF(E16="Masculino",1,0) -> 1
E18: VALOR ASEGURADO | L18: Total Prima anual Incluye Anexos y extraprima | M18: Total prima según forma de pago incluye anexos y extraprima
C19: Año | D19: Edad | E19: Básico | F19: EPP | G19: ITP | H19: IA | I19: EG | J19: Auxilio Funerario | K19: Renta Diaria Hospitalización | O19: ITP | P19: IA | Q19: EG | R19: Auxilio Funerario | S19: Renta Diaria Hospitalización | T19: B | U19: EPP | V19: ITP | W19: IA | X19: EG | Y19: AU | Z19: RD | AA19: PROYECCIÓN
AA20: BÁSICO | AB20: EPP | AC20: ITP | AD20: IA | AE20: EG | AF20: AF | AG20: RD | AH20: TOTAL
C21: 1 | D21: =E10 -> 48 | E21: =IF(OR('Vida Anual'!K36>D16,'Vida Anual'!K36<5000000),0,'Vida Anual'!K36) -> 100000000 | F21: =IF(OR('Vida Anual'!K36>D16,'Vida Anual'!K36<5000000),0,'Vida Anual'!K38) -> 100000000 | G21: =IF(D21=0,0,IF(O21>=$G$16,$G$16,O21)) -> 100000000 | H21: =IF(D21=0,0,IF(P21>=$G$16,$G$16,P21)) -> 100000000 | I21: =IF(D21=0,0,IF(Q21>=$H$16,$H$16,Q21)) -> 50000000 | J21: =IF(D21=0,0,IF(D21>=66,0,IF(R21>=$J$16,$J$16,R21))) -> 7000000 | K21: =IF(D21=0,0,IF(D21>60,S20,IF(S21>=$K$16,$K$16,S21))) -> 50000 | L21: =IF(OR(D21>$L$16,D21=0),(E21*T21/1000)+(F21*U21/1000)+( J21*Y21/1000),(E21*T21/1000)+(F21*U21/1000)+(G21*V21/1000)+(H21*W21/1000)+(I21*X21/1000)+(J21*Y21/1000)+(K21*Z21))+$AH21 -> 1189410 | M21: =IF($E$14="Mensual",(L21*0.093),IF($E$14="Trimestral",(L21*0.27),IF($E$14="Semestral",(L21*0.53),IF($E$14="Anual",L21,0)))) -> 1189410 | O21: =IF(OR('Vida Anual'!K38>800000000,'Vida Anual'!K38<5000000,'Vida Anual'!S40="Excluir",'Vida Anual'!S40="Consultar"),0,'Vida Anual'!K40) -> 100000000 | P21: =IF(OR('Vida Anual'!$K$42>800000000,'Vida Anual'!$K$42<5000000,'Vida Anual'!$K$42>'Vida Anual'!$K$36,'Vida Anual'!S42="Excluir",'Vida Anual'!S42="Consultar"),0,'Vida Anual'!K42) -> 100000000 | Q21: =IF(OR('Vida Anual'!$K$44>0.5*'Vida Anual'!$K$36,'Vida Anual'!$K$44>400000000,'Vida Anual'!$K$44<2500000,'Vida Anual'!S44="Excluir",'Vida Anual'!S44="Consultar"),0,'Vida Anual'!K44) -> 50000000 | R21: =IF(OR('Vida Anual'!$K$46>7000000,'Vida Anual'!$K$46<500000),0,'Vida Anual'!K46) -> 7000000 | S21: =IF(OR('Vida Anual'!S48="Excluir",'Vida Anual'!S44="Excluir"),0,'Vida Anual'!K48) -> 50000 | T21: =IF($D21=0,0,IF($O$16=1,VLOOKUP($D21,'Tasas Vida Anual'!$B$5:$M$66,11,0),IF($O$16=0,VLOOKUP($D21,'Tasas Vida Anual'!$B$5:$M$66,12,0)))) -> 4.4 | U21: =IF($D21=0,0,IF($O$16=1,VLOOKUP($D21,'Tasas Vida Anual'!$B$5:$M$66,9,0),IF($O$16=0,VLOOKUP($D21,'Tasas Vida Anual'!$B$5:$M$66,10,0)))) -> 0.22 | V21: =VLOOKUP($D21,'Tasas Vida Anual'!$B$5:$I$52,7,0) -> 0.73 | W21: =VLOOKUP($D21,'Tasas Vida Anual'!$B$5:$I$52,6,0) -> 0.62 | X21: =VLOOKUP($D21,'Tasas Vida Anual'!$B$5:$I$52,8,0) -> 10.81 | Y21: =IF(D21=0,0,IF($O$16=1,VLOOKUP($D21,'Tasas Vida Anual'!$B$5:$F$66,4,0),IF($O$16=0,VLOOKUP($D21,'Tasas Vida Anual'!$B$5:$F$66,5,0)))) -> 4.4 | Z21: =IF(OR(D21>59,D21=0),0,IF($O$16=1,VLOOKUP($D21,R_Diaria_Hospitaliazion,2,0),IF($O$16=0,VLOOKUP($D21,R_Diaria_Hospitaliazion,3,0)))) -> 0.4222 | AA21: =IF($AF$8>$AE$8,$AF$8*($E21/1000),$AE$8*($E21/1000)) -> 0 | AB21: =(IF(OR(D21>65,D21=0,O21=0),0,IF($AF$10>$AE$10,$AF$10*$U21*$F21,$AE$10*$U21*$F21)))/1000 -> 0 | AC21: =(IF(OR(D21>65,D21=0,O21=0),0,IF($AF$10>$AE$10,$AF$10*$V21*$G21,$AE$10*$V21*$G21)))/1000 -> 0 | AD21: =IF(OR('Vida Anual'!$S$42="Excluir",'Vida Anual'!$S$42="Consultar"),0,(IF(OR(D21>65,D21=0),0,IF($AF$11>$AE$11,$AF$11*$W21*$H21,$AE$11*$W21*$H21)))/1000) -> 0 | AE21: =(IF(OR(D21>65,D21=0,Q21=0),0,IF($AF$12>$AE$12,$AF$12*$X21*$I21,$AE$12*$X21*$I21)))/1000 -> 0 | AF21: =IF($AF$13>$AE$13,$AF$13*($J21/1000),$AE$13*($J21/1000)) -> 0 | AG21: =IF(OR(D21>59,D21=0,S21=0),0,IF($AF$14>$AE$14,$AF$14*$Z21*$K21,$AE$14*$Z21*$K21)) -> 0 | AH21: =+SUM(AA21:AG21) -> 0
C22: 2 | D22: =IF(D21=0,0,IF(D21>=79,0,(D21+1))) -> 49 | E22: =IF(D22=0,0,IF(D22>=65,E21,E21+($E$21*$E$12))) -> 100000000 | F22: =IF(D22=0,0,IF(D22>=65,0,F21+($O$21*$E$12))) -> 100000000 | G22: 100000000 | H22: 100000000 | I22: 50000000 | J22: =IF(D22=0,0,IF(D22>=65,J21,IF(R22>=$J$16,$J$16,R22))) -> 7000000 | K22: 50000 | L22: 1276030 | M22: 1276030 | O22: =IF(D22=0,0,IF(D22>=65,0,O21+($O$21*$E$12))) -> 100000000 | P22: =IF(D22=0,0,IF(D22>=65,0,P21+($P$21*$E$12))) -> 100000000 | Q22: =IF(D22=0,0,IF(D22>=65,0,Q21+($Q$21*$E$12))) -> 50000000 | R22: =IF(D22=0,0,IF(R21<$J$16,R21+($R$21*$E$12),$J$16)) -> 7000000 | S22: =IF(OR(D22>=60,E22=0),0,IF(S21<$K$16,S21+($S$21*$E$12),$K$16)) -> 50000 | T22: =IF(D22=0,0,IF($O$16=1,VLOOKUP($D22,'Tasas Vida Anual'!$B$5:$M$66,11,0),IF($O$16=0,VLOOKUP($D22,'Tasas Vida Anual'!$B$5:$M$66,12,0)))) -> 4.56 | U22: =IF($D22=0,0,IF($O$16=1,VLOOKUP($D22,'Tasas Vida Anual'!$B$5:$M$66,9,0),IF($O$16=0,VLOOKUP($D22,'Tasas Vida Anual'!$B$5:$M$66,10,0)))) -> 0.22 | V22: =VLOOKUP($D22,'Tasas Vida Anual'!$B$5:$I$52,7,0) -> 0.74 | W22: =VLOOKUP($D22,'Tasas Vida Anual'!$B$5:$I$52,6,0) -> 0.62 | X22: =VLOOKUP($D22,'Tasas Vida Anual'!$B$5:$I$52,8,0) -> 12.18 | Y22: =IF(D22=0,0,IF($O$16=1,VLOOKUP($D22,'Tasas Vida Anual'!$B$5:$F$66,4,0),IF($O$16=0,VLOOKUP($D22,'Tasas Vida Anual'!$B$5:$F$66,5,0)))) -> 4.56 | Z22: 0.4222 | AA22: 0 | AB22: =(IF(OR(D22>65,D22=0,O22=0),0,IF($AF$10>$AE$10,$AF$10*$U22*$F22,$AE$10*$U22*$F22)))/1000 -> 0 | AC22: =(IF(OR(D22>65,D22=0,O22=0),0,IF($AF$10>$AE$10,$AF$10*$V22*$G22,$AE$10*$V22*$G22)))/1000 -> 0 | AD22: =IF(OR('Vida Anual'!$S$42="Excluir",'Vida Anual'!$S$42="Consultar"),0,(IF(OR(D22>65,D22=0),0,IF($AF$11>$AE$11,$AF$11*$W22*$H22,$AE$11*$W22*$H22)))/1000) -> 0 | AE22: 0 | AF22: 0 | AG22: 0 | AH22: =+SUM(AA22:AG22) -> 0
C23: 3 | D23: =IF(D22=0,0,IF(D22>=79,0,(D22+1))) -> 50 | E23: =IF(D23=0,0,IF(D23>=65,E22,E22+($E$21*$E$12))) -> 100000000 | F23: =IF(D23=0,0,IF(D23>=65,0,F22+($O$21*$E$12))) -> 100000000 | G23: 100000000 | H23: 100000000 | I23: 50000000 | J23: 7000000 | K23: 50000 | L23: 1368790 | M23: 1368790 | O23: =IF(D23=0,0,IF(D23>=65,0,O22+($O$21*$E$12))) -> 100000000 | P23: 100000000 | Q23: 50000000 | R23: 7000000 | S23: 50000 | T23: =IF(D23=0,0,IF($O$16=1,VLOOKUP($D23,'Tasas Vida Anual'!$B$5:$M$66,11,0),IF($O$16=0,VLOOKUP($D23,'Tasas Vida Anual'!$B$5:$M$66,12,0)))) -> 4.74 | U23: =IF($D23=0,0,IF($O$16=1,VLOOKUP($D23,'Tasas Vida Anual'!$B$5:$M$66,9,0),IF($O$16=0,VLOOKUP($D23,'Tasas Vida Anual'!$B$5:$M$66,10,0)))) -> 0.22 | V23: =VLOOKUP($D23,'Tasas Vida Anual'!$B$5:$I$52,7,0) -> 0.75 | W23: =VLOOKUP($D23,'Tasas Vida Anual'!$B$5:$I$52,6,0) -> 0.62 | X23: =VLOOKUP($D23,'Tasas Vida Anual'!$B$5:$I$52,8,0) -> 13.63 | Y23: =IF(D23=0,0,IF($O$16=1,VLOOKUP($D23,'Tasas Vida Anual'!$B$5:$F$66,4,0),IF($O$16=0,VLOOKUP($D23,'Tasas Vida Anual'!$B$5:$F$66,5,0)))) -> 4.74 | Z23: 0.4222 | AA23: 0 | AB23: 0 | AC23: 0 | AD23: =IF(OR('Vida Anual'!$S$42="Excluir",'Vida Anual'!$S$42="Consultar"),0,(IF(OR(D23>65,D23=0),0,IF($AF$11>$AE$11,$AF$11*$W23*$H23,$AE$11*$W23*$H23)))/1000) -> 0 | AE23: 0 | AF23: 0 | AG23: 0 | AH23: 0
C24: 4 | D24: 51 | E24: 100000000 | F24: 100000000 | G24: 100000000 | H24: 100000000 | I24: 50000000 | J24: 7000000 | K24: 50000 | L24: 1473900 | M24: 1473900 | O24: 100000000 | P24: 100000000 | Q24: 50000000 | R24: 7000000 | S24: 50000 | T24: =IF(D24=0,0,IF($O$16=1,VLOOKUP($D24,'Tasas Vida Anual'!$B$5:$M$66,11,0),IF($O$16=0,VLOOKUP($D24,'Tasas Vida Anual'!$B$5:$M$66,12,0)))) -> 4.97 | U24: =IF($D24=0,0,IF($O$16=1,VLOOKUP($D24,'Tasas Vida Anual'!$B$5:$M$66,9,0),IF($O$16=0,VLOOKUP($D24,'Tasas Vida Anual'!$B$5:$M$66,10,0)))) -> 0.23 | V24: =VLOOKUP($D24,'Tasas Vida Anual'!$B$5:$I$52,7,0) -> 0.76 | W24: =VLOOKUP($D24,'Tasas Vida Anual'!$B$5:$I$52,6,0) -> 0.62 | X24: =VLOOKUP($D24,'Tasas Vida Anual'!$B$5:$I$52,8,0) -> 15.2 | Y24: =IF(D24=0,0,IF($O$16=1,VLOOKUP($D24,'Tasas Vida Anual'!$B$5:$F$66,4,0),IF($O$16=0,VLOOKUP($D24,'Tasas Vida Anual'!$B$5:$F$66,5,0)))) -> 4.97 | Z24: 0.4222 | AA24: 0 | AB24: 0 | AC24: 0 | AD24: =IF(OR('Vida Anual'!$S$42="Excluir",'Vida Anual'!$S$42="Consultar"),0,(IF(OR(D24>65,D24=0),0,IF($AF$11>$AE$11,$AF$11*$W24*$H24,$AE$11*$W24*$H24)))/1000) -> 0 | AE24: 0 | AF24: 0 | AG24: 0 | AH24: 0
C25: 5 | D25: 52 | E25: 100000000 | F25: 100000000 | G25: 100000000 | H25: 100000000 | I25: 50000000 | J25: 7000000 | K25: 50000 | L25: 1586790 | M25: 1586790 | O25: 100000000 | P25: 100000000 | Q25: 50000000 | R25: 7000000 | S25: 50000 | T25: =IF(D25=0,0,IF($O$16=1,VLOOKUP($D25,'Tasas Vida Anual'!$B$5:$M$66,11,0),IF($O$16=0,VLOOKUP($D25,'Tasas Vida Anual'!$B$5:$M$66,12,0)))) -> 5.24 | U25: =IF($D25=0,0,IF($O$16=1,VLOOKUP($D25,'Tasas Vida Anual'!$B$5:$M$66,9,0),IF($O$16=0,VLOOKUP($D25,'Tasas Vida Anual'!$B$5:$M$66,10,0)))) -> 0.23 | V25: =VLOOKUP($D25,'Tasas Vida Anual'!$B$5:$I$52,7,0) -> 0.77 | W25: =VLOOKUP($D25,'Tasas Vida Anual'!$B$5:$I$52,6,0) -> 0.62 | X25: =VLOOKUP($D25,'Tasas Vida Anual'!$B$5:$I$52,8,0) -> 16.86 | Y25: =IF(D25=0,0,IF($O$16=1,VLOOKUP($D25,'Tasas Vida Anual'!$B$5:$F$66,4,0),IF($O$16=0,VLOOKUP($D25,'Tasas Vida Anual'!$B$5:$F$66,5,0)))) -> 5.24 | Z25: 0.4222 | AA25: 0 | AB25: 0 | AC25: 0 | AD25: =IF(OR('Vida Anual'!$S$42="Excluir",'Vida Anual'!$S$42="Consultar"),0,(IF(OR(D25>65,D25=0),0,IF($AF$11>$AE$11,$AF$11*$W25*$H25,$AE$11*$W25*$H25)))/1000) -> 0 | AE25: 0 | AF25: 0 | AG25: 0 | AH25: 0
C26: 6 | D26: 53 | E26: 100000000 | F26: 100000000 | G26: 100000000 | H26: 100000000 | I26: 50000000 | J26: 7000000 | K26: 50000 | L26: 1711100 | M26: 1711100 | O26: 100000000 | P26: 100000000 | Q26: 50000000 | R26: 7000000 | S26: 50000 | T26: =IF(D26=0,0,IF($O$16=1,VLOOKUP($D26,'Tasas Vida Anual'!$B$5:$M$66,11,0),IF($O$16=0,VLOOKUP($D26,'Tasas Vida Anual'!$B$5:$M$66,12,0)))) -> 5.57 | U26: =IF($D26=0,0,IF($O$16=1,VLOOKUP($D26,'Tasas Vida Anual'!$B$5:$M$66,9,0),IF($O$16=0,VLOOKUP($D26,'Tasas Vida Anual'!$B$5:$M$66,10,0)))) -> 0.23 | V26: =VLOOKUP($D26,'Tasas Vida Anual'!$B$5:$I$52,7,0) -> 0.78 | W26: =VLOOKUP($D26,'Tasas Vida Anual'!$B$5:$I$52,6,0) -> 0.62 | X26: =VLOOKUP($D26,'Tasas Vida Anual'!$B$5:$I$52,8,0) -> 18.62 | Y26: =IF(D26=0,0,IF($O$16=1,VLOOKUP($D26,'Tasas Vida Anual'!$B$5:$F$66,4,0),IF($O$16=0,VLOOKUP($D26,'Tasas Vida Anual'!$B$5:$F$66,5,0)))) -> 5.57 | Z26: 0.4222 | AA26: 0 | AB26: 0 | AC26: 0 | AD26: =IF(OR('Vida Anual'!$S$42="Excluir",'Vida Anual'!$S$42="Consultar"),0,(IF(OR(D26>65,D26=0),0,IF($AF$11>$AE$11,$AF$11*$W26*$H26,$AE$11*$W26*$H26)))/1000) -> 0 | AE26: 0 | AF26: 0 | AG26: 0 | AH26: 0
C27: 7 | D27: 54 | E27: 100000000 | F27: 100000000 | G27: 100000000 | H27: 100000000 | I27: 50000000 | J27: 7000000 | K27: 50000 | L27: 1847830 | M27: 1847830 | O27: 100000000 | P27: 100000000 | Q27: 50000000 | R27: 7000000 | S27: 50000 | T27: =IF(D27=0,0,IF($O$16=1,VLOOKUP($D27,'Tasas Vida Anual'!$B$5:$M$66,11,0),IF($O$16=0,VLOOKUP($D27,'Tasas Vida Anual'!$B$5:$M$66,12,0)))) -> 5.96 | U27: =IF($D27=0,0,IF($O$16=1,VLOOKUP($D27,'Tasas Vida Anual'!$B$5:$M$66,9,0),IF($O$16=0,VLOOKUP($D27,'Tasas Vida Anual'!$B$5:$M$66,10,0)))) -> 0.24 | V27: =VLOOKUP($D27,'Tasas Vida Anual'!$B$5:$I$52,7,0) -> 0.8 | W27: =VLOOKUP($D27,'Tasas Vida Anual'!$B$5:$I$52,6,0) -> 0.62 | X27: =VLOOKUP($D27,'Tasas Vida Anual'!$B$5:$I$52,8,0) -> 20.46 | Y27: =IF(D27=0,0,IF($O$16=1,VLOOKUP($D27,'Tasas Vida Anual'!$B$5:$F$66,4,0),IF($O$16=0,VLOOKUP($D27,'Tasas Vida Anual'!$B$5:$F$66,5,0)))) -> 5.96 | Z27: 0.4222 | AA27: 0 | AB27: 0 | AC27: 0 | AD27: =IF(OR('Vida Anual'!$S$42="Excluir",'Vida Anual'!$S$42="Consultar"),0,(IF(OR(D27>65,D27=0),0,IF($AF$11>$AE$11,$AF$11*$W27*$H27,$AE$11*$W27*$H27)))/1000) -> 0 | AE27: 0 | AF27: 0 | AG27: 0 | AH27: 0
C28: 8 | D28: 55 | E28: 100000000 | F28: 100000000 | G28: 100000000 | H28: 100000000 | I28: 50000000 | J28: 7000000 | K28: 50000 | L28: 1995120 | M28: 1995120 | O28: 100000000 | P28: 100000000 | Q28: 50000000 | R28: 7000000 | S28: 50000 | T28: =IF(D28=0,0,IF($O$16=1,VLOOKUP($D28,'Tasas Vida Anual'!$B$5:$M$66,11,0),IF($O$16=0,VLOOKUP($D28,'Tasas Vida Anual'!$B$5:$M$66,12,0)))) -> 6.43 | U28: =IF($D28=0,0,IF($O$16=1,VLOOKUP($D28,'Tasas Vida Anual'!$B$5:$M$66,9,0),IF($O$16=0,VLOOKUP($D28,'Tasas Vida Anual'!$B$5:$M$66,10,0)))) -> 0.24 | V28: =VLOOKUP($D28,'Tasas Vida Anual'!$B$5:$I$52,7,0) -> 0.81 | W28: =VLOOKUP($D28,'Tasas Vida Anual'!$B$5:$I$52,6,0) -> 0.62 | X28: =VLOOKUP($D28,'Tasas Vida Anual'!$B$5:$I$52,8,0) -> 22.38 | Y28: =IF(D28=0,0,IF($O$16=1,VLOOKUP($D28,'Tasas Vida Anual'!$B$5:$F$66,4,0),IF($O$16=0,VLOOKUP($D28,'Tasas Vida Anual'!$B$5:$F$66,5,0)))) -> 6.43 | Z28: 0.4222 | AA28: 0 | AB28: 0 | AC28: 0 | AD28: =IF(OR('Vida Anual'!$S$42="Excluir",'Vida Anual'!$S$42="Consultar"),0,(IF(OR(D28>65,D28=0),0,IF($AF$11>$AE$11,$AF$11*$W28*$H28,$AE$11*$W28*$H28)))/1000) -> 0 | AE28: 0 | AF28: 0 | AG28: 0 | AH28: 0
C29: 9 | D29: 56 | E29: 100000000 | F29: 100000000 | G29: 100000000 | H29: 100000000 | I29: 50000000 | J29: 7000000 | K29: 50000 | L29: 2111170 | M29: 2111170 | O29: 100000000 | P29: 100000000 | Q29: 50000000 | R29: 7000000 | S29: 50000 | T29: =IF(D29=0,0,IF($O$16=1,VLOOKUP($D29,'Tasas Vida Anual'!$B$5:$M$66,11,0),IF($O$16=0,VLOOKUP($D29,'Tasas Vida Anual'!$B$5:$M$66,12,0)))) -> 6.58 | U29: =IF($D29=0,0,IF($O$16=1,VLOOKUP($D29,'Tasas Vida Anual'!$B$5:$M$66,9,0),IF($O$16=0,VLOOKUP($D29,'Tasas Vida Anual'!$B$5:$M$66,10,0)))) -> 0.25 | V29: =VLOOKUP($D29,'Tasas Vida Anual'!$B$5:$I$52,7,0) -> 0.82 | W29: =VLOOKUP($D29,'Tasas Vida Anual'!$B$5:$I$52,6,0) -> 0.62 | X29: =VLOOKUP($D29,'Tasas Vida Anual'!$B$5:$I$52,8,0) -> 24.34 | Y29: =IF(D29=0,0,IF($O$16=1,VLOOKUP($D29,'Tasas Vida Anual'!$B$5:$F$66,4,0),IF($O$16=0,VLOOKUP($D29,'Tasas Vida Anual'!$B$5:$F$66,5,0)))) -> 6.58 | Z29: 0.4222 | AA29: 0 | AB29: 0 | AC29: 0 | AD29: =IF(OR('Vida Anual'!$S$42="Excluir",'Vida Anual'!$S$42="Consultar"),0,(IF(OR(D29>65,D29=0),0,IF($AF$11>$AE$11,$AF$11*$W29*$H29,$AE$11*$W29*$H29)))/1000) -> 0 | AE29: 0 | AF29: 0 | AG29: 0 | AH29: 0
C30: 10 | D30: 57 | E30: 100000000 | F30: 100000000 | G30: 100000000 | H30: 100000000 | I30: 50000000 | J30: 7000000 | K30: 50000 | L30: 2274870 | M30: 2274870 | O30: 100000000 | P30: 100000000 | Q30: 50000000 | R30: 7000000 | S30: 50000 | T30: =IF(D30=0,0,IF($O$16=1,VLOOKUP($D30,'Tasas Vida Anual'!$B$5:$M$66,11,0),IF($O$16=0,VLOOKUP($D30,'Tasas Vida Anual'!$B$5:$M$66,12,0)))) -> 7.18 | U30: =IF($D30=0,0,IF($O$16=1,VLOOKUP($D30,'Tasas Vida Anual'!$B$5:$M$66,9,0),IF($O$16=0,VLOOKUP($D30,'Tasas Vida Anual'!$B$5:$M$66,10,0)))) -> 0.25 | V30: =VLOOKUP($D30,'Tasas Vida Anual'!$B$5:$I$52,7,0) -> 0.83 | W30: =VLOOKUP($D30,'Tasas Vida Anual'!$B$5:$I$52,6,0) -> 0.62 | X30: =VLOOKUP($D30,'Tasas Vida Anual'!$B$5:$I$52,8,0) -> 26.31 | Y30: =IF(D30=0,0,IF($O$16=1,VLOOKUP($D30,'Tasas Vida Anual'!$B$5:$F$66,4,0),IF($O$16=0,VLOOKUP($D30,'Tasas Vida Anual'!$B$5:$F$66,5,0)))) -> 7.18 | Z30: 0.4222 | AA30: 0 | AB30: 0 | AC30: 0 | AD30: =IF(OR('Vida Anual'!$S$42="Excluir",'Vida Anual'!$S$42="Consultar"),0,(IF(OR(D30>65,D30=0),0,IF($AF$11>$AE$11,$AF$11*$W30*$H30,$AE$11*$W30*$H30)))/1000) -> 0 | AE30: 0 | AF30: 0 | AG30: 0 | AH30: 0
C31: 11 | D31: 58 | E31: 100000000 | F31: 100000000 | G31: 100000000 | H31: 100000000 | I31: 50000000 | J31: 7000000 | K31: 50000 | L31: 2450270 | M31: 2450270 | O31: 100000000 | P31: 100000000 | Q31: 50000000 | R31: 7000000 | S31: 50000 | T31: =IF(D31=0,0,IF($O$16=1,VLOOKUP($D31,'Tasas Vida Anual'!$B$5:$M$66,11,0),IF($O$16=0,VLOOKUP($D31,'Tasas Vida Anual'!$B$5:$M$66,12,0)))) -> 7.88 | U31: =IF($D31=0,0,IF($O$16=1,VLOOKUP($D31,'Tasas Vida Anual'!$B$5:$M$66,9,0),IF($O$16=0,VLOOKUP($D31,'Tasas Vida Anual'!$B$5:$M$66,10,0)))) -> 0.25 | V31: =VLOOKUP($D31,'Tasas Vida Anual'!$B$5:$I$52,7,0) -> 0.85 | W31: =VLOOKUP($D31,'Tasas Vida Anual'!$B$5:$I$52,6,0) -> 0.62 | X31: =VLOOKUP($D31,'Tasas Vida Anual'!$B$5:$I$52,8,0) -> 28.28 | Y31: =IF(D31=0,0,IF($O$16=1,VLOOKUP($D31,'Tasas Vida Anual'!$B$5:$F$66,4,0),IF($O$16=0,VLOOKUP($D31,'Tasas Vida Anual'!$B$5:$F$66,5,0)))) -> 7.88 | Z31: 0.4222 | AA31: 0 | AB31: 0 | AC31: 0 | AD31: =IF(OR('Vida Anual'!$S$42="Excluir",'Vida Anual'!$S$42="Consultar"),0,(IF(OR(D31>65,D31=0),0,IF($AF$11>$AE$11,$AF$11*$W31*$H31,$AE$11*$W31*$H31)))/1000) -> 0 | AE31: 0 | AF31: 0 | AG31: 0 | AH31: 0
... 38 more rows

Sheet Proteccion a Largo Plazo (hidden)
C20: DATOS PERSONALES
C22: Propuesta presentada a : | J22: =#REF! -> 
C24: Fecha de nacimiento : | J24: =#REF! ->  | Q24: Fecha de Cotización: | W24: =#REF! -> 
C26: Edad : | J26: =#REF! ->  | N26: 65 | T26: Ciudad: | W26: =#REF! -> 
C28: Género : | J28: =#REF! ->  | N28: =VLOOKUP(#REF!,Conditionals!$U$61:$W$66,3,0) ->  | R28: Código Salesforce : | T28: Código Salesforce: | W28: =#REF! -> 
C30: Plan Ahorro y Vida : | J30: =#REF! ->  | N30: =IF(J26>=61,"Error: Edad de Ingreso",IF(OR(N28=60,N28=65),#REF!,IF(N26-N28<J26,"Error: Edad de Ingreso",#REF!))) ->  | R30: Valor Asegurado : | T30: Valor Asegurado: | X30: =IF(#REF!>Conditionals!I68,Conditionals!I68,#REF!) -> 
... 31 more rows

Sheet LPinv - H (hidden)
B2: ARITMETICO | H2: COTIZADOR HOMBRES
B3: i | C3: 0.055
B4: v | C4: =1/(1+$C$3) -> 0.9478672986
B5: alpha (crec) | C5: ='Proteccion a Largo Plazo'!Y32 -> 
B6: Beta (dote) | C6: ='Proteccion a Largo Plazo'!Y34 -> 
B7: Comisión | C7: 0.2
B8: Gastos adm | C8: 0.03 | AD8: TASAS COMERCIALES - HOMBRES | AL8: RESERVA MATEMÁTICA | CD8: RESERVA MATEMÁTICA | EA8: RESERVA MATEMÁTICA | FO8: RESERVA MATEMÁTICA | HH8: RESERVA MATEMÁTICA | IZ8: RESERVA MATEMÁTICA
D9: TABLA DE MORTALIDAD ASEGURADOS HOMBRES | AD9: PRIMAS COMERCIALES | AL9: 60 Pago unico | CD9: 65 Pago único | EA9: 60 5 Pagos | FO9: 65 5 Pagos | HH9: 60 Pagos permanentes | IZ9: 65 Pagos permanentes
V10: PRIMAS PURAS | AD10: 60PU | AE10: 65PU | AF10: 605P | AG10: 655P | AH10: 60PP | AI10: 65PP
C11: lx | D11: dx | E11: qx | F11: Dx | G11: Nx | H11: Cx | I11: Mx | J11: Rx | K11: Sx | M11: Ax:65 alpha | N11: Ax:60 alpha | P11: a x:1 | Q11: a x:5 | R11: a x:65 | S11: a x:60 | U11: Edad | V11: P 60 PU | W11: P 65 PU | X11: P 60 5P | Y11: P65 5P | Z11: P 60 PP | AA11: P 65 PP | AC11: Edad | AD11: PC 60 PU | AE11: PC 65 PU | AF11: PC 60 5P | AG11: PC 65 5P | AH11: PC 60 PP | AI11: PC 65 PP | AK11: Altura | AL11: 18 | AM11: 19 | AN11: 20 | AO11: 21 | AP11: 22 | AQ11: 23 | AR11: 24 | AS11: 25 | AT11: 26 | AU11: 27 | AV11: 28 | AW11: 29 | AX11: 30 | AY11: 31 | AZ11: 32 | BA11: 33 | BB11: 34 | BC11: 35 | BD11: 36 | BE11: 37 | BF11: 38 | BG11: 39 | BH11: 40 | BI11: 41 | BJ11: 42 | BK11: 43 | BL11: 44 | BM11: 45 | BN11: 46 | BO11: 47 | BP11: 48 | BQ11: 49 | BR11: 50 | BS11: 51 | BT11: 52 | BU11: 53 | BV11: 54 | BW11: 55 | BX11: 56 | BY11: 57 | BZ11: 58 | CA11: 59 | CC11: Altura | CD11: 18 | CE11: 19 | CF11: 20 | CG11: 21 | CH11: 22 | CI11: 23 | CJ11: 24 | CK11: 25 | CL11: 26 | CM11: 27 | CN11: 28 | CO11: 29 | CP11: 30 | CQ11: 31 | CR11: 32 | CS11: 33 | CT11: 34 | CU11: 35 | CV11: 36 | CW11: 37 | CX11: 38 | CY11: 39 | CZ11: 40 | DA11: 41 | DB11: 42 | DC11: 43 | DD11: 44 | DE11: 45 | DF11: 46 | DG11: 47 | DH11: 48 | DI11: 49 | DJ11: 50 | DK11: 51 | DL11: 52 | DM11: 53 | DN11: 54 | DO11: 55 | DP11: 56 | DQ11: 57 | DR11: 58 | DS11: 59 | DT11: 60 | DU11: 61 | DV11: 62 | DW11: 63 | DX11: 64 | DZ11: Altura | EA11: 18 | EB11: 19 | EC11: 20 | ED11: 21 | EE11: 22 | EF11: 23 | EG11: 24 | EH11: 25 | EI11: 26 | EJ11: 27 | EK11: 28 | EL11: 29 | EM11: 30 | EN11: 31 | EO11: 32 | EP11: 33 | EQ11: 34 | ER11: 35 | ES11: 36 | ET11: 37 | EU11: 38 | EV11: 39 | EW11: 40 | EX11: 41 | EY11: 42 | EZ11: 43 | FA11: 44 | FB11: 45 | FC11: 46 | FD11: 47 | FE11: 48 | FF11: 49 | FG11: 50 | FH11: 51 | FI11: 52 | FJ11: 53 | FK11: 54 | FL11: 55 | FN11: Altura | FO11: 18 | FP11: 19 | FQ11: 20 | FR11: 21 | FS11: 22 | FT11: 23 | FU11: 24 | FV11: 25 | FW11: 26 | FX11: 27 | FY11: 28 | FZ11: 29 | GA11: 30 | GB11: 31 | GC11: 32 | GD11: 33 | GE11: 34 | GF11: 35 | GG11: 36 | GH11: 37 | GI11: 38 | GJ11: 39 | GK11: 40 | GL11: 41 | GM11: 42 | GN11: 43 | GO11: 44 | GP11: 45 | GQ11: 46 | GR11: 47 | GS11: 48 | GT11: 49 | GU11: 50 | GV11: 51 | GW11: 52 | GX11: 53 | GY11: 54 | GZ11: 55 | HA11: 56 | HB11: 57 | HC11: 58 | HD11: 59 | HE11: 60 | HG11: Altura | HH11: 18 | HI11: 19 | HJ11: 20 | HK11: 21 | HL11: 22 | HM11: 23 | HN11: 24 | HO11: 25 | HP11: 26 | HQ11: 27 | HR11: 28 | HS11: 29 | HT11: 30 | HU11: 31 | HV11: 32 | HW11: 33 | HX11: 34 | HY11: 35 | HZ11: 36 | IA11: 37 | IB11: 38 | IC11: 39 | ID11: 40 | IE11: 41 | IF11: 42 | IG11: 43 | IH11: 44 | II11: 45 | IJ11: 46 | IK11: 47 | IL11: 48 | IM11: 49 | IN11: 50 | IO11: 51 | IP11: 52 | IQ11: 53 | IR11: 54 | IS11: 55 | IT11: 56 | IU11: 57 | IV11: 58 | IW11: 59 | IY11: Altura | IZ11: 18 | JA11: 19 | JB11: 20 | JC11: 21 | JD11: 22 | JE11: 23 | JF11: 24 | JG11: 25 | JH11: 26 | JI11: 27 | JJ11: 28 | JK11: 29 | JL11: 30 | JM11: 31 | JN11: 32 | JO11: 33 | JP11: 34 | JQ11: 35 | JR11: 36 | JS11: 37 | JT11: 38 | JU11: 39 | JV11: 40 | JW11: 41 | JX11: 42 | JY11: 43 | JZ11: 44 | KA11: 45 | KB11: 46 | KC11: 47 | KD11: 48 | KE11: 49 | KF11: 50 | KG11: 51 | KH11: 52 | KI11: 53 | KJ11: 54 | KK11: 55 | KL11: 56 | KM11: 57 | KN11: 58 | KO11: 59 | KP11: 60 | KQ11: 61 | KR11: 62 | KS11: 63 | KT11: 64
B12: 18 | C12: 100716 | D12: =+C12-C13 -> 359 | E12: =1-(C13/C12) -> 0.003564478335 | F12: =+C12*$C$4^B12 -> 38419.72003 | G12: =+SUM($F12:F$95) -> 668995.485 | H12: =+D12*$C$4^(B12+1) -> 129.8068812 | I12: =+SUM($H12:H$95) -> 3543.178159 | J12: =+SUM(I12:$I$94) -> 106648.6858 | K12: =+SUM($G12:G$94) -> 10786834.06 | M12: =+(I12-$I$59+$C$5*(J13-$J$59-(($B$59-B12-1)*$I$59))+$C$6*(1+($B$59-B12-1)*$C$5)*$F$59)/F12 ->  | N12: =+(I12-$I$54+$C$5*(J13-$J$54-(($B$54-B12-1)*$I$54))+$C$6*(1+($B$54-B12-1)*$C$5)*$F$54)/F12 ->  | P12: =+(G12-G13)/F12 -> 1 | Q12: =+($G12-$G17)/$F12 -> 4.474858747 | R12: =+($G12-$G$59)/$F12 -> 16.71964634 | S12: =+($G12-$G$54)/$F12 -> 16.33245617 | U12: 18 | V12: =+N12 ->  | W12: =+M12 ->  | X12: =+(N12)/Q12 ->  | Y12: =+(M12)/Q12 ->  | Z12: =+(N12)/S12 ->  | AA12: =+(M12)/R12 ->  | AC12: 18 | AD12: =+V12/(1-$C$7-$C$8) ->  | AE12: =+W12/(1-$C$7-$C$8) ->  | AK12: 1 | AL12: =+(((1+$AK$12*$C$5)*($I13-$I$54))+$C$5*($J14-$J$54-(($B$54-$B13-$AK$12)*$I$54))+$C$6*(1+($B$54-$B13)*$C$5)*$F$54)/$F13 ->  | AM12: =+(((1+$AK$12*$C$5)*($I14-$I$54))+$C$5*($J15-$J$54-(($B$54-$B14-$AK$12)*$I$54))+$C$6*(1+($B$54-$B14)*$C$5)*$F$54)/$F14 ->  | AN12: =+(((1+$AK$12*$C$5)*($I15-$I$54))+$C$5*($J16-$J$54-(($B$54-$B15-$AK$12)*$I$54))+$C$6*(1+($B$54-$B15)*$C$5)*$F$54)/$F15 ->  | AO12: =+(((1+$AK$12*$C$5)*($I16-$I$54))+$C$5*($J17-$J$54-(($B$54-$B16-$AK$12)*$I$54))+$C$6*(1+($B$54-$B16)*$C$5)*$F$54)/$F16 ->  | AP12: =+(((1+$AK$12*$C$5)*($I17-$I$54))+$C$5*($J18-$J$54-(($B$54-$B17-$AK$12)*$I$54))+$C$6*(1+($B$54-$B17)*$C$5)*$F$54)/$F17 ->  | AQ12: =+(((1+$AK$12*$C$5)*($I18-$I$54))+$C$5*($J19-$J$54-(($B$54-$B18-$AK$12)*$I$54))+$C$6*(1+($B$54-$B18)*$C$5)*$F$54)/$F18 ->  | AR12: =+(((1+$AK$12*$C$5)*($I19-$I$54))+$C$5*($J20-$J$54-(($B$54-$B19-$AK$12)*$I$54))+$C$6*(1+($B$54-$B19)*$C$5)*$F$54)/$F19 ->  | AS12: =+(((1+$AK$12*$C$5)*($I20-$I$54))+$C$5*($J21-$J$54-(($B$54-$B20-$AK$12)*$I$54))+$C$6*(1+($B$54-$B20)*$C$5)*$F$54)/$F20 ->  | AT12: =+(((1+$AK$12*$C$5)*($I21-$I$54))+$C$5*($J22-$J$54-(($B$54-$B21-$AK$12)*$I$54))+$C$6*(1+($B$54-$B21)*$C$5)*$F$54)/$F21 ->  | AU12: =+(((1+$AK$12*$C$5)*($I22-$I$54))+$C$5*($J23-$J$54-(($B$54-$B22-$AK$12)*$I$54))+$C$6*(1+($B$54-$B22)*$C$5)*$F$54)/$F22 ->  | AV12: =+(((1+$AK$12*$C$5)*($I23-$I$54))+$C$5*($J24-$J$54-(($B$54-$B23-$AK$12)*$I$54))+$C$6*(1+($B$54-$B23)*$C$5)*$F$54)/$F23 ->  | AW12: =+(((1+$AK$12*$C$5)*($I24-$I$54))+$C$5*($J25-$J$54-(($B$54-$B24-$AK$12)*$I$54))+$C$6*(1+($B$54-$B24)*$C$5)*$F$54)/$F24 ->  | AX12: =+(((1+$AK$12*$C$5)*($I25-$I$54))+$C$5*($J26-$J$54-(($B$54-$B25-$AK$12)*$I$54))+$C$6*(1+($B$54-$B25)*$C$5)*$F$54)/$F25 ->  | AY12: =+(((1+$AK$12*$C$5)*($I26-$I$54))+$C$5*($J27-$J$54-(($B$54-$B26-$AK$12)*$I$54))+$C$6*(1+($B$54-$B26)*$C$5)*$F$54)/$F26 ->  | AZ12: =+(((1+$AK$12*$C$5)*($I27-$I$54))+$C$5*($J28-$J$54-(($B$54-$B27-$AK$12)*$I$54))+$C$6*(1+($B$54-$B27)*$C$5)*$F$54)/$F27 ->  | BA12: =+(((1+$AK$12*$C$5)*($I28-$I$54))+$C$5*($J29-$J$54-(($B$54-$B28-$AK$12)*$I$54))+$C$6*(1+($B$54-$B28)*$C$5)*$F$54)/$F28 ->  | BB12: =+(((1+$AK$12*$C$5)*($I29-$I$54))+$C$5*($J30-$J$54-(($B$54-$B29-$AK$12)*$I$54))+$C$6*(1+($B$54-$B29)*$C$5)*$F$54)/$F29 ->  | BC12: =+(((1+$AK$12*$C$5)*($I30-$I$54))+$C$5*($J31-$J$54-(($B$54-$B30-$AK$12)*$I$54))+$C$6*(1+($B$54-$B30)*$C$5)*$F$54)/$F30 ->  | BD12: =+(((1+$AK$12*$C$5)*($I31-$I$54))+$C$5*($J32-$J$54-(($B$54-$B31-$AK$12)*$I$54))+$C$6*(1+($B$54-$B31)*$C$5)*$F$54)/$F31 ->  | BE12: =+(((1+$AK$12*$C$5)*($I32-$I$54))+$C$5*($J33-$J$54-(($B$54-$B32-$AK$12)*$I$54))+$C$6*(1+($B$54-$B32)*$C$5)*$F$54)/$F32 ->  | BF12: =+(((1+$AK$12*$C$5)*($I33-$I$54))+$C$5*($J34-$J$54-(($B$54-$B33-$AK$12)*$I$54))+$C$6*(1+($B$54-$B33)*$C$5)*$F$54)/$F33 ->  | BG12: =+(((1+$AK$12*$C$5)*($I34-$I$54))+$C$5*($J35-$J$54-(($B$54-$B34-$AK$12)*$I$54))+$C$6*(1+($B$54-$B34)*$C$5)*$F$54)/$F34 ->  | BH12: =+(((1+$AK$12*$C$5)*($I35-$I$54))+$C$5*($J36-$J$54-(($B$54-$B35-$AK$12)*$I$54))+$C$6*(1+($B$54-$B35)*$C$5)*$F$54)/$F35 ->  | BI12: =+(((1+$AK$12*$C$5)*($I36-$I$54))+$C$5*($J37-$J$54-(($B$54-$B36-$AK$12)*$I$54))+$C$6*(1+($B$54-$B36)*$C$5)*$F$54)/$F36 ->  | BJ12: =+(((1+$AK$12*$C$5)*($I37-$I$54))+$C$5*($J38-$J$54-(($B$54-$B37-$AK$12)*$I$54))+$C$6*(1+($B$54-$B37)*$C$5)*$F$54)/$F37 ->  | BK12: =+(((1+$AK$12*$C$5)*($I38-$I$54))+$C$5*($J39-$J$54-(($B$54-$B38-$AK$12)*$I$54))+$C$6*(1+($B$54-$B38)*$C$5)*$F$54)/$F38 ->  | BL12: =+(((1+$AK$12*$C$5)*($I39-$I$54))+$C$5*($J40-$J$54-(($B$54-$B39-$AK$12)*$I$54))+$C$6*(1+($B$54-$B39)*$C$5)*$F$54)/$F39 ->  | BM12: =+(((1+$AK$12*$C$5)*($I40-$I$54))+$C$5*($J41-$J$54-(($B$54-$B40-$AK$12)*$I$54))+$C$6*(1+($B$54-$B40)*$C$5)*$F$54)/$F40 ->  | BN12: =+(((1+$AK$12*$C$5)*($I41-$I$54))+$C$5*($J42-$J$54-(($B$54-$B41-$AK$12)*$I$54))+$C$6*(1+($B$54-$B41)*$C$5)*$F$54)/$F41 ->  | BO12: =+(((1+$AK$12*$C$5)*($I42-$I$54))+$C$5*($J43-$J$54-(($B$54-$B42-$AK$12)*$I$54))+$C$6*(1+($B$54-$B42)*$C$5)*$F$54)/$F42 ->  | BP12: =+(((1+$AK$12*$C$5)*($I43-$I$54))+$C$5*($J44-$J$54-(($B$54-$B43-$AK$12)*$I$54))+$C$6*(1+($B$54-$B43)*$C$5)*$F$54)/$F43 ->  | BQ12: =+(((1+$AK$12*$C$5)*($I44-$I$54))+$C$5*($J45-$J$54-(($B$54-$B44-$AK$12)*$I$54))+$C$6*(1+($B$54-$B44)*$C$5)*$F$54)/$F44 ->  | BR12: =+(((1+$AK$12*$C$5)*($I45-$I$54))+$C$5*($J46-$J$54-(($B$54-$B45-$AK$12)*$I$54))+$C$6*(1+($B$54-$B45)*$C$5)*$F$54)/$F45 ->  | BS12: =+(((1+$AK$12*$C$5)*($I46-$I$54))+$C$5*($J47-$J$54-(($B$54-$B46-$AK$12)*$I$54))+$C$6*(1+($B$54-$B46)*$C$5)*$F$54)/$F46 ->  | BT12: =+(((1+$AK$12*$C$5)*($I47-$I$54))+$C$5*($J48-$J$54-(($B$54-$B47-$AK$12)*$I$54))+$C$6*(1+($B$54-$B47)*$C$5)*$F$54)/$F47 ->  | BU12: =+(((1+$AK$12*$C$5)*($I48-$I$54))+$C$5*($J49-$J$54-(($B$54-$B48-$AK$12)*$I$54))+$C$6*(1+($B$54-$B48)*$C$5)*$F$54)/$F48 ->  | BV12: =+(((1+$AK$12*$C$5)*($I49-$I$54))+$C$5*($J50-$J$54-(($B$54-$B49-$AK$12)*$I$54))+$C$6*(1+($B$54-$B49)*$C$5)*$F$54)/$F49 ->  | BW12: =+(((1+$AK$12*$C$5)*($I50-$I$54))+$C$5*($J51-$J$54-(($B$54-$B50-$AK$12)*$I$54))+$C$6*(1+($B$54-$B50)*$C$5)*$F$54)/$F50 ->  | BX12: =+(((1+$AK$12*$C$5)*($I51-$I$54))+$C$5*($J52-$J$54-(($B$54-$B51-$AK$12)*$I$54))+$C$6*(1+($B$54-$B51)*$C$5)*$F$54)/$F51 ->  | BY12: =+(((1+$AK$12*$C$5)*($I52-$I$54))+$C$5*($J53-$J$54-(($B$54-$B52-$AK$12)*$I$54))+$C$6*(1+($B$54-$B52)*$C$5)*$F$54)/$F52 ->  | BZ12: =+(((1+$AK$12*$C$5)*($I53-$I$54))+$C$5*($J54-$J$54-(($B$54-$B53-$AK$12)*$I$54))+$C$6*(1+($B$54-$B53)*$C$5)*$F$54)/$F53 ->  | CA12: =+(((1+$AK$12*$C$5)*($I54-$I$54))+$C$5*($J55-$J$54-(($B$54-$B54-$AK$12)*$I$54))+$C$6*(1+($B$54-$B54)*$C$5)*$F$54)/$F54 ->  | CC12: 1 | CD12: =+(((1+$CC$12*$C$5)*($I13-$I$59))+$C$5*($J14-$J$59-(($B$59-$B13-$CC$12)*$I$59))+$C$6*(1+($B$59-$B13)*$C$5)*$F$59)/$F13 ->  | CE12: =+(((1+$CC$12*$C$5)*($I14-$I$59))+$C$5*($J15-$J$59-(($B$59-$B14-$CC$12)*$I$59))+$C$6*(1+($B$59-$B14)*$C$5)*$F$59)/$F14 ->  | CF12: =+(((1+$CC$12*$C$5)*($I15-$I$59))+$C$5*($J16-$J$59-(($B$59-$B15-$CC$12)*$I$59))+$C$6*(1+($B$59-$B15)*$C$5)*$F$59)/$F15 ->  | CG12: =+(((1+$CC$12*$C$5)*($I16-$I$59))+$C$5*($J17-$J$59-(($B$59-$B16-$CC$12)*$I$59))+$C$6*(1+($B$59-$B16)*$C$5)*$F$59)/$F16 ->  | CH12: =+(((1+$CC$12*$C$5)*($I17-$I$59))+$C$5*($J18-$J$59-(($B$59-$B17-$CC$12)*$I$59))+$C$6*(1+($B$59-$B17)*$C$5)*$F$59)/$F17 ->  | CI12: =+(((1+$CC$12*$C$5)*($I18-$I$59))+$C$5*($J19-$J$59-(($B$59-$B18-$CC$12)*$I$59))+$C$6*(1+($B$59-$B18)*$C$5)*$F$59)/$F18 ->  | CJ12: =+(((1+$CC$12*$C$5)*($I19-$I$59))+$C$5*($J20-$J$59-(($B$59-$B19-$CC$12)*$I$59))+$C$6*(1+($B$59-$B19)*$C$5)*$F$59)/$F19 ->  | CK12: =+(((1+$CC$12*$C$5)*($I20-$I$59))+$C$5*($J21-$J$59-(($B$59-$B20-$CC$12)*$I$59))+$C$6*(1+($B$59-$B20)*$C$5)*$F$59)/$F20 ->  | CL12: =+(((1+$CC$12*$C$5)*($I21-$I$59))+$C$5*($J22-$J$59-(($B$59-$B21-$CC$12)*$I$59))+$C$6*(1+($B$59-$B21)*$C$5)*$F$59)/$F21 ->  | CM12: =+(((1+$CC$12*$C$5)*($I22-$I$59))+$C$5*($J23-$J$59-(($B$59-$B22-$CC$12)*$I$59))+$C$6*(1+($B$59-$B22)*$C$5)*$F$59)/$F22 ->  | CN12: =+(((1+$CC$12*$C$5)*($I23-$I$59))+$C$5*($J24-$J$59-(($B$59-$B23-$CC$12)*$I$59))+$C$6*(1+($B$59-$B23)*$C$5)*$F$59)/$F23 ->  | CO12: =+(((1+$CC$12*$C$5)*($I24-$I$59))+$C$5*($J25-$J$59-(($B$59-$B24-$CC$12)*$I$59))+$C$6*(1+($B$59-$B24)*$C$5)*$F$59)/$F24 ->  | CP12: =+(((1+$CC$12*$C$5)*($I25-$I$59))+$C$5*($J26-$J$59-(($B$59-$B25-$CC$12)*$I$59))+$C$6*(1+($B$59-$B25)*$C$5)*$F$59)/$F25 ->  | CQ12: =+(((1+$CC$12*$C$5)*($I26-$I$59))+$C$5*($J27-$J$59-(($B$59-$B26-$CC$12)*$I$59))+$C$6*(1+($B$59-$B26)*$C$5)*$F$59)/$F26 ->  | CR12: =+(((1+$CC$12*$C$5)*($I27-$I$59))+$C$5*($J28-$J$59-(($B$59-$B27-$CC$12)*$I$59))+$C$6*(1+($B$59-$B27)*$C$5)*$F$59)/$F27 ->  | CS12: =+(((1+$CC$12*$C$5)*($I28-$I$59))+$C$5*($J29-$J$59-(($B$59-$B28-$CC$12)*$I$59))+$C$6*(1+($B$59-$B28)*$C$5)*$F$59)/$F28 ->  | CT12: =+(((1+$CC$12*$C$5)*($I29-$I$59))+$C$5*($J30-$J$59-(($B$59-$B29-$CC$12)*$I$59))+$C$6*(1+($B$59-$B29)*$C$5)*$F$59)/$F29 ->  | CU12: =+(((1+$CC$12*$C$5)*($I30-$I$59))+$C$5*($J31-$J$59-(($B$59-$B30-$CC$12)*$I$59))+$C$6*(1+($B$59-$B30)*$C$5)*$F$59)/$F30 ->  | CV12: =+(((1+$CC$12*$C$5)*($I31-$I$59))+$C$5*($J32-$J$59-(($B$59-$B31-$CC$12)*$I$59))+$C$6*(1+($B$59-$B31)*$C$5)*$F$59)/$F31 ->  | CW12: =+(((1+$CC$12*$C$5)*($I32-$I$59))+$C$5*($J33-$J$59-(($B$59-$B32-$CC$12)*$I$59))+$C$6*(1+($B$59-$B32)*$C$5)*$F$59)/$F32 ->  | CX12: =+(((1+$CC$12*$C$5)*($I33-$I$59))+$C$5*($J34-$J$59-(($B$59-$B33-$CC$12)*$I$59))+$C$6*(1+($B$59-$B33)*$C$5)*$F$59)/$F33 ->  | CY12: =+(((1+$CC$12*$C$5)*($I34-$I$59))+$C$5*($J35-$J$59-(($B$59-$B34-$CC$12)*$I$59))+$C$6*(1+($B$59-$B34)*$C$5)*$F$59)/$F34 ->  | CZ12: =+(((1+$CC$12*$C$5)*($I35-$I$59))+$C$5*($J36-$J$59-(($B$59-$B35-$CC$12)*$I$59))+$C$6*(1+($B$59-$B35)*$C$5)*$F$59)/$F35 ->  | DA12: =+(((1+$CC$12*$C$5)*($I36-$I$59))+$C$5*($J37-$J$59-(($B$59-$B36-$CC$12)*$I$59))+$C$6*(1+($B$59-$B36)*$C$5)*$F$59)/$F36 ->  | DB12: =+(((1+$CC$12*$C$5)*($I37-$I$59))+$C$5*($J38-$J$59-(($B$59-$B37-$CC$12)*$I$59))+$C$6*(1+($B$59-$B37)*$C$5)*$F$59)/$F37 ->  | DC12: =+(((1+$CC$12*$C$5)*($I38-$I$59))+$C$5*($J39-$J$59-(($B$59-$B38-$CC$12)*$I$59))+$C$6*(1+($B$59-$B38)*$C$5)*$F$59)/$F38 ->  | DD12: =+(((1+$CC$12*$C$5)*($I39-$I$59))+$C$5*($J40-$J$59-(($B$59-$B39-$CC$12)*$I$59))+$C$6*(1+($B$59-$B39)*$C$5)*$F$59)/$F39 ->  | DE12: =+(((1+$CC$12*$C$5)*($I40-$I$59))+$C$5*($J41-$J$59-(($B$59-$B40-$CC$12)*$I$59))+$C$6*(1+($B$59-$B40)*$C$5)*$F$59)/$F40 ->  | DF12: =+(((1+$CC$12*$C$5)*($I41-$I$59))+$C$5*($J42-$J$59-(($B$59-$B41-$CC$12)*$I$59))+$C$6*(1+($B$59-$B41)*$C$5)*$F$59)/$F41 ->  | DG12: =+(((1+$CC$12*$C$5)*($I42-$I$59))+$C$5*($J43-$J$59-(($B$59-$B42-$CC$12)*$I$59))+$C$6*(1+($B$59-$B42)*$C$5)*$F$59)/$F42 ->  | DH12: =+(((1+$CC$12*$C$5)*($I43-$I$59))+$C$5*($J44-$J$59-(($B$59-$B43-$CC$12)*$I$59))+$C$6*(1+($B$59-$B43)*$C$5)*$F$59)/$F43 ->  | DI12: =+(((1+$CC$12*$C$5)*($I44-$I$59))+$C$5*($J45-$J$59-(($B$59-$B44-$CC$12)*$I$59))+$C$6*(1+($B$59-$B44)*$C$5)*$F$59)/$F44 ->  | DJ12: =+(((1+$CC$12*$C$5)*($I45-$I$59))+$C$5*($J46-$J$59-(($B$59-$B45-$CC$12)*$I$59))+$C$6*(1+($B$59-$B45)*$C$5)*$F$59)/$F45 ->  | DK12: =+(((1+$CC$12*$C$5)*($I46-$I$59))+$C$5*($J47-$J$59-(($B$59-$B46-$CC$12)*$I$59))+$C$6*(1+($B$59-$B46)*$C$5)*$F$59)/$F46 ->  | DL12: =+(((1+$CC$12*$C$5)*($I47-$I$59))+$C$5*($J48-$J$59-(($B$59-$B47-$CC$12)*$I$59))+$C$6*(1+($B$59-$B47)*$C$5)*$F$59)/$F47 ->  | DM12: =+(((1+$CC$12*$C$5)*($I48-$I$59))+$C$5*($J49-$J$59-(($B$59-$B48-$CC$12)*$I$59))+$C$6*(1+($B$59-$B48)*$C$5)*$F$59)/$F48 ->  | DN12: =+(((1+$CC$12*$C$5)*($I49-$I$59))+$C$5*($J50-$J$59-(($B$59-$B49-$CC$12)*$I$59))+$C$6*(1+($B$59-$B49)*$C$5)*$F$59)/$F49 ->  | DO12: =+(((1+$CC$12*$C$5)*($I50-$I$59))+$C$5*($J51-$J$59-(($B$59-$B50-$CC$12)*$I$59))+$C$6*(1+($B$59-$B50)*$C$5)*$F$59)/$F50 ->  | DP12: =+(((1+$CC$12*$C$5)*($I51-$I$59))+$C$5*($J52-$J$59-(($B$59-$B51-$CC$12)*$I$59))+$C$6*(1+($B$59-$B51)*$C$5)*$F$59)/$F51 ->  | DQ12: =+(((1+$CC$12*$C$5)*($I52-$I$59))+$C$5*($J53-$J$59-(($B$59-$B52-$CC$12)*$I$59))+$C$6*(1+($B$59-$B52)*$C$5)*$F$59)/$F52 ->  | DR12: =+(((1+$CC$12*$C$5)*($I53-$I$59))+$C$5*($J54-$J$59-(($B$59-$B53-$CC$12)*$I$59))+$C$6*(1+($B$59-$B53)*$C$5)*$F$59)/$F53 ->  | DS12: =+(((1+$CC$12*$C$5)*($I54-$I$59))+$C$5*($J55-$J$59-(($B$59-$B54-$CC$12)*$I$59))+$C$6*(1+($B$59-$B54)*$C$5)*$F$59)/$F54 ->  | DT12: =+(((1+$CC$12*$C$5)*($I55-$I$59))+$C$5*($J56-$J$59-(($B$59-$B55-$CC$12)*$I$59))+$C$6*(1+($B$59-$B55)*$C$5)*$F$59)/$F55 ->  | DU12: =+(((1+$CC$12*$C$5)*($I56-$I$59))+$C$5*($J57-$J$59-(($B$59-$B56-$CC$12)*$I$59))+$C$6*(1+($B$59-$B56)*$C$5)*$F$59)/$F56 ->  | DV12: =+(((1+$CC$12*$C$5)*($I57-$I$59))+$C$5*($J58-$J$59-(($B$59-$B57-$CC$12)*$I$59))+$C$6*(1+($B$59-$B57)*$C$5)*$F$59)/$F57 ->  | DW12: =+(((1+$CC$12*$C$5)*($I58-$I$59))+$C$5*($J59-$J$59-(($B$59-$B58-$CC$12)*$I$59))+$C$6*(1+($B$59-$B58)*$C$5)*$F$59)/$F58 ->  | DX12: =+(((1+$CC$12*$C$5)*($I59-$I$59))+$C$5*($J60-$J$59-(($B$59-$B59-$CC$12)*$I$59))+$C$6*(1+($B$59-$B59)*$C$5)*$F$59)/$F59 ->  | DZ12: 1 | EA12: =+((((1+$AK$12*$C$5)*($I13-$I$54))+$C$5*($J14-$J$54-(($B$54-$B13-$AK$12)*$I$54))+$C$6*(1+($B$54-$B13)*$C$5)*$F$54)/$F13)-$X12*(($G13-$G17)/$F13) ->  | EB12: =+((((1+$AK$12*$C$5)*($I14-$I$54))+$C$5*($J15-$J$54-(($B$54-$B14-$AK$12)*$I$54))+$C$6*(1+($B$54-$B14)*$C$5)*$F$54)/$F14)-$X13*(($G14-$G18)/$F14) ->  | EC12: =+((((1+$AK$12*$C$5)*($I15-$I$54))+$C$5*($J16-$J$54-(($B$54-$B15-$AK$12)*$I$54))+$C$6*(1+($B$54-$B15)*$C$5)*$F$54)/$F15)-$X14*(($G15-$G19)/$F15) ->  | ED12: =+((((1+$AK$12*$C$5)*($I16-$I$54))+$C$5*($J17-$J$54-(($B$54-$B16-$AK$12)*$I$54))+$C$6*(1+($B$54-$B16)*$C$5)*$F$54)/$F16)-$X15*(($G16-$G20)/$F16) ->  | EE12: =+((((1+$AK$12*$C$5)*($I17-$I$54))+$C$5*($J18-$J$54-(($B$54-$B17-$AK$12)*$I$54))+$C$6*(1+($B$54-$B17)*$C$5)*$F$54)/$F17)-$X16*(($G17-$G21)/$F17) ->  | EF12: =+((((1+$AK$12*$C$5)*($I18-$I$54))+$C$5*($J19-$J$54-(($B$54-$B18-$AK$12)*$I$54))+$C$6*(1+($B$54-$B18)*$C$5)*$F$54)/$F18)-$X17*(($G18-$G22)/$F18) ->  | EG12: =+((((1+$AK$12*$C$5)*($I19-$I$54))+$C$5*($J20-$J$54-(($B$54-$B19-$AK$12)*$I$54))+$C$6*(1+($B$54-$B19)*$C$5)*$F$54)/$F19)-$X18*(($G19-$G23)/$F19) ->  | EH12: =+((((1+$AK$12*$C$5)*($I20-$I$54))+$C$5*($J21-$J$54-(($B$54-$B20-$AK$12)*$I$54))+$C$6*(1+($B$54-$B20)*$C$5)*$F$54)/$F20)-$X19*(($G20-$G24)/$F20) ->  | EI12: =+((((1+$AK$12*$C$5)*($I21-$I$54))+$C$5*($J22-$J$54-(($B$54-$B21-$AK$12)*$I$54))+$C$6*(1+($B$54-$B21)*$C$5)*$F$54)/$F21)-$X20*(($G21-$G25)/$F21) ->  | EJ12: =+((((1+$AK$12*$C$5)*($I22-$I$54))+$C$5*($J23-$J$54-(($B$54-$B22-$AK$12)*$I$54))+$C$6*(1+($B$54-$B22)*$C$5)*$F$54)/$F22)-$X21*(($G22-$G26)/$F22) ->  | EK12: =+((((1+$AK$12*$C$5)*($I23-$I$54))+$C$5*($J24-$J$54-(($B$54-$B23-$AK$12)*$I$54))+$C$6*(1+($B$54-$B23)*$C$5)*$F$54)/$F23)-$X22*(($G23-$G27)/$F23) ->  | EL12: =+((((1+$AK$12*$C$5)*($I24-$I$54))+$C$5*($J25-$J$54-(($B$54-$B24-$AK$12)*$I$54))+$C$6*(1+($B$54-$B24)*$C$5)*$F$54)/$F24)-$X23*(($G24-$G28)/$F24) ->  | EM12: =+((((1+$AK$12*$C$5)*($I25-$I$54))+$C$5*($J26-$J$54-(($B$54-$B25-$AK$12)*$I$54))+$C$6*(1+($B$54-$B25)*$C$5)*$F$54)/$F25)-$X24*(($G25-$G29)/$F25) ->  | EN12: =+((((1+$AK$12*$C$5)*($I26-$I$54))+$C$5*($J27-$J$54-(($B$54-$B26-$AK$12)*$I$54))+$C$6*(1+($B$54-$B26)*$C$5)*$F$54)/$F26)-$X25*(($G26-$G30)/$F26) ->  | EO12: =+((((1+$AK$12*$C$5)*($I27-$I$54))+$C$5*($J28-$J$54-(($B$54-$B27-$AK$12)*$I$54))+$C$6*(1+($B$54-$B27)*$C$5)*$F$54)/$F27)-$X26*(($G27-$G31)/$F27) ->  | EP12: =+((((1+$AK$12*$C$5)*($I28-$I$54))+$C$5*($J29-$J$54-(($B$54-$B28-$AK$12)*$I$54))+$C$6*(1+($B$54-$B28)*$C$5)*$F$54)/$F28)-$X27*(($G28-$G32)/$F28) ->  | EQ12: =+((((1+$AK$12*$C$5)*($I29-$I$54))+$C$5*($J30-$J$54-(($B$54-$B29-$AK$12)*$I$54))+$C$6*(1+($B$54-$B29)*$C$5)*$F$54)/$F29)-$X28*(($G29-$G33)/$F29) ->  | ER12: =+((((1+$AK$12*$C$5)*($I30-$I$54))+$C$5*($J31-$J$54-(($B$54-$B30-$AK$12)*$I$54))+$C$6*(1+($B$54-$B30)*$C$5)*$F$54)/$F30)-$X29*(($G30-$G34)/$F30) ->  | ES12: =+((((1+$AK$12*$C$5)*($I31-$I$54))+$C$5*($J32-$J$54-(($B$54-$B31-$AK$12)*$I$54))+$C$6*(1+($B$54-$B31)*$C$5)*$F$54)/$F31)-$X30*(($G31-$G35)/$F31) ->  | ET12: =+((((1+$AK$12*$C$5)*($I32-$I$54))+$C$5*($J33-$J$54-(($B$54-$B32-$AK$12)*$I$54))+$C$6*(1+($B$54-$B32)*$C$5)*$F$54)/$F32)-$X31*(($G32-$G36)/$F32) ->  | EU12: =+((((1+$AK$12*$C$5)*($I33-$I$54))+$C$5*($J34-$J$54-(($B$54-$B33-$AK$12)*$I$54))+$C$6*(1+($B$54-$B33)*$C$5)*$F$54)/$F33)-$X32*(($G33-$G37)/$F33) ->  | EV12: =+((((1+$AK$12*$C$5)*($I34-$I$54))+$C$5*($J35-$J$54-(($B$54-$B34-$AK$12)*$I$54))+$C$6*(1+($B$54-$B34)*$C$5)*$F$54)/$F34)-$X33*(($G34-$G38)/$F34) ->  | EW12: =+((((1+$AK$12*$C$5)*($I35-$I$54))+$C$5*($J36-$J$54-(($B$54-$B35-$AK$12)*$I$54))+$C$6*(1+($B$54-$B35)*$C$5)*$F$54)/$F35)-$X34*(($G35-$G39)/$F35) ->  | EX12: =+((((1+$AK$12*$C$5)*($I36-$I$54))+$C$5*($J37-$J$54-(($B$54-$B36-$AK$12)*$I$54))+$C$6*(1+($B$54-$B36)*$C$5)*$F$54)/$F36)-$X35*(($G36-$G40)/$F36) ->  | EY12: =+((((1+$AK$12*$C$5)*($I37-$I$54))+$C$5*($J38-$J$54-(($B$54-$B37-$AK$12)*$I$54))+$C$6*(1+($B$54-$B37)*$C$5)*$F$54)/$F37)-$X36*(($G37-$G41)/$F37) ->  | EZ12: =+((((1+$AK$12*$C$5)*($I38-$I$54))+$C$5*($J39-$J$54-(($B$54-$B38-$AK$12)*$I$54))+$C$6*(1+($B$54-$B38)*$C$5)*$F$54)/$F38)-$X37*(($G38-$G42)/$F38) ->  | FA12: =+((((1+$AK$12*$C$5)*($I39-$I$54))+$C$5*($J40-$J$54-(($B$54-$B39-$AK$12)*$I$54))+$C$6*(1+($B$54-$B39)*$C$5)*$F$54)/$F39)-$X38*(($G39-$G43)/$F39) ->  | FB12: =+((((1+$AK$12*$C$5)*($I40-$I$54))+$C$5*($J41-$J$54-(($B$54-$B40-$AK$12)*$I$54))+$C$6*(1+($B$54-$B40)*$C$5)*$F$54)/$F40)-$X39*(($G40-$G44)/$F40) ->  | FC12: =+((((1+$AK$12*$C$5)*($I41-$I$54))+$C$5*($J42-$J$54-(($B$54-$B41-$AK$12)*$I$54))+$C$6*(1+($B$54-$B41)*$C$5)*$F$54)/$F41)-$X40*(($G41-$G45)/$F41) ->  | FD12: =+((((1+$AK$12*$C$5)*($I42-$I$54))+$C$5*($J43-$J$54-(($B$54-$B42-$AK$12)*$I$54))+$C$6*(1+($B$54-$B42)*$C$5)*$F$54)/$F42)-$X41*(($G42-$G46)/$F42) ->  | FE12: =+((((1+$AK$12*$C$5)*($I43-$I$54))+$C$5*($J44-$J$54-(($B$54-$B43-$AK$12)*$I$54))+$C$6*(1+($B$54-$B43)*$C$5)*$F$54)/$F43)-$X42*(($G43-$G47)/$F43) ->  | FF12: =+((((1+$AK$12*$C$5)*($I44-$I$54))+$C$5*($J45-$J$54-(($B$54-$B44-$AK$12)*$I$54))+$C$6*(1+($B$54-$B44)*$C$5)*$F$54)/$F44)-$X43*(($G44-$G48)/$F44) ->  | FG12: =+((((1+$AK$12*$C$5)*($I45-$I$54))+$C$5*($J46-$J$54-(($B$54-$B45-$AK$12)*$I$54))+$C$6*(1+($B$54-$B45)*$C$5)*$F$54)/$F45)-$X44*(($G45-$G49)/$F45) ->  | FH12: =+((((1+$AK$12*$C$5)*($I46-$I$54))+$C$5*($J47-$J$54-(($B$54-$B46-$AK$12)*$I$54))+$C$6*(1+($B$54-$B46)*$C$5)*$F$54)/$F46)-$X45*(($G46-$G50)/$F46) ->  | FI12: =+((((1+$AK$12*$C$5)*($I47-$I$54))+$C$5*($J48-$J$54-(($B$54-$B47-$AK$12)*$I$54))+$C$6*(1+($B$54-$B47)*$C$5)*$F$54)/$F47)-$X46*(($G47-$G51)/$F47) ->  | FJ12: =+((((1+$AK$12*$C$5)*($I48-$I$54))+$C$5*($J49-$J$54-(($B$54-$B48-$AK$12)*$I$54))+$C$6*(1+($B$54-$B48)*$C$5)*$F$54)/$F48)-$X47*(($G48-$G52)/$F48) ->  | FK12: =+((((1+$AK$12*$C$5)*($I49-$I$54))+$C$5*($J50-$J$54-(($B$54-$B49-$AK$12)*$I$54))+$C$6*(1+($B$54-$B49)*$C$5)*$F$54)/$F49)-$X48*(($G49-$G53)/$F49) ->  | FL12: =+((((1+$AK$12*$C$5)*($I50-$I$54))+$C$5*($J51-$J$54-(($B$54-$B50-$AK$12)*$I$54))+$C$6*(1+($B$54-$B50)*$C$5)*$F$54)/$F50)-$X49*(($G50-$G54)/$F50) ->  | FN12: 1 | FO12: =+((((1+$CC$12*$C$5)*($I13-$I$59))+$C$5*($J14-$J$59-(($B$59-$B13-$CC$12)*$I$59))+$C$6*(1+($B$59-$B13)*$C$5)*$F$59)/$F13)-$Y12*(($G13-$G17)/$F13) ->  | FP12: =+((((1+$CC$12*$C$5)*($I14-$I$59))+$C$5*($J15-$J$59-(($B$59-$B14-$CC$12)*$I$59))+$C$6*(1+($B$59-$B14)*$C$5)*$F$59)/$F14)-$Y13*(($G14-$G18)/$F14) ->  | FQ12: =+((((1+$CC$12*$C$5)*($I15-$I$59))+$C$5*($J16-$J$59-(($B$59-$B15-$CC$12)*$I$59))+$C$6*(1+($B$59-$B15)*$C$5)*$F$59)/$F15)-$Y14*(($G15-$G19)/$F15) ->  | FR12: =+((((1+$CC$12*$C$5)*($I16-$I$59))+$C$5*($J17-$J$59-(($B$59-$B16-$CC$12)*$I$59))+$C$6*(1+($B$59-$B16)*$C$5)*$F$59)/$F16)-$Y15*(($G16-$G20)/$F16) ->  | FS12: =+((((1+$CC$12*$C$5)*($I17-$I$59))+$C$5*($J18-$J$59-(($B$59-$B17-$CC$12)*$I$59))+$C$6*(1+($B$59-$B17)*$C$5)*$F$59)/$F17)-$Y16*(($G17-$G21)/$F17) ->  | FT12: =+((((1+$CC$12*$C$5)*($I18-$I$59))+$C$5*($J19-$J$59-(($B$59-$B18-$CC$12)*$I$59))+$C$6*(1+($B$59-$B18)*$C$5)*$F$59)/$F18)-$Y17*(($G18-$G22)/$F18) ->  | FU12: =+((((1+$CC$12*$C$5)*($I19-$I$59))+$C$5*($J20-$J$59-(($B$59-$B19-$CC$12)*$I$59))+$C$6*(1+($B$59-$B19)*$C$5)*$F$59)/$F19)-$Y18*(($G19-$G23)/$F19) ->  | FV12: =+((((1+$CC$12*$C$5)*($I20-$I$59))+$C$5*($J21-$J$59-(($B$59-$B20-$CC$12)*$I$59))+$C$6*(1+($B$59-$B20)*$C$5)*$F$59)/$F20)-$Y19*(($G20-$G24)/$F20) ->  | FW12: =+((((1+$CC$12*$C$5)*($I21-$I$59))+$C$5*($J22-$J$59-(($B$59-$B21-$CC$12)*$I$59))+$C$6*(1+($B$59-$B21)*$C$5)*$F$59)/$F21)-$Y20*(($G21-$G25)/$F21) ->  | FX12: =+((((1+$CC$12*$C$5)*($I22-$I$59))+$C$5*($J23-$J$59-(($B$59-$B22-$CC$12)*$I$59))+$C$6*(1+($B$59-$B22)*$C$5)*$F$59)/$F22)-$Y21*(($G22-$G26)/$F22) ->  | FY12: =+((((1+$CC$12*$C$5)*($I23-$I$59))+$C$5*($J24-$J$59-(($B$59-$B23-$CC$12)*$I$59))+$C$6*(1+($B$59-$B23)*$C$5)*$F$59)/$F23)-$Y22*(($G23-$G27)/$F23) ->  | FZ12: =+((((1+$CC$12*$C$5)*($I24-$I$59))+$C$5*($J25-$J$59-(($B$59-$B24-$CC$12)*$I$59))+$C$6*(1+($B$59-$B24)*$C$5)*$F$59)/$F24)-$Y23*(($G24-$G28)/$F24) ->  | GA12: =+((((1+$CC$12*$C$5)*($I25-$I$59))+$C$5*($J26-$J$59-(($B$59-$B25-$CC$12)*$I$59))+$C$6*(1+($B$59-$B25)*$C$5)*$F$59)/$F25)-$Y24*(($G25-$G29)/$F25) ->  | GB12: =+((((1+$CC$12*$C$5)*($I26-$I$59))+$C$5*($J27-$J$59-(($B$59-$B26-$CC$12)*$I$59))+$C$6*(1+($B$59-$B26)*$C$5)*$F$59)/$F26)-$Y25*(($G26-$G30)/$F26) ->  | GC12: =+((((1+$CC$12*$C$5)*($I27-$I$59))+$C$5*($J28-$J$59-(($B$59-$B27-$CC$12)*$I$59))+$C$6*(1+($B$59-$B27)*$C$5)*$F$59)/$F27)-$Y26*(($G27-$G31)/$F27) ->  | GD12: =+((((1+$CC$12*$C$5)*($I28-$I$59))+$C$5*($J29-$J$59-(($B$59-$B28-$CC$12)*$I$59))+$C$6*(1+($B$59-$B28)*$C$5)*$F$59)/$F28)-$Y27*(($G28-$G32)/$F28) ->  | GE12: =+((((1+$CC$12*$C$5)*($I29-$I$59))+$C$5*($J30-$J$59-(($B$59-$B29-$CC$12)*$I$59))+$C$6*(1+($B$59-$B29)*$C$5)*$F$59)/$F29)-$Y28*(($G29-$G33)/$F29) ->  | GF12: =+((((1+$CC$12*$C$5)*($I30-$I$59))+$C$5*($J31-$J$59-(($B$59-$B30-$CC$12)*$I$59))+$C$6*(1+($B$59-$B30)*$C$5)*$F$59)/$F30)-$Y29*(($G30-$G34)/$F30) ->  | GG12: =+((((1+$CC$12*$C$5)*($I31-$I$59))+$C$5*($J32-$J$59-(($B$59-$B31-$CC$12)*$I$59))+$C$6*(1+($B$59-$B31)*$C$5)*$F$59)/$F31)-$Y30*(($G31-$G35)/$F31) ->  | GH12: =+((((1+$CC$12*$C$5)*($I32-$I$59))+$C$5*($J33-$J$59-(($B$59-$B32-$CC$12)*$I$59))+$C$6*(1+($B$59-$B32)*$C$5)*$F$59)/$F32)-$Y31*(($G32-$G36)/$F32) ->  | GI12: =+((((1+$CC$12*$C$5)*($I33-$I$59))+$C$5*($J34-$J$59-(($B$59-$B33-$CC$12)*$I$59))+$C$6*(1+($B$59-$B33)*$C$5)*$F$59)/$F33)-$Y32*(($G33-$G37)/$F33) ->  | GJ12: =+((((1+$CC$12*$C$5)*($I34-$I$59))+$C$5*($J35-$J$59-(($B$59-$B34-$CC$12)*$I$59))+$C$6*(1+($B$59-$B34)*$C$5)*$F$59)/$F34)-$Y33*(($G34-$G38)/$F34) ->  | GK12: =+((((1+$CC$12*$C$5)*($I35-$I$59))+$C$5*($J36-$J$59-(($B$59-$B35-$CC$12)*$I$59))+$C$6*(1+($B$59-$B35)*$C$5)*$F$59)/$F35)-$Y34*(($G35-$G39)/$F35) ->  | GL12: =+((((1+$CC$12*$C$5)*($I36-$I$59))+$C$5*($J37-$J$59-(($B$59-$B36-$CC$12)*$I$59))+$C$6*(1+($B$59-$B36)*$C$5)*$F$59)/$F36)-$Y35*(($G36-$G40)/$F36) ->  | GM12: =+((((1+$CC$12*$C$5)*($I37-$I$59))+$C$5*($J38-$J$59-(($B$59-$B37-$CC$12)*$I$59))+$C$6*(1+($B$59-$B37)*$C$5)*$F$59)/$F37)-$Y36*(($G37-$G41)/$F37) ->  | GN12: =+((((1+$CC$12*$C$5)*($I38-$I$59))+$C$5*($J39-$J$59-(($B$59-$B38-$CC$12)*$I$59))+$C$6*(1+($B$59-$B38)*$C$5)*$F$59)/$F38)-$Y37*(($G38-$G42)/$F38) ->  | GO12: =+((((1+$CC$12*$C$5)*($I39-$I$59))+$C$5*($J40-$J$59-(($B$59-$B39-$CC$12)*$I$59))+$C$6*(1+($B$59-$B39)*$C$5)*$F$59)/$F39)-$Y38*(($G39-$G43)/$F39) ->  | GP12: =+((((1+$CC$12*$C$5)*($I40-$I$59))+$C$5*($J41-$J$59-(($B$59-$B40-$CC$12)*$I$59))+$C$6*(1+($B$59-$B40)*$C$5)*$F$59)/$F40)-$Y39*(($G40-$G44)/$F40) ->  | GQ12: =+((((1+$CC$12*$C$5)*($I41-$I$59))+$C$5*($J42-$J$59-(($B$59-$B41-$CC$12)*$I$59))+$C$6*(1+($B$59-$B41)*$C$5)*$F$59)/$F41)-$Y40*(($G41-$G45)/$F41) ->  | GR12: =+((((1+$CC$12*$C$5)*($I42-$I$59))+$C$5*($J43-$J$59-(($B$59-$B42-$CC$12)*$I$59))+$C$6*(1+($B$59-$B42)*$C$5)*$F$59)/$F42)-$Y41*(($G42-$G46)/$F42) ->  | GS12: =+((((1+$CC$12*$C$5)*($I43-$I$59))+$C$5*($J44-$J$59-(($B$59-$B43-$CC$12)*$I$59))+$C$6*(1+($B$59-$B43)*$C$5)*$F$59)/$F43)-$Y42*(($G43-$G47)/$F43) ->  | GT12: =+((((1+$CC$12*$C$5)*($I44-$I$59))+$C$5*($J45-$J$59-(($B$59-$B44-$CC$12)*$I$59))+$C$6*(1+($B$59-$B44)*$C$5)*$F$59)/$F44)-$Y43*(($G44-$G48)/$F44) ->  | GU12: =+((((1+$CC$12*$C$5)*($I45-$I$59))+$C$5*($J46-$J$59-(($B$59-$B45-$CC$12)*$I$59))+$C$6*(1+($B$59-$B45)*$C$5)*$F$59)/$F45)-$Y44*(($G45-$G49)/$F45) ->  | GV12: =+((((1+$CC$12*$C$5)*($I46-$I$59))+$C$5*($J47-$J$59-(($B$59-$B46-$CC$12)*$I$59))+$C$6*(1+($B$59-$B46)*$C$5)*$F$59)/$F46)-$Y45*(($G46-$G50)/$F46) ->  | GW12: =+((((1+$CC$12*$C$5)*($I47-$I$59))+$C$5*($J48-$J$59-(($B$59-$B47-$CC$12)*$I$59))+$C$6*(1+($B$59-$B47)*$C$5)*$F$59)/$F47)-$Y46*(($G47-$G51)/$F47) ->  | GX12: =+((((1+$CC$12*$C$5)*($I48-$I$59))+$C$5*($J49-$J$59-(($B$59-$B48-$CC$12)*$I$59))+$C$6*(1+($B$59-$B48)*$C$5)*$F$59)/$F48)-$Y47*(($G48-$G52)/$F48) ->  | GY12: =+((((1+$CC$12*$C$5)*($I49-$I$59))+$C$5*($J50-$J$59-(($B$59-$B49-$CC$12)*$I$59))+$C$6*(1+($B$59-$B49)*$C$5)*$F$59)/$F49)-$Y48*(($G49-$G53)/$F49) ->  | GZ12: =+((((1+$CC$12*$C$5)*($I50-$I$59))+$C$5*($J51-$J$59-(($B$59-$B50-$CC$12)*$I$59))+$C$6*(1+($B$59-$B50)*$C$5)*$F$59)/$F50)-$Y49*(($G50-$G54)/$F50) ->  | HA12: =+((((1+$CC$12*$C$5)*($I51-$I$59))+$C$5*($J52-$J$59-(($B$59-$B51-$CC$12)*$I$59))+$C$6*(1+($B$59-$B51)*$C$5)*$F$59)/$F51)-$Y50*(($G51-$G55)/$F51) ->  | HB12: =+((((1+$CC$12*$C$5)*($I52-$I$59))+$C$5*($J53-$J$59-(($B$59-$B52-$CC$12)*$I$59))+$C$6*(1+($B$59-$B52)*$C$5)*$F$59)/$F52)-$Y51*(($G52-$G56)/$F52) ->  | HC12: =+((((1+$CC$12*$C$5)*($I53-$I$59))+$C$5*($J54-$J$59-(($B$59-$B53-$CC$12)*$I$59))+$C$6*(1+($B$59-$B53)*$C$5)*$F$59)/$F53)-$Y52*(($G53-$G57)/$F53) ->  | HD12: =+((((1+$CC$12*$C$5)*($I54-$I$59))+$C$5*($J55-$J$59-(($B$59-$B54-$CC$12)*$I$59))+$C$6*(1+($B$59-$B54)*$C$5)*$F$59)/$F54)-$Y53*(($G54-$G58)/$F54) ->  | HE12: =+((((1+$CC$12*$C$5)*($I55-$I$59))+$C$5*($J56-$J$59-(($B$59-$B55-$CC$12)*$I$59))+$C$6*(1+($B$59-$B55)*$C$5)*$F$59)/$F55)-$Y54*(($G55-$G59)/$F55) ->  | HG12: 1 | HH12: =+((((1+$AK$12*$C$5)*($I13-$I$54))+$C$5*($J14-$J$54-(($B$54-$B13-$AK$12)*$I$54))+$C$6*(1+($B$54-$B13)*$C$5)*$F$54)/$F13)-$Z12*(($G13-$G$54)/$F13) ->  | HI12: =+((((1+$AK$12*$C$5)*($I14-$I$54))+$C$5*($J15-$J$54-(($B$54-$B14-$AK$12)*$I$54))+$C$6*(1+($B$54-$B14)*$C$5)*$F$54)/$F14)-$Z13*(($G14-$G$54)/$F14) ->  | HJ12: =+((((1+$AK$12*$C$5)*($I15-$I$54))+$C$5*($J16-$J$54-(($B$54-$B15-$AK$12)*$I$54))+$C$6*(1+($B$54-$B15)*$C$5)*$F$54)/$F15)-$Z14*(($G15-$G$54)/$F15) ->  | HK12: =+((((1+$AK$12*$C$5)*($I16-$I$54))+$C$5*($J17-$J$54-(($B$54-$B16-$AK$12)*$I$54))+$C$6*(1+($B$54-$B16)*$C$5)*$F$54)/$F16)-$Z15*(($G16-$G$54)/$F16) ->  | HL12: =+((((1+$AK$12*$C$5)*($I17-$I$54))+$C$5*($J18-$J$54-(($B$54-$B17-$AK$12)*$I$54))+$C$6*(1+($B$54-$B17)*$C$5)*$F$54)/$F17)-$Z16*(($G17-$G$54)/$F17) ->  | HM12: =+((((1+$AK$12*$C$5)*($I18-$I$54))+$C$5*($J19-$J$54-(($B$54-$B18-$AK$12)*$I$54))+$C$6*(1+($B$54-$B18)*$C$5)*$F$54)/$F18)-$Z17*(($G18-$G$54)/$F18) ->  | HN12: =+((((1+$AK$12*$C$5)*($I19-$I$54))+$C$5*($J20-$J$54-(($B$54-$B19-$AK$12)*$I$54))+$C$6*(1+($B$54-$B19)*$C$5)*$F$54)/$F19)-$Z18*(($G19-$G$54)/$F19) ->  | HO12: =+((((1+$AK$12*$C$5)*($I20-$I$54))+$C$5*($J21-$J$54-(($B$54-$B20-$AK$12)*$I$54))+$C$6*(1+($B$54-$B20)*$C$5)*$F$54)/$F20)-$Z19*(($G20-$G$54)/$F20) ->  | HP12: =+((((1+$AK$12*$C$5)*($I21-$I$54))+$C$5*($J22-$J$54-(($B$54-$B21-$AK$12)*$I$54))+$C$6*(1+($B$54-$B21)*$C$5)*$F$54)/$F21)-$Z20*(($G21-$G$54)/$F21) ->  | HQ12: =+((((1+$AK$12*$C$5)*($I22-$I$54))+$C$5*($J23-$J$54-(($B$54-$B22-$AK$12)*$I$54))+$C$6*(1+($B$54-$B22)*$C$5)*$F$54)/$F22)-$Z21*(($G22-$G$54)/$F22) ->  | HR12: =+((((1+$AK$12*$C$5)*($I23-$I$54))+$C$5*($J24-$J$54-(($B$54-$B23-$AK$12)*$I$54))+$C$6*(1+($B$54-$B23)*$C$5)*$F$54)/$F23)-$Z22*(($G23-$G$54)/$F23) ->  | HS12: =+((((1+$AK$12*$C$5)*($I24-$I$54))+$C$5*($J25-$J$54-(($B$54-$B24-$AK$12)*$I$54))+$C$6*(1+($B$54-$B24)*$C$5)*$F$54)/$F24)-$Z23*(($G24-$G$54)/$F24) ->  | HT12: =+((((1+$AK$12*$C$5)*($I25-$I$54))+$C$5*($J26-$J$54-(($B$54-$B25-$AK$12)*$I$54))+$C$6*(1+($B$54-$B25)*$C$5)*$F$54)/$F25)-$Z24*(($G25-$G$54)/$F25) ->  | HU12: =+((((1+$AK$12*$C$5)*($I26-$I$54))+$C$5*($J27-$J$54-(($B$54-$B26-$AK$12)*$I$54))+$C$6*(1+($B$54-$B26)*$C$5)*$F$54)/$F26)-$Z25*(($G26-$G$54)/$F26) ->  | HV12: =+((((1+$AK$12*$C$5)*($I27-$I$54))+$C$5*($J28-$J$54-(($B$54-$B27-$AK$12)*$I$54))+$C$6*(1+($B$54-$B27)*$C$5)*$F$54)/$F27)-$Z26*(($G27-$G$54)/$F27) ->  | HW12: =+((((1+$AK$12*$C$5)*($I28-$I$54))+$C$5*($J29-$J$54-(($B$54-$B28-$AK$12)*$I$54))+$C$6*(1+($B$54-$B28)*$C$5)*$F$54)/$F28)-$Z27*(($G28-$G$54)/$F28) ->  | HX12: =+((((1+$AK$12*$C$5)*($I29-$I$54))+$C$5*($J30-$J$54-(($B$54-$B29-$AK$12)*$I$54))+$C$6*(1+($B$54-$B29)*$C$5)*$F$54)/$F29)-$Z28*(($G29-$G$54)/$F29) ->  | HY12: =+((((1+$AK$12*$C$5)*($I30-$I$54))+$C$5*($J31-$J$54-(($B$54-$B30-$AK$12)*$I$54))+$C$6*(1+($B$54-$B30)*$C$5)*$F$54)/$F30)-$Z29*(($G30-$G$54)/$F30) ->  | HZ12: =+((((1+$AK$12*$C$5)*($I31-$I$54))+$C$5*($J32-$J$54-(($B$54-$B31-$AK$12)*$I$54))+$C$6*(1+($B$54-$B31)*$C$5)*$F$54)/$F31)-$Z30*(($G31-$G$54)/$F31) ->  | IA12: =+((((1+$AK$12*$C$5)*($I32-$I$54))+$C$5*($J33-$J$54-(($B$54-$B32-$AK$12)*$I$54))+$C$6*(1+($B$54-$B32)*$C$5)*$F$54)/$F32)-$Z31*(($G32-$G$54)/$F32) ->  | IB12: =+((((1+$AK$12*$C$5)*($I33-$I$54))+$C$5*($J34-$J$54-(($B$54-$B33-$AK$12)*$I$54))+$C$6*(1+($B$54-$B33)*$C$5)*$F$54)/$F33)-$Z32*(($G33-$G$54)/$F33) ->  | IC12: =+((((1+$AK$12*$C$5)*($I34-$I$54))+$C$5*($J35-$J$54-(($B$54-$B34-$AK$12)*$I$54))+$C$6*(1+($B$54-$B34)*$C$5)*$F$54)/$F34)-$Z33*(($G34-$G$54)/$F34) ->  | ID12: =+((((1+$AK$12*$C$5)*($I35-$I$54))+$C$5*($J36-$J$54-(($B$54-$B35-$AK$12)*$I$54))+$C$6*(1+($B$54-$B35)*$C$5)*$F$54)/$F35)-$Z34*(($G35-$G$54)/$F35) ->  | IE12: =+((((1+$AK$12*$C$5)*($I36-$I$54))+$C$5*($J37-$J$54-(($B$54-$B36-$AK$12)*$I$54))+$C$6*(1+($B$54-$B36)*$C$5)*$F$54)/$F36)-$Z35*(($G36-$G$54)/$F36) ->  | IF12: =+((((1+$AK$12*$C$5)*($I37-$I$54))+$C$5*($J38-$J$54-(($B$54-$B37-$AK$12)*$I$54))+$C$6*(1+($B$54-$B37)*$C$5)*$F$54)/$F37)-$Z36*(($G37-$G$54)/$F37) ->  | IG12: =+((((1+$AK$12*$C$5)*($I38-$I$54))+$C$5*($J39-$J$54-(($B$54-$B38-$AK$12)*$I$54))+$C$6*(1+($B$54-$B38)*$C$5)*$F$54)/$F38)-$Z37*(($G38-$G$54)/$F38) ->  | IH12: =+((((1+$AK$12*$C$5)*($I39-$I$54))+$C$5*($J40-$J$54-(($B$54-$B39-$AK$12)*$I$54))+$C$6*(1+($B$54-$B39)*$C$5)*$F$54)/$F39)-$Z38*(($G39-$G$54)/$F39) ->  | II12: =+((((1+$AK$12*$C$5)*($I40-$I$54))+$C$5*($J41-$J$54-(($B$54-$B40-$AK$12)*$I$54))+$C$6*(1+($B$54-$B40)*$C$5)*$F$54)/$F40)-$Z39*(($G40-$G$54)/$F40) ->  | IJ12: =+((((1+$AK$12*$C$5)*($I41-$I$54))+$C$5*($J42-$J$54-(($B$54-$B41-$AK$12)*$I$54))+$C$6*(1+($B$54-$B41)*$C$5)*$F$54)/$F41)-$Z40*(($G41-$G$54)/$F41) ->  | IK12: =+((((1+$AK$12*$C$5)*($I42-$I$54))+$C$5*($J43-$J$54-(($B$54-$B42-$AK$12)*$I$54))+$C$6*(1+($B$54-$B42)*$C$5)*$F$54)/$F42)-$Z41*(($G42-$G$54)/$F42) ->  | IL12: =+((((1+$AK$12*$C$5)*($I43-$I$54))+$C$5*($J44-$J$54-(($B$54-$B43-$AK$12)*$I$54))+$C$6*(1+($B$54-$B43)*$C$5)*$F$54)/$F43)-$Z42*(($G43-$G$54)/$F43) ->  | IM12: =+((((1+$AK$12*$C$5)*($I44-$I$54))+$C$5*($J45-$J$54-(($B$54-$B44-$AK$12)*$I$54))+$C$6*(1+($B$54-$B44)*$C$5)*$F$54)/$F44)-$Z43*(($G44-$G$54)/$F44) ->  | IN12: =+((((1+$AK$12*$C$5)*($I45-$I$54))+$C$5*($J46-$J$54-(($B$54-$B45-$AK$12)*$I$54))+$C$6*(1+($B$54-$B45)*$C$5)*$F$54)/$F45)-$Z44*(($G45-$G$54)/$F45) ->  | IO12: =+((((1+$AK$12*$C$5)*($I46-$I$54))+$C$5*($J47-$J$54-(($B$54-$B46-$AK$12)*$I$54))+$C$6*(1+($B$54-$B46)*$C$5)*$F$54)/$F46)-$Z45*(($G46-$G$54)/$F46) ->  | IP12: =+((((1+$AK$12*$C$5)*($I47-$I$54))+$C$5*($J48-$J$54-(($B$54-$B47-$AK$12)*$I$54))+$C$6*(1+($B$54-$B47)*$C$5)*$F$54)/$F47)-$Z46*(($G47-$G$54)/$F47) ->  | IQ12: =+((((1+$AK$12*$C$5)*($I48-$I$54))+$C$5*($J49-$J$54-(($B$54-$B48-$AK$12)*$I$54))+$C$6*(1+($B$54-$B48)*$C$5)*$F$54)/$F48)-$Z47*(($G48-$G$54)/$F48) ->  | IR12: =+((((1+$AK$12*$C$5)*($I49-$I$54))+$C$5*($J50-$J$54-(($B$54-$B49-$AK$12)*$I$54))+$C$6*(1+($B$54-$B49)*$C$5)*$F$54)/$F49)-$Z48*(($G49-$G$54)/$F49) ->  | IS12: =+((((1+$AK$12*$C$5)*($I50-$I$54))+$C$5*($J51-$J$54-(($B$54-$B50-$AK$12)*$I$54))+$C$6*(1+($B$54-$B50)*$C$5)*$F$54)/$F50)-$Z49*(($G50-$G$54)/$F50) ->  | IT12: =+((((1+$AK$12*$C$5)*($I51-$I$54))+$C$5*($J52-$J$54-(($B$54-$B51-$AK$12)*$I$54))+$C$6*(1+($B$54-$B51)*$C$5)*$F$54)/$F51)-$Z50*(($G51-$G$54)/$F51) ->  | IU12: =+((((1+$AK$12*$C$5)*($I52-$I$54))+$C$5*($J53-$J$54-(($B$54-$B52-$AK$12)*$I$54))+$C$6*(1+($B$54-$B52)*$C$5)*$F$54)/$F52)-$Z51*(($G52-$G$54)/$F52) ->  | IV12: =+((((1+$AK$12*$C$5)*($I53-$I$54))+$C$5*($J54-$J$54-(($B$54-$B53-$AK$12)*$I$54))+$C$6*(1+($B$54-$B53)*$C$5)*$F$54)/$F53)-$Z52*(($G53-$G$54)/$F53) ->  | IW12: =+((((1+$AK$12*$C$5)*($I54-$I$54))+$C$5*($J55-$J$54-(($B$54-$B54-$AK$12)*$I$54))+$C$6*(1+($B$54-$B54)*$C$5)*$F$54)/$F54)-$Z53*(($G54-$G$54)/$F54) ->  | IY12: 1 | IZ12: =+((((1+$CC$12*$C$5)*($I13-$I$59))+$C$5*($J14-$J$59-(($B$59-$B13-$CC$12)*$I$59))+$C$6*(1+($B$59-$B13)*$C$5)*$F$59)/$F13)-$AA12*(($G13-$G$59)/$F13) ->  | JA12: =+((((1+$CC$12*$C$5)*($I14-$I$59))+$C$5*($J15-$J$59-(($B$59-$B14-$CC$12)*$I$59))+$C$6*(1+($B$59-$B14)*$C$5)*$F$59)/$F14)-$AA13*(($G14-$G$59)/$F14) ->  | JB12: =+((((1+$CC$12*$C$5)*($I15-$I$59))+$C$5*($J16-$J$59-(($B$59-$B15-$CC$12)*$I$59))+$C$6*(1+($B$59-$B15)*$C$5)*$F$59)/$F15)-$AA14*(($G15-$G$59)/$F15) ->  | JC12: =+((((1+$CC$12*$C$5)*($I16-$I$59))+$C$5*($J17-$J$59-(($B$59-$B16-$CC$12)*$I$59))+$C$6*(1+($B$59-$B16)*$C$5)*$F$59)/$F16)-$AA15*(($G16-$G$59)/$F16) ->  | JD12: =+((((1+$CC$12*$C$5)*($I17-$I$59))+$C$5*($J18-$J$59-(($B$59-$B17-$CC$12)*$I$59))+$C$6*(1+($B$59-$B17)*$C$5)*$F$59)/$F17)-$AA16*(($G17-$G$59)/$F17) ->  | JE12: =+((((1+$CC$12*$C$5)*($I18-$I$59))+$C$5*($J19-$J$59-(($B$59-$B18-$CC$12)*$I$59))+$C$6*(1+($B$59-$B18)*$C$5)*$F$59)/$F18)-$AA17*(($G18-$G$59)/$F18) ->  | JF12: =+((((1+$CC$12*$C$5)*($I19-$I$59))+$C$5*($J20-$J$59-(($B$59-$B19-$CC$12)*$I$59))+$C$6*(1+($B$59-$B19)*$C$5)*$F$59)/$F19)-$AA18*(($G19-$G$59)/$F19) ->  | JG12: =+((((1+$CC$12*$C$5)*($I20-$I$59))+$C$5*($J21-$J$59-(($B$59-$B20-$CC$12)*$I$59))+$C$6*(1+($B$59-$B20)*$C$5)*$F$59)/$F20)-$AA19*(($G20-$G$59)/$F20) ->  | JH12: =+((((1+$CC$12*$C$5)*($I21-$I$59))+$C$5*($J22-$J$59-(($B$59-$B21-$CC$12)*$I$59))+$C$6*(1+($B$59-$B21)*$C$5)*$F$59)/$F21)-$AA20*(($G21-$G$59)/$F21) ->  | JI12: =+((((1+$CC$12*$C$5)*($I22-$I$59))+$C$5*($J23-$J$59-(($B$59-$B22-$CC$12)*$I$59))+$C$6*(1+($B$59-$B22)*$C$5)*$F$59)/$F22)-$AA21*(($G22-$G$59)/$F22) ->  | JJ12: =+((((1+$CC$12*$C$5)*($I23-$I$59))+$C$5*($J24-$J$59-(($B$59-$B23-$CC$12)*$I$59))+$C$6*(1+($B$59-$B23)*$C$5)*$F$59)/$F23)-$AA22*(($G23-$G$59)/$F23) ->  | JK12: =+((((1+$CC$12*$C$5)*($I24-$I$59))+$C$5*($J25-$J$59-(($B$59-$B24-$CC$12)*$I$59))+$C$6*(1+($B$59-$B24)*$C$5)*$F$59)/$F24)-$AA23*(($G24-$G$59)/$F24) ->  | JL12: =+((((1+$CC$12*$C$5)*($I25-$I$59))+$C$5*($J26-$J$59-(($B$59-$B25-$CC$12)*$I$59))+$C$6*(1+($B$59-$B25)*$C$5)*$F$59)/$F25)-$AA24*(($G25-$G$59)/$F25) ->  | JM12: =+((((1+$CC$12*$C$5)*($I26-$I$59))+$C$5*($J27-$J$59-(($B$59-$B26-$CC$12)*$I$59))+$C$6*(1+($B$59-$B26)*$C$5)*$F$59)/$F26)-$AA25*(($G26-$G$59)/$F26) ->  | JN12: =+((((1+$CC$12*$C$5)*($I27-$I$59))+$C$5*($J28-$J$59-(($B$59-$B27-$CC$12)*$I$59))+$C$6*(1+($B$59-$B27)*$C$5)*$F$59)/$F27)-$AA26*(($G27-$G$59)/$F27) ->  | JO12: =+((((1+$CC$12*$C$5)*($I28-$I$59))+$C$5*($J29-$J$59-(($B$59-$B28-$CC$12)*$I$59))+$C$6*(1+($B$59-$B28)*$C$5)*$F$59)/$F28)-$AA27*(($G28-$G$59)/$F28) ->  | JP12: =+((((1+$CC$12*$C$5)*($I29-$I$59))+$C$5*($J30-$J$59-(($B$59-$B29-$CC$12)*$I$59))+$C$6*(1+($B$59-$B29)*$C$5)*$F$59)/$F29)-$AA28*(($G29-$G$59)/$F29) ->  | JQ12: =+((((1+$CC$12*$C$5)*($I30-$I$59))+$C$5*($J31-$J$59-(($B$59-$B30-$CC$12)*$I$59))+$C$6*(1+($B$59-$B30)*$C$5)*$F$59)/$F30)-$AA29*(($G30-$G$59)/$F30) ->  | JR12: =+((((1+$CC$12*$C$5)*($I31-$I$59))+$C$5*($J32-$J$59-(($B$59-$B31-$CC$12)*$I$59))+$C$6*(1+($B$59-$B31)*$C$5)*$F$59)/$F31)-$AA30*(($G31-$G$59)/$F31) ->  | JS12: =+((((1+$CC$12*$C$5)*($I32-$I$59))+$C$5*($J33-$J$59-(($B$59-$B32-$CC$12)*$I$59))+$C$6*(1+($B$59-$B32)*$C$5)*$F$59)/$F32)-$AA31*(($G32-$G$59)/$F32) ->  | JT12: =+((((1+$CC$12*$C$5)*($I33-$I$59))+$C$5*($J34-$J$59-(($B$59-$B33-$CC$12)*$I$59))+$C$6*(1+($B$59-$B33)*$C$5)*$F$59)/$F33)-$AA32*(($G33-$G$59)/$F33) ->  | JU12: =+((((1+$CC$12*$C$5)*($I34-$I$59))+$C$5*($J35-$J$59-(($B$59-$B34-$CC$12)*$I$59))+$C$6*(1+($B$59-$B34)*$C$5)*$F$59)/$F34)-$AA33*(($G34-$G$59)/$F34) ->  | JV12: =+((((1+$CC$12*$C$5)*($I35-$I$59))+$C$5*($J36-$J$59-(($B$59-$B35-$CC$12)*$I$59))+$C$6*(1+($B$59-$B35)*$C$5)*$F$59)/$F35)-$AA34*(($G35-$G$59)/$F35) ->  | JW12: =+((((1+$CC$12*$C$5)*($I36-$I$59))+$C$5*($J37-$J$59-(($B$59-$B36-$CC$12)*$I$59))+$C$6*(1+($B$59-$B36)*$C$5)*$F$59)/$F36)-$AA35*(($G36-$G$59)/$F36) ->  | JX12: =+((((1+$CC$12*$C$5)*($I37-$I$59))+$C$5*($J38-$J$59-(($B$59-$B37-$CC$12)*$I$59))+$C$6*(1+($B$59-$B37)*$C$5)*$F$59)/$F37)-$AA36*(($G37-$G$59)/$F37) ->  | JY12: =+((((1+$CC$12*$C$5)*($I38-$I$59))+$C$5*($J39-$J$59-(($B$59-$B38-$CC$12)*$I$59))+$C$6*(1+($B$59-$B38)*$C$5)*$F$59)/$F38)-$AA37*(($G38-$G$59)/$F38) ->  | JZ12: =+((((1+$CC$12*$C$5)*($I39-$I$59))+$C$5*($J40-$J$59-(($B$59-$B39-$CC$12)*$I$59))+$C$6*(1+($B$59-$B39)*$C$5)*$F$59)/$F39)-$AA38*(($G39-$G$59)/$F39) ->  | KA12: =+((((1+$CC$12*$C$5)*($I40-$I$59))+$C$5*($J41-$J$59-(($B$59-$B40-$CC$12)*$I$59))+$C$6*(1+($B$59-$B40)*$C$5)*$F$59)/$F40)-$AA39*(($G40-$G$59)/$F40) ->  | KB12: =+((((1+$CC$12*$C$5)*($I41-$I$59))+$C$5*($J42-$J$59-(($B$59-$B41-$CC$12)*$I$59))+$C$6*(1+($B$59-$B41)*$C$5)*$F$59)/$F41)-$AA40*(($G41-$G$59)/$F41) ->  | KC12: =+((((1+$CC$12*$C$5)*($I42-$I$59))+$C$5*($J43-$J$59-(($B$59-$B42-$CC$12)*$I$59))+$C$6*(1+($B$59-$B42)*$C$5)*$F$59)/$F42)-$AA41*(($G42-$G$59)/$F42) ->  | KD12: =+((((1+$CC$12*$C$5)*($I43-$I$59))+$C$5*($J44-$J$59-(($B$59-$B43-$CC$12)*$I$59))+$C$6*(1+($B$59-$B43)*$C$5)*$F$59)/$F43)-$AA42*(($G43-$G$59)/$F43) ->  | KE12: =+((((1+$CC$12*$C$5)*($I44-$I$59))+$C$5*($J45-$J$59-(($B$59-$B44-$CC$12)*$I$59))+$C$6*(1+($B$59-$B44)*$C$5)*$F$59)/$F44)-$AA43*(($G44-$G$59)/$F44) ->  | KF12: =+((((1+$CC$12*$C$5)*($I45-$I$59))+$C$5*($J46-$J$59-(($B$59-$B45-$CC$12)*$I$59))+$C$6*(1+($B$59-$B45)*$C$5)*$F$59)/$F45)-$AA44*(($G45-$G$59)/$F45) ->  | KG12: =+((((1+$CC$12*$C$5)*($I46-$I$59))+$C$5*($J47-$J$59-(($B$59-$B46-$CC$12)*$I$59))+$C$6*(1+($B$59-$B46)*$C$5)*$F$59)/$F46)-$AA45*(($G46-$G$59)/$F46) ->  | KH12: =+((((1+$CC$12*$C$5)*($I47-$I$59))+$C$5*($J48-$J$59-(($B$59-$B47-$CC$12)*$I$59))+$C$6*(1+($B$59-$B47)*$C$5)*$F$59)/$F47)-$AA46*(($G47-$G$59)/$F47) ->  | KI12: =+((((1+$CC$12*$C$5)*($I48-$I$59))+$C$5*($J49-$J$59-(($B$59-$B48-$CC$12)*$I$59))+$C$6*(1+($B$59-$B48)*$C$5)*$F$59)/$F48)-$AA47*(($G48-$G$59)/$F48) ->  | KJ12: =+((((1+$CC$12*$C$5)*($I49-$I$59))+$C$5*($J50-$J$59-(($B$59-$B49-$CC$12)*$I$59))+$C$6*(1+($B$59-$B49)*$C$5)*$F$59)/$F49)-$AA48*(($G49-$G$59)/$F49) ->  | KK12: =+((((1+$CC$12*$C$5)*($I50-$I$59))+$C$5*($J51-$J$59-(($B$59-$B50-$CC$12)*$I$59))+$C$6*(1+($B$59-$B50)*$C$5)*$F$59)/$F50)-$AA49*(($G50-$G$59)/$F50) ->  | KL12: =+((((1+$CC$12*$C$5)*($I51-$I$59))+$C$5*($J52-$J$59-(($B$59-$B51-$CC$12)*$I$59))+$C$6*(1+($B$59-$B51)*$C$5)*$F$59)/$F51)-$AA50*(($G51-$G$59)/$F51) ->  | KM12: =+((((1+$CC$12*$C$5)*($I52-$I$59))+$C$5*($J53-$J$59-(($B$59-$B52-$CC$12)*$I$59))+$C$6*(1+($B$59-$B52)*$C$5)*$F$59)/$F52)-$AA51*(($G52-$G$59)/$F52) ->  | KN12: =+((((1+$CC$12*$C$5)*($I53-$I$59))+$C$5*($J54-$J$59-(($B$59-$B53-$CC$12)*$I$59))+$C$6*(1+($B$59-$B53)*$C$5)*$F$59)/$F53)-$AA52*(($G53-$G$59)/$F53) ->  | KO12: =+((((1+$CC$12*$C$5)*($I54-$I$59))+$C$5*($J55-$J$59-(($B$59-$B54-$CC$12)*$I$59))+$C$6*(1+($B$59-$B54)*$C$5)*$F$59)/$F54)-$AA53*(($G54-$G$59)/$F54) ->  | KP12: =+((((1+$CC$12*$C$5)*($I55-$I$59))+$C$5*($J56-$J$59-(($B$59-$B55-$CC$12)*$I$59))+$C$6*(1+($B$59-$B55)*$C$5)*$F$59)/$F55)-$AA54*(($G55-$G$59)/$F55) ->  | KQ12: =+((((1+$CC$12*$C$5)*($I56-$I$59))+$C$5*($J57-$J$59-(($B$59-$B56-$CC$12)*$I$59))+$C$6*(1+($B$59-$B56)*$C$5)*$F$59)/$F56)-$AA55*(($G56-$G$59)/$F56) ->  | KR12: =+((((1+$CC$12*$C$5)*($I57-$I$59))+$C$5*($J58-$J$59-(($B$59-$B57-$CC$12)*$I$59))+$C$6*(1+($B$59-$B57)*$C$5)*$F$59)/$F57)-$AA56*(($G57-$G$59)/$F57) ->  | KS12: =+((((1+$CC$12*$C$5)*($I58-$I$59))+$C$5*($J59-$J$59-(($B$59-$B58-$CC$12)*$I$59))+$C$6*(1+($B$59-$B58)*$C$5)*$F$59)/$F58)-$AA57*(($G58-$G$59)/$F58) ->  | KT12: =+((((1+$CC$12*$C$5)*($I59-$I$59))+$C$5*($J60-$J$59-(($B$59-$B59-$CC$12)*$I$59))+$C$6*(1+($B$59-$B59)*$C$5)*$F$59)/$F59)-$AA58*(($G59-$G$59)/$F59) -> 
B13: 19 | C13: 100357 | D13: 357 | E13: =1-(C14/C13) -> 0.003557300437 | F13: =+C13*$C$4^B13 -> 36286.98935 | G13: =+SUM($F13:F$95) -> 630575.7649 | H13: =+D13*$C$4^(B13+1) -> 122.3542399 | I13: =+SUM($H13:H$95) -> 3413.371278 | J13: =+SUM(I13:$I$94) -> 103105.5077 | K13: =+SUM($G13:G$94) -> 10117838.57 | M13: =+(I13-$I$59+$C$5*(J14-$J$59-(($B$59-B13-1)*$I$59))+$C$6*(1+($B$59-B13-1)*$C$5)*$F$59)/F13 ->  | N13: =+(I13-$I$54+$C$5*(J14-$J$54-(($B$54-B13-1)*$I$54))+$C$6*(1+($B$54-B13-1)*$C$5)*$F$54)/F13 ->  | P13: =+(G13-G14)/F13 -> 1 | Q13: 4.474788535 | R13: 16.64355247 | S13: =+($G13-$G$54)/$F13 -> 16.2336056 | U13: 19 | AC13: 19 | AD13: =+V13/(1-$C$7-$C$8) ->  | AK13: 2 | AL13: =+(((1+$AK$13*$C$5)*($I14-$I$54))+$C$5*($J15-$J$54-(($B$54-$B13-$AK$13)*$I$54))+$C$6*(1+($B$54-$B13)*$C$5)*$F$54)/$F14 ->  | AM13: =+(((1+$AK$13*$C$5)*($I15-$I$54))+$C$5*($J16-$J$54-(($B$54-$B14-$AK$13)*$I$54))+$C$6*(1+($B$54-$B14)*$C$5)*$F$54)/$F15 ->  | AN13: =+(((1+$AK$13*$C$5)*($I16-$I$54))+$C$5*($J17-$J$54-(($B$54-$B15-$AK$13)*$I$54))+$C$6*(1+($B$54-$B15)*$C$5)*$F$54)/$F16 ->  | AO13: =+(((1+$AK$13*$C$5)*($I17-$I$54))+$C$5*($J18-$J$54-(($B$54-$B16-$AK$13)*$I$54))+$C$6*(1+($B$54-$B16)*$C$5)*$F$54)/$F17 ->  | AP13: =+(((1+$AK$13*$C$5)*($I18-$I$54))+$C$5*($J19-$J$54-(($B$54-$B17-$AK$13)*$I$54))+$C$6*(1+($B$54-$B17)*$C$5)*$F$54)/$F18 ->  | AQ13: =+(((1+$AK$13*$C$5)*($I19-$I$54))+$C$5*($J20-$J$54-(($B$54-$B18-$AK$13)*$I$54))+$C$6*(1+($B$54-$B18)*$C$5)*$F$54)/$F19 ->  | AR13: =+(((1+$AK$13*$C$5)*($I20-$I$54))+$C$5*($J21-$J$54-(($B$54-$B19-$AK$13)*$I$54))+$C$6*(1+($B$54-$B19)*$C$5)*$F$54)/$F20 ->  | AS13: =+(((1+$AK$13*$C$5)*($I21-$I$54))+$C$5*($J22-$J$54-(($B$54-$B20-$AK$13)*$I$54))+$C$6*(1+($B$54-$B20)*$C$5)*$F$54)/$F21 ->  | AT13: =+(((1+$AK$13*$C$5)*($I22-$I$54))+$C$5*($J23-$J$54-(($B$54-$B21-$AK$13)*$I$54))+$C$6*(1+($B$54-$B21)*$C$5)*$F$54)/$F22 ->  | AU13: =+(((1+$AK$13*$C$5)*($I23-$I$54))+$C$5*($J24-$J$54-(($B$54-$B22-$AK$13)*$I$54))+$C$6*(1+($B$54-$B22)*$C$5)*$F$54)/$F23 ->  | AV13: =+(((1+$AK$13*$C$5)*($I24-$I$54))+$C$5*($J25-$J$54-(($B$54-$B23-$AK$13)*$I$54))+$C$6*(1+($B$54-$B23)*$C$5)*$F$54)/$F24 ->  | AW13: =+(((1+$AK$13*$C$5)*($I25-$I$54))+$C$5*($J26-$J$54-(($B$54-$B24-$AK$13)*$I$54))+$C$6*(1+($B$54-$B24)*$C$5)*$F$54)/$F25 ->  | AX13: =+(((1+$AK$13*$C$5)*($I26-$I$54))+$C$5*($J27-$J$54-(($B$54-$B25-$AK$13)*$I$54))+$C$6*(1+($B$54-$B25)*$C$5)*$F$54)/$F26 ->  | AY13: =+(((1+$AK$13*$C$5)*($I27-$I$54))+$C$5*($J28-$J$54-(($B$54-$B26-$AK$13)*$I$54))+$C$6*(1+($B$54-$B26)*$C$5)*$F$54)/$F27 ->  | AZ13: =+(((1+$AK$13*$C$5)*($I28-$I$54))+$C$5*($J29-$J$54-(($B$54-$B27-$AK$13)*$I$54))+$C$6*(1+($B$54-$B27)*$C$5)*$F$54)/$F28 ->  | BA13: =+(((1+$AK$13*$C$5)*($I29-$I$54))+$C$5*($J30-$J$54-(($B$54-$B28-$AK$13)*$I$54))+$C$6*(1+($B$54-$B28)*$C$5)*$F$54)/$F29 ->  | BB13: =+(((1+$AK$13*$C$5)*($I30-$I$54))+$C$5*($J31-$J$54-(($B$54-$B29-$AK$13)*$I$54))+$C$6*(1+($B$54-$B29)*$C$5)*$F$54)/$F30 ->  | BC13: =+(((1+$AK$13*$C$5)*($I31-$I$54))+$C$5*($J32-$J$54-(($B$54-$B30-$AK$13)*$I$54))+$C$6*(1+($B$54-$B30)*$C$5)*$F$54)/$F31 ->  | BD13: =+(((1+$AK$13*$C$5)*($I32-$I$54))+$C$5*($J33-$J$54-(($B$54-$B31-$AK$13)*$I$54))+$C$6*(1+($B$54-$B31)*$C$5)*$F$54)/$F32 ->  | BE13: =+(((1+$AK$13*$C$5)*($I33-$I$54))+$C$5*($J34-$J$54-(($B$54-$B32-$AK$13)*$I$54))+$C$6*(1+($B$54-$B32)*$C$5)*$F$54)/$F33 ->  | BF13: =+(((1+$AK$13*$C$5)*($I34-$I$54))+$C$5*($J35-$J$54-(($B$54-$B33-$AK$13)*$I$54))+$C$6*(1+($B$54-$B33)*$C$5)*$F$54)/$F34 ->  | BG13: =+(((1+$AK$13*$C$5)*($I35-$I$54))+$C$5*($J36-$J$54-(($B$54-$B34-$AK$13)*$I$54))+$C$6*(1+($B$54-$B34)*$C$5)*$F$54)/$F35 ->  | BH13: =+(((1+$AK$13*$C$5)*($I36-$I$54))+$C$5*($J37-$J$54-(($B$54-$B35-$AK$13)*$I$54))+$C$6*(1+($B$54-$B35)*$C$5)*$F$54)/$F36 ->  | BI13: =+(((1+$AK$13*$C$5)*($I37-$I$54))+$C$5*($J38-$J$54-(($B$54-$B36-$AK$13)*$I$54))+$C$6*(1+($B$54-$B36)*$C$5)*$F$54)/$F37 ->  | BJ13: =+(((1+$AK$13*$C$5)*($I38-$I$54))+$C$5*($J39-$J$54-(($B$54-$B37-$AK$13)*$I$54))+$C$6*(1+($B$54-$B37)*$C$5)*$F$54)/$F38 ->  | BK13: =+(((1+$AK$13*$C$5)*($I39-$I$54))+$C$5*($J40-$J$54-(($B$54-$B38-$AK$13)*$I$54))+$C$6*(1+($B$54-$B38)*$C$5)*$F$54)/$F39 ->  | BL13: =+(((1+$AK$13*$C$5)*($I40-$I$54))+$C$5*($J41-$J$54-(($B$54-$B39-$AK$13)*$I$54))+$C$6*(1+($B$54-$B39)*$C$5)*$F$54)/$F40 ->  | BM13: =+(((1+$AK$13*$C$5)*($I41-$I$54))+$C$5*($J42-$J$54-(($B$54-$B40-$AK$13)*$I$54))+$C$6*(1+($B$54-$B40)*$C$5)*$F$54)/$F41 ->  | BN13: =+(((1+$AK$13*$C$5)*($I42-$I$54))+$C$5*($J43-$J$54-(($B$54-$B41-$AK$13)*$I$54))+$C$6*(1+($B$54-$B41)*$C$5)*$F$54)/$F42 ->  | BO13: =+(((1+$AK$13*$C$5)*($I43-$I$54))+$C$5*($J44-$J$54-(($B$54-$B42-$AK$13)*$I$54))+$C$6*(1+($B$54-$B42)*$C$5)*$F$54)/$F43 ->  | BP13: =+(((1+$AK$13*$C$5)*($I44-$I$54))+$C$5*($J45-$J$54-(($B$54-$B43-$AK$13)*$I$54))+$C$6*(1+($B$54-$B43)*$C$5)*$F$54)/$F44 ->  | BQ13: =+(((1+$AK$13*$C$5)*($I45-$I$54))+$C$5*($J46-$J$54-(($B$54-$B44-$AK$13)*$I$54))+$C$6*(1+($B$54-$B44)*$C$5)*$F$54)/$F45 ->  | BR13: =+(((1+$AK$13*$C$5)*($I46-$I$54))+$C$5*($J47-$J$54-(($B$54-$B45-$AK$13)*$I$54))+$C$6*(1+($B$54-$B45)*$C$5)*$F$54)/$F46 ->  | BS13: =+(((1+$AK$13*$C$5)*($I47-$I$54))+$C$5*($J48-$J$54-(($B$54-$B46-$AK$13)*$I$54))+$C$6*(1+($B$54-$B46)*$C$5)*$F$54)/$F47 ->  | BT13: =+(((1+$AK$13*$C$5)*($I48-$I$54))+$C$5*($J49-$J$54-(($B$54-$B47-$AK$13)*$I$54))+$C$6*(1+($B$54-$B47)*$C$5)*$F$54)/$F48 ->  | BU13: =+(((1+$AK$13*$C$5)*($I49-$I$54))+$C$5*($J50-$J$54-(($B$54-$B48-$AK$13)*$I$54))+$C$6*(1+($B$54-$B48)*$C$5)*$F$54)/$F49 ->  | BV13: =+(((1+$AK$13*$C$5)*($I50-$I$54))+$C$5*($J51-$J$54-(($B$54-$B49-$AK$13)*$I$54))+$C$6*(1+($B$54-$B49)*$C$5)*$F$54)/$F50 ->  | BW13: =+(((1+$AK$13*$C$5)*($I51-$I$54))+$C$5*($J52-$J$54-(($B$54-$B50-$AK$13)*$I$54))+$C$6*(1+($B$54-$B50)*$C$5)*$F$54)/$F51 ->  | BX13: =+(((1+$AK$13*$C$5)*($I52-$I$54))+$C$5*($J53-$J$54-(($B$54-$B51-$AK$13)*$I$54))+$C$6*(1+($B$54-$B51)*$C$5)*$F$54)/$F52 ->  | BY13: =+(((1+$AK$13*$C$5)*($I53-$I$54))+$C$5*($J54-$J$54-(($B$54-$B52-$AK$13)*$I$54))+$C$6*(1+($B$54-$B52)*$C$5)*$F$54)/$F53 ->  | BZ13: =+(((1+$AK$13*$C$5)*($I54-$I$54))+$C$5*($J55-$J$54-(($B$54-$B53-$AK$13)*$I$54))+$C$6*(1+($B$54-$B53)*$C$5)*$F$54)/$F54 ->  | CC13: 2 | CD13: =+(((1+$CC$13*$C$5)*($I14-$I$59))+$C$5*($J15-$J$59-(($B$59-$B13-$CC$13)*$I$59))+$C$6*(1+($B$59-$B13)*$C$5)*$F$59)/$F14 ->  | CE13: =+(((1+$CC$13*$C$5)*($I15-$I$59))+$C$5*($J16-$J$59-(($B$59-$B14-$CC$13)*$I$59))+$C$6*(1+($B$59-$B14)*$C$5)*$F$59)/$F15 ->  | CF13: =+(((1+$CC$13*$C$5)*($I16-$I$59))+$C$5*($J17-$J$59-(($B$59-$B15-$CC$13)*$I$59))+$C$6*(1+($B$59-$B15)*$C$5)*$F$59)/$F16 ->  | CG13: =+(((1+$CC$13*$C$5)*($I17-$I$59))+$C$5*($J18-$J$59-(($B$59-$B16-$CC$13)*$I$59))+$C$6*(1+($B$59-$B16)*$C$5)*$F$59)/$F17 ->  | CH13: =+(((1+$CC$13*$C$5)*($I18-$I$59))+$C$5*($J19-$J$59-(($B$59-$B17-$CC$13)*$I$59))+$C$6*(1+($B$59-$B17)*$C$5)*$F$59)/$F18 ->  | CI13: =+(((1+$CC$13*$C$5)*($I19-$I$59))+$C$5*($J20-$J$59-(($B$59-$B18-$CC$13)*$I$59))+$C$6*(1+($B$59-$B18)*$C$5)*$F$59)/$F19 ->  | CJ13: =+(((1+$CC$13*$C$5)*($I20-$I$59))+$C$5*($J21-$J$59-(($B$59-$B19-$CC$13)*$I$59))+$C$6*(1+($B$59-$B19)*$C$5)*$F$59)/$F20 ->  | CK13: =+(((1+$CC$13*$C$5)*($I21-$I$59))+$C$5*($J22-$J$59-(($B$59-$B20-$CC$13)*$I$59))+$C$6*(1+($B$59-$B20)*$C$5)*$F$59)/$F21 ->  | CL13: =+(((1+$CC$13*$C$5)*($I22-$I$59))+$C$5*($J23-$J$59-(($B$59-$B21-$CC$13)*$I$59))+$C$6*(1+($B$59-$B21)*$C$5)*$F$59)/$F22 ->  | CM13: =+(((1+$CC$13*$C$5)*($I23-$I$59))+$C$5*($J24-$J$59-(($B$59-$B22-$CC$13)*$I$59))+$C$6*(1+($B$59-$B22)*$C$5)*$F$59)/$F23 ->  | CN13: =+(((1+$CC$13*$C$5)*($I24-$I$59))+$C$5*($J25-$J$59-(($B$59-$B23-$CC$13)*$I$59))+$C$6*(1+($B$59-$B23)*$C$5)*$F$59)/$F24 ->  | CO13: =+(((1+$CC$13*$C$5)*($I25-$I$59))+$C$5*($J26-$J$59-(($B$59-$B24-$CC$13)*$I$59))+$C$6*(1+($B$59-$B24)*$C$5)*$F$59)/$F25 ->  | CP13: =+(((1+$CC$13*$C$5)*($I26-$I$59))+$C$5*($J27-$J$59-(($B$59-$B25-$CC$13)*$I$59))+$C$6*(1+($B$59-$B25)*$C$5)*$F$59)/$F26 ->  | CQ13: =+(((1+$CC$13*$C$5)*($I27-$I$59))+$C$5*($J28-$J$59-(($B$59-$B26-$CC$13)*$I$59))+$C$6*(1+($B$59-$B26)*$C$5)*$F$59)/$F27 ->  | CR13: =+(((1+$CC$13*$C$5)*($I28-$I$59))+$C$5*($J29-$J$59-(($B$59-$B27-$CC$13)*$I$59))+$C$6*(1+($B$59-$B27)*$C$5)*$F$59)/$F28 ->  | CS13: =+(((1+$CC$13*$C$5)*($I29-$I$59))+$C$5*($J30-$J$59-(($B$59-$B28-$CC$13)*$I$59))+$C$6*(1+($B$59-$B28)*$C$5)*$F$59)/$F29 ->  | CT13: =+(((1+$CC$13*$C$5)*($I30-$I$59))+$C$5*($J31-$J$59-(($B$59-$B29-$CC$13)*$I$59))+$C$6*(1+($B$59-$B29)*$C$5)*$F$59)/$F30 ->  | CU13: =+(((1+$CC$13*$C$5)*($I31-$I$59))+$C$5*($J32-$J$59-(($B$59-$B30-$CC$13)*$I$59))+$C$6*(1+($B$59-$B30)*$C$5)*$F$59)/$F31 ->  | CV13: =+(((1+$CC$13*$C$5)*($I32-$I$59))+$C$5*($J33-$J$59-(($B$59-$B31-$CC$13)*$I$59))+$C$6*(1+($B$59-$B31)*$C$5)*$F$59)/$F32 ->  | CW13: =+(((1+$CC$13*$C$5)*($I33-$I$59))+$C$5*($J34-$J$59-(($B$59-$B32-$CC$13)*$I$59))+$C$6*(1+($B$59-$B32)*$C$5)*$F$59)/$F33 ->  | CX13: =+(((1+$CC$13*$C$5)*($I34-$I$59))+$C$5*($J35-$J$59-(($B$59-$B33-$CC$13)*$I$59))+$C$6*(1+($B$59-$B33)*$C$5)*$F$59)/$F34 ->  | CY13: =+(((1+$CC$13*$C$5)*($I35-$I$59))+$C$5*($J36-$J$59-(($B$59-$B34-$CC$13)*$I$59))+$C$6*(1+($B$59-$B34)*$C$5)*$F$59)/$F35 ->  | CZ13: =+(((1+$CC$13*$C$5)*($I36-$I$59))+$C$5*($J37-$J$59-(($B$59-$B35-$CC$13)*$I$59))+$C$6*(1+($B$59-$B35)*$C$5)*$F$59)/$F36 ->  | DA13: =+(((1+$CC$13*$C$5)*($I37-$I$59))+$C$5*($J38-$J$59-(($B$59-$B36-$CC$13)*$I$59))+$C$6*(1+($B$59-$B36)*$C$5)*$F$59)/$F37 ->  | DB13: =+(((1+$CC$13*$C$5)*($I38-$I$59))+$C$5*($J39-$J$59-(($B$59-$B37-$CC$13)*$I$59))+$C$6*(1+($B$59-$B37)*$C$5)*$F$59)/$F38 ->  | DC13: =+(((1+$CC$13*$C$5)*($I39-$I$59))+$C$5*($J40-$J$59-(($B$59-$B38-$CC$13)*$I$59))+$C$6*(1+($B$59-$B38)*$C$5)*$F$59)/$F39 ->  | DD13: =+(((1+$CC$13*$C$5)*($I40-$I$59))+$C$5*($J41-$J$59-(($B$59-$B39-$CC$13)*$I$59))+$C$6*(1+($B$59-$B39)*$C$5)*$F$59)/$F40 ->  | DE13: =+(((1+$CC$13*$C$5)*($I41-$I$59))+$C$5*($J42-$J$59-(($B$59-$B40-$CC$13)*$I$59))+$C$6*(1+($B$59-$B40)*$C$5)*$F$59)/$F41 ->  | DF13: =+(((1+$CC$13*$C$5)*($I42-$I$59))+$C$5*($J43-$J$59-(($B$59-$B41-$CC$13)*$I$59))+$C$6*(1+($B$59-$B41)*$C$5)*$F$59)/$F42 ->  | DG13: =+(((1+$CC$13*$C$5)*($I43-$I$59))+$C$5*($J44-$J$59-(($B$59-$B42-$CC$13)*$I$59))+$C$6*(1+($B$59-$B42)*$C$5)*$F$59)/$F43 ->  | DH13: =+(((1+$CC$13*$C$5)*($I44-$I$59))+$C$5*($J45-$J$59-(($B$59-$B43-$CC$13)*$I$59))+$C$6*(1+($B$59-$B43)*$C$5)*$F$59)/$F44 ->  | DI13: =+(((1+$CC$13*$C$5)*($I45-$I$59))+$C$5*($J46-$J$59-(($B$59-$B44-$CC$13)*$I$59))+$C$6*(1+($B$59-$B44)*$C$5)*$F$59)/$F45 ->  | DJ13: =+(((1+$CC$13*$C$5)*($I46-$I$59))+$C$5*($J47-$J$59-(($B$59-$B45-$CC$13)*$I$59))+$C$6*(1+($B$59-$B45)*$C$5)*$F$59)/$F46 ->  | DK13: =+(((1+$CC$13*$C$5)*($I47-$I$59))+$C$5*($J48-$J$59-(($B$59-$B46-$CC$13)*$I$59))+$C$6*(1+($B$59-$B46)*$C$5)*$F$59)/$F47 ->  | DL13: =+(((1+$CC$13*$C$5)*($I48-$I$59))+$C$5*($J49-$J$59-(($B$59-$B47-$CC$13)*$I$59))+$C$6*(1+($B$59-$B47)*$C$5)*$F$59)/$F48 ->  | DM13: =+(((1+$CC$13*$C$5)*($I49-$I$59))+$C$5*($J50-$J$59-(($B$59-$B48-$CC$13)*$I$59))+$C$6*(1+($B$59-$B48)*$C$5)*$F$59)/$F49 ->  | DN13: =+(((1+$CC$13*$C$5)*($I50-$I$59))+$C$5*($J51-$J$59-(($B$59-$B49-$CC$13)*$I$59))+$C$6*(1+($B$59-$B49)*$C$5)*$F$59)/$F50 ->  | DO13: =+(((1+$CC$13*$C$5)*($I51-$I$59))+$C$5*($J52-$J$59-(($B$59-$B50-$CC$13)*$I$59))+$C$6*(1+($B$59-$B50)*$C$5)*$F$59)/$F51 ->  | DP13: =+(((1+$CC$13*$C$5)*($I52-$I$59))+$C$5*($J53-$J$59-(($B$59-$B51-$CC$13)*$I$59))+$C$6*(1+($B$59-$B51)*$C$5)*$F$59)/$F52 ->  | DQ13: =+(((1+$CC$13*$C$5)*($I53-$I$59))+$C$5*($J54-$J$59-(($B$59-$B52-$CC$13)*$I$59))+$C$6*(1+($B$59-$B52)*$C$5)*$F$59)/$F53 ->  | DR13: =+(((1+$CC$13*$C$5)*($I54-$I$59))+$C$5*($J55-$J$59-(($B$59-$B53-$CC$13)*$I$59))+$C$6*(1+($B$59-$B53)*$C$5)*$F$59)/$F54 ->  | DS13: =+(((1+$CC$13*$C$5)*($I55-$I$59))+$C$5*($J56-$J$59-(($B$59-$B54-$CC$13)*$I$59))+$C$6*(1+($B$59-$B54)*$C$5)*$F$59)/$F55 ->  | DT13: =+(((1+$CC$13*$C$5)*($I56-$I$59))+$C$5*($J57-$J$59-(($B$59-$B55-$CC$13)*$I$59))+$C$6*(1+($B$59-$B55)*$C$5)*$F$59)/$F56 ->  | DU13: =+(((1+$CC$13*$C$5)*($I57-$I$59))+$C$5*($J58-$J$59-(($B$59-$B56-$CC$13)*$I$59))+$C$6*(1+($B$59-$B56)*$C$5)*$F$59)/$F57 ->  | DV13: =+(((1+$CC$13*$C$5)*($I58-$I$59))+$C$5*($J59-$J$59-(($B$59-$B57-$CC$13)*$I$59))+$C$6*(1+($B$59-$B57)*$C$5)*$F$59)/$F58 ->  | DW13: =+(((1+$CC$13*$C$5)*($I59-$I$59))+$C$5*($J60-$J$59-(($B$59-$B58-$CC$13)*$I$59))+$C$6*(1+($B$59-$B58)*$C$5)*$F$59)/$F59 ->  | DZ13: 2 | EA13: =+((((1+$AK$13*$C$5)*($I14-$I$54))+$C$5*($J15-$J$54-(($B$54-$B13-$AK$13)*$I$54))+$C$6*(1+($B$54-$B13)*$C$5)*$F$54)/$F14)-$X12*(($G14-$G17)/$F14) ->  | EB13: =+((((1+$AK$13*$C$5)*($I15-$I$54))+$C$5*($J16-$J$54-(($B$54-$B14-$AK$13)*$I$54))+$C$6*(1+($B$54-$B14)*$C$5)*$F$54)/$F15)-$X13*(($G15-$G18)/$F15) ->  | EC13: =+((((1+$AK$13*$C$5)*($I16-$I$54))+$C$5*($J17-$J$54-(($B$54-$B15-$AK$13)*$I$54))+$C$6*(1+($B$54-$B15)*$C$5)*$F$54)/$F16)-$X14*(($G16-$G19)/$F16) ->  | ED13: =+((((1+$AK$13*$C$5)*($I17-$I$54))+$C$5*($J18-$J$54-(($B$54-$B16-$AK$13)*$I$54))+$C$6*(1+($B$54-$B16)*$C$5)*$F$54)/$F17)-$X15*(($G17-$G20)/$F17) ->  | EE13: =+((((1+$AK$13*$C$5)*($I18-$I$54))+$C$5*($J19-$J$54-(($B$54-$B17-$AK$13)*$I$54))+$C$6*(1+($B$54-$B17)*$C$5)*$F$54)/$F18)-$X16*(($G18-$G21)/$F18) ->  | EF13: =+((((1+$AK$13*$C$5)*($I19-$I$54))+$C$5*($J20-$J$54-(($B$54-$B18-$AK$13)*$I$54))+$C$6*(1+($B$54-$B18)*$C$5)*$F$54)/$F19)-$X17*(($G19-$G22)/$F19) ->  | EG13: =+((((1+$AK$13*$C$5)*($I20-$I$54))+$C$5*($J21-$J$54-(($B$54-$B19-$AK$13)*$I$54))+$C$6*(1+($B$54-$B19)*$C$5)*$F$54)/$F20)-$X18*(($G20-$G23)/$F20) ->  | EH13: =+((((1+$AK$13*$C$5)*($I21-$I$54))+$C$5*($J22-$J$54-(($B$54-$B20-$AK$13)*$I$54))+$C$6*(1+($B$54-$B20)*$C$5)*$F$54)/$F21)-$X19*(($G21-$G24)/$F21) ->  | EI13: =+((((1+$AK$13*$C$5)*($I22-$I$54))+$C$5*($J23-$J$54-(($B$54-$B21-$AK$13)*$I$54))+$C$6*(1+($B$54-$B21)*$C$5)*$F$54)/$F22)-$X20*(($G22-$G25)/$F22) ->  | EJ13: =+((((1+$AK$13*$C$5)*($I23-$I$54))+$C$5*($J24-$J$54-(($B$54-$B22-$AK$13)*$I$54))+$C$6*(1+($B$54-$B22)*$C$5)*$F$54)/$F23)-$X21*(($G23-$G26)/$F23) ->  | EK13: =+((((1+$AK$13*$C$5)*($I24-$I$54))+$C$5*($J25-$J$54-(($B$54-$B23-$AK$13)*$I$54))+$C$6*(1+($B$54-$B23)*$C$5)*$F$54)/$F24)-$X22*(($G24-$G27)/$F24) ->  | EL13: =+((((1+$AK$13*$C$5)*($I25-$I$54))+$C$5*($J26-$J$54-(($B$54-$B24-$AK$13)*$I$54))+$C$6*(1+($B$54-$B24)*$C$5)*$F$54)/$F25)-$X23*(($G25-$G28)/$F25) ->  | EM13: =+((((1+$AK$13*$C$5)*($I26-$I$54))+$C$5*($J27-$J$54-(($B$54-$B25-$AK$13)*$I$54))+$C$6*(1+($B$54-$B25)*$C$5)*$F$54)/$F26)-$X24*(($G26-$G29)/$F26) ->  | EN13: =+((((1+$AK$13*$C$5)*($I27-$I$54))+$C$5*($J28-$J$54-(($B$54-$B26-$AK$13)*$I$54))+$C$6*(1+($B$54-$B26)*$C$5)*$F$54)/$F27)-$X25*(($G27-$G30)/$F27) ->  | EO13: =+((((1+$AK$13*$C$5)*($I28-$I$54))+$C$5*($J29-$J$54-(($B$54-$B27-$AK$13)*$I$54))+$C$6*(1+($B$54-$B27)*$C$5)*$F$54)/$F28)-$X26*(($G28-$G31)/$F28) ->  | EP13: =+((((1+$AK$13*$C$5)*($I29-$I$54))+$C$5*($J30-$J$54-(($B$54-$B28-$AK$13)*$I$54))+$C$6*(1+($B$54-$B28)*$C$5)*$F$54)/$F29)-$X27*(($G29-$G32)/$F29) ->  | EQ13: =+((((1+$AK$13*$C$5)*($I30-$I$54))+$C$5*($J31-$J$54-(($B$54-$B29-$AK$13)*$I$54))+$C$6*(1+($B$54-$B29)*$C$5)*$F$54)/$F30)-$X28*(($G30-$G33)/$F30) ->  | ER13: =+((((1+$AK$13*$C$5)*($I31-$I$54))+$C$5*($J32-$J$54-(($B$54-$B30-$AK$13)*$I$54))+$C$6*(1+($B$54-$B30)*$C$5)*$F$54)/$F31)-$X29*(($G31-$G34)/$F31) ->  | ES13: =+((((1+$AK$13*$C$5)*($I32-$I$54))+$C$5*($J33-$J$54-(($B$54-$B31-$AK$13)*$I$54))+$C$6*(1+($B$54-$B31)*$C$5)*$F$54)/$F32)-$X30*(($G32-$G35)/$F32) ->  | ET13: =+((((1+$AK$13*$C$5)*($I33-$I$54))+$C$5*($J34-$J$54-(($B$54-$B32-$AK$13)*$I$54))+$C$6*(1+($B$54-$B32)*$C$5)*$F$54)/$F33)-$X31*(($G33-$G36)/$F33) ->  | EU13: =+((((1+$AK$13*$C$5)*($I34-$I$54))+$C$5*($J35-$J$54-(($B$54-$B33-$AK$13)*$I$54))+$C$6*(1+($B$54-$B33)*$C$5)*$F$54)/$F34)-$X32*(($G34-$G37)/$F34) ->  | EV13: =+((((1+$AK$13*$C$5)*($I35-$I$54))+$C$5*($J36-$J$54-(($B$54-$B34-$AK$13)*$I$54))+$C$6*(1+($B$54-$B34)*$C$5)*$F$54)/$F35)-$X33*(($G35-$G38)/$F35) ->  | EW13: =+((((1+$AK$13*$C$5)*($I36-$I$54))+$C$5*($J37-$J$54-(($B$54-$B35-$AK$13)*$I$54))+$C$6*(1+($B$54-$B35)*$C$5)*$F$54)/$F36)-$X34*(($G36-$G39)/$F36) ->  | EX13: =+((((1+$AK$13*$C$5)*($I37-$I$54))+$C$5*($J38-$J$54-(($B$54-$B36-$AK$13)*$I$54))+$C$6*(1+($B$54-$B36)*$C$5)*$F$54)/$F37)-$X35*(($G37-$G40)/$F37) ->  | EY13: =+((((1+$AK$13*$C$5)*($I38-$I$54))+$C$5*($J39-$J$54-(($B$54-$B37-$AK$13)*$I$54))+$C$6*(1+($B$54-$B37)*$C$5)*$F$54)/$F38)-$X36*(($G38-$G41)/$F38) ->  | EZ13: =+((((1+$AK$13*$C$5)*($I39-$I$54))+$C$5*($J40-$J$54-(($B$54-$B38-$AK$13)*$I$54))+$C$6*(1+($B$54-$B38)*$C$5)*$F$54)/$F39)-$X37*(($G39-$G42)/$F39) ->  | FA13: =+((((1+$AK$13*$C$5)*($I40-$I$54))+$C$5*($J41-$J$54-(($B$54-$B39-$AK$13)*$I$54))+$C$6*(1+($B$54-$B39)*$C$5)*$F$54)/$F40)-$X38*(($G40-$G43)/$F40) ->  | FB13: =+((((1+$AK$13*$C$5)*($I41-$I$54))+$C$5*($J42-$J$54-(($B$54-$B40-$AK$13)*$I$54))+$C$6*(1+($B$54-$B40)*$C$5)*$F$54)/$F41)-$X39*(($G41-$G44)/$F41) ->  | FC13: =+((((1+$AK$13*$C$5)*($I42-$I$54))+$C$5*($J43-$J$54-(($B$54-$B41-$AK$13)*$I$54))+$C$6*(1+($B$54-$B41)*$C$5)*$F$54)/$F42)-$X40*(($G42-$G45)/$F42) ->  | FD13: =+((((1+$AK$13*$C$5)*($I43-$I$54))+$C$5*($J44-$J$54-(($B$54-$B42-$AK$13)*$I$54))+$C$6*(1+($B$54-$B42)*$C$5)*$F$54)/$F43)-$X41*(($G43-$G46)/$F43) ->  | FE13: =+((((1+$AK$13*$C$5)*($I44-$I$54))+$C$5*($J45-$J$54-(($B$54-$B43-$AK$13)*$I$54))+$C$6*(1+($B$54-$B43)*$C$5)*$F$54)/$F44)-$X42*(($G44-$G47)/$F44) ->  | FF13: =+((((1+$AK$13*$C$5)*($I45-$I$54))+$C$5*($J46-$J$54-(($B$54-$B44-$AK$13)*$I$54))+$C$6*(1+($B$54-$B44)*$C$5)*$F$54)/$F45)-$X43*(($G45-$G48)/$F45) ->  | FG13: =+((((1+$AK$13*$C$5)*($I46-$I$54))+$C$5*($J47-$J$54-(($B$54-$B45-$AK$13)*$I$54))+$C$6*(1+($B$54-$B45)*$C$5)*$F$54)/$F46)-$X44*(($G46-$G49)/$F46) ->  | FH13: =+((((1+$AK$13*$C$5)*($I47-$I$54))+$C$5*($J48-$J$54-(($B$54-$B46-$AK$13)*$I$54))+$C$6*(1+($B$54-$B46)*$C$5)*$F$54)/$F47)-$X45*(($G47-$G50)/$F47) ->  | FI13: =+((((1+$AK$13*$C$5)*($I48-$I$54))+$C$5*($J49-$J$54-(($B$54-$B47-$AK$13)*$I$54))+$C$6*(1+($B$54-$B47)*$C$5)*$F$54)/$F48)-$X46*(($G48-$G51)/$F48) ->  | FJ13: =+((((1+$AK$13*$C$5)*($I49-$I$54))+$C$5*($J50-$J$54-(($B$54-$B48-$AK$13)*$I$54))+$C$6*(1+($B$54-$B48)*$C$5)*$F$54)/$F49)-$X47*(($G49-$G52)/$F49) ->  | FK13: =+((((1+$AK$13*$C$5)*($I50-$I$54))+$C$5*($J51-$J$54-(($B$54-$B49-$AK$13)*$I$54))+$C$6*(1+($B$54-$B49)*$C$5)*$F$54)/$F50)-$X48*(($G50-$G53)/$F50) ->  | FL13: =+((((1+$AK$13*$C$5)*($I51-$I$54))+$C$5*($J52-$J$54-(($B$54-$B50-$AK$13)*$I$54))+$C$6*(1+($B$54-$B50)*$C$5)*$F$54)/$F51)-$X49*(($G51-$G54)/$F51) ->  | FN13: 2 | FO13: =+((((1+$CC$13*$C$5)*($I14-$I$59))+$C$5*($J15-$J$59-(($B$59-$B13-$CC$13)*$I$59))+$C$6*(1+($B$59-$B13)*$C$5)*$F$59)/$F14)-$Y12*(($G14-$G17)/$F14) ->  | FP13: =+((((1+$CC$13*$C$5)*($I15-$I$59))+$C$5*($J16-$J$59-(($B$59-$B14-$CC$13)*$I$59))+$C$6*(1+($B$59-$B14)*$C$5)*$F$59)/$F15)-$Y13*(($G15-$G18)/$F15) ->  | FQ13: =+((((1+$CC$13*$C$5)*($I16-$I$59))+$C$5*($J17-$J$59-(($B$59-$B15-$CC$13)*$I$59))+$C$6*(1+($B$59-$B15)*$C$5)*$F$59)/$F16)-$Y14*(($G16-$G19)/$F16) ->  | FR13: =+((((1+$CC$13*$C$5)*($I17-$I$59))+$C$5*($J18-$J$59-(($B$59-$B16-$CC$13)*$I$59))+$C$6*(1+($B$59-$B16)*$C$5)*$F$59)/$F17)-$Y15*(($G17-$G20)/$F17) ->  | FS13: =+((((1+$CC$13*$C$5)*($I18-$I$59))+$C$5*($J19-$J$59-(($B$59-$B17-$CC$13)*$I$59))+$C$6*(1+($B$59-$B17)*$C$5)*$F$59)/$F18)-$Y16*(($G18-$G21)/$F18) ->  | FT13: =+((((1+$CC$13*$C$5)*($I19-$I$59))+$C$5*($J20-$J$59-(($B$59-$B18-$CC$13)*$I$59))+$C$6*(1+($B$59-$B18)*$C$5)*$F$59)/$F19)-$Y17*(($G19-$G22)/$F19) ->  | FU13: =+((((1+$CC$13*$C$5)*($I20-$I$59))+$C$5*($J21-$J$59-(($B$59-$B19-$CC$13)*$I$59))+$C$6*(1+($B$59-$B19)*$C$5)*$F$59)/$F20)-$Y18*(($G20-$G23)/$F20) ->  | FV13: =+((((1+$CC$13*$C$5)*($I21-$I$59))+$C$5*($J22-$J$59-(($B$59-$B20-$CC$13)*$I$59))+$C$6*(1+($B$59-$B20)*$C$5)*$F$59)/$F21)-$Y19*(($G21-$G24)/$F21) ->  | FW13: =+((((1+$CC$13*$C$5)*($I22-$I$59))+$C$5*($J23-$J$59-(($B$59-$B21-$CC$13)*$I$59))+$C$6*(1+($B$59-$B21)*$C$5)*$F$59)/$F22)-$Y20*(($G22-$G25)/$F22) ->  | FX13: =+((((1+$CC$13*$C$5)*($I23-$I$59))+$C$5*($J24-$J$59-(($B$59-$B22-$CC$13)*$I$59))+$C$6*(1+($B$59-$B22)*$C$5)*$F$59)/$F23)-$Y21*(($G23-$G26)/$F23) ->  | FY13: =+((((1+$CC$13*$C$5)*($I24-$I$59))+$C$5*($J25-$J$59-(($B$59-$B23-$CC$13)*$I$59))+$C$6*(1+($B$59-$B23)*$C$5)*$F$59)/$F24)-$Y22*(($G24-$G27)/$F24) ->  | FZ13: =+((((1+$CC$13*$C$5)*($I25-$I$59))+$C$5*($J26-$J$59-(($B$59-$B24-$CC$13)*$I$59))+$C$6*(1+($B$59-$B24)*$C$5)*$F$59)/$F25)-$Y23*(($G25-$G28)/$F25) ->  | GA13: =+((((1+$CC$13*$C$5)*($I26-$I$59))+$C$5*($J27-$J$59-(($B$59-$B25-$CC$13)*$I$59))+$C$6*(1+($B$59-$B25)*$C$5)*$F$59)/$F26)-$Y24*(($G26-$G29)/$F26) ->  | GB13: =+((((1+$CC$13*$C$5)*($I27-$I$59))+$C$5*($J28-$J$59-(($B$59-$B26-$CC$13)*$I$59))+$C$6*(1+($B$59-$B26)*$C$5)*$F$59)/$F27)-$Y25*(($G27-$G30)/$F27) ->  | GC13: =+((((1+$CC$13*$C$5)*($I28-$I$59))+$C$5*($J29-$J$59-(($B$59-$B27-$CC$13)*$I$59))+$C$6*(1+($B$59-$B27)*$C$5)*$F$59)/$F28)-$Y26*(($G28-$G31)/$F28) ->  | GD13: =+((((1+$CC$13*$C$5)*($I29-$I$59))+$C$5*($J30-$J$59-(($B$59-$B28-$CC$13)*$I$59))+$C$6*(1+($B$59-$B28)*$C$5)*$F$59)/$F29)-$Y27*(($G29-$G32)/$F29) ->  | GE13: =+((((1+$CC$13*$C$5)*($I30-$I$59))+$C$5*($J31-$J$59-(($B$59-$B29-$CC$13)*$I$59))+$C$6*(1+($B$59-$B29)*$C$5)*$F$59)/$F30)-$Y28*(($G30-$G33)/$F30) ->  | GF13: =+((((1+$CC$13*$C$5)*($I31-$I$59))+$C$5*($J32-$J$59-(($B$59-$B30-$CC$13)*$I$59))+$C$6*(1+($B$59-$B30)*$C$5)*$F$59)/$F31)-$Y29*(($G31-$G34)/$F31) ->  | GG13: =+((((1+$CC$13*$C$5)*($I32-$I$59))+$C$5*($J33-$J$59-(($B$59-$B31-$CC$13)*$I$59))+$C$6*(1+($B$59-$B31)*$C$5)*$F$59)/$F32)-$Y30*(($G32-$G35)/$F32) ->  | GH13: =+((((1+$CC$13*$C$5)*($I33-$I$59))+$C$5*($J34-$J$59-(($B$59-$B32-$CC$13)*$I$59))+$C$6*(1+($B$59-$B32)*$C$5)*$F$59)/$F33)-$Y31*(($G33-$G36)/$F33) ->  | GI13: =+((((1+$CC$13*$C$5)*($I34-$I$59))+$C$5*($J35-$J$59-(($B$59-$B33-$CC$13)*$I$59))+$C$6*(1+($B$59-$B33)*$C$5)*$F$59)/$F34)-$Y32*(($G34-$G37)/$F34) ->  | GJ13: =+((((1+$CC$13*$C$5)*($I35-$I$59))+$C$5*($J36-$J$59-(($B$59-$B34-$CC$13)*$I$59))+$C$6*(1+($B$59-$B34)*$C$5)*$F$59)/$F35)-$Y33*(($G35-$G38)/$F35) ->  | GK13: =+((((1+$CC$13*$C$5)*($I36-$I$59))+$C$5*($J37-$J$59-(($B$59-$B35-$CC$13)*$I$59))+$C$6*(1+($B$59-$B35)*$C$5)*$F$59)/$F36)-$Y34*(($G36-$G39)/$F36) ->  | GL13: =+((((1+$CC$13*$C$5)*($I37-$I$59))+$C$5*($J38-$J$59-(($B$59-$B36-$CC$13)*$I$59))+$C$6*(1+($B$59-$B36)*$C$5)*$F$59)/$F37)-$Y35*(($G37-$G40)/$F37) ->  | GM13: =+((((1+$CC$13*$C$5)*($I38-$I$59))+$C$5*($J39-$J$59-(($B$59-$B37-$CC$13)*$I$59))+$C$6*(1+($B$59-$B37)*$C$5)*$F$59)/$F38)-$Y36*(($G38-$G41)/$F38) ->  | GN13: =+((((1+$CC$13*$C$5)*($I39-$I$59))+$C$5*($J40-$J$59-(($B$59-$B38-$CC$13)*$I$59))+$C$6*(1+($B$59-$B38)*$C$5)*$F$59)/$F39)-$Y37*(($G39-$G42)/$F39) ->  | GO13: =+((((1+$CC$13*$C$5)*($I40-$I$59))+$C$5*($J41-$J$59-(($B$59-$B39-$CC$13)*$I$59))+$C$6*(1+($B$59-$B39)*$C$5)*$F$59)/$F40)-$Y38*(($G40-$G43)/$F40) ->  | GP13: =+((((1+$CC$13*$C$5)*($I41-$I$59))+$C$5*($J42-$J$59-(($B$59-$B40-$CC$13)*$I$59))+$C$6*(1+($B$59-$B40)*$C$5)*$F$59)/$F41)-$Y39*(($G41-$G44)/$F41) ->  | GQ13: =+((((1+$CC$13*$C$5)*($I42-$I$59))+$C$5*($J43-$J$59-(($B$59-$B41-$CC$13)*$I$59))+$C$6*(1+($B$59-$B41)*$C$5)*$F$59)/$F42)-$Y40*(($G42-$G45)/$F42) ->  | GR13: =+((((1+$CC$13*$C$5)*($I43-$I$59))+$C$5*($J44-$J$59-(($B$59-$B42-$CC$13)*$I$59))+$C$6*(1+($B$59-$B42)*$C$5)*$F$59)/$F43)-$Y41*(($G43-$G46)/$F43) ->  | GS13: =+((((1+$CC$13*$C$5)*($I44-$I$59))+$C$5*($J45-$J$59-(($B$59-$B43-$CC$13)*$I$59))+$C$6*(1+($B$59-$B43)*$C$5)*$F$59)/$F44)-$Y42*(($G44-$G47)/$F44) ->  | GT13: =+((((1+$CC$13*$C$5)*($I45-$I$59))+$C$5*($J46-$J$59-(($B$59-$B44-$CC$13)*$I$59))+$C$6*(1+($B$59-$B44)*$C$5)*$F$59)/$F45)-$Y43*(($G45-$G48)/$F45) ->  | GU13: =+((((1+$CC$13*$C$5)*($I46-$I$59))+$C$5*($J47-$J$59-(($B$59-$B45-$CC$13)*$I$59))+$C$6*(1+($B$59-$B45)*$C$5)*$F$59)/$F46)-$Y44*(($G46-$G49)/$F46) ->  | GV13: =+((((1+$CC$13*$C$5)*($I47-$I$59))+$C$5*($J48-$J$59-(($B$59-$B46-$CC$13)*$I$59))+$C$6*(1+($B$59-$B46)*$C$5)*$F$59)/$F47)-$Y45*(($G47-$G50)/$F47) ->  | GW13: =+((((1+$CC$13*$C$5)*($I48-$I$59))+$C$5*($J49-$J$59-(($B$59-$B47-$CC$13)*$I$59))+$C$6*(1+($B$59-$B47)*$C$5)*$F$59)/$F48)-$Y46*(($G48-$G51)/$F48) ->  | GX13: =+((((1+$CC$13*$C$5)*($I49-$I$59))+$C$5*($J50-$J$59-(($B$59-$B48-$CC$13)*$I$59))+$C$6*(1+($B$59-$B48)*$C$5)*$F$59)/$F49)-$Y47*(($G49-$G52)/$F49) ->  | GY13: =+((((1+$CC$13*$C$5)*($I50-$I$59))+$C$5*($J51-$J$59-(($B$59-$B49-$CC$13)*$I$59))+$C$6*(1+($B$59-$B49)*$C$5)*$F$59)/$F50)-$Y48*(($G50-$G53)/$F50) ->  | GZ13: =+((((1+$CC$13*$C$5)*($I51-$I$59))+$C$5*($J52-$J$59-(($B$59-$B50-$CC$13)*$I$59))+$C$6*(1+($B$59-$B50)*$C$5)*$F$59)/$F51)-$Y49*(($G51-$G54)/$F51) ->  | HA13: =+((((1+$CC$13*$C$5)*($I52-$I$59))+$C$5*($J53-$J$59-(($B$59-$B51-$CC$13)*$I$59))+$C$6*(1+($B$59-$B51)*$C$5)*$F$59)/$F52)-$Y50*(($G52-$G55)/$F52) ->  | HB13: =+((((1+$CC$13*$C$5)*($I53-$I$59))+$C$5*($J54-$J$59-(($B$59-$B52-$CC$13)*$I$59))+$C$6*(1+($B$59-$B52)*$C$5)*$F$59)/$F53)-$Y51*(($G53-$G56)/$F53) ->  | HC13: =+((((1+$CC$13*$C$5)*($I54-$I$59))+$C$5*($J55-$J$59-(($B$59-$B53-$CC$13)*$I$59))+$C$6*(1+($B$59-$B53)*$C$5)*$F$59)/$F54)-$Y52*(($G54-$G57)/$F54) ->  | HD13: =+((((1+$CC$13*$C$5)*($I55-$I$59))+$C$5*($J56-$J$59-(($B$59-$B54-$CC$13)*$I$59))+$C$6*(1+($B$59-$B54)*$C$5)*$F$59)/$F55)-$Y53*(($G55-$G58)/$F55) ->  | HE13: =+((((1+$CC$13*$C$5)*($I56-$I$59))+$C$5*($J57-$J$59-(($B$59-$B55-$CC$13)*$I$59))+$C$6*(1+($B$59-$B55)*$C$5)*$F$59)/$F56)-$Y54*(($G56-$G59)/$F56) ->  | HG13: 2 | HH13: =+((((1+$AK$13*$C$5)*($I14-$I$54))+$C$5*($J15-$J$54-(($B$54-$B13-$AK$13)*$I$54))+$C$6*(1+($B$54-$B13)*$C$5)*$F$54)/$F14)-$Z12*(($G14-$G$54)/$F14) ->  | HI13: =+((((1+$AK$13*$C$5)*($I15-$I$54))+$C$5*($J16-$J$54-(($B$54-$B14-$AK$13)*$I$54))+$C$6*(1+($B$54-$B14)*$C$5)*$F$54)/$F15)-$Z13*(($G15-$G$54)/$F15) ->  | HJ13: =+((((1+$AK$13*$C$5)*($I16-$I$54))+$C$5*($J17-$J$54-(($B$54-$B15-$AK$13)*$I$54))+$C$6*(1+($B$54-$B15)*$C$5)*$F$54)/$F16)-$Z14*(($G16-$G$54)/$F16) ->  | HK13: =+((((1+$AK$13*$C$5)*($I17-$I$54))+$C$5*($J18-$J$54-(($B$54-$B16-$AK$13)*$I$54))+$C$6*(1+($B$54-$B16)*$C$5)*$F$54)/$F17)-$Z15*(($G17-$G$54)/$F17) ->  | HL13: =+((((1+$AK$13*$C$5)*($I18-$I$54))+$C$5*($J19-$J$54-(($B$54-$B17-$AK$13)*$I$54))+$C$6*(1+($B$54-$B17)*$C$5)*$F$54)/$F18)-$Z16*(($G18-$G$54)/$F18) ->  | HM13: =+((((1+$AK$13*$C$5)*($I19-$I$54))+$C$5*($J20-$J$54-(($B$54-$B18-$AK$13)*$I$54))+$C$6*(1+($B$54-$B18)*$C$5)*$F$54)/$F19)-$Z17*(($G19-$G$54)/$F19) ->  | HN13: =+((((1+$AK$13*$C$5)*($I20-$I$54))+$C$5*($J21-$J$54-(($B$54-$B19-$AK$13)*$I$54))+$C$6*(1+($B$54-$B19)*$C$5)*$F$54)/$F20)-$Z18*(($G20-$G$54)/$F20) ->  | HO13: =+((((1+$AK$13*$C$5)*($I21-$I$54))+$C$5*($J22-$J$54-(($B$54-$B20-$AK$13)*$I$54))+$C$6*(1+($B$54-$B20)*$C$5)*$F$54)/$F21)-$Z19*(($G21-$G$54)/$F21) ->  | HP13: =+((((1+$AK$13*$C$5)*($I22-$I$54))+$C$5*($J23-$J$54-(($B$54-$B21-$AK$13)*$I$54))+$C$6*(1+($B$54-$B21)*$C$5)*$F$54)/$F22)-$Z20*(($G22-$G$54)/$F22) ->  | HQ13: =+((((1+$AK$13*$C$5)*($I23-$I$54))+$C$5*($J24-$J$54-(($B$54-$B22-$AK$13)*$I$54))+$C$6*(1+($B$54-$B22)*$C$5)*$F$54)/$F23)-$Z21*(($G23-$G$54)/$F23) ->  | HR13: =+((((1+$AK$13*$C$5)*($I24-$I$54))+$C$5*($J25-$J$54-(($B$54-$B23-$AK$13)*$I$54))+$C$6*(1+($B$54-$B23)*$C$5)*$F$54)/$F24)-$Z22*(($G24-$G$54)/$F24) ->  | HS13: =+((((1+$AK$13*$C$5)*($I25-$I$54))+$C$5*($J26-$J$54-(($B$54-$B24-$AK$13)*$I$54))+$C$6*(1+($B$54-$B24)*$C$5)*$F$54)/$F25)-$Z23*(($G25-$G$54)/$F25) ->  | HT13: =+((((1+$AK$13*$C$5)*($I26-$I$54))+$C$5*($J27-$J$54-(($B$54-$B25-$AK$13)*$I$54))+$C$6*(1+($B$54-$B25)*$C$5)*$F$54)/$F26)-$Z24*(($G26-$G$54)/$F26) ->  | HU13: =+((((1+$AK$13*$C$5)*($I27-$I$54))+$C$5*($J28-$J$54-(($B$54-$B26-$AK$13)*$I$54))+$C$6*(1+($B$54-$B26)*$C$5)*$F$54)/$F27)-$Z25*(($G27-$G$54)/$F27) ->  | HV13: =+((((1+$AK$13*$C$5)*($I28-$I$54))+$C$5*($J29-$J$54-(($B$54-$B27-$AK$13)*$I$54))+$C$6*(1+($B$54-$B27)*$C$5)*$F$54)/$F28)-$Z26*(($G28-$G$54)/$F28) ->  | HW13: =+((((1+$AK$13*$C$5)*($I29-$I$54))+$C$5*($J30-$J$54-(($B$54-$B28-$AK$13)*$I$54))+$C$6*(1+($B$54-$B28)*$C$5)*$F$54)/$F29)-$Z27*(($G29-$G$54)/$F29) ->  | HX13: =+((((1+$AK$13*$C$5)*($I30-$I$54))+$C$5*($J31-$J$54-(($B$54-$B29-$AK$13)*$I$54))+$C$6*(1+($B$54-$B29)*$C$5)*$F$54)/$F30)-$Z28*(($G30-$G$54)/$F30) ->  | HY13: =+((((1+$AK$13*$C$5)*($I31-$I$54))+$C$5*($J32-$J$54-(($B$54-$B30-$AK$13)*$I$54))+$C$6*(1+($B$54-$B30)*$C$5)*$F$54)/$F31)-$Z29*(($G31-$G$54)/$F31) ->  | HZ13: =+((((1+$AK$13*$C$5)*($I32-$I$54))+$C$5*($J33-$J$54-(($B$54-$B31-$AK$13)*$I$54))+$C$6*(1+($B$54-$B31)*$C$5)*$F$54)/$F32)-$Z30*(($G32-$G$54)/$F32) ->  | IA13: =+((((1+$AK$13*$C$5)*($I33-$I$54))+$C$5*($J34-$J$54-(($B$54-$B32-$AK$13)*$I$54))+$C$6*(1+($B$54-$B32)*$C$5)*$F$54)/$F33)-$Z31*(($G33-$G$54)/$F33) ->  | IB13: =+((((1+$AK$13*$C$5)*($I34-$I$54))+$C$5*($J35-$J$54-(($B$54-$B33-$AK$13)*$I$54))+$C$6*(1+($B$54-$B33)*$C$5)*$F$54)/$F34)-$Z32*(($G34-$G$54)/$F34) ->  | IC13: =+((((1+$AK$13*$C$5)*($I35-$I$54))+$C$5*($J36-$J$54-(($B$54-$B34-$AK$13)*$I$54))+$C$6*(1+($B$54-$B34)*$C$5)*$F$54)/$F35)-$Z33*(($G35-$G$54)/$F35) ->  | ID13: =+((((1+$AK$13*$C$5)*($I36-$I$54))+$C$5*($J37-$J$54-(($B$54-$B35-$AK$13)*$I$54))+$C$6*(1+($B$54-$B35)*$C$5)*$F$54)/$F36)-$Z34*(($G36-$G$54)/$F36) ->  | IE13: =+((((1+$AK$13*$C$5)*($I37-$I$54))+$C$5*($J38-$J$54-(($B$54-$B36-$AK$13)*$I$54))+$C$6*(1+($B$54-$B36)*$C$5)*$F$54)/$F37)-$Z35*(($G37-$G$54)/$F37) ->  | IF13: =+((((1+$AK$13*$C$5)*($I38-$I$54))+$C$5*($J39-$J$54-(($B$54-$B37-$AK$13)*$I$54))+$C$6*(1+($B$54-$B37)*$C$5)*$F$54)/$F38)-$Z36*(($G38-$G$54)/$F38) ->  | IG13: =+((((1+$AK$13*$C$5)*($I39-$I$54))+$C$5*($J40-$J$54-(($B$54-$B38-$AK$13)*$I$54))+$C$6*(1+($B$54-$B38)*$C$5)*$F$54)/$F39)-$Z37*(($G39-$G$54)/$F39) ->  | IH13: =+((((1+$AK$13*$C$5)*($I40-$I$54))+$C$5*($J41-$J$54-(($B$54-$B39-$AK$13)*$I$54))+$C$6*(1+($B$54-$B39)*$C$5)*$F$54)/$F40)-$Z38*(($G40-$G$54)/$F40) ->  | II13: =+((((1+$AK$13*$C$5)*($I41-$I$54))+$C$5*($J42-$J$54-(($B$54-$B40-$AK$13)*$I$54))+$C$6*(1+($B$54-$B40)*$C$5)*$F$54)/$F41)-$Z39*(($G41-$G$54)/$F41) ->  | IJ13: =+((((1+$AK$13*$C$5)*($I42-$I$54))+$C$5*($J43-$J$54-(($B$54-$B41-$AK$13)*$I$54))+$C$6*(1+($B$54-$B41)*$C$5)*$F$54)/$F42)-$Z40*(($G42-$G$54)/$F42) ->  | IK13: =+((((1+$AK$13*$C$5)*($I43-$I$54))+$C$5*($J44-$J$54-(($B$54-$B42-$AK$13)*$I$54))+$C$6*(1+($B$54-$B42)*$C$5)*$F$54)/$F43)-$Z41*(($G43-$G$54)/$F43) ->  | IL13: =+((((1+$AK$13*$C$5)*($I44-$I$54))+$C$5*($J45-$J$54-(($B$54-$B43-$AK$13)*$I$54))+$C$6*(1+($B$54-$B43)*$C$5)*$F$54)/$F44)-$Z42*(($G44-$G$54)/$F44) ->  | IM13: =+((((1+$AK$13*$C$5)*($I45-$I$54))+$C$5*($J46-$J$54-(($B$54-$B44-$AK$13)*$I$54))+$C$6*(1+($B$54-$B44)*$C$5)*$F$54)/$F45)-$Z43*(($G45-$G$54)/$F45) ->  | IN13: =+((((1+$AK$13*$C$5)*($I46-$I$54))+$C$5*($J47-$J$54-(($B$54-$B45-$AK$13)*$I$54))+$C$6*(1+($B$54-$B45)*$C$5)*$F$54)/$F46)-$Z44*(($G46-$G$54)/$F46) ->  | IO13: =+((((1+$AK$13*$C$5)*($I47-$I$54))+$C$5*($J48-$J$54-(($B$54-$B46-$AK$13)*$I$54))+$C$6*(1+($B$54-$B46)*$C$5)*$F$54)/$F47)-$Z45*(($G47-$G$54)/$F47) ->  | IP13: =+((((1+$AK$13*$C$5)*($I48-$I$54))+$C$5*($J49-$J$54-(($B$54-$B47-$AK$13)*$I$54))+$C$6*(1+($B$54-$B47)*$C$5)*$F$54)/$F48)-$Z46*(($G48-$G$54)/$F48) ->  | IQ13: =+((((1+$AK$13*$C$5)*($I49-$I$54))+$C$5*($J50-$J$54-(($B$54-$B48-$AK$13)*$I$54))+$C$6*(1+($B$54-$B48)*$C$5)*$F$54)/$F49)-$Z47*(($G49-$G$54)/$F49) ->  | IR13: =+((((1+$AK$13*$C$5)*($I50-$I$54))+$C$5*($J51-$J$54-(($B$54-$B49-$AK$13)*$I$54))+$C$6*(1+($B$54-$B49)*$C$5)*$F$54)/$F50)-$Z48*(($G50-$G$54)/$F50) ->  | IS13: =+((((1+$AK$13*$C$5)*($I51-$I$54))+$C$5*($J52-$J$54-(($B$54-$B50-$AK$13)*$I$54))+$C$6*(1+($B$54-$B50)*$C$5)*$F$54)/$F51)-$Z49*(($G51-$G$54)/$F51) ->  | IT13: =+((((1+$AK$13*$C$5)*($I52-$I$54))+$C$5*($J53-$J$54-(($B$54-$B51-$AK$13)*$I$54))+$C$6*(1+($B$54-$B51)*$C$5)*$F$54)/$F52)-$Z50*(($G52-$G$54)/$F52) ->  | IU13: =+((((1+$AK$13*$C$5)*($I53-$I$54))+$C$5*($J54-$J$54-(($B$54-$B52-$AK$13)*$I$54))+$C$6*(1+($B$54-$B52)*$C$5)*$F$54)/$F53)-$Z51*(($G53-$G$54)/$F53) ->  | IV13: =+((((1+$AK$13*$C$5)*($I54-$I$54))+$C$5*($J55-$J$54-(($B$54-$B53-$AK$13)*$I$54))+$C$6*(1+($B$54-$B53)*$C$5)*$F$54)/$F54)-$Z52*(($G54-$G$54)/$F54) ->  | IY13: 2 | IZ13: =+((((1+$CC$13*$C$5)*($I14-$I$59))+$C$5*($J15-$J$59-(($B$59-$B13-$CC$13)*$I$59))+$C$6*(1+($B$59-$B13)*$C$5)*$F$59)/$F14)-$AA12*(($G14-$G$59)/$F14) ->  | JA13: =+((((1+$CC$13*$C$5)*($I15-$I$59))+$C$5*($J16-$J$59-(($B$59-$B14-$CC$13)*$I$59))+$C$6*(1+($B$59-$B14)*$C$5)*$F$59)/$F15)-$AA13*(($G15-$G$59)/$F15) ->  | JB13: =+((((1+$CC$13*$C$5)*($I16-$I$59))+$C$5*($J17-$J$59-(($B$59-$B15-$CC$13)*$I$59))+$C$6*(1+($B$59-$B15)*$C$5)*$F$59)/$F16)-$AA14*(($G16-$G$59)/$F16) ->  | JC13: =+((((1+$CC$13*$C$5)*($I17-$I$59))+$C$5*($J18-$J$59-(($B$59-$B16-$CC$13)*$I$59))+$C$6*(1+($B$59-$B16)*$C$5)*$F$59)/$F17)-$AA15*(($G17-$G$59)/$F17) ->  | JD13: =+((((1+$CC$13*$C$5)*($I18-$I$59))+$C$5*($J19-$J$59-(($B$59-$B17-$CC$13)*$I$59))+$C$6*(1+($B$59-$B17)*$C$5)*$F$59)/$F18)-$AA16*(($G18-$G$59)/$F18) ->  | JE13: =+((((1+$CC$13*$C$5)*($I19-$I$59))+$C$5*($J20-$J$59-(($B$59-$B18-$CC$13)*$I$59))+$C$6*(1+($B$59-$B18)*$C$5)*$F$59)/$F19)-$AA17*(($G19-$G$59)/$F19) ->  | JF13: =+((((1+$CC$13*$C$5)*($I20-$I$59))+$C$5*($J21-$J$59-(($B$59-$B19-$CC$13)*$I$59))+$C$6*(1+($B$59-$B19)*$C$5)*$F$59)/$F20)-$AA18*(($G20-$G$59)/$F20) ->  | JG13: =+((((1+$CC$13*$C$5)*($I21-$I$59))+$C$5*($J22-$J$59-(($B$59-$B20-$CC$13)*$I$59))+$C$6*(1+($B$59-$B20)*$C$5)*$F$59)/$F21)-$AA19*(($G21-$G$59)/$F21) ->  | JH13: =+((((1+$CC$13*$C$5)*($I22-$I$59))+$C$5*($J23-$J$59-(($B$59-$B21-$CC$13)*$I$59))+$C$6*(1+($B$59-$B21)*$C$5)*$F$59)/$F22)-$AA20*(($G22-$G$59)/$F22) ->  | JI13: =+((((1+$CC$13*$C$5)*($I23-$I$59))+$C$5*($J24-$J$59-(($B$59-$B22-$CC$13)*$I$59))+$C$6*(1+($B$59-$B22)*$C$5)*$F$59)/$F23)-$AA21*(($G23-$G$59)/$F23) ->  | JJ13: =+((((1+$CC$13*$C$5)*($I24-$I$59))+$C$5*($J25-$J$59-(($B$59-$B23-$CC$13)*$I$59))+$C$6*(1+($B$59-$B23)*$C$5)*$F$59)/$F24)-$AA22*(($G24-$G$59)/$F24) ->  | JK13: =+((((1+$CC$13*$C$5)*($I25-$I$59))+$C$5*($J26-$J$59-(($B$59-$B24-$CC$13)*$I$59))+$C$6*(1+($B$59-$B24)*$C$5)*$F$59)/$F25)-$AA23*(($G25-$G$59)/$F25) ->  | JL13: =+((((1+$CC$13*$C$5)*($I26-$I$59))+$C$5*($J27-$J$59-(($B$59-$B25-$CC$13)*$I$59))+$C$6*(1+($B$59-$B25)*$C$5)*$F$59)/$F26)-$AA24*(($G26-$G$59)/$F26) ->  | JM13: =+((((1+$CC$13*$C$5)*($I27-$I$59))+$C$5*($J28-$J$59-(($B$59-$B26-$CC$13)*$I$59))+$C$6*(1+($B$59-$B26)*$C$5)*$F$59)/$F27)-$AA25*(($G27-$G$59)/$F27) ->  | JN13: =+((((1+$CC$13*$C$5)*($I28-$I$59))+$C$5*($J29-$J$59-(($B$59-$B27-$CC$13)*$I$59))+$C$6*(1+($B$59-$B27)*$C$5)*$F$59)/$F28)-$AA26*(($G28-$G$59)/$F28) ->  | JO13: =+((((1+$CC$13*$C$5)*($I29-$I$59))+$C$5*($J30-$J$59-(($B$59-$B28-$CC$13)*$I$59))+$C$6*(1+($B$59-$B28)*$C$5)*$F$59)/$F29)-$AA27*(($G29-$G$59)/$F29) ->  | JP13: =+((((1+$CC$13*$C$5)*($I30-$I$59))+$C$5*($J31-$J$59-(($B$59-$B29-$CC$13)*$I$59))+$C$6*(1+($B$59-$B29)*$C$5)*$F$59)/$F30)-$AA28*(($G30-$G$59)/$F30) ->  | JQ13: =+((((1+$CC$13*$C$5)*($I31-$I$59))+$C$5*($J32-$J$59-(($B$59-$B30-$CC$13)*$I$59))+$C$6*(1+($B$59-$B30)*$C$5)*$F$59)/$F31)-$AA29*(($G31-$G$59)/$F31) ->  | JR13: =+((((1+$CC$13*$C$5)*($I32-$I$59))+$C$5*($J33-$J$59-(($B$59-$B31-$CC$13)*$I$59))+$C$6*(1+($B$59-$B31)*$C$5)*$F$59)/$F32)-$AA30*(($G32-$G$59)/$F32) ->  | JS13: =+((((1+$CC$13*$C$5)*($I33-$I$59))+$C$5*($J34-$J$59-(($B$59-$B32-$CC$13)*$I$59))+$C$6*(1+($B$59-$B32)*$C$5)*$F$59)/$F33)-$AA31*(($G33-$G$59)/$F33) ->  | JT13: =+((((1+$CC$13*$C$5)*($I34-$I$59))+$C$5*($J35-$J$59-(($B$59-$B33-$CC$13)*$I$59))+$C$6*(1+($B$59-$B33)*$C$5)*$F$59)/$F34)-$AA32*(($G34-$G$59)/$F34) ->  | JU13: =+((((1+$CC$13*$C$5)*($I35-$I$59))+$C$5*($J36-$J$59-(($B$59-$B34-$CC$13)*$I$59))+$C$6*(1+($B$59-$B34)*$C$5)*$F$59)/$F35)-$AA33*(($G35-$G$59)/$F35) ->  | JV13: =+((((1+$CC$13*$C$5)*($I36-$I$59))+$C$5*($J37-$J$59-(($B$59-$B35-$CC$13)*$I$59))+$C$6*(1+($B$59-$B35)*$C$5)*$F$59)/$F36)-$AA34*(($G36-$G$59)/$F36) ->  | JW13: =+((((1+$CC$13*$C$5)*($I37-$I$59))+$C$5*($J38-$J$59-(($B$59-$B36-$CC$13)*$I$59))+$C$6*(1+($B$59-$B36)*$C$5)*$F$59)/$F37)-$AA35*(($G37-$G$59)/$F37) ->  | JX13: =+((((1+$CC$13*$C$5)*($I38-$I$59))+$C$5*($J39-$J$59-(($B$59-$B37-$CC$13)*$I$59))+$C$6*(1+($B$59-$B37)*$C$5)*$F$59)/$F38)-$AA36*(($G38-$G$59)/$F38) ->  | JY13: =+((((1+$CC$13*$C$5)*($I39-$I$59))+$C$5*($J40-$J$59-(($B$59-$B38-$CC$13)*$I$59))+$C$6*(1+($B$59-$B38)*$C$5)*$F$59)/$F39)-$AA37*(($G39-$G$59)/$F39) ->  | JZ13: =+((((1+$CC$13*$C$5)*($I40-$I$59))+$C$5*($J41-$J$59-(($B$59-$B39-$CC$13)*$I$59))+$C$6*(1+($B$59-$B39)*$C$5)*$F$59)/$F40)-$AA38*(($G40-$G$59)/$F40) ->  | KA13: =+((((1+$CC$13*$C$5)*($I41-$I$59))+$C$5*($J42-$J$59-(($B$59-$B40-$CC$13)*$I$59))+$C$6*(1+($B$59-$B40)*$C$5)*$F$59)/$F41)-$AA39*(($G41-$G$59)/$F41) ->  | KB13: =+((((1+$CC$13*$C$5)*($I42-$I$59))+$C$5*($J43-$J$59-(($B$59-$B41-$CC$13)*$I$59))+$C$6*(1+($B$59-$B41)*$C$5)*$F$59)/$F42)-$AA40*(($G42-$G$59)/$F42) ->  | KC13: =+((((1+$CC$13*$C$5)*($I43-$I$59))+$C$5*($J44-$J$59-(($B$59-$B42-$CC$13)*$I$59))+$C$6*(1+($B$59-$B42)*$C$5)*$F$59)/$F43)-$AA41*(($G43-$G$59)/$F43) ->  | KD13: =+((((1+$CC$13*$C$5)*($I44-$I$59))+$C$5*($J45-$J$59-(($B$59-$B43-$CC$13)*$I$59))+$C$6*(1+($B$59-$B43)*$C$5)*$F$59)/$F44)-$AA42*(($G44-$G$59)/$F44) ->  | KE13: =+((((1+$CC$13*$C$5)*($I45-$I$59))+$C$5*($J46-$J$59-(($B$59-$B44-$CC$13)*$I$59))+$C$6*(1+($B$59-$B44)*$C$5)*$F$59)/$F45)-$AA43*(($G45-$G$59)/$F45) ->  | KF13: =+((((1+$CC$13*$C$5)*($I46-$I$59))+$C$5*($J47-$J$59-(($B$59-$B45-$CC$13)*$I$59))+$C$6*(1+($B$59-$B45)*$C$5)*$F$59)/$F46)-$AA44*(($G46-$G$59)/$F46) ->  | KG13: =+((((1+$CC$13*$C$5)*($I47-$I$59))+$C$5*($J48-$J$59-(($B$59-$B46-$CC$13)*$I$59))+$C$6*(1+($B$59-$B46)*$C$5)*$F$59)/$F47)-$AA45*(($G47-$G$59)/$F47) ->  | KH13: =+((((1+$CC$13*$C$5)*($I48-$I$59))+$C$5*($J49-$J$59-(($B$59-$B47-$CC$13)*$I$59))+$C$6*(1+($B$59-$B47)*$C$5)*$F$59)/$F48)-$AA46*(($G48-$G$59)/$F48) ->  | KI13: =+((((1+$CC$13*$C$5)*($I49-$I$59))+$C$5*($J50-$J$59-(($B$59-$B48-$CC$13)*$I$59))+$C$6*(1+($B$59-$B48)*$C$5)*$F$59)/$F49)-$AA47*(($G49-$G$59)/$F49) ->  | KJ13: =+((((1+$CC$13*$C$5)*($I50-$I$59))+$C$5*($J51-$J$59-(($B$59-$B49-$CC$13)*$I$59))+$C$6*(1+($B$59-$B49)*$C$5)*$F$59)/$F50)-$AA48*(($G50-$G$59)/$F50) ->  | KK13: =+((((1+$CC$13*$C$5)*($I51-$I$59))+$C$5*($J52-$J$59-(($B$59-$B50-$CC$13)*$I$59))+$C$6*(1+($B$59-$B50)*$C$5)*$F$59)/$F51)-$AA49*(($G51-$G$59)/$F51) ->  | KL13: =+((((1+$CC$13*$C$5)*($I52-$I$59))+$C$5*($J53-$J$59-(($B$59-$B51-$CC$13)*$I$59))+$C$6*(1+($B$59-$B51)*$C$5)*$F$59)/$F52)-$AA50*(($G52-$G$59)/$F52) ->  | KM13: =+((((1+$CC$13*$C$5)*($I53-$I$59))+$C$5*($J54-$J$59-(($B$59-$B52-$CC$13)*$I$59))+$C$6*(1+($B$59-$B52)*$C$5)*$F$59)/$F53)-$AA51*(($G53-$G$59)/$F53) ->  | KN13: =+((((1+$CC$13*$C$5)*($I54-$I$59))+$C$5*($J55-$J$59-(($B$59-$B53-$CC$13)*$I$59))+$C$6*(1+($B$59-$B53)*$C$5)*$F$59)/$F54)-$AA52*(($G54-$G$59)/$F54) ->  | KO13: =+((((1+$CC$13*$C$5)*($I55-$I$59))+$C$5*($J56-$J$59-(($B$59-$B54-$CC$13)*$I$59))+$C$6*(1+($B$59-$B54)*$C$5)*$F$59)/$F55)-$AA53*(($G55-$G$59)/$F55) ->  | KP13: =+((((1+$CC$13*$C$5)*($I56-$I$59))+$C$5*($J57-$J$59-(($B$59-$B55-$CC$13)*$I$59))+$C$6*(1+($B$59-$B55)*$C$5)*$F$59)/$F56)-$AA54*(($G56-$G$59)/$F56) ->  | KQ13: =+((((1+$CC$13*$C$5)*($I57-$I$59))+$C$5*($J58-$J$59-(($B$59-$B56-$CC$13)*$I$59))+$C$6*(1+($B$59-$B56)*$C$5)*$F$59)/$F57)-$AA55*(($G57-$G$59)/$F57) ->  | KR13: =+((((1+$CC$13*$C$5)*($I58-$I$59))+$C$5*($J59-$J$59-(($B$59-$B57-$CC$13)*$I$59))+$C$6*(1+($B$59-$B57)*$C$5)*$F$59)/$F58)-$AA56*(($G58-$G$59)/$F58) ->  | KS13: =+((((1+$CC$13*$C$5)*($I59-$I$59))+$C$5*($J60-$J$59-(($B$59-$B58-$CC$13)*$I$59))+$C$6*(1+($B$59-$B58)*$C$5)*$F$59)/$F59)-$AA57*(($G59-$G$59)/$F59) -> 
B14: 20 | C14: 100000 | D14: =+C14-C15 -> 356 | E14: =1-(C15/C14) -> 0.00356 | F14: 34272.89633 | G14: =+SUM($F14:F$95) -> 594288.7756 | H14: 115.6507213 | I14: =+SUM($H14:H$95) -> 3291.017038 | J14: =+SUM(I14:$I$94) -> 99692.13641 | K14: =+SUM($G14:G$94) -> 9487262.806 | P14: 1 | Q14: =+($G14-$G19)/$F14 -> 4.474590068 | R14: =+($G14-$G$59)/$F14 -> 16.56286695 | S14: =+($G14-$G$54)/$F14 -> 16.128829 | U14: 20 | AC14: 20 | AK14: 3 | AL14: =+(((1+$AK$14*$C$5)*($I15-$I$54))+$C$5*($J16-$J$54-(($B$54-$B13-$AK$14)*$I$54))+$C$6*(1+($B$54-$B13)*$C$5)*$F$54)/$F15 ->  | AM14: =+(((1+$AK$14*$C$5)*($I16-$I$54))+$C$5*($J17-$J$54-(($B$54-$B14-$AK$14)*$I$54))+$C$6*(1+($B$54-$B14)*$C$5)*$F$54)/$F16 ->  | AN14: =+(((1+$AK$14*$C$5)*($I17-$I$54))+$C$5*($J18-$J$54-(($B$54-$B15-$AK$14)*$I$54))+$C$6*(1+($B$54-$B15)*$C$5)*$F$54)/$F17 ->  | AO14: =+(((1+$AK$14*$C$5)*($I18-$I$54))+$C$5*($J19-$J$54-(($B$54-$B16-$AK$14)*$I$54))+$C$6*(1+($B$54-$B16)*$C$5)*$F$54)/$F18 ->  | AP14: =+(((1+$AK$14*$C$5)*($I19-$I$54))+$C$5*($J20-$J$54-(($B$54-$B17-$AK$14)*$I$54))+$C$6*(1+($B$54-$B17)*$C$5)*$F$54)/$F19 ->  | AQ14: =+(((1+$AK$14*$C$5)*($I20-$I$54))+$C$5*($J21-$J$54-(($B$54-$B18-$AK$14)*$I$54))+$C$6*(1+($B$54-$B18)*$C$5)*$F$54)/$F20 ->  | AR14: =+(((1+$AK$14*$C$5)*($I21-$I$54))+$C$5*($J22-$J$54-(($B$54-$B19-$AK$14)*$I$54))+$C$6*(1+($B$54-$B19)*$C$5)*$F$54)/$F21 ->  | AS14: =+(((1+$AK$14*$C$5)*($I22-$I$54))+$C$5*($J23-$J$54-(($B$54-$B20-$AK$14)*$I$54))+$C$6*(1+($B$54-$B20)*$C$5)*$F$54)/$F22 ->  | AT14: =+(((1+$AK$14*$C$5)*($I23-$I$54))+$C$5*($J24-$J$54-(($B$54-$B21-$AK$14)*$I$54))+$C$6*(1+($B$54-$B21)*$C$5)*$F$54)/$F23 ->  | AU14: =+(((1+$AK$14*$C$5)*($I24-$I$54))+$C$5*($J25-$J$54-(($B$54-$B22-$AK$14)*$I$54))+$C$6*(1+($B$54-$B22)*$C$5)*$F$54)/$F24 ->  | AV14: =+(((1+$AK$14*$C$5)*($I25-$I$54))+$C$5*($J26-$J$54-(($B$54-$B23-$AK$14)*$I$54))+$C$6*(1+($B$54-$B23)*$C$5)*$F$54)/$F25 ->  | AW14: =+(((1+$AK$14*$C$5)*($I26-$I$54))+$C$5*($J27-$J$54-(($B$54-$B24-$AK$14)*$I$54))+$C$6*(1+($B$54-$B24)*$C$5)*$F$54)/$F26 ->  | AX14: =+(((1+$AK$14*$C$5)*($I27-$I$54))+$C$5*($J28-$J$54-(($B$54-$B25-$AK$14)*$I$54))+$C$6*(1+($B$54-$B25)*$C$5)*$F$54)/$F27 ->  | AY14: =+(((1+$AK$14*$C$5)*($I28-$I$54))+$C$5*($J29-$J$54-(($B$54-$B26-$AK$14)*$I$54))+$C$6*(1+($B$54-$B26)*$C$5)*$F$54)/$F28 ->  | AZ14: =+(((1+$AK$14*$C$5)*($I29-$I$54))+$C$5*($J30-$J$54-(($B$54-$B27-$AK$14)*$I$54))+$C$6*(1+($B$54-$B27)*$C$5)*$F$54)/$F29 ->  | BA14: =+(((1+$AK$14*$C$5)*($I30-$I$54))+$C$5*($J31-$J$54-(($B$54-$B28-$AK$14)*$I$54))+$C$6*(1+($B$54-$B28)*$C$5)*$F$54)/$F30 ->  | BB14: =+(((1+$AK$14*$C$5)*($I31-$I$54))+$C$5*($J32-$J$54-(($B$54-$B29-$AK$14)*$I$54))+$C$6*(1+($B$54-$B29)*$C$5)*$F$54)/$F31 ->  | BC14: =+(((1+$AK$14*$C$5)*($I32-$I$54))+$C$5*($J33-$J$54-(($B$54-$B30-$AK$14)*$I$54))+$C$6*(1+($B$54-$B30)*$C$5)*$F$54)/$F32 ->  | BD14: =+(((1+$AK$14*$C$5)*($I33-$I$54))+$C$5*($J34-$J$54-(($B$54-$B31-$AK$14)*$I$54))+$C$6*(1+($B$54-$B31)*$C$5)*$F$54)/$F33 ->  | BE14: =+(((1+$AK$14*$C$5)*($I34-$I$54))+$C$5*($J35-$J$54-(($B$54-$B32-$AK$14)*$I$54))+$C$6*(1+($B$54-$B32)*$C$5)*$F$54)/$F34 ->  | BF14: =+(((1+$AK$14*$C$5)*($I35-$I$54))+$C$5*($J36-$J$54-(($B$54-$B33-$AK$14)*$I$54))+$C$6*(1+($B$54-$B33)*$C$5)*$F$54)/$F35 ->  | BG14: =+(((1+$AK$14*$C$5)*($I36-$I$54))+$C$5*($J37-$J$54-(($B$54-$B34-$AK$14)*$I$54))+$C$6*(1+($B$54-$B34)*$C$5)*$F$54)/$F36 ->  | BH14: =+(((1+$AK$14*$C$5)*($I37-$I$54))+$C$5*($J38-$J$54-(($B$54-$B35-$AK$14)*$I$54))+$C$6*(1+($B$54-$B35)*$C$5)*$F$54)/$F37 ->  | BI14: =+(((1+$AK$14*$C$5)*($I38-$I$54))+$C$5*($J39-$J$54-(($B$54-$B36-$AK$14)*$I$54))+$C$6*(1+($B$54-$B36)*$C$5)*$F$54)/$F38 ->  | BJ14: =+(((1+$AK$14*$C$5)*($I39-$I$54))+$C$5*($J40-$J$54-(($B$54-$B37-$AK$14)*$I$54))+$C$6*(1+($B$54-$B37)*$C$5)*$F$54)/$F39 ->  | BK14: =+(((1+$AK$14*$C$5)*($I40-$I$54))+$C$5*($J41-$J$54-(($B$54-$B38-$AK$14)*$I$54))+$C$6*(1+($B$54-$B38)*$C$5)*$F$54)/$F40 ->  | BL14: =+(((1+$AK$14*$C$5)*($I41-$I$54))+$C$5*($J42-$J$54-(($B$54-$B39-$AK$14)*$I$54))+$C$6*(1+($B$54-$B39)*$C$5)*$F$54)/$F41 ->  | BM14: =+(((1+$AK$14*$C$5)*($I42-$I$54))+$C$5*($J43-$J$54-(($B$54-$B40-$AK$14)*$I$54))+$C$6*(1+($B$54-$B40)*$C$5)*$F$54)/$F42 ->  | BN14: =+(((1+$AK$14*$C$5)*($I43-$I$54))+$C$5*($J44-$J$54-(($B$54-$B41-$AK$14)*$I$54))+$C$6*(1+($B$54-$B41)*$C$5)*$F$54)/$F43 ->  | BO14: =+(((1+$AK$14*$C$5)*($I44-$I$54))+$C$5*($J45-$J$54-(($B$54-$B42-$AK$14)*$I$54))+$C$6*(1+($B$54-$B42)*$C$5)*$F$54)/$F44 ->  | BP14: =+(((1+$AK$14*$C$5)*($I45-$I$54))+$C$5*($J46-$J$54-(($B$54-$B43-$AK$14)*$I$54))+$C$6*(1+($B$54-$B43)*$C$5)*$F$54)/$F45 ->  | BQ14: =+(((1+$AK$14*$C$5)*($I46-$I$54))+$C$5*($J47-$J$54-(($B$54-$B44-$AK$14)*$I$54))+$C$6*(1+($B$54-$B44)*$C$5)*$F$54)/$F46 ->  | BR14: =+(((1+$AK$14*$C$5)*($I47-$I$54))+$C$5*($J48-$J$54-(($B$54-$B45-$AK$14)*$I$54))+$C$6*(1+($B$54-$B45)*$C$5)*$F$54)/$F47 ->  | BS14: =+(((1+$AK$14*$C$5)*($I48-$I$54))+$C$5*($J49-$J$54-(($B$54-$B46-$AK$14)*$I$54))+$C$6*(1+($B$54-$B46)*$C$5)*$F$54)/$F48 ->  | BT14: =+(((1+$AK$14*$C$5)*($I49-$I$54))+$C$5*($J50-$J$54-(($B$54-$B47-$AK$14)*$I$54))+$C$6*(1+($B$54-$B47)*$C$5)*$F$54)/$F49 ->  | BU14: =+(((1+$AK$14*$C$5)*($I50-$I$54))+$C$5*($J51-$J$54-(($B$54-$B48-$AK$14)*$I$54))+$C$6*(1+($B$54-$B48)*$C$5)*$F$54)/$F50 ->  | BV14: =+(((1+$AK$14*$C$5)*($I51-$I$54))+$C$5*($J52-$J$54-(($B$54-$B49-$AK$14)*$I$54))+$C$6*(1+($B$54-$B49)*$C$5)*$F$54)/$F51 ->  | BW14: =+(((1+$AK$14*$C$5)*($I52-$I$54))+$C$5*($J53-$J$54-(($B$54-$B50-$AK$14)*$I$54))+$C$6*(1+($B$54-$B50)*$C$5)*$F$54)/$F52 ->  | BX14: =+(((1+$AK$14*$C$5)*($I53-$I$54))+$C$5*($J54-$J$54-(($B$54-$B51-$AK$14)*$I$54))+$C$6*(1+($B$54-$B51)*$C$5)*$F$54)/$F53 ->  | BY14: =+(((1+$AK$14*$C$5)*($I54-$I$54))+$C$5*($J55-$J$54-(($B$54-$B52-$AK$14)*$I$54))+$C$6*(1+($B$54-$B52)*$C$5)*$F$54)/$F54 ->  | CC14: 3 | CD14: =+(((1+$CC$14*$C$5)*($I15-$I$59))+$C$5*($J16-$J$59-(($B$59-$B13-$CC$14)*$I$59))+$C$6*(1+($B$59-$B13)*$C$5)*$F$59)/$F15 ->  | CE14: =+(((1+$CC$14*$C$5)*($I16-$I$59))+$C$5*($J17-$J$59-(($B$59-$B14-$CC$14)*$I$59))+$C$6*(1+($B$59-$B14)*$C$5)*$F$59)/$F16 ->  | CF14: =+(((1+$CC$14*$C$5)*($I17-$I$59))+$C$5*($J18-$J$59-(($B$59-$B15-$CC$14)*$I$59))+$C$6*(1+($B$59-$B15)*$C$5)*$F$59)/$F17 ->  | CG14: =+(((1+$CC$14*$C$5)*($I18-$I$59))+$C$5*($J19-$J$59-(($B$59-$B16-$CC$14)*$I$59))+$C$6*(1+($B$59-$B16)*$C$5)*$F$59)/$F18 ->  | CH14: =+(((1+$CC$14*$C$5)*($I19-$I$59))+$C$5*($J20-$J$59-(($B$59-$B17-$CC$14)*$I$59))+$C$6*(1+($B$59-$B17)*$C$5)*$F$59)/$F19 ->  | CI14: =+(((1+$CC$14*$C$5)*($I20-$I$59))+$C$5*($J21-$J$59-(($B$59-$B18-$CC$14)*$I$59))+$C$6*(1+($B$59-$B18)*$C$5)*$F$59)/$F20 ->  | CJ14: =+(((1+$CC$14*$C$5)*($I21-$I$59))+$C$5*($J22-$J$59-(($B$59-$B19-$CC$14)*$I$59))+$C$6*(1+($B$59-$B19)*$C$5)*$F$59)/$F21 ->  | CK14: =+(((1+$CC$14*$C$5)*($I22-$I$59))+$C$5*($J23-$J$59-(($B$59-$B20-$CC$14)*$I$59))+$C$6*(1+($B$59-$B20)*$C$5)*$F$59)/$F22 ->  | CL14: =+(((1+$CC$14*$C$5)*($I23-$I$59))+$C$5*($J24-$J$59-(($B$59-$B21-$CC$14)*$I$59))+$C$6*(1+($B$59-$B21)*$C$5)*$F$59)/$F23 ->  | CM14: =+(((1+$CC$14*$C$5)*($I24-$I$59))+$C$5*($J25-$J$59-(($B$59-$B22-$CC$14)*$I$59))+$C$6*(1+($B$59-$B22)*$C$5)*$F$59)/$F24 ->  | CN14: =+(((1+$CC$14*$C$5)*($I25-$I$59))+$C$5*($J26-$J$59-(($B$59-$B23-$CC$14)*$I$59))+$C$6*(1+($B$59-$B23)*$C$5)*$F$59)/$F25 ->  | CO14: =+(((1+$CC$14*$C$5)*($I26-$I$59))+$C$5*($J27-$J$59-(($B$59-$B24-$CC$14)*$I$59))+$C$6*(1+($B$59-$B24)*$C$5)*$F$59)/$F26 ->  | CP14: =+(((1+$CC$14*$C$5)*($I27-$I$59))+$C$5*($J28-$J$59-(($B$59-$B25-$CC$14)*$I$59))+$C$6*(1+($B$59-$B25)*$C$5)*$F$59)/$F27 ->  | CQ14: =+(((1+$CC$14*$C$5)*($I28-$I$59))+$C$5*($J29-$J$59-(($B$59-$B26-$CC$14)*$I$59))+$C$6*(1+($B$59-$B26)*$C$5)*$F$59)/$F28 ->  | CR14: =+(((1+$CC$14*$C$5)*($I29-$I$59))+$C$5*($J30-$J$59-(($B$59-$B27-$CC$14)*$I$59))+$C$6*(1+($B$59-$B27)*$C$5)*$F$59)/$F29 ->  | CS14: =+(((1+$CC$14*$C$5)*($I30-$I$59))+$C$5*($J31-$J$59-(($B$59-$B28-$CC$14)*$I$59))+$C$6*(1+($B$59-$B28)*$C$5)*$F$59)/$F30 ->  | CT14: =+(((1+$CC$14*$C$5)*($I31-$I$59))+$C$5*($J32-$J$59-(($B$59-$B29-$CC$14)*$I$59))+$C$6*(1+($B$59-$B29)*$C$5)*$F$59)/$F31 ->  | CU14: =+(((1+$CC$14*$C$5)*($I32-$I$59))+$C$5*($J33-$J$59-(($B$59-$B30-$CC$14)*$I$59))+$C$6*(1+($B$59-$B30)*$C$5)*$F$59)/$F32 ->  | CV14: =+(((1+$CC$14*$C$5)*($I33-$I$59))+$C$5*($J34-$J$59-(($B$59-$B31-$CC$14)*$I$59))+$C$6*(1+($B$59-$B31)*$C$5)*$F$59)/$F33 ->  | CW14: =+(((1+$CC$14*$C$5)*($I34-$I$59))+$C$5*($J35-$J$59-(($B$59-$B32-$CC$14)*$I$59))+$C$6*(1+($B$59-$B32)*$C$5)*$F$59)/$F34 ->  | CX14: =+(((1+$CC$14*$C$5)*($I35-$I$59))+$C$5*($J36-$J$59-(($B$59-$B33-$CC$14)*$I$59))+$C$6*(1+($B$59-$B33)*$C$5)*$F$59)/$F35 ->  | CY14: =+(((1+$CC$14*$C$5)*($I36-$I$59))+$C$5*($J37-$J$59-(($B$59-$B34-$CC$14)*$I$59))+$C$6*(1+($B$59-$B34)*$C$5)*$F$59)/$F36 ->  | CZ14: =+(((1+$CC$14*$C$5)*($I37-$I$59))+$C$5*($J38-$J$59-(($B$59-$B35-$CC$14)*$I$59))+$C$6*(1+($B$59-$B35)*$C$5)*$F$59)/$F37 ->  | DA14: =+(((1+$CC$14*$C$5)*($I38-$I$59))+$C$5*($J39-$J$59-(($B$59-$B36-$CC$14)*$I$59))+$C$6*(1+($B$59-$B36)*$C$5)*$F$59)/$F38 ->  | DB14: =+(((1+$CC$14*$C$5)*($I39-$I$59))+$C$5*($J40-$J$59-(($B$59-$B37-$CC$14)*$I$59))+$C$6*(1+($B$59-$B37)*$C$5)*$F$59)/$F39 ->  | DC14: =+(((1+$CC$14*$C$5)*($I40-$I$59))+$C$5*($J41-$J$59-(($B$59-$B38-$CC$14)*$I$59))+$C$6*(1+($B$59-$B38)*$C$5)*$F$59)/$F40 ->  | DD14: =+(((1+$CC$14*$C$5)*($I41-$I$59))+$C$5*($J42-$J$59-(($B$59-$B39-$CC$14)*$I$59))+$C$6*(1+($B$59-$B39)*$C$5)*$F$59)/$F41 ->  | DE14: =+(((1+$CC$14*$C$5)*($I42-$I$59))+$C$5*($J43-$J$59-(($B$59-$B40-$CC$14)*$I$59))+$C$6*(1+($B$59-$B40)*$C$5)*$F$59)/$F42 ->  | DF14: =+(((1+$CC$14*$C$5)*($I43-$I$59))+$C$5*($J44-$J$59-(($B$59-$B41-$CC$14)*$I$59))+$C$6*(1+($B$59-$B41)*$C$5)*$F$59)/$F43 ->  | DG14: =+(((1+$CC$14*$C$5)*($I44-$I$59))+$C$5*($J45-$J$59-(($B$59-$B42-$CC$14)*$I$59))+$C$6*(1+($B$59-$B42)*$C$5)*$F$59)/$F44 ->  | DH14: =+(((1+$CC$14*$C$5)*($I45-$I$59))+$C$5*($J46-$J$59-(($B$59-$B43-$CC$14)*$I$59))+$C$6*(1+($B$59-$B43)*$C$5)*$F$59)/$F45 ->  | DI14: =+(((1+$CC$14*$C$5)*($I46-$I$59))+$C$5*($J47-$J$59-(($B$59-$B44-$CC$14)*$I$59))+$C$6*(1+($B$59-$B44)*$C$5)*$F$59)/$F46 ->  | DJ14: =+(((1+$CC$14*$C$5)*($I47-$I$59))+$C$5*($J48-$J$59-(($B$59-$B45-$CC$14)*$I$59))+$C$6*(1+($B$59-$B45)*$C$5)*$F$59)/$F47 ->  | DK14: =+(((1+$CC$14*$C$5)*($I48-$I$59))+$C$5*($J49-$J$59-(($B$59-$B46-$CC$14)*$I$59))+$C$6*(1+($B$59-$B46)*$C$5)*$F$59)/$F48 ->  | DL14: =+(((1+$CC$14*$C$5)*($I49-$I$59))+$C$5*($J50-$J$59-(($B$59-$B47-$CC$14)*$I$59))+$C$6*(1+($B$59-$B47)*$C$5)*$F$59)/$F49 ->  | DM14: =+(((1+$CC$14*$C$5)*($I50-$I$59))+$C$5*($J51-$J$59-(($B$59-$B48-$CC$14)*$I$59))+$C$6*(1+($B$59-$B48)*$C$5)*$F$59)/$F50 ->  | DN14: =+(((1+$CC$14*$C$5)*($I51-$I$59))+$C$5*($J52-$J$59-(($B$59-$B49-$CC$14)*$I$59))+$C$6*(1+($B$59-$B49)*$C$5)*$F$59)/$F51 ->  | DO14: =+(((1+$CC$14*$C$5)*($I52-$I$59))+$C$5*($J53-$J$59-(($B$59-$B50-$CC$14)*$I$59))+$C$6*(1+($B$59-$B50)*$C$5)*$F$59)/$F52 ->  | DP14: =+(((1+$CC$14*$C$5)*($I53-$I$59))+$C$5*($J54-$J$59-(($B$59-$B51-$CC$14)*$I$59))+$C$6*(1+($B$59-$B51)*$C$5)*$F$59)/$F53 ->  | DQ14: =+(((1+$CC$14*$C$5)*($I54-$I$59))+$C$5*($J55-$J$59-(($B$59-$B52-$CC$14)*$I$59))+$C$6*(1+($B$59-$B52)*$C$5)*$F$59)/$F54 ->  | DR14: =+(((1+$CC$14*$C$5)*($I55-$I$59))+$C$5*($J56-$J$59-(($B$59-$B53-$CC$14)*$I$59))+$C$6*(1+($B$59-$B53)*$C$5)*$F$59)/$F55 ->  | DS14: =+(((1+$CC$14*$C$5)*($I56-$I$59))+$C$5*($J57-$J$59-(($B$59-$B54-$CC$14)*$I$59))+$C$6*(1+($B$59-$B54)*$C$5)*$F$59)/$F56 ->  | DT14: =+(((1+$CC$14*$C$5)*($I57-$I$59))+$C$5*($J58-$J$59-(($B$59-$B55-$CC$14)*$I$59))+$C$6*(1+($B$59-$B55)*$C$5)*$F$59)/$F57 ->  | DU14: =+(((1+$CC$14*$C$5)*($I58-$I$59))+$C$5*($J59-$J$59-(($B$59-$B56-$CC$14)*$I$59))+$C$6*(1+($B$59-$B56)*$C$5)*$F$59)/$F58 ->  | DV14: =+(((1+$CC$14*$C$5)*($I59-$I$59))+$C$5*($J60-$J$59-(($B$59-$B57-$CC$14)*$I$59))+$C$6*(1+($B$59-$B57)*$C$5)*$F$59)/$F59 ->  | DZ14: 3 | EA14: =+((((1+$AK$14*$C$5)*($I15-$I$54))+$C$5*($J16-$J$54-(($B$54-$B13-$AK$14)*$I$54))+$C$6*(1+($B$54-$B13)*$C$5)*$F$54)/$F15)-$X12*(($G15-$G17)/$F15) ->  | EB14: =+((((1+$AK$14*$C$5)*($I16-$I$54))+$C$5*($J17-$J$54-(($B$54-$B14-$AK$14)*$I$54))+$C$6*(1+($B$54-$B14)*$C$5)*$F$54)/$F16)-$X13*(($G16-$G18)/$F16) ->  | EC14: =+((((1+$AK$14*$C$5)*($I17-$I$54))+$C$5*($J18-$J$54-(($B$54-$B15-$AK$14)*$I$54))+$C$6*(1+($B$54-$B15)*$C$5)*$F$54)/$F17)-$X14*(($G17-$G19)/$F17) ->  | ED14: =+((((1+$AK$14*$C$5)*($I18-$I$54))+$C$5*($J19-$J$54-(($B$54-$B16-$AK$14)*$I$54))+$C$6*(1+($B$54-$B16)*$C$5)*$F$54)/$F18)-$X15*(($G18-$G20)/$F18) ->  | EE14: =+((((1+$AK$14*$C$5)*($I19-$I$54))+$C$5*($J20-$J$54-(($B$54-$B17-$AK$14)*$I$54))+$C$6*(1+($B$54-$B17)*$C$5)*$F$54)/$F19)-$X16*(($G19-$G21)/$F19) ->  | EF14: =+((((1+$AK$14*$C$5)*($I20-$I$54))+$C$5*($J21-$J$54-(($B$54-$B18-$AK$14)*$I$54))+$C$6*(1+($B$54-$B18)*$C$5)*$F$54)/$F20)-$X17*(($G20-$G22)/$F20) ->  | EG14: =+((((1+$AK$14*$C$5)*($I21-$I$54))+$C$5*($J22-$J$54-(($B$54-$B19-$AK$14)*$I$54))+$C$6*(1+($B$54-$B19)*$C$5)*$F$54)/$F21)-$X18*(($G21-$G23)/$F21) ->  | EH14: =+((((1+$AK$14*$C$5)*($I22-$I$54))+$C$5*($J23-$J$54-(($B$54-$B20-$AK$14)*$I$54))+$C$6*(1+($B$54-$B20)*$C$5)*$F$54)/$F22)-$X19*(($G22-$G24)/$F22) ->  | EI14: =+((((1+$AK$14*$C$5)*($I23-$I$54))+$C$5*($J24-$J$54-(($B$54-$B21-$AK$14)*$I$54))+$C$6*(1+($B$54-$B21)*$C$5)*$F$54)/$F23)-$X20*(($G23-$G25)/$F23) ->  | EJ14: =+((((1+$AK$14*$C$5)*($I24-$I$54))+$C$5*($J25-$J$54-(($B$54-$B22-$AK$14)*$I$54))+$C$6*(1+($B$54-$B22)*$C$5)*$F$54)/$F24)-$X21*(($G24-$G26)/$F24) ->  | EK14: =+((((1+$AK$14*$C$5)*($I25-$I$54))+$C$5*($J26-$J$54-(($B$54-$B23-$AK$14)*$I$54))+$C$6*(1+($B$54-$B23)*$C$5)*$F$54)/$F25)-$X22*(($G25-$G27)/$F25) ->  | EL14: =+((((1+$AK$14*$C$5)*($I26-$I$54))+$C$5*($J27-$J$54-(($B$54-$B24-$AK$14)*$I$54))+$C$6*(1+($B$54-$B24)*$C$5)*$F$54)/$F26)-$X23*(($G26-$G28)/$F26) ->  | EM14: =+((((1+$AK$14*$C$5)*($I27-$I$54))+$C$5*($J28-$J$54-(($B$54-$B25-$AK$14)*$I$54))+$C$6*(1+($B$54-$B25)*$C$5)*$F$54)/$F27)-$X24*(($G27-$G29)/$F27) ->  | EN14: =+((((1+$AK$14*$C$5)*($I28-$I$54))+$C$5*($J29-$J$54-(($B$54-$B26-$AK$14)*$I$54))+$C$6*(1+($B$54-$B26)*$C$5)*$F$54)/$F28)-$X25*(($G28-$G30)/$F28) ->  | EO14: =+((((1+$AK$14*$C$5)*($I29-$I$54))+$C$5*($J30-$J$54-(($B$54-$B27-$AK$14)*$I$54))+$C$6*(1+($B$54-$B27)*$C$5)*$F$54)/$F29)-$X26*(($G29-$G31)/$F29) ->  | EP14: =+((((1+$AK$14*$C$5)*($I30-$I$54))+$C$5*($J31-$J$54-(($B$54-$B28-$AK$14)*$I$54))+$C$6*(1+($B$54-$B28)*$C$5)*$F$54)/$F30)-$X27*(($G30-$G32)/$F30) ->  | EQ14: =+((((1+$AK$14*$C$5)*($I31-$I$54))+$C$5*($J32-$J$54-(($B$54-$B29-$AK$14)*$I$54))+$C$6*(1+($B$54-$B29)*$C$5)*$F$54)/$F31)-$X28*(($G31-$G33)/$F31) ->  | ER14: =+((((1+$AK$14*$C$5)*($I32-$I$54))+$C$5*($J33-$J$54-(($B$54-$B30-$AK$14)*$I$54))+$C$6*(1+($B$54-$B30)*$C$5)*$F$54)/$F32)-$X29*(($G32-$G34)/$F32) ->  | ES14: =+((((1+$AK$14*$C$5)*($I33-$I$54))+$C$5*($J34-$J$54-(($B$54-$B31-$AK$14)*$I$54))+$C$6*(1+($B$54-$B31)*$C$5)*$F$54)/$F33)-$X30*(($G33-$G35)/$F33) ->  | ET14: =+((((1+$AK$14*$C$5)*($I34-$I$54))+$C$5*($J35-$J$54-(($B$54-$B32-$AK$14)*$I$54))+$C$6*(1+($B$54-$B32)*$C$5)*$F$54)/$F34)-$X31*(($G34-$G36)/$F34) ->  | EU14: =+((((1+$AK$14*$C$5)*($I35-$I$54))+$C$5*($J36-$J$54-(($B$54-$B33-$AK$14)*$I$54))+$C$6*(1+($B$54-$B33)*$C$5)*$F$54)/$F35)-$X32*(($G35-$G37)/$F35) ->  | EV14: =+((((1+$AK$14*$C$5)*($I36-$I$54))+$C$5*($J37-$J$54-(($B$54-$B34-$AK$14)*$I$54))+$C$6*(1+($B$54-$B34)*$C$5)*$F$54)/$F36)-$X33*(($G36-$G38)/$F36) ->  | EW14: =+((((1+$AK$14*$C$5)*($I37-$I$54))+$C$5*($J38-$J$54-(($B$54-$B35-$AK$14)*$I$54))+$C$6*(1+($B$54-$B35)*$C$5)*$F$54)/$F37)-$X34*(($G37-$G39)/$F37) ->  | EX14: =+((((1+$AK$14*$C$5)*($I38-$I$54))+$C$5*($J39-$J$54-(($B$54-$B36-$AK$14)*$I$54))+$C$6*(1+($B$54-$B36)*$C$5)*$F$54)/$F38)-$X35*(($G38-$G40)/$F38) ->  | EY14: =+((((1+$AK$14*$C$5)*($I39-$I$54))+$C$5*($J40-$J$54-(($B$54-$B37-$AK$14)*$I$54))+$C$6*(1+($B$54-$B37)*$C$5)*$F$54)/$F39)-$X36*(($G39-$G41)/$F39) ->  | EZ14: =+((((1+$AK$14*$C$5)*($I40-$I$54))+$C$5*($J41-$J$54-(($B$54-$B38-$AK$14)*$I$54))+$C$6*(1+($B$54-$B38)*$C$5)*$F$54)/$F40)-$X37*(($G40-$G42)/$F40) ->  | FA14: =+((((1+$AK$14*$C$5)*($I41-$I$54))+$C$5*($J42-$J$54-(($B$54-$B39-$AK$14)*$I$54))+$C$6*(1+($B$54-$B39)*$C$5)*$F$54)/$F41)-$X38*(($G41-$G43)/$F41) ->  | FB14: =+((((1+$AK$14*$C$5)*($I42-$I$54))+$C$5*($J43-$J$54-(($B$54-$B40-$AK$14)*$I$54))+$C$6*(1+($B$54-$B40)*$C$5)*$F$54)/$F42)-$X39*(($G42-$G44)/$F42) ->  | FC14: =+((((1+$AK$14*$C$5)*($I43-$I$54))+$C$5*($J44-$J$54-(($B$54-$B41-$AK$14)*$I$54))+$C$6*(1+($B$54-$B41)*$C$5)*$F$54)/$F43)-$X40*(($G43-$G45)/$F43) ->  | FD14: =+((((1+$AK$14*$C$5)*($I44-$I$54))+$C$5*($J45-$J$54-(($B$54-$B42-$AK$14)*$I$54))+$C$6*(1+($B$54-$B42)*$C$5)*$F$54)/$F44)-$X41*(($G44-$G46)/$F44) ->  | FE14: =+((((1+$AK$14*$C$5)*($I45-$I$54))+$C$5*($J46-$J$54-(($B$54-$B43-$AK$14)*$I$54))+$C$6*(1+($B$54-$B43)*$C$5)*$F$54)/$F45)-$X42*(($G45-$G47)/$F45) ->  | FF14: =+((((1+$AK$14*$C$5)*($I46-$I$54))+$C$5*($J47-$J$54-(($B$54-$B44-$AK$14)*$I$54))+$C$6*(1+($B$54-$B44)*$C$5)*$F$54)/$F46)-$X43*(($G46-$G48)/$F46) ->  | FG14: =+((((1+$AK$14*$C$5)*($I47-$I$54))+$C$5*($J48-$J$54-(($B$54-$B45-$AK$14)*$I$54))+$C$6*(1+($B$54-$B45)*$C$5)*$F$54)/$F47)-$X44*(($G47-$G49)/$F47) ->  | FH14: =+((((1+$AK$14*$C$5)*($I48-$I$54))+$C$5*($J49-$J$54-(($B$54-$B46-$AK$14)*$I$54))+$C$6*(1+($B$54-$B46)*$C$5)*$F$54)/$F48)-$X45*(($G48-$G50)/$F48) ->  | FI14: =+((((1+$AK$14*$C$5)*($I49-$I$54))+$C$5*($J50-$J$54-(($B$54-$B47-$AK$14)*$I$54))+$C$6*(1+($B$54-$B47)*$C$5)*$F$54)/$F49)-$X46*(($G49-$G51)/$F49) ->  | FJ14: =+((((1+$AK$14*$C$5)*($I50-$I$54))+$C$5*($J51-$J$54-(($B$54-$B48-$AK$14)*$I$54))+$C$6*(1+($B$54-$B48)*$C$5)*$F$54)/$F50)-$X47*(($G50-$G52)/$F50) ->  | FK14: =+((((1+$AK$14*$C$5)*($I51-$I$54))+$C$5*($J52-$J$54-(($B$54-$B49-$AK$14)*$I$54))+$C$6*(1+($B$54-$B49)*$C$5)*$F$54)/$F51)-$X48*(($G51-$G53)/$F51) ->  | FL14: =+((((1+$AK$14*$C$5)*($I52-$I$54))+$C$5*($J53-$J$54-(($B$54-$B50-$AK$14)*$I$54))+$C$6*(1+($B$54-$B50)*$C$5)*$F$54)/$F52)-$X49*(($G52-$G54)/$F52) ->  | FN14: 3 | FO14: =+((((1+$CC$14*$C$5)*($I15-$I$59))+$C$5*($J16-$J$59-(($B$59-$B13-$CC$14)*$I$59))+$C$6*(1+($B$59-$B13)*$C$5)*$F$59)/$F15)-$Y12*(($G15-$G17)/$F15) ->  | FP14: =+((((1+$CC$14*$C$5)*($I16-$I$59))+$C$5*($J17-$J$59-(($B$59-$B14-$CC$14)*$I$59))+$C$6*(1+($B$59-$B14)*$C$5)*$F$59)/$F16)-$Y13*(($G16-$G18)/$F16) ->  | FQ14: =+((((1+$CC$14*$C$5)*($I17-$I$59))+$C$5*($J18-$J$59-(($B$59-$B15-$CC$14)*$I$59))+$C$6*(1+($B$59-$B15)*$C$5)*$F$59)/$F17)-$Y14*(($G17-$G19)/$F17) ->  | FR14: =+((((1+$CC$14*$C$5)*($I18-$I$59))+$C$5*($J19-$J$59-(($B$59-$B16-$CC$14)*$I$59))+$C$6*(1+($B$59-$B16)*$C$5)*$F$59)/$F18)-$Y15*(($G18-$G20)/$F18) ->  | FS14: =+((((1+$CC$14*$C$5)*($I19-$I$59))+$C$5*($J20-$J$59-(($B$59-$B17-$CC$14)*$I$59))+$C$6*(1+($B$59-$B17)*$C$5)*$F$59)/$F19)-$Y16*(($G19-$G21)/$F19) ->  | FT14: =+((((1+$CC$14*$C$5)*($I20-$I$59))+$C$5*($J21-$J$59-(($B$59-$B18-$CC$14)*$I$59))+$C$6*(1+($B$59-$B18)*$C$5)*$F$59)/$F20)-$Y17*(($G20-$G22)/$F20) ->  | FU14: =+((((1+$CC$14*$C$5)*($I21-$I$59))+$C$5*($J22-$J$59-(($B$59-$B19-$CC$14)*$I$59))+$C$6*(1+($B$59-$B19)*$C$5)*$F$59)/$F21)-$Y18*(($G21-$G23)/$F21) ->  | FV14: =+((((1+$CC$14*$C$5)*($I22-$I$59))+$C$5*($J23-$J$59-(($B$59-$B20-$CC$14)*$I$59))+$C$6*(1+($B$59-$B20)*$C$5)*$F$59)/$F22)-$Y19*(($G22-$G24)/$F22) ->  | FW14: =+((((1+$CC$14*$C$5)*($I23-$I$59))+$C$5*($J24-$J$59-(($B$59-$B21-$CC$14)*$I$59))+$C$6*(1+($B$59-$B21)*$C$5)*$F$59)/$F23)-$Y20*(($G23-$G25)/$F23) ->  | FX14: =+((((1+$CC$14*$C$5)*($I24-$I$59))+$C$5*($J25-$J$59-(($B$59-$B22-$CC$14)*$I$59))+$C$6*(1+($B$59-$B22)*$C$5)*$F$59)/$F24)-$Y21*(($G24-$G26)/$F24) ->  | FY14: =+((((1+$CC$14*$C$5)*($I25-$I$59))+$C$5*($J26-$J$59-(($B$59-$B23-$CC$14)*$I$59))+$C$6*(1+($B$59-$B23)*$C$5)*$F$59)/$F25)-$Y22*(($G25-$G27)/$F25) ->  | FZ14: =+((((1+$CC$14*$C$5)*($I26-$I$59))+$C$5*($J27-$J$59-(($B$59-$B24-$CC$14)*$I$59))+$C$6*(1+($B$59-$B24)*$C$5)*$F$59)/$F26)-$Y23*(($G26-$G28)/$F26) ->  | GA14: =+((((1+$CC$14*$C$5)*($I27-$I$59))+$C$5*($J28-$J$59-(($B$59-$B25-$CC$14)*$I$59))+$C$6*(1+($B$59-$B25)*$C$5)*$F$59)/$F27)-$Y24*(($G27-$G29)/$F27) ->  | GB14: =+((((1+$CC$14*$C$5)*($I28-$I$59))+$C$5*($J29-$J$59-(($B$59-$B26-$CC$14)*$I$59))+$C$6*(1+($B$59-$B26)*$C$5)*$F$59)/$F28)-$Y25*(($G28-$G30)/$F28) ->  | GC14: =+((((1+$CC$14*$C$5)*($I29-$I$59))+$C$5*($J30-$J$59-(($B$59-$B27-$CC$14)*$I$59))+$C$6*(1+($B$59-$B27)*$C$5)*$F$59)/$F29)-$Y26*(($G29-$G31)/$F29) ->  | GD14: =+((((1+$CC$14*$C$5)*($I30-$I$59))+$C$5*($J31-$J$59-(($B$59-$B28-$CC$14)*$I$59))+$C$6*(1+($B$59-$B28)*$C$5)*$F$59)/$F30)-$Y27*(($G30-$G32)/$F30) ->  | GE14: =+((((1+$CC$14*$C$5)*($I31-$I$59))+$C$5*($J32-$J$59-(($B$59-$B29-$CC$14)*$I$59))+$C$6*(1+($B$59-$B29)*$C$5)*$F$59)/$F31)-$Y28*(($G31-$G33)/$F31) ->  | GF14: =+((((1+$CC$14*$C$5)*($I32-$I$59))+$C$5*($J33-$J$59-(($B$59-$B30-$CC$14)*$I$59))+$C$6*(1+($B$59-$B30)*$C$5)*$F$59)/$F32)-$Y29*(($G32-$G34)/$F32) ->  | GG14: =+((((1+$CC$14*$C$5)*($I33-$I$59))+$C$5*($J34-$J$59-(($B$59-$B31-$CC$14)*$I$59))+$C$6*(1+($B$59-$B31)*$C$5)*$F$59)/$F33)-$Y30*(($G33-$G35)/$F33) ->  | GH14: =+((((1+$CC$14*$C$5)*($I34-$I$59))+$C$5*($J35-$J$59-(($B$59-$B32-$CC$14)*$I$59))+$C$6*(1+($B$59-$B32)*$C$5)*$F$59)/$F34)-$Y31*(($G34-$G36)/$F34) ->  | GI14: =+((((1+$CC$14*$C$5)*($I35-$I$59))+$C$5*($J36-$J$59-(($B$59-$B33-$CC$14)*$I$59))+$C$6*(1+($B$59-$B33)*$C$5)*$F$59)/$F35)-$Y32*(($G35-$G37)/$F35) ->  | GJ14: =+((((1+$CC$14*$C$5)*($I36-$I$59))+$C$5*($J37-$J$59-(($B$59-$B34-$CC$14)*$I$59))+$C$6*(1+($B$59-$B34)*$C$5)*$F$59)/$F36)-$Y33*(($G36-$G38)/$F36) ->  | GK14: =+((((1+$CC$14*$C$5)*($I37-$I$59))+$C$5*($J38-$J$59-(($B$59-$B35-$CC$14)*$I$59))+$C$6*(1+($B$59-$B35)*$C$5)*$F$59)/$F37)-$Y34*(($G37-$G39)/$F37) ->  | GL14: =+((((1+$CC$14*$C$5)*($I38-$I$59))+$C$5*($J39-$J$59-(($B$59-$B36-$CC$14)*$I$59))+$C$6*(1+($B$59-$B36)*$C$5)*$F$59)/$F38)-$Y35*(($G38-$G40)/$F38) ->  | GM14: =+((((1+$CC$14*$C$5)*($I39-$I$59))+$C$5*($J40-$J$59-(($B$59-$B37-$CC$14)*$I$59))+$C$6*(1+($B$59-$B37)*$C$5)*$F$59)/$F39)-$Y36*(($G39-$G41)/$F39) ->  | GN14: =+((((1+$CC$14*$C$5)*($I40-$I$59))+$C$5*($J41-$J$59-(($B$59-$B38-$CC$14)*$I$59))+$C$6*(1+($B$59-$B38)*$C$5)*$F$59)/$F40)-$Y37*(($G40-$G42)/$F40) ->  | GO14: =+((((1+$CC$14*$C$5)*($I41-$I$59))+$C$5*($J42-$J$59-(($B$59-$B39-$CC$14)*$I$59))+$C$6*(1+($B$59-$B39)*$C$5)*$F$59)/$F41)-$Y38*(($G41-$G43)/$F41) ->  | GP14: =+((((1+$CC$14*$C$5)*($I42-$I$59))+$C$5*($J43-$J$59-(($B$59-$B40-$CC$14)*$I$59))+$C$6*(1+($B$59-$B40)*$C$5)*$F$59)/$F42)-$Y39*(($G42-$G44)/$F42) ->  | GQ14: =+((((1+$CC$14*$C$5)*($I43-$I$59))+$C$5*($J44-$J$59-(($B$59-$B41-$CC$14)*$I$59))+$C$6*(1+($B$59-$B41)*$C$5)*$F$59)/$F43)-$Y40*(($G43-$G45)/$F43) ->  | GR14: =+((((1+$CC$14*$C$5)*($I44-$I$59))+$C$5*($J45-$J$59-(($B$59-$B42-$CC$14)*$I$59))+$C$6*(1+($B$59-$B42)*$C$5)*$F$59)/$F44)-$Y41*(($G44-$G46)/$F44) ->  | GS14: =+((((1+$CC$14*$C$5)*($I45-$I$59))+$C$5*($J46-$J$59-(($B$59-$B43-$CC$14)*$I$59))+$C$6*(1+($B$59-$B43)*$C$5)*$F$59)/$F45)-$Y42*(($G45-$G47)/$F45) ->  | GT14: =+((((1+$CC$14*$C$5)*($I46-$I$59))+$C$5*($J47-$J$59-(($B$59-$B44-$CC$14)*$I$59))+$C$6*(1+($B$59-$B44)*$C$5)*$F$59)/$F46)-$Y43*(($G46-$G48)/$F46) ->  | GU14: =+((((1+$CC$14*$C$5)*($I47-$I$59))+$C$5*($J48-$J$59-(($B$59-$B45-$CC$14)*$I$59))+$C$6*(1+($B$59-$B45)*$C$5)*$F$59)/$F47)-$Y44*(($G47-$G49)/$F47) ->  | GV14: =+((((1+$CC$14*$C$5)*($I48-$I$59))+$C$5*($J49-$J$59-(($B$59-$B46-$CC$14)*$I$59))+$C$6*(1+($B$59-$B46)*$C$5)*$F$59)/$F48)-$Y45*(($G48-$G50)/$F48) ->  | GW14: =+((((1+$CC$14*$C$5)*($I49-$I$59))+$C$5*($J50-$J$59-(($B$59-$B47-$CC$14)*$I$59))+$C$6*(1+($B$59-$B47)*$C$5)*$F$59)/$F49)-$Y46*(($G49-$G51)/$F49) ->  | GX14: =+((((1+$CC$14*$C$5)*($I50-$I$59))+$C$5*($J51-$J$59-(($B$59-$B48-$CC$14)*$I$59))+$C$6*(1+($B$59-$B48)*$C$5)*$F$59)/$F50)-$Y47*(($G50-$G52)/$F50) ->  | GY14: =+((((1+$CC$14*$C$5)*($I51-$I$59))+$C$5*($J52-$J$59-(($B$59-$B49-$CC$14)*$I$59))+$C$6*(1+($B$59-$B49)*$C$5)*$F$59)/$F51)-$Y48*(($G51-$G53)/$F51) ->  | GZ14: =+((((1+$CC$14*$C$5)*($I52-$I$59))+$C$5*($J53-$J$59-(($B$59-$B50-$CC$14)*$I$59))+$C$6*(1+($B$59-$B50)*$C$5)*$F$59)/$F52)-$Y49*(($G52-$G54)/$F52) ->  | HA14: =+((((1+$CC$14*$C$5)*($I53-$I$59))+$C$5*($J54-$J$59-(($B$59-$B51-$CC$14)*$I$59))+$C$6*(1+($B$59-$B51)*$C$5)*$F$59)/$F53)-$Y50*(($G53-$G55)/$F53) ->  | HB14: =+((((1+$CC$14*$C$5)*($I54-$I$59))+$C$5*($J55-$J$59-(($B$59-$B52-$CC$14)*$I$59))+$C$6*(1+($B$59-$B52)*$C$5)*$F$59)/$F54)-$Y51*(($G54-$G56)/$F54) ->  | HC14: =+((((1+$CC$14*$C$5)*($I55-$I$59))+$C$5*($J56-$J$59-(($B$59-$B53-$CC$14)*$I$59))+$C$6*(1+($B$59-$B53)*$C$5)*$F$59)/$F55)-$Y52*(($G55-$G57)/$F55) ->  | HD14: =+((((1+$CC$14*$C$5)*($I56-$I$59))+$C$5*($J57-$J$59-(($B$59-$B54-$CC$14)*$I$59))+$C$6*(1+($B$59-$B54)*$C$5)*$F$59)/$F56)-$Y53*(($G56-$G58)/$F56) ->  | HE14: =+((((1+$CC$14*$C$5)*($I57-$I$59))+$C$5*($J58-$J$59-(($B$59-$B55-$CC$14)*$I$59))+$C$6*(1+($B$59-$B55)*$C$5)*$F$59)/$F57)-$Y54*(($G57-$G59)/$F57) ->  | HG14: 3 | HH14: =+((((1+$AK$14*$C$5)*($I15-$I$54))+$C$5*($J16-$J$54-(($B$54-$B13-$AK$14)*$I$54))+$C$6*(1+($B$54-$B13)*$C$5)*$F$54)/$F15)-$Z12*(($G15-$G$54)/$F15) ->  | HI14: =+((((1+$AK$14*$C$5)*($I16-$I$54))+$C$5*($J17-$J$54-(($B$54-$B14-$AK$14)*$I$54))+$C$6*(1+($B$54-$B14)*$C$5)*$F$54)/$F16)-$Z13*(($G16-$G$54)/$F16) ->  | HJ14: =+((((1+$AK$14*$C$5)*($I17-$I$54))+$C$5*($J18-$J$54-(($B$54-$B15-$AK$14)*$I$54))+$C$6*(1+($B$54-$B15)*$C$5)*$F$54)/$F17)-$Z14*(($G17-$G$54)/$F17) ->  | HK14: =+((((1+$AK$14*$C$5)*($I18-$I$54))+$C$5*($J19-$J$54-(($B$54-$B16-$AK$14)*$I$54))+$C$6*(1+($B$54-$B16)*$C$5)*$F$54)/$F18)-$Z15*(($G18-$G$54)/$F18) ->  | HL14: =+((((1+$AK$14*$C$5)*($I19-$I$54))+$C$5*($J20-$J$54-(($B$54-$B17-$AK$14)*$I$54))+$C$6*(1+($B$54-$B17)*$C$5)*$F$54)/$F19)-$Z16*(($G19-$G$54)/$F19) ->  | HM14: =+((((1+$AK$14*$C$5)*($I20-$I$54))+$C$5*($J21-$J$54-(($B$54-$B18-$AK$14)*$I$54))+$C$6*(1+($B$54-$B18)*$C$5)*$F$54)/$F20)-$Z17*(($G20-$G$54)/$F20) ->  | HN14: =+((((1+$AK$14*$C$5)*($I21-$I$54))+$C$5*($J22-$J$54-(($B$54-$B19-$AK$14)*$I$54))+$C$6*(1+($B$54-$B19)*$C$5)*$F$54)/$F21)-$Z18*(($G21-$G$54)/$F21) ->  | HO14: =+((((1+$AK$14*$C$5)*($I22-$I$54))+$C$5*($J23-$J$54-(($B$54-$B20-$AK$14)*$I$54))+$C$6*(1+($B$54-$B20)*$C$5)*$F$54)/$F22)-$Z19*(($G22-$G$54)/$F22) ->  | HP14: =+((((1+$AK$14*$C$5)*($I23-$I$54))+$C$5*($J24-$J$54-(($B$54-$B21-$AK$14)*$I$54))+$C$6*(1+($B$54-$B21)*$C$5)*$F$54)/$F23)-$Z20*(($G23-$G$54)/$F23) ->  | HQ14: =+((((1+$AK$14*$C$5)*($I24-$I$54))+$C$5*($J25-$J$54-(($B$54-$B22-$AK$14)*$I$54))+$C$6*(1+($B$54-$B22)*$C$5)*$F$54)/$F24)-$Z21*(($G24-$G$54)/$F24) ->  | HR14: =+((((1+$AK$14*$C$5)*($I25-$I$54))+$C$5*($J26-$J$54-(($B$54-$B23-$AK$14)*$I$54))+$C$6*(1+($B$54-$B23)*$C$5)*$F$54)/$F25)-$Z22*(($G25-$G$54)/$F25) ->  | HS14: =+((((1+$AK$14*$C$5)*($I26-$I$54))+$C$5*($J27-$J$54-(($B$54-$B24-$AK$14)*$I$54))+$C$6*(1+($B$54-$B24)*$C$5)*$F$54)/$F26)-$Z23*(($G26-$G$54)/$F26) ->  | HT14: =+((((1+$AK$14*$C$5)*($I27-$I$54))+$C$5*($J28-$J$54-(($B$54-$B25-$AK$14)*$I$54))+$C$6*(1+($B$54-$B25)*$C$5)*$F$54)/$F27)-$Z24*(($G27-$G$54)/$F27) ->  | HU14: =+((((1+$AK$14*$C$5)*($I28-$I$54))+$C$5*($J29-$J$54-(($B$54-$B26-$AK$14)*$I$54))+$C$6*(1+($B$54-$B26)*$C$5)*$F$54)/$F28)-$Z25*(($G28-$G$54)/$F28) ->  | HV14: =+((((1+$AK$14*$C$5)*($I29-$I$54))+$C$5*($J30-$J$54-(($B$54-$B27-$AK$14)*$I$54))+$C$6*(1+($B$54-$B27)*$C$5)*$F$54)/$F29)-$Z26*(($G29-$G$54)/$F29) ->  | HW14: =+((((1+$AK$14*$C$5)*($I30-$I$54))+$C$5*($J31-$J$54-(($B$54-$B28-$AK$14)*$I$54))+$C$6*(1+($B$54-$B28)*$C$5)*$F$54)/$F30)-$Z27*(($G30-$G$54)/$F30) ->  | HX14: =+((((1+$AK$14*$C$5)*($I31-$I$54))+$C$5*($J32-$J$54-(($B$54-$B29-$AK$14)*$I$54))+$C$6*(1+($B$54-$B29)*$C$5)*$F$54)/$F31)-$Z28*(($G31-$G$54)/$F31) ->  | HY14: =+((((1+$AK$14*$C$5)*($I32-$I$54))+$C$5*($J33-$J$54-(($B$54-$B30-$AK$14)*$I$54))+$C$6*(1+($B$54-$B30)*$C$5)*$F$54)/$F32)-$Z29*(($G32-$G$54)/$F32) ->  | HZ14: =+((((1+$AK$14*$C$5)*($I33-$I$54))+$C$5*($J34-$J$54-(($B$54-$B31-$AK$14)*$I$54))+$C$6*(1+($B$54-$B31)*$C$5)*$F$54)/$F33)-$Z30*(($G33-$G$54)/$F33) ->  | IA14: =+((((1+$AK$14*$C$5)*($I34-$I$54))+$C$5*($J35-$J$54-(($B$54-$B32-$AK$14)*$I$54))+$C$6*(1+($B$54-$B32)*$C$5)*$F$54)/$F34)-$Z31*(($G34-$G$54)/$F34) ->  | IB14: =+((((1+$AK$14*$C$5)*($I35-$I$54))+$C$5*($J36-$J$54-(($B$54-$B33-$AK$14)*$I$54))+$C$6*(1+($B$54-$B33)*$C$5)*$F$54)/$F35)-$Z32*(($G35-$G$54)/$F35) ->  | IC14: =+((((1+$AK$14*$C$5)*($I36-$I$54))+$C$5*($J37-$J$54-(($B$54-$B34-$AK$14)*$I$54))+$C$6*(1+($B$54-$B34)*$C$5)*$F$54)/$F36)-$Z33*(($G36-$G$54)/$F36) ->  | ID14: =+((((1+$AK$14*$C$5)*($I37-$I$54))+$C$5*($J38-$J$54-(($B$54-$B35-$AK$14)*$I$54))+$C$6*(1+($B$54-$B35)*$C$5)*$F$54)/$F37)-$Z34*(($G37-$G$54)/$F37) ->  | IE14: =+((((1+$AK$14*$C$5)*($I38-$I$54))+$C$5*($J39-$J$54-(($B$54-$B36-$AK$14)*$I$54))+$C$6*(1+($B$54-$B36)*$C$5)*$F$54)/$F38)-$Z35*(($G38-$G$54)/$F38) ->  | IF14: =+((((1+$AK$14*$C$5)*($I39-$I$54))+$C$5*($J40-$J$54-(($B$54-$B37-$AK$14)*$I$54))+$C$6*(1+($B$54-$B37)*$C$5)*$F$54)/$F39)-$Z36*(($G39-$G$54)/$F39) ->  | IG14: =+((((1+$AK$14*$C$5)*($I40-$I$54))+$C$5*($J41-$J$54-(($B$54-$B38-$AK$14)*$I$54))+$C$6*(1+($B$54-$B38)*$C$5)*$F$54)/$F40)-$Z37*(($G40-$G$54)/$F40) ->  | IH14: =+((((1+$AK$14*$C$5)*($I41-$I$54))+$C$5*($J42-$J$54-(($B$54-$B39-$AK$14)*$I$54))+$C$6*(1+($B$54-$B39)*$C$5)*$F$54)/$F41)-$Z38*(($G41-$G$54)/$F41) ->  | II14: =+((((1+$AK$14*$C$5)*($I42-$I$54))+$C$5*($J43-$J$54-(($B$54-$B40-$AK$14)*$I$54))+$C$6*(1+($B$54-$B40)*$C$5)*$F$54)/$F42)-$Z39*(($G42-$G$54)/$F42) ->  | IJ14: =+((((1+$AK$14*$C$5)*($I43-$I$54))+$C$5*($J44-$J$54-(($B$54-$B41-$AK$14)*$I$54))+$C$6*(1+($B$54-$B41)*$C$5)*$F$54)/$F43)-$Z40*(($G43-$G$54)/$F43) ->  | IK14: =+((((1+$AK$14*$C$5)*($I44-$I$54))+$C$5*($J45-$J$54-(($B$54-$B42-$AK$14)*$I$54))+$C$6*(1+($B$54-$B42)*$C$5)*$F$54)/$F44)-$Z41*(($G44-$G$54)/$F44) ->  | IL14: =+((((1+$AK$14*$C$5)*($I45-$I$54))+$C$5*($J46-$J$54-(($B$54-$B43-$AK$14)*$I$54))+$C$6*(1+($B$54-$B43)*$C$5)*$F$54)/$F45)-$Z42*(($G45-$G$54)/$F45) ->  | IM14: =+((((1+$AK$14*$C$5)*($I46-$I$54))+$C$5*($J47-$J$54-(($B$54-$B44-$AK$14)*$I$54))+$C$6*(1+($B$54-$B44)*$C$5)*$F$54)/$F46)-$Z43*(($G46-$G$54)/$F46) ->  | IN14: =+((((1+$AK$14*$C$5)*($I47-$I$54))+$C$5*($J48-$J$54-(($B$54-$B45-$AK$14)*$I$54))+$C$6*(1+($B$54-$B45)*$C$5)*$F$54)/$F47)-$Z44*(($G47-$G$54)/$F47) ->  | IO14: =+((((1+$AK$14*$C$5)*($I48-$I$54))+$C$5*($J49-$J$54-(($B$54-$B46-$AK$14)*$I$54))+$C$6*(1+($B$54-$B46)*$C$5)*$F$54)/$F48)-$Z45*(($G48-$G$54)/$F48) ->  | IP14: =+((((1+$AK$14*$C$5)*($I49-$I$54))+$C$5*($J50-$J$54-(($B$54-$B47-$AK$14)*$I$54))+$C$6*(1+($B$54-$B47)*$C$5)*$F$54)/$F49)-$Z46*(($G49-$G$54)/$F49) ->  | IQ14: =+((((1+$AK$14*$C$5)*($I50-$I$54))+$C$5*($J51-$J$54-(($B$54-$B48-$AK$14)*$I$54))+$C$6*(1+($B$54-$B48)*$C$5)*$F$54)/$F50)-$Z47*(($G50-$G$54)/$F50) ->  | IR14: =+((((1+$AK$14*$C$5)*($I51-$I$54))+$C$5*($J52-$J$54-(($B$54-$B49-$AK$14)*$I$54))+$C$6*(1+($B$54-$B49)*$C$5)*$F$54)/$F51)-$Z48*(($G51-$G$54)/$F51) ->  | IS14: =+((((1+$AK$14*$C$5)*($I52-$I$54))+$C$5*($J53-$J$54-(($B$54-$B50-$AK$14)*$I$54))+$C$6*(1+($B$54-$B50)*$C$5)*$F$54)/$F52)-$Z49*(($G52-$G$54)/$F52) ->  | IT14: =+((((1+$AK$14*$C$5)*($I53-$I$54))+$C$5*($J54-$J$54-(($B$54-$B51-$AK$14)*$I$54))+$C$6*(1+($B$54-$B51)*$C$5)*$F$54)/$F53)-$Z50*(($G53-$G$54)/$F53) ->  | IU14: =+((((1+$AK$14*$C$5)*($I54-$I$54))+$C$5*($J55-$J$54-(($B$54-$B52-$AK$14)*$I$54))+$C$6*(1+($B$54-$B52)*$C$5)*$F$54)/$F54)-$Z51*(($G54-$G$54)/$F54) ->  | IY14: 3 | IZ14: =+((((1+$CC$14*$C$5)*($I15-$I$59))+$C$5*($J16-$J$59-(($B$59-$B13-$CC$14)*$I$59))+$C$6*(1+($B$59-$B13)*$C$5)*$F$59)/$F15)-$AA12*(($G15-$G$59)/$F15) ->  | JA14: =+((((1+$CC$14*$C$5)*($I16-$I$59))+$C$5*($J17-$J$59-(($B$59-$B14-$CC$14)*$I$59))+$C$6*(1+($B$59-$B14)*$C$5)*$F$59)/$F16)-$AA13*(($G16-$G$59)/$F16) ->  | JB14: =+((((1+$CC$14*$C$5)*($I17-$I$59))+$C$5*($J18-$J$59-(($B$59-$B15-$CC$14)*$I$59))+$C$6*(1+($B$59-$B15)*$C$5)*$F$59)/$F17)-$AA14*(($G17-$G$59)/$F17) ->  | JC14: =+((((1+$CC$14*$C$5)*($I18-$I$59))+$C$5*($J19-$J$59-(($B$59-$B16-$CC$14)*$I$59))+$C$6*(1+($B$59-$B16)*$C$5)*$F$59)/$F18)-$AA15*(($G18-$G$59)/$F18) ->  | JD14: =+((((1+$CC$14*$C$5)*($I19-$I$59))+$C$5*($J20-$J$59-(($B$59-$B17-$CC$14)*$I$59))+$C$6*(1+($B$59-$B17)*$C$5)*$F$59)/$F19)-$AA16*(($G19-$G$59)/$F19) ->  | JE14: =+((((1+$CC$14*$C$5)*($I20-$I$59))+$C$5*($J21-$J$59-(($B$59-$B18-$CC$14)*$I$59))+$C$6*(1+($B$59-$B18)*$C$5)*$F$59)/$F20)-$AA17*(($G20-$G$59)/$F20) ->  | JF14: =+((((1+$CC$14*$C$5)*($I21-$I$59))+$C$5*($J22-$J$59-(($B$59-$B19-$CC$14)*$I$59))+$C$6*(1+($B$59-$B19)*$C$5)*$F$59)/$F21)-$AA18*(($G21-$G$59)/$F21) ->  | JG14: =+((((1+$CC$14*$C$5)*($I22-$I$59))+$C$5*($J23-$J$59-(($B$59-$B20-$CC$14)*$I$59))+$C$6*(1+($B$59-$B20)*$C$5)*$F$59)/$F22)-$AA19*(($G22-$G$59)/$F22) ->  | JH14: =+((((1+$CC$14*$C$5)*($I23-$I$59))+$C$5*($J24-$J$59-(($B$59-$B21-$CC$14)*$I$59))+$C$6*(1+($B$59-$B21)*$C$5)*$F$59)/$F23)-$AA20*(($G23-$G$59)/$F23) ->  | JI14: =+((((1+$CC$14*$C$5)*($I24-$I$59))+$C$5*($J25-$J$59-(($B$59-$B22-$CC$14)*$I$59))+$C$6*(1+($B$59-$B22)*$C$5)*$F$59)/$F24)-$AA21*(($G24-$G$59)/$F24) ->  | JJ14: =+((((1+$CC$14*$C$5)*($I25-$I$59))+$C$5*($J26-$J$59-(($B$59-$B23-$CC$14)*$I$59))+$C$6*(1+($B$59-$B23)*$C$5)*$F$59)/$F25)-$AA22*(($G25-$G$59)/$F25) ->  | JK14: =+((((1+$CC$14*$C$5)*($I26-$I$59))+$C$5*($J27-$J$59-(($B$59-$B24-$CC$14)*$I$59))+$C$6*(1+($B$59-$B24)*$C$5)*$F$59)/$F26)-$AA23*(($G26-$G$59)/$F26) ->  | JL14: =+((((1+$CC$14*$C$5)*($I27-$I$59))+$C$5*($J28-$J$59-(($B$59-$B25-$CC$14)*$I$59))+$C$6*(1+($B$59-$B25)*$C$5)*$F$59)/$F27)-$AA24*(($G27-$G$59)/$F27) ->  | JM14: =+((((1+$CC$14*$C$5)*($I28-$I$59))+$C$5*($J29-$J$59-(($B$59-$B26-$CC$14)*$I$59))+$C$6*(1+($B$59-$B26)*$C$5)*$F$59)/$F28)-$AA25*(($G28-$G$59)/$F28) ->  | JN14: =+((((1+$CC$14*$C$5)*($I29-$I$59))+$C$5*($J30-$J$59-(($B$59-$B27-$CC$14)*$I$59))+$C$6*(1+($B$59-$B27)*$C$5)*$F$59)/$F29)-$AA26*(($G29-$G$59)/$F29) ->  | JO14: =+((((1+$CC$14*$C$5)*($I30-$I$59))+$C$5*($J31-$J$59-(($B$59-$B28-$CC$14)*$I$59))+$C$6*(1+($B$59-$B28)*$C$5)*$F$59)/$F30)-$AA27*(($G30-$G$59)/$F30) ->  | JP14: =+((((1+$CC$14*$C$5)*($I31-$I$59))+$C$5*($J32-$J$59-(($B$59-$B29-$CC$14)*$I$59))+$C$6*(1+($B$59-$B29)*$C$5)*$F$59)/$F31)-$AA28*(($G31-$G$59)/$F31) ->  | JQ14: =+((((1+$CC$14*$C$5)*($I32-$I$59))+$C$5*($J33-$J$59-(($B$59-$B30-$CC$14)*$I$59))+$C$6*(1+($B$59-$B30)*$C$5)*$F$59)/$F32)-$AA29*(($G32-$G$59)/$F32) ->  | JR14: =+((((1+$CC$14*$C$5)*($I33-$I$59))+$C$5*($J34-$J$59-(($B$59-$B31-$CC$14)*$I$59))+$C$6*(1+($B$59-$B31)*$C$5)*$F$59)/$F33)-$AA30*(($G33-$G$59)/$F33) ->  | JS14: =+((((1+$CC$14*$C$5)*($I34-$I$59))+$C$5*($J35-$J$59-(($B$59-$B32-$CC$14)*$I$59))+$C$6*(1+($B$59-$B32)*$C$5)*$F$59)/$F34)-$AA31*(($G34-$G$59)/$F34) ->  | JT14: =+((((1+$CC$14*$C$5)*($I35-$I$59))+$C$5*($J36-$J$59-(($B$59-$B33-$CC$14)*$I$59))+$C$6*(1+($B$59-$B33)*$C$5)*$F$59)/$F35)-$AA32*(($G35-$G$59)/$F35) ->  | JU14: =+((((1+$CC$14*$C$5)*($I36-$I$59))+$C$5*($J37-$J$59-(($B$59-$B34-$CC$14)*$I$59))+$C$6*(1+($B$59-$B34)*$C$5)*$F$59)/$F36)-$AA33*(($G36-$G$59)/$F36) ->  | JV14: =+((((1+$CC$14*$C$5)*($I37-$I$59))+$C$5*($J38-$J$59-(($B$59-$B35-$CC$14)*$I$59))+$C$6*(1+($B$59-$B35)*$C$5)*$F$59)/$F37)-$AA34*(($G37-$G$59)/$F37) ->  | JW14: =+((((1+$CC$14*$C$5)*($I38-$I$59))+$C$5*($J39-$J$59-(($B$59-$B36-$CC$14)*$I$59))+$C$6*(1+($B$59-$B36)*$C$5)*$F$59)/$F38)-$AA35*(($G38-$G$59)/$F38) ->  | JX14: =+((((1+$CC$14*$C$5)*($I39-$I$59))+$C$5*($J40-$J$59-(($B$59-$B37-$CC$14)*$I$59))+$C$6*(1+($B$59-$B37)*$C$5)*$F$59)/$F39)-$AA36*(($G39-$G$59)/$F39) ->  | JY14: =+((((1+$CC$14*$C$5)*($I40-$I$59))+$C$5*($J41-$J$59-(($B$59-$B38-$CC$14)*$I$59))+$C$6*(1+($B$59-$B38)*$C$5)*$F$59)/$F40)-$AA37*(($G40-$G$59)/$F40) ->  | JZ14: =+((((1+$CC$14*$C$5)*($I41-$I$59))+$C$5*($J42-$J$59-(($B$59-$B39-$CC$14)*$I$59))+$C$6*(1+($B$59-$B39)*$C$5)*$F$59)/$F41)-$AA38*(($G41-$G$59)/$F41) ->  | KA14: =+((((1+$CC$14*$C$5)*($I42-$I$59))+$C$5*($J43-$J$59-(($B$59-$B40-$CC$14)*$I$59))+$C$6*(1+($B$59-$B40)*$C$5)*$F$59)/$F42)-$AA39*(($G42-$G$59)/$F42) ->  | KB14: =+((((1+$CC$14*$C$5)*($I43-$I$59))+$C$5*($J44-$J$59-(($B$59-$B41-$CC$14)*$I$59))+$C$6*(1+($B$59-$B41)*$C$5)*$F$59)/$F43)-$AA40*(($G43-$G$59)/$F43) ->  | KC14: =+((((1+$CC$14*$C$5)*($I44-$I$59))+$C$5*($J45-$J$59-(($B$59-$B42-$CC$14)*$I$59))+$C$6*(1+($B$59-$B42)*$C$5)*$F$59)/$F44)-$AA41*(($G44-$G$59)/$F44) ->  | KD14: =+((((1+$CC$14*$C$5)*($I45-$I$59))+$C$5*($J46-$J$59-(($B$59-$B43-$CC$14)*$I$59))+$C$6*(1+($B$59-$B43)*$C$5)*$F$59)/$F45)-$AA42*(($G45-$G$59)/$F45) ->  | KE14: =+((((1+$CC$14*$C$5)*($I46-$I$59))+$C$5*($J47-$J$59-(($B$59-$B44-$CC$14)*$I$59))+$C$6*(1+($B$59-$B44)*$C$5)*$F$59)/$F46)-$AA43*(($G46-$G$59)/$F46) ->  | KF14: =+((((1+$CC$14*$C$5)*($I47-$I$59))+$C$5*($J48-$J$59-(($B$59-$B45-$CC$14)*$I$59))+$C$6*(1+($B$59-$B45)*$C$5)*$F$59)/$F47)-$AA44*(($G47-$G$59)/$F47) ->  | KG14: =+((((1+$CC$14*$C$5)*($I48-$I$59))+$C$5*($J49-$J$59-(($B$59-$B46-$CC$14)*$I$59))+$C$6*(1+($B$59-$B46)*$C$5)*$F$59)/$F48)-$AA45*(($G48-$G$59)/$F48) ->  | KH14: =+((((1+$CC$14*$C$5)*($I49-$I$59))+$C$5*($J50-$J$59-(($B$59-$B47-$CC$14)*$I$59))+$C$6*(1+($B$59-$B47)*$C$5)*$F$59)/$F49)-$AA46*(($G49-$G$59)/$F49) ->  | KI14: =+((((1+$CC$14*$C$5)*($I50-$I$59))+$C$5*($J51-$J$59-(($B$59-$B48-$CC$14)*$I$59))+$C$6*(1+($B$59-$B48)*$C$5)*$F$59)/$F50)-$AA47*(($G50-$G$59)/$F50) ->  | KJ14: =+((((1+$CC$14*$C$5)*($I51-$I$59))+$C$5*($J52-$J$59-(($B$59-$B49-$CC$14)*$I$59))+$C$6*(1+($B$59-$B49)*$C$5)*$F$59)/$F51)-$AA48*(($G51-$G$59)/$F51) ->  | KK14: =+((((1+$CC$14*$C$5)*($I52-$I$59))+$C$5*($J53-$J$59-(($B$59-$B50-$CC$14)*$I$59))+$C$6*(1+($B$59-$B50)*$C$5)*$F$59)/$F52)-$AA49*(($G52-$G$59)/$F52) ->  | KL14: =+((((1+$CC$14*$C$5)*($I53-$I$59))+$C$5*($J54-$J$59-(($B$59-$B51-$CC$14)*$I$59))+$C$6*(1+($B$59-$B51)*$C$5)*$F$59)/$F53)-$AA50*(($G53-$G$59)/$F53) ->  | KM14: =+((((1+$CC$14*$C$5)*($I54-$I$59))+$C$5*($J55-$J$59-(($B$59-$B52-$CC$14)*$I$59))+$C$6*(1+($B$59-$B52)*$C$5)*$F$59)/$F54)-$AA51*(($G54-$G$59)/$F54) ->  | KN14: =+((((1+$CC$14*$C$5)*($I55-$I$59))+$C$5*($J56-$J$59-(($B$59-$B53-$CC$14)*$I$59))+$C$6*(1+($B$59-$B53)*$C$5)*$F$59)/$F55)-$AA52*(($G55-$G$59)/$F55) ->  | KO14: =+((((1+$CC$14*$C$5)*($I56-$I$59))+$C$5*($J57-$J$59-(($B$59-$B54-$CC$14)*$I$59))+$C$6*(1+($B$59-$B54)*$C$5)*$F$59)/$F56)-$AA53*(($G56-$G$59)/$F56) ->  | KP14: =+((((1+$CC$14*$C$5)*($I57-$I$59))+$C$5*($J58-$J$59-(($B$59-$B55-$CC$14)*$I$59))+$C$6*(1+($B$59-$B55)*$C$5)*$F$59)/$F57)-$AA54*(($G57-$G$59)/$F57) ->  | KQ14: =+((((1+$CC$14*$C$5)*($I58-$I$59))+$C$5*($J59-$J$59-(($B$59-$B56-$CC$14)*$I$59))+$C$6*(1+($B$59-$B56)*$C$5)*$F$59)/$F58)-$AA55*(($G58-$G$59)/$F58) ->  | KR14: =+((((1+$CC$14*$C$5)*($I59-$I$59))+$C$5*($J60-$J$59-(($B$59-$B57-$CC$14)*$I$59))+$C$6*(1+($B$59-$B57)*$C$5)*$F$59)/$F59)-$AA56*(($G59-$G$59)/$F59) -> 
B15: 21 | C15: 99644 | D15: =+C15-C16 -> 358 | E15: =1-(C16/C15) -> 0.003592790334 | F15: 32370.50694 | G15: =+SUM($F15:F$95) -> 560015.8792 | H15: 110.2373881 | I15: =+SUM($H15:H$95) -> 3175.366317 | J15: =+SUM(I15:$I$94) -> 96401.11937 | K15: =+SUM($G15:G$94) -> 8892974.03 | P15: 1 | Q15: =+($G15-$G20)/$F15 -> 4.474267395 | R15: =+($G15-$G$59)/$F15 -> 16.47748447 | S15: =+($G15-$G$54)/$F15 -> 16.01793845 | U15: 21 | AC15: 21 | AK15: 4 | AL15: =+(((1+$AK$15*$C$5)*($I16-$I$54))+$C$5*($J17-$J$54-(($B$54-$B13-$AK$15)*$I$54))+$C$6*(1+($B$54-$B13)*$C$5)*$F$54)/$F16 ->  | AM15: =+(((1+$AK$15*$C$5)*($I17-$I$54))+$C$5*($J18-$J$54-(($B$54-$B14-$AK$15)*$I$54))+$C$6*(1+($B$54-$B14)*$C$5)*$F$54)/$F17 ->  | AN15: =+(((1+$AK$15*$C$5)*($I18-$I$54))+$C$5*($J19-$J$54-(($B$54-$B15-$AK$15)*$I$54))+$C$6*(1+($B$54-$B15)*$C$5)*$F$54)/$F18 ->  | AO15: =+(((1+$AK$15*$C$5)*($I19-$I$54))+$C$5*($J20-$J$54-(($B$54-$B16-$AK$15)*$I$54))+$C$6*(1+($B$54-$B16)*$C$5)*$F$54)/$F19 ->  | AP15: =+(((1+$AK$15*$C$5)*($I20-$I$54))+$C$5*($J21-$J$54-(($B$54-$B17-$AK$15)*$I$54))+$C$6*(1+($B$54-$B17)*$C$5)*$F$54)/$F20 ->  | AQ15: =+(((1+$AK$15*$C$5)*($I21-$I$54))+$C$5*($J22-$J$54-(($B$54-$B18-$AK$15)*$I$54))+$C$6*(1+($B$54-$B18)*$C$5)*$F$54)/$F21 ->  | AR15: =+(((1+$AK$15*$C$5)*($I22-$I$54))+$C$5*($J23-$J$54-(($B$54-$B19-$AK$15)*$I$54))+$C$6*(1+($B$54-$B19)*$C$5)*$F$54)/$F22 ->  | AS15: =+(((1+$AK$15*$C$5)*($I23-$I$54))+$C$5*($J24-$J$54-(($B$54-$B20-$AK$15)*$I$54))+$C$6*(1+($B$54-$B20)*$C$5)*$F$54)/$F23 ->  | AT15: =+(((1+$AK$15*$C$5)*($I24-$I$54))+$C$5*($J25-$J$54-(($B$54-$B21-$AK$15)*$I$54))+$C$6*(1+($B$54-$B21)*$C$5)*$F$54)/$F24 ->  | AU15: =+(((1+$AK$15*$C$5)*($I25-$I$54))+$C$5*($J26-$J$54-(($B$54-$B22-$AK$15)*$I$54))+$C$6*(1+($B$54-$B22)*$C$5)*$F$54)/$F25 ->  | AV15: =+(((1+$AK$15*$C$5)*($I26-$I$54))+$C$5*($J27-$J$54-(($B$54-$B23-$AK$15)*$I$54))+$C$6*(1+($B$54-$B23)*$C$5)*$F$54)/$F26 ->  | AW15: =+(((1+$AK$15*$C$5)*($I27-$I$54))+$C$5*($J28-$J$54-(($B$54-$B24-$AK$15)*$I$54))+$C$6*(1+($B$54-$B24)*$C$5)*$F$54)/$F27 ->  | AX15: =+(((1+$AK$15*$C$5)*($I28-$I$54))+$C$5*($J29-$J$54-(($B$54-$B25-$AK$15)*$I$54))+$C$6*(1+($B$54-$B25)*$C$5)*$F$54)/$F28 ->  | AY15: =+(((1+$AK$15*$C$5)*($I29-$I$54))+$C$5*($J30-$J$54-(($B$54-$B26-$AK$15)*$I$54))+$C$6*(1+($B$54-$B26)*$C$5)*$F$54)/$F29 ->  | AZ15: =+(((1+$AK$15*$C$5)*($I30-$I$54))+$C$5*($J31-$J$54-(($B$54-$B27-$AK$15)*$I$54))+$C$6*(1+($B$54-$B27)*$C$5)*$F$54)/$F30 ->  | BA15: =+(((1+$AK$15*$C$5)*($I31-$I$54))+$C$5*($J32-$J$54-(($B$54-$B28-$AK$15)*$I$54))+$C$6*(1+($B$54-$B28)*$C$5)*$F$54)/$F31 ->  | BB15: =+(((1+$AK$15*$C$5)*($I32-$I$54))+$C$5*($J33-$J$54-(($B$54-$B29-$AK$15)*$I$54))+$C$6*(1+($B$54-$B29)*$C$5)*$F$54)/$F32 ->  | BC15: =+(((1+$AK$15*$C$5)*($I33-$I$54))+$C$5*($J34-$J$54-(($B$54-$B30-$AK$15)*$I$54))+$C$6*(1+($B$54-$B30)*$C$5)*$F$54)/$F33 ->  | BD15: =+(((1+$AK$15*$C$5)*($I34-$I$54))+$C$5*($J35-$J$54-(($B$54-$B31-$AK$15)*$I$54))+$C$6*(1+($B$54-$B31)*$C$5)*$F$54)/$F34 ->  | BE15: =+(((1+$AK$15*$C$5)*($I35-$I$54))+$C$5*($J36-$J$54-(($B$54-$B32-$AK$15)*$I$54))+$C$6*(1+($B$54-$B32)*$C$5)*$F$54)/$F35 ->  | BF15: =+(((1+$AK$15*$C$5)*($I36-$I$54))+$C$5*($J37-$J$54-(($B$54-$B33-$AK$15)*$I$54))+$C$6*(1+($B$54-$B33)*$C$5)*$F$54)/$F36 ->  | BG15: =+(((1+$AK$15*$C$5)*($I37-$I$54))+$C$5*($J38-$J$54-(($B$54-$B34-$AK$15)*$I$54))+$C$6*(1+($B$54-$B34)*$C$5)*$F$54)/$F37 ->  | BH15: =+(((1+$AK$15*$C$5)*($I38-$I$54))+$C$5*($J39-$J$54-(($B$54-$B35-$AK$15)*$I$54))+$C$6*(1+($B$54-$B35)*$C$5)*$F$54)/$F38 ->  | BI15: =+(((1+$AK$15*$C$5)*($I39-$I$54))+$C$5*($J40-$J$54-(($B$54-$B36-$AK$15)*$I$54))+$C$6*(1+($B$54-$B36)*$C$5)*$F$54)/$F39 ->  | BJ15: =+(((1+$AK$15*$C$5)*($I40-$I$54))+$C$5*($J41-$J$54-(($B$54-$B37-$AK$15)*$I$54))+$C$6*(1+($B$54-$B37)*$C$5)*$F$54)/$F40 ->  | BK15: =+(((1+$AK$15*$C$5)*($I41-$I$54))+$C$5*($J42-$J$54-(($B$54-$B38-$AK$15)*$I$54))+$C$6*(1+($B$54-$B38)*$C$5)*$F$54)/$F41 ->  | BL15: =+(((1+$AK$15*$C$5)*($I42-$I$54))+$C$5*($J43-$J$54-(($B$54-$B39-$AK$15)*$I$54))+$C$6*(1+($B$54-$B39)*$C$5)*$F$54)/$F42 ->  | BM15: =+(((1+$AK$15*$C$5)*($I43-$I$54))+$C$5*($J44-$J$54-(($B$54-$B40-$AK$15)*$I$54))+$C$6*(1+($B$54-$B40)*$C$5)*$F$54)/$F43 ->  | BN15: =+(((1+$AK$15*$C$5)*($I44-$I$54))+$C$5*($J45-$J$54-(($B$54-$B41-$AK$15)*$I$54))+$C$6*(1+($B$54-$B41)*$C$5)*$F$54)/$F44 ->  | BO15: =+(((1+$AK$15*$C$5)*($I45-$I$54))+$C$5*($J46-$J$54-(($B$54-$B42-$AK$15)*$I$54))+$C$6*(1+($B$54-$B42)*$C$5)*$F$54)/$F45 ->  | BP15: =+(((1+$AK$15*$C$5)*($I46-$I$54))+$C$5*($J47-$J$54-(($B$54-$B43-$AK$15)*$I$54))+$C$6*(1+($B$54-$B43)*$C$5)*$F$54)/$F46 ->  | BQ15: =+(((1+$AK$15*$C$5)*($I47-$I$54))+$C$5*($J48-$J$54-(($B$54-$B44-$AK$15)*$I$54))+$C$6*(1+($B$54-$B44)*$C$5)*$F$54)/$F47 ->  | BR15: =+(((1+$AK$15*$C$5)*($I48-$I$54))+$C$5*($J49-$J$54-(($B$54-$B45-$AK$15)*$I$54))+$C$6*(1+($B$54-$B45)*$C$5)*$F$54)/$F48 ->  | BS15: =+(((1+$AK$15*$C$5)*($I49-$I$54))+$C$5*($J50-$J$54-(($B$54-$B46-$AK$15)*$I$54))+$C$6*(1+($B$54-$B46)*$C$5)*$F$54)/$F49 ->  | BT15: =+(((1+$AK$15*$C$5)*($I50-$I$54))+$C$5*($J51-$J$54-(($B$54-$B47-$AK$15)*$I$54))+$C$6*(1+($B$54-$B47)*$C$5)*$F$54)/$F50 ->  | BU15: =+(((1+$AK$15*$C$5)*($I51-$I$54))+$C$5*($J52-$J$54-(($B$54-$B48-$AK$15)*$I$54))+$C$6*(1+($B$54-$B48)*$C$5)*$F$54)/$F51 ->  | BV15: =+(((1+$AK$15*$C$5)*($I52-$I$54))+$C$5*($J53-$J$54-(($B$54-$B49-$AK$15)*$I$54))+$C$6*(1+($B$54-$B49)*$C$5)*$F$54)/$F52 ->  | BW15: =+(((1+$AK$15*$C$5)*($I53-$I$54))+$C$5*($J54-$J$54-(($B$54-$B50-$AK$15)*$I$54))+$C$6*(1+($B$54-$B50)*$C$5)*$F$54)/$F53 ->  | BX15: =+(((1+$AK$15*$C$5)*($I54-$I$54))+$C$5*($J55-$J$54-(($B$54-$B51-$AK$15)*$I$54))+$C$6*(1+($B$54-$B51)*$C$5)*$F$54)/$F54 ->  | CC15: 4 | CD15: =+(((1+$CC$15*$C$5)*($I16-$I$59))+$C$5*($J17-$J$59-(($B$59-$B13-$CC$15)*$I$59))+$C$6*(1+($B$59-$B13)*$C$5)*$F$59)/$F16 ->  | CE15: =+(((1+$CC$15*$C$5)*($I17-$I$59))+$C$5*($J18-$J$59-(($B$59-$B14-$CC$15)*$I$59))+$C$6*(1+($B$59-$B14)*$C$5)*$F$59)/$F17 ->  | CF15: =+(((1+$CC$15*$C$5)*($I18-$I$59))+$C$5*($J19-$J$59-(($B$59-$B15-$CC$15)*$I$59))+$C$6*(1+($B$59-$B15)*$C$5)*$F$59)/$F18 ->  | CG15: =+(((1+$CC$15*$C$5)*($I19-$I$59))+$C$5*($J20-$J$59-(($B$59-$B16-$CC$15)*$I$59))+$C$6*(1+($B$59-$B16)*$C$5)*$F$59)/$F19 ->  | CH15: =+(((1+$CC$15*$C$5)*($I20-$I$59))+$C$5*($J21-$J$59-(($B$59-$B17-$CC$15)*$I$59))+$C$6*(1+($B$59-$B17)*$C$5)*$F$59)/$F20 ->  | CI15: =+(((1+$CC$15*$C$5)*($I21-$I$59))+$C$5*($J22-$J$59-(($B$59-$B18-$CC$15)*$I$59))+$C$6*(1+($B$59-$B18)*$C$5)*$F$59)/$F21 ->  | CJ15: =+(((1+$CC$15*$C$5)*($I22-$I$59))+$C$5*($J23-$J$59-(($B$59-$B19-$CC$15)*$I$59))+$C$6*(1+($B$59-$B19)*$C$5)*$F$59)/$F22 ->  | CK15: =+(((1+$CC$15*$C$5)*($I23-$I$59))+$C$5*($J24-$J$59-(($B$59-$B20-$CC$15)*$I$59))+$C$6*(1+($B$59-$B20)*$C$5)*$F$59)/$F23 ->  | CL15: =+(((1+$CC$15*$C$5)*($I24-$I$59))+$C$5*($J25-$J$59-(($B$59-$B21-$CC$15)*$I$59))+$C$6*(1+($B$59-$B21)*$C$5)*$F$59)/$F24 ->  | CM15: =+(((1+$CC$15*$C$5)*($I25-$I$59))+$C$5*($J26-$J$59-(($B$59-$B22-$CC$15)*$I$59))+$C$6*(1+($B$59-$B22)*$C$5)*$F$59)/$F25 ->  | CN15: =+(((1+$CC$15*$C$5)*($I26-$I$59))+$C$5*($J27-$J$59-(($B$59-$B23-$CC$15)*$I$59))+$C$6*(1+($B$59-$B23)*$C$5)*$F$59)/$F26 ->  | CO15: =+(((1+$CC$15*$C$5)*($I27-$I$59))+$C$5*($J28-$J$59-(($B$59-$B24-$CC$15)*$I$59))+$C$6*(1+($B$59-$B24)*$C$5)*$F$59)/$F27 ->  | CP15: =+(((1+$CC$15*$C$5)*($I28-$I$59))+$C$5*($J29-$J$59-(($B$59-$B25-$CC$15)*$I$59))+$C$6*(1+($B$59-$B25)*$C$5)*$F$59)/$F28 ->  | CQ15: =+(((1+$CC$15*$C$5)*($I29-$I$59))+$C$5*($J30-$J$59-(($B$59-$B26-$CC$15)*$I$59))+$C$6*(1+($B$59-$B26)*$C$5)*$F$59)/$F29 ->  | CR15: =+(((1+$CC$15*$C$5)*($I30-$I$59))+$C$5*($J31-$J$59-(($B$59-$B27-$CC$15)*$I$59))+$C$6*(1+($B$59-$B27)*$C$5)*$F$59)/$F30 ->  | CS15: =+(((1+$CC$15*$C$5)*($I31-$I$59))+$C$5*($J32-$J$59-(($B$59-$B28-$CC$15)*$I$59))+$C$6*(1+($B$59-$B28)*$C$5)*$F$59)/$F31 ->  | CT15: =+(((1+$CC$15*$C$5)*($I32-$I$59))+$C$5*($J33-$J$59-(($B$59-$B29-$CC$15)*$I$59))+$C$6*(1+($B$59-$B29)*$C$5)*$F$59)/$F32 ->  | CU15: =+(((1+$CC$15*$C$5)*($I33-$I$59))+$C$5*($J34-$J$59-(($B$59-$B30-$CC$15)*$I$59))+$C$6*(1+($B$59-$B30)*$C$5)*$F$59)/$F33 ->  | CV15: =+(((1+$CC$15*$C$5)*($I34-$I$59))+$C$5*($J35-$J$59-(($B$59-$B31-$CC$15)*$I$59))+$C$6*(1+($B$59-$B31)*$C$5)*$F$59)/$F34 ->  | CW15: =+(((1+$CC$15*$C$5)*($I35-$I$59))+$C$5*($J36-$J$59-(($B$59-$B32-$CC$15)*$I$59))+$C$6*(1+($B$59-$B32)*$C$5)*$F$59)/$F35 ->  | CX15: =+(((1+$CC$15*$C$5)*($I36-$I$59))+$C$5*($J37-$J$59-(($B$59-$B33-$CC$15)*$I$59))+$C$6*(1+($B$59-$B33)*$C$5)*$F$59)/$F36 ->  | CY15: =+(((1+$CC$15*$C$5)*($I37-$I$59))+$C$5*($J38-$J$59-(($B$59-$B34-$CC$15)*$I$59))+$C$6*(1+($B$59-$B34)*$C$5)*$F$59)/$F37 ->  | CZ15: =+(((1+$CC$15*$C$5)*($I38-$I$59))+$C$5*($J39-$J$59-(($B$59-$B35-$CC$15)*$I$59))+$C$6*(1+($B$59-$B35)*$C$5)*$F$59)/$F38 ->  | DA15: =+(((1+$CC$15*$C$5)*($I39-$I$59))+$C$5*($J40-$J$59-(($B$59-$B36-$CC$15)*$I$59))+$C$6*(1+($B$59-$B36)*$C$5)*$F$59)/$F39 ->  | DB15: =+(((1+$CC$15*$C$5)*($I40-$I$59))+$C$5*($J41-$J$59-(($B$59-$B37-$CC$15)*$I$59))+$C$6*(1+($B$59-$B37)*$C$5)*$F$59)/$F40 ->  | DC15: =+(((1+$CC$15*$C$5)*($I41-$I$59))+$C$5*($J42-$J$59-(($B$59-$B38-$CC$15)*$I$59))+$C$6*(1+($B$59-$B38)*$C$5)*$F$59)/$F41 ->  | DD15: =+(((1+$CC$15*$C$5)*($I42-$I$59))+$C$5*($J43-$J$59-(($B$59-$B39-$CC$15)*$I$59))+$C$6*(1+($B$59-$B39)*$C$5)*$F$59)/$F42 ->  | DE15: =+(((1+$CC$15*$C$5)*($I43-$I$59))+$C$5*($J44-$J$59-(($B$59-$B40-$CC$15)*$I$59))+$C$6*(1+($B$59-$B40)*$C$5)*$F$59)/$F43 ->  | DF15: =+(((1+$CC$15*$C$5)*($I44-$I$59))+$C$5*($J45-$J$59-(($B$59-$B41-$CC$15)*$I$59))+$C$6*(1+($B$59-$B41)*$C$5)*$F$59)/$F44 ->  | DG15: =+(((1+$CC$15*$C$5)*($I45-$I$59))+$C$5*($J46-$J$59-(($B$59-$B42-$CC$15)*$I$59))+$C$6*(1+($B$59-$B42)*$C$5)*$F$59)/$F45 ->  | DH15: =+(((1+$CC$15*$C$5)*($I46-$I$59))+$C$5*($J47-$J$59-(($B$59-$B43-$CC$15)*$I$59))+$C$6*(1+($B$59-$B43)*$C$5)*$F$59)/$F46 ->  | DI15: =+(((1+$CC$15*$C$5)*($I47-$I$59))+$C$5*($J48-$J$59-(($B$59-$B44-$CC$15)*$I$59))+$C$6*(1+($B$59-$B44)*$C$5)*$F$59)/$F47 ->  | DJ15: =+(((1+$CC$15*$C$5)*($I48-$I$59))+$C$5*($J49-$J$59-(($B$59-$B45-$CC$15)*$I$59))+$C$6*(1+($B$59-$B45)*$C$5)*$F$59)/$F48 ->  | DK15: =+(((1+$CC$15*$C$5)*($I49-$I$59))+$C$5*($J50-$J$59-(($B$59-$B46-$CC$15)*$I$59))+$C$6*(1+($B$59-$B46)*$C$5)*$F$59)/$F49 ->  | DL15: =+(((1+$CC$15*$C$5)*($I50-$I$59))+$C$5*($J51-$J$59-(($B$59-$B47-$CC$15)*$I$59))+$C$6*(1+($B$59-$B47)*$C$5)*$F$59)/$F50 ->  | DM15: =+(((1+$CC$15*$C$5)*($I51-$I$59))+$C$5*($J52-$J$59-(($B$59-$B48-$CC$15)*$I$59))+$C$6*(1+($B$59-$B48)*$C$5)*$F$59)/$F51 ->  | DN15: =+(((1+$CC$15*$C$5)*($I52-$I$59))+$C$5*($J53-$J$59-(($B$59-$B49-$CC$15)*$I$59))+$C$6*(1+($B$59-$B49)*$C$5)*$F$59)/$F52 ->  | DO15: =+(((1+$CC$15*$C$5)*($I53-$I$59))+$C$5*($J54-$J$59-(($B$59-$B50-$CC$15)*$I$59))+$C$6*(1+($B$59-$B50)*$C$5)*$F$59)/$F53 ->  | DP15: =+(((1+$CC$15*$C$5)*($I54-$I$59))+$C$5*($J55-$J$59-(($B$59-$B51-$CC$15)*$I$59))+$C$6*(1+($B$59-$B51)*$C$5)*$F$59)/$F54 ->  | DQ15: =+(((1+$CC$15*$C$5)*($I55-$I$59))+$C$5*($J56-$J$59-(($B$59-$B52-$CC$15)*$I$59))+$C$6*(1+($B$59-$B52)*$C$5)*$F$59)/$F55 ->  | DR15: =+(((1+$CC$15*$C$5)*($I56-$I$59))+$C$5*($J57-$J$59-(($B$59-$B53-$CC$15)*$I$59))+$C$6*(1+($B$59-$B53)*$C$5)*$F$59)/$F56 ->  | DS15: =+(((1+$CC$15*$C$5)*($I57-$I$59))+$C$5*($J58-$J$59-(($B$59-$B54-$CC$15)*$I$59))+$C$6*(1+($B$59-$B54)*$C$5)*$F$59)/$F57 ->  | DT15: =+(((1+$CC$15*$C$5)*($I58-$I$59))+$C$5*($J59-$J$59-(($B$59-$B55-$CC$15)*$I$59))+$C$6*(1+($B$59-$B55)*$C$5)*$F$59)/$F58 ->  | DU15: =+(((1+$CC$15*$C$5)*($I59-$I$59))+$C$5*($J60-$J$59-(($B$59-$B56-$CC$15)*$I$59))+$C$6*(1+($B$59-$B56)*$C$5)*$F$59)/$F59 ->  | DZ15: 4 | EA15: =+((((1+$AK$15*$C$5)*($I16-$I$54))+$C$5*($J17-$J$54-(($B$54-$B13-$AK$15)*$I$54))+$C$6*(1+($B$54-$B13)*$C$5)*$F$54)/$F16)-$X12*(($G16-$G17)/$F16) ->  | EB15: =+((((1+$AK$15*$C$5)*($I17-$I$54))+$C$5*($J18-$J$54-(($B$54-$B14-$AK$15)*$I$54))+$C$6*(1+($B$54-$B14)*$C$5)*$F$54)/$F17)-$X13*(($G17-$G18)/$F17) ->  | EC15: =+((((1+$AK$15*$C$5)*($I18-$I$54))+$C$5*($J19-$J$54-(($B$54-$B15-$AK$15)*$I$54))+$C$6*(1+($B$54-$B15)*$C$5)*$F$54)/$F18)-$X14*(($G18-$G19)/$F18) ->  | ED15: =+((((1+$AK$15*$C$5)*($I19-$I$54))+$C$5*($J20-$J$54-(($B$54-$B16-$AK$15)*$I$54))+$C$6*(1+($B$54-$B16)*$C$5)*$F$54)/$F19)-$X15*(($G19-$G20)/$F19) ->  | EE15: =+((((1+$AK$15*$C$5)*($I20-$I$54))+$C$5*($J21-$J$54-(($B$54-$B17-$AK$15)*$I$54))+$C$6*(1+($B$54-$B17)*$C$5)*$F$54)/$F20)-$X16*(($G20-$G21)/$F20) ->  | EF15: =+((((1+$AK$15*$C$5)*($I21-$I$54))+$C$5*($J22-$J$54-(($B$54-$B18-$AK$15)*$I$54))+$C$6*(1+($B$54-$B18)*$C$5)*$F$54)/$F21)-$X17*(($G21-$G22)/$F21) ->  | EG15: =+((((1+$AK$15*$C$5)*($I22-$I$54))+$C$5*($J23-$J$54-(($B$54-$B19-$AK$15)*$I$54))+$C$6*(1+($B$54-$B19)*$C$5)*$F$54)/$F22)-$X18*(($G22-$G23)/$F22) ->  | EH15: =+((((1+$AK$15*$C$5)*($I23-$I$54))+$C$5*($J24-$J$54-(($B$54-$B20-$AK$15)*$I$54))+$C$6*(1+($B$54-$B20)*$C$5)*$F$54)/$F23)-$X19*(($G23-$G24)/$F23) ->  | EI15: =+((((1+$AK$15*$C$5)*($I24-$I$54))+$C$5*($J25-$J$54-(($B$54-$B21-$AK$15)*$I$54))+$C$6*(1+($B$54-$B21)*$C$5)*$F$54)/$F24)-$X20*(($G24-$G25)/$F24) ->  | EJ15: =+((((1+$AK$15*$C$5)*($I25-$I$54))+$C$5*($J26-$J$54-(($B$54-$B22-$AK$15)*$I$54))+$C$6*(1+($B$54-$B22)*$C$5)*$F$54)/$F25)-$X21*(($G25-$G26)/$F25) ->  | EK15: =+((((1+$AK$15*$C$5)*($I26-$I$54))+$C$5*($J27-$J$54-(($B$54-$B23-$AK$15)*$I$54))+$C$6*(1+($B$54-$B23)*$C$5)*$F$54)/$F26)-$X22*(($G26-$G27)/$F26) ->  | EL15: =+((((1+$AK$15*$C$5)*($I27-$I$54))+$C$5*($J28-$J$54-(($B$54-$B24-$AK$15)*$I$54))+$C$6*(1+($B$54-$B24)*$C$5)*$F$54)/$F27)-$X23*(($G27-$G28)/$F27) ->  | EM15: =+((((1+$AK$15*$C$5)*($I28-$I$54))+$C$5*($J29-$J$54-(($B$54-$B25-$AK$15)*$I$54))+$C$6*(1+($B$54-$B25)*$C$5)*$F$54)/$F28)-$X24*(($G28-$G29)/$F28) ->  | EN15: =+((((1+$AK$15*$C$5)*($I29-$I$54))+$C$5*($J30-$J$54-(($B$54-$B26-$AK$15)*$I$54))+$C$6*(1+($B$54-$B26)*$C$5)*$F$54)/$F29)-$X25*(($G29-$G30)/$F29) ->  | EO15: =+((((1+$AK$15*$C$5)*($I30-$I$54))+$C$5*($J31-$J$54-(($B$54-$B27-$AK$15)*$I$54))+$C$6*(1+($B$54-$B27)*$C$5)*$F$54)/$F30)-$X26*(($G30-$G31)/$F30) ->  | EP15: =+((((1+$AK$15*$C$5)*($I31-$I$54))+$C$5*($J32-$J$54-(($B$54-$B28-$AK$15)*$I$54))+$C$6*(1+($B$54-$B28)*$C$5)*$F$54)/$F31)-$X27*(($G31-$G32)/$F31) ->  | EQ15: =+((((1+$AK$15*$C$5)*($I32-$I$54))+$C$5*($J33-$J$54-(($B$54-$B29-$AK$15)*$I$54))+$C$6*(1+($B$54-$B29)*$C$5)*$F$54)/$F32)-$X28*(($G32-$G33)/$F32) ->  | ER15: =+((((1+$AK$15*$C$5)*($I33-$I$54))+$C$5*($J34-$J$54-(($B$54-$B30-$AK$15)*$I$54))+$C$6*(1+($B$54-$B30)*$C$5)*$F$54)/$F33)-$X29*(($G33-$G34)/$F33) ->  | ES15: =+((((1+$AK$15*$C$5)*($I34-$I$54))+$C$5*($J35-$J$54-(($B$54-$B31-$AK$15)*$I$54))+$C$6*(1+($B$54-$B31)*$C$5)*$F$54)/$F34)-$X30*(($G34-$G35)/$F34) ->  | ET15: =+((((1+$AK$15*$C$5)*($I35-$I$54))+$C$5*($J36-$J$54-(($B$54-$B32-$AK$15)*$I$54))+$C$6*(1+($B$54-$B32)*$C$5)*$F$54)/$F35)-$X31*(($G35-$G36)/$F35) ->  | EU15: =+((((1+$AK$15*$C$5)*($I36-$I$54))+$C$5*($J37-$J$54-(($B$54-$B33-$AK$15)*$I$54))+$C$6*(1+($B$54-$B33)*$C$5)*$F$54)/$F36)-$X32*(($G36-$G37)/$F36) ->  | EV15: =+((((1+$AK$15*$C$5)*($I37-$I$54))+$C$5*($J38-$J$54-(($B$54-$B34-$AK$15)*$I$54))+$C$6*(1+($B$54-$B34)*$C$5)*$F$54)/$F37)-$X33*(($G37-$G38)/$F37) ->  | EW15: =+((((1+$AK$15*$C$5)*($I38-$I$54))+$C$5*($J39-$J$54-(($B$54-$B35-$AK$15)*$I$54))+$C$6*(1+($B$54-$B35)*$C$5)*$F$54)/$F38)-$X34*(($G38-$G39)/$F38) ->  | EX15: =+((((1+$AK$15*$C$5)*($I39-$I$54))+$C$5*($J40-$J$54-(($B$54-$B36-$AK$15)*$I$54))+$C$6*(1+($B$54-$B36)*$C$5)*$F$54)/$F39)-$X35*(($G39-$G40)/$F39) ->  | EY15: =+((((1+$AK$15*$C$5)*($I40-$I$54))+$C$5*($J41-$J$54-(($B$54-$B37-$AK$15)*$I$54))+$C$6*(1+($B$54-$B37)*$C$5)*$F$54)/$F40)-$X36*(($G40-$G41)/$F40) ->  | EZ15: =+((((1+$AK$15*$C$5)*($I41-$I$54))+$C$5*($J42-$J$54-(($B$54-$B38-$AK$15)*$I$54))+$C$6*(1+($B$54-$B38)*$C$5)*$F$54)/$F41)-$X37*(($G41-$G42)/$F41) ->  | FA15: =+((((1+$AK$15*$C$5)*($I42-$I$54))+$C$5*($J43-$J$54-(($B$54-$B39-$AK$15)*$I$54))+$C$6*(1+($B$54-$B39)*$C$5)*$F$54)/$F42)-$X38*(($G42-$G43)/$F42) ->  | FB15: =+((((1+$AK$15*$C$5)*($I43-$I$54))+$C$5*($J44-$J$54-(($B$54-$B40-$AK$15)*$I$54))+$C$6*(1+($B$54-$B40)*$C$5)*$F$54)/$F43)-$X39*(($G43-$G44)/$F43) ->  | FC15: =+((((1+$AK$15*$C$5)*($I44-$I$54))+$C$5*($J45-$J$54-(($B$54-$B41-$AK$15)*$I$54))+$C$6*(1+($B$54-$B41)*$C$5)*$F$54)/$F44)-$X40*(($G44-$G45)/$F44) ->  | FD15: =+((((1+$AK$15*$C$5)*($I45-$I$54))+$C$5*($J46-$J$54-(($B$54-$B42-$AK$15)*$I$54))+$C$6*(1+($B$54-$B42)*$C$5)*$F$54)/$F45)-$X41*(($G45-$G46)/$F45) ->  | FE15: =+((((1+$AK$15*$C$5)*($I46-$I$54))+$C$5*($J47-$J$54-(($B$54-$B43-$AK$15)*$I$54))+$C$6*(1+($B$54-$B43)*$C$5)*$F$54)/$F46)-$X42*(($G46-$G47)/$F46) ->  | FF15: =+((((1+$AK$15*$C$5)*($I47-$I$54))+$C$5*($J48-$J$54-(($B$54-$B44-$AK$15)*$I$54))+$C$6*(1+($B$54-$B44)*$C$5)*$F$54)/$F47)-$X43*(($G47-$G48)/$F47) ->  | FG15: =+((((1+$AK$15*$C$5)*($I48-$I$54))+$C$5*($J49-$J$54-(($B$54-$B45-$AK$15)*$I$54))+$C$6*(1+($B$54-$B45)*$C$5)*$F$54)/$F48)-$X44*(($G48-$G49)/$F48) ->  | FH15: =+((((1+$AK$15*$C$5)*($I49-$I$54))+$C$5*($J50-$J$54-(($B$54-$B46-$AK$15)*$I$54))+$C$6*(1+($B$54-$B46)*$C$5)*$F$54)/$F49)-$X45*(($G49-$G50)/$F49) ->  | FI15: =+((((1+$AK$15*$C$5)*($I50-$I$54))+$C$5*($J51-$J$54-(($B$54-$B47-$AK$15)*$I$54))+$C$6*(1+($B$54-$B47)*$C$5)*$F$54)/$F50)-$X46*(($G50-$G51)/$F50) ->  | FJ15: =+((((1+$AK$15*$C$5)*($I51-$I$54))+$C$5*($J52-$J$54-(($B$54-$B48-$AK$15)*$I$54))+$C$6*(1+($B$54-$B48)*$C$5)*$F$54)/$F51)-$X47*(($G51-$G52)/$F51) ->  | FK15: =+((((1+$AK$15*$C$5)*($I52-$I$54))+$C$5*($J53-$J$54-(($B$54-$B49-$AK$15)*$I$54))+$C$6*(1+($B$54-$B49)*$C$5)*$F$54)/$F52)-$X48*(($G52-$G53)/$F52) ->  | FL15: =+((((1+$AK$15*$C$5)*($I53-$I$54))+$C$5*($J54-$J$54-(($B$54-$B50-$AK$15)*$I$54))+$C$6*(1+($B$54-$B50)*$C$5)*$F$54)/$F53)-$X49*(($G53-$G54)/$F53) ->  | FN15: 4 | FO15: =+((((1+$CC$15*$C$5)*($I16-$I$59))+$C$5*($J17-$J$59-(($B$59-$B13-$CC$15)*$I$59))+$C$6*(1+($B$59-$B13)*$C$5)*$F$59)/$F16)-$Y12*(($G16-$G17)/$F16) ->  | FP15: =+((((1+$CC$15*$C$5)*($I17-$I$59))+$C$5*($J18-$J$59-(($B$59-$B14-$CC$15)*$I$59))+$C$6*(1+($B$59-$B14)*$C$5)*$F$59)/$F17)-$Y13*(($G17-$G18)/$F17) ->  | FQ15: =+((((1+$CC$15*$C$5)*($I18-$I$59))+$C$5*($J19-$J$59-(($B$59-$B15-$CC$15)*$I$59))+$C$6*(1+($B$59-$B15)*$C$5)*$F$59)/$F18)-$Y14*(($G18-$G19)/$F18) ->  | FR15: =+((((1+$CC$15*$C$5)*($I19-$I$59))+$C$5*($J20-$J$59-(($B$59-$B16-$CC$15)*$I$59))+$C$6*(1+($B$59-$B16)*$C$5)*$F$59)/$F19)-$Y15*(($G19-$G20)/$F19) ->  | FS15: =+((((1+$CC$15*$C$5)*($I20-$I$59))+$C$5*($J21-$J$59-(($B$59-$B17-$CC$15)*$I$59))+$C$6*(1+($B$59-$B17)*$C$5)*$F$59)/$F20)-$Y16*(($G20-$G21)/$F20) ->  | FT15: =+((((1+$CC$15*$C$5)*($I21-$I$59))+$C$5*($J22-$J$59-(($B$59-$B18-$CC$15)*$I$59))+$C$6*(1+($B$59-$B18)*$C$5)*$F$59)/$F21)-$Y17*(($G21-$G22)/$F21) ->  | FU15: =+((((1+$CC$15*$C$5)*($I22-$I$59))+$C$5*($J23-$J$59-(($B$59-$B19-$CC$15)*$I$59))+$C$6*(1+($B$59-$B19)*$C$5)*$F$59)/$F22)-$Y18*(($G22-$G23)/$F22) ->  | FV15: =+((((1+$CC$15*$C$5)*($I23-$I$59))+$C$5*($J24-$J$59-(($B$59-$B20-$CC$15)*$I$59))+$C$6*(1+($B$59-$B20)*$C$5)*$F$59)/$F23)-$Y19*(($G23-$G24)/$F23) ->  | FW15: =+((((1+$CC$15*$C$5)*($I24-$I$59))+$C$5*($J25-$J$59-(($B$59-$B21-$CC$15)*$I$59))+$C$6*(1+($B$59-$B21)*$C$5)*$F$59)/$F24)-$Y20*(($G24-$G25)/$F24) ->  | FX15: =+((((1+$CC$15*$C$5)*($I25-$I$59))+$C$5*($J26-$J$59-(($B$59-$B22-$CC$15)*$I$59))+$C$6*(1+($B$59-$B22)*$C$5)*$F$59)/$F25)-$Y21*(($G25-$G26)/$F25) ->  | FY15: =+((((1+$CC$15*$C$5)*($I26-$I$59))+$C$5*($J27-$J$59-(($B$59-$B23-$CC$15)*$I$59))+$C$6*(1+($B$59-$B23)*$C$5)*$F$59)/$F26)-$Y22*(($G26-$G27)/$F26) ->  | FZ15: =+((((1+$CC$15*$C$5)*($I27-$I$59))+$C$5*($J28-$J$59-(($B$59-$B24-$CC$15)*$I$59))+$C$6*(1+($B$59-$B24)*$C$5)*$F$59)/$F27)-$Y23*(($G27-$G28)/$F27) ->  | GA15: =+((((1+$CC$15*$C$5)*($I28-$I$59))+$C$5*($J29-$J$59-(($B$59-$B25-$CC$15)*$I$59))+$C$6*(1+($B$59-$B25)*$C$5)*$F$59)/$F28)-$Y24*(($G28-$G29)/$F28) ->  | GB15: =+((((1+$CC$15*$C$5)*($I29-$I$59))+$C$5*($J30-$J$59-(($B$59-$B26-$CC$15)*$I$59))+$C$6*(1+($B$59-$B26)*$C$5)*$F$59)/$F29)-$Y25*(($G29-$G30)/$F29) ->  | GC15: =+((((1+$CC$15*$C$5)*($I30-$I$59))+$C$5*($J31-$J$59-(($B$59-$B27-$CC$15)*$I$59))+$C$6*(1+($B$59-$B27)*$C$5)*$F$59)/$F30)-$Y26*(($G30-$G31)/$F30) ->  | GD15: =+((((1+$CC$15*$C$5)*($I31-$I$59))+$C$5*($J32-$J$59-(($B$59-$B28-$CC$15)*$I$59))+$C$6*(1+($B$59-$B28)*$C$5)*$F$59)/$F31)-$Y27*(($G31-$G32)/$F31) ->  | GE15: =+((((1+$CC$15*$C$5)*($I32-$I$59))+$C$5*($J33-$J$59-(($B$59-$B29-$CC$15)*$I$59))+$C$6*(1+($B$59-$B29)*$C$5)*$F$59)/$F32)-$Y28*(($G32-$G33)/$F32) ->  | GF15: =+((((1+$CC$15*$C$5)*($I33-$I$59))+$C$5*($J34-$J$59-(($B$59-$B30-$CC$15)*$I$59))+$C$6*(1+($B$59-$B30)*$C$5)*$F$59)/$F33)-$Y29*(($G33-$G34)/$F33) ->  | GG15: =+((((1+$CC$15*$C$5)*($I34-$I$59))+$C$5*($J35-$J$59-(($B$59-$B31-$CC$15)*$I$59))+$C$6*(1+($B$59-$B31)*$C$5)*$F$59)/$F34)-$Y30*(($G34-$G35)/$F34) ->  | GH15: =+((((1+$CC$15*$C$5)*($I35-$I$59))+$C$5*($J36-$J$59-(($B$59-$B32-$CC$15)*$I$59))+$C$6*(1+($B$59-$B32)*$C$5)*$F$59)/$F35)-$Y31*(($G35-$G36)/$F35) ->  | GI15: =+((((1+$CC$15*$C$5)*($I36-$I$59))+$C$5*($J37-$J$59-(($B$59-$B33-$CC$15)*$I$59))+$C$6*(1+($B$59-$B33)*$C$5)*$F$59)/$F36)-$Y32*(($G36-$G37)/$F36) ->  | GJ15: =+((((1+$CC$15*$C$5)*($I37-$I$59))+$C$5*($J38-$J$59-(($B$59-$B34-$CC$15)*$I$59))+$C$6*(1+($B$59-$B34)*$C$5)*$F$59)/$F37)-$Y33*(($G37-$G38)/$F37) ->  | GK15: =+((((1+$CC$15*$C$5)*($I38-$I$59))+$C$5*($J39-$J$59-(($B$59-$B35-$CC$15)*$I$59))+$C$6*(1+($B$59-$B35)*$C$5)*$F$59)/$F38)-$Y34*(($G38-$G39)/$F38) ->  | GL15: =+((((1+$CC$15*$C$5)*($I39-$I$59))+$C$5*($J40-$J$59-(($B$59-$B36-$CC$15)*$I$59))+$C$6*(1+($B$59-$B36)*$C$5)*$F$59)/$F39)-$Y35*(($G39-$G40)/$F39) ->  | GM15: =+((((1+$CC$15*$C$5)*($I40-$I$59))+$C$5*($J41-$J$59-(($B$59-$B37-$CC$15)*$I$59))+$C$6*(1+($B$59-$B37)*$C$5)*$F$59)/$F40)-$Y36*(($G40-$G41)/$F40) ->  | GN15: =+((((1+$CC$15*$C$5)*($I41-$I$59))+$C$5*($J42-$J$59-(($B$59-$B38-$CC$15)*$I$59))+$C$6*(1+($B$59-$B38)*$C$5)*$F$59)/$F41)-$Y37*(($G41-$G42)/$F41) ->  | GO15: =+((((1+$CC$15*$C$5)*($I42-$I$59))+$C$5*($J43-$J$59-(($B$59-$B39-$CC$15)*$I$59))+$C$6*(1+($B$59-$B39)*$C$5)*$F$59)/$F42)-$Y38*(($G42-$G43)/$F42) ->  | GP15: =+((((1+$CC$15*$C$5)*($I43-$I$59))+$C$5*($J44-$J$59-(($B$59-$B40-$CC$15)*$I$59))+$C$6*(1+($B$59-$B40)*$C$5)*$F$59)/$F43)-$Y39*(($G43-$G44)/$F43) ->  | GQ15: =+((((1+$CC$15*$C$5)*($I44-$I$59))+$C$5*($J45-$J$59-(($B$59-$B41-$CC$15)*$I$59))+$C$6*(1+($B$59-$B41)*$C$5)*$F$59)/$F44)-$Y40*(($G44-$G45)/$F44) ->  | GR15: =+((((1+$CC$15*$C$5)*($I45-$I$59))+$C$5*($J46-$J$59-(($B$59-$B42-$CC$15)*$I$59))+$C$6*(1+($B$59-$B42)*$C$5)*$F$59)/$F45)-$Y41*(($G45-$G46)/$F45) ->  | GS15: =+((((1+$CC$15*$C$5)*($I46-$I$59))+$C$5*($J47-$J$59-(($B$59-$B43-$CC$15)*$I$59))+$C$6*(1+($B$59-$B43)*$C$5)*$F$59)/$F46)-$Y42*(($G46-$G47)/$F46) ->  | GT15: =+((((1+$CC$15*$C$5)*($I47-$I$59))+$C$5*($J48-$J$59-(($B$59-$B44-$CC$15)*$I$59))+$C$6*(1+($B$59-$B44)*$C$5)*$F$59)/$F47)-$Y43*(($G47-$G48)/$F47) ->  | GU15: =+((((1+$CC$15*$C$5)*($I48-$I$59))+$C$5*($J49-$J$59-(($B$59-$B45-$CC$15)*$I$59))+$C$6*(1+($B$59-$B45)*$C$5)*$F$59)/$F48)-$Y44*(($G48-$G49)/$F48) ->  | GV15: =+((((1+$CC$15*$C$5)*($I49-$I$59))+$C$5*($J50-$J$59-(($B$59-$B46-$CC$15)*$I$59))+$C$6*(1+($B$59-$B46)*$C$5)*$F$59)/$F49)-$Y45*(($G49-$G50)/$F49) ->  | GW15: =+((((1+$CC$15*$C$5)*($I50-$I$59))+$C$5*($J51-$J$59-(($B$59-$B47-$CC$15)*$I$59))+$C$6*(1+($B$59-$B47)*$C$5)*$F$59)/$F50)-$Y46*(($G50-$G51)/$F50) ->  | GX15: =+((((1+$CC$15*$C$5)*($I51-$I$59))+$C$5*($J52-$J$59-(($B$59-$B48-$CC$15)*$I$59))+$C$6*(1+($B$59-$B48)*$C$5)*$F$59)/$F51)-$Y47*(($G51-$G52)/$F51) ->  | GY15: =+((((1+$CC$15*$C$5)*($I52-$I$59))+$C$5*($J53-$J$59-(($B$59-$B49-$CC$15)*$I$59))+$C$6*(1+($B$59-$B49)*$C$5)*$F$59)/$F52)-$Y48*(($G52-$G53)/$F52) ->  | GZ15: =+((((1+$CC$15*$C$5)*($I53-$I$59))+$C$5*($J54-$J$59-(($B$59-$B50-$CC$15)*$I$59))+$C$6*(1+($B$59-$B50)*$C$5)*$F$59)/$F53)-$Y49*(($G53-$G54)/$F53) ->  | HA15: =+((((1+$CC$15*$C$5)*($I54-$I$59))+$C$5*($J55-$J$59-(($B$59-$B51-$CC$15)*$I$59))+$C$6*(1+($B$59-$B51)*$C$5)*$F$59)/$F54)-$Y50*(($G54-$G55)/$F54) ->  | HB15: =+((((1+$CC$15*$C$5)*($I55-$I$59))+$C$5*($J56-$J$59-(($B$59-$B52-$CC$15)*$I$59))+$C$6*(1+($B$59-$B52)*$C$5)*$F$59)/$F55)-$Y51*(($G55-$G56)/$F55) ->  | HC15: =+((((1+$CC$15*$C$5)*($I56-$I$59))+$C$5*($J57-$J$59-(($B$59-$B53-$CC$15)*$I$59))+$C$6*(1+($B$59-$B53)*$C$5)*$F$59)/$F56)-$Y52*(($G56-$G57)/$F56) ->  | HD15: =+((((1+$CC$15*$C$5)*($I57-$I$59))+$C$5*($J58-$J$59-(($B$59-$B54-$CC$15)*$I$59))+$C$6*(1+($B$59-$B54)*$C$5)*$F$59)/$F57)-$Y53*(($G57-$G58)/$F57) ->  | HE15: =+((((1+$CC$15*$C$5)*($I58-$I$59))+$C$5*($J59-$J$59-(($B$59-$B55-$CC$15)*$I$59))+$C$6*(1+($B$59-$B55)*$C$5)*$F$59)/$F58)-$Y54*(($G58-$G59)/$F58) ->  | HG15: 4 | HH15: =+((((1+$AK$15*$C$5)*($I16-$I$54))+$C$5*($J17-$J$54-(($B$54-$B13-$AK$15)*$I$54))+$C$6*(1+($B$54-$B13)*$C$5)*$F$54)/$F16)-$Z12*(($G16-$G$54)/$F16) ->  | HI15: =+((((1+$AK$15*$C$5)*($I17-$I$54))+$C$5*($J18-$J$54-(($B$54-$B14-$AK$15)*$I$54))+$C$6*(1+($B$54-$B14)*$C$5)*$F$54)/$F17)-$Z13*(($G17-$G$54)/$F17) ->  | HJ15: =+((((1+$AK$15*$C$5)*($I18-$I$54))+$C$5*($J19-$J$54-(($B$54-$B15-$AK$15)*$I$54))+$C$6*(1+($B$54-$B15)*$C$5)*$F$54)/$F18)-$Z14*(($G18-$G$54)/$F18) ->  | HK15: =+((((1+$AK$15*$C$5)*($I19-$I$54))+$C$5*($J20-$J$54-(($B$54-$B16-$AK$15)*$I$54))+$C$6*(1+($B$54-$B16)*$C$5)*$F$54)/$F19)-$Z15*(($G19-$G$54)/$F19) ->  | HL15: =+((((1+$AK$15*$C$5)*($I20-$I$54))+$C$5*($J21-$J$54-(($B$54-$B17-$AK$15)*$I$54))+$C$6*(1+($B$54-$B17)*$C$5)*$F$54)/$F20)-$Z16*(($G20-$G$54)/$F20) ->  | HM15: =+((((1+$AK$15*$C$5)*($I21-$I$54))+$C$5*($J22-$J$54-(($B$54-$B18-$AK$15)*$I$54))+$C$6*(1+($B$54-$B18)*$C$5)*$F$54)/$F21)-$Z17*(($G21-$G$54)/$F21) ->  | HN15: =+((((1+$AK$15*$C$5)*($I22-$I$54))+$C$5*($J23-$J$54-(($B$54-$B19-$AK$15)*$I$54))+$C$6*(1+($B$54-$B19)*$C$5)*$F$54)/$F22)-$Z18*(($G22-$G$54)/$F22) ->  | HO15: =+((((1+$AK$15*$C$5)*($I23-$I$54))+$C$5*($J24-$J$54-(($B$54-$B20-$AK$15)*$I$54))+$C$6*(1+($B$54-$B20)*$C$5)*$F$54)/$F23)-$Z19*(($G23-$G$54)/$F23) ->  | HP15: =+((((1+$AK$15*$C$5)*($I24-$I$54))+$C$5*($J25-$J$54-(($B$54-$B21-$AK$15)*$I$54))+$C$6*(1+($B$54-$B21)*$C$5)*$F$54)/$F24)-$Z20*(($G24-$G$54)/$F24) ->  | HQ15: =+((((1+$AK$15*$C$5)*($I25-$I$54))+$C$5*($J26-$J$54-(($B$54-$B22-$AK$15)*$I$54))+$C$6*(1+($B$54-$B22)*$C$5)*$F$54)/$F25)-$Z21*(($G25-$G$54)/$F25) ->  | HR15: =+((((1+$AK$15*$C$5)*($I26-$I$54))+$C$5*($J27-$J$54-(($B$54-$B23-$AK$15)*$I$54))+$C$6*(1+($B$54-$B23)*$C$5)*$F$54)/$F26)-$Z22*(($G26-$G$54)/$F26) ->  | HS15: =+((((1+$AK$15*$C$5)*($I27-$I$54))+$C$5*($J28-$J$54-(($B$54-$B24-$AK$15)*$I$54))+$C$6*(1+($B$54-$B24)*$C$5)*$F$54)/$F27)-$Z23*(($G27-$G$54)/$F27) ->  | HT15: =+((((1+$AK$15*$C$5)*($I28-$I$54))+$C$5*($J29-$J$54-(($B$54-$B25-$AK$15)*$I$54))+$C$6*(1+($B$54-$B25)*$C$5)*$F$54)/$F28)-$Z24*(($G28-$G$54)/$F28) ->  | HU15: =+((((1+$AK$15*$C$5)*($I29-$I$54))+$C$5*($J30-$J$54-(($B$54-$B26-$AK$15)*$I$54))+$C$6*(1+($B$54-$B26)*$C$5)*$F$54)/$F29)-$Z25*(($G29-$G$54)/$F29) ->  | HV15: =+((((1+$AK$15*$C$5)*($I30-$I$54))+$C$5*($J31-$J$54-(($B$54-$B27-$AK$15)*$I$54))+$C$6*(1+($B$54-$B27)*$C$5)*$F$54)/$F30)-$Z26*(($G30-$G$54)/$F30) ->  | HW15: =+((((1+$AK$15*$C$5)*($I31-$I$54))+$C$5*($J32-$J$54-(($B$54-$B28-$AK$15)*$I$54))+$C$6*(1+($B$54-$B28)*$C$5)*$F$54)/$F31)-$Z27*(($G31-$G$54)/$F31) ->  | HX15: =+((((1+$AK$15*$C$5)*($I32-$I$54))+$C$5*($J33-$J$54-(($B$54-$B29-$AK$15)*$I$54))+$C$6*(1+($B$54-$B29)*$C$5)*$F$54)/$F32)-$Z28*(($G32-$G$54)/$F32) ->  | HY15: =+((((1+$AK$15*$C$5)*($I33-$I$54))+$C$5*($J34-$J$54-(($B$54-$B30-$AK$15)*$I$54))+$C$6*(1+($B$54-$B30)*$C$5)*$F$54)/$F33)-$Z29*(($G33-$G$54)/$F33) ->  | HZ15: =+((((1+$AK$15*$C$5)*($I34-$I$54))+$C$5*($J35-$J$54-(($B$54-$B31-$AK$15)*$I$54))+$C$6*(1+($B$54-$B31)*$C$5)*$F$54)/$F34)-$Z30*(($G34-$G$54)/$F34) ->  | IA15: =+((((1+$AK$15*$C$5)*($I35-$I$54))+$C$5*($J36-$J$54-(($B$54-$B32-$AK$15)*$I$54))+$C$6*(1+($B$54-$B32)*$C$5)*$F$54)/$F35)-$Z31*(($G35-$G$54)/$F35) ->  | IB15: =+((((1+$AK$15*$C$5)*($I36-$I$54))+$C$5*($J37-$J$54-(($B$54-$B33-$AK$15)*$I$54))+$C$6*(1+($B$54-$B33)*$C$5)*$F$54)/$F36)-$Z32*(($G36-$G$54)/$F36) ->  | IC15: =+((((1+$AK$15*$C$5)*($I37-$I$54))+$C$5*($J38-$J$54-(($B$54-$B34-$AK$15)*$I$54))+$C$6*(1+($B$54-$B34)*$C$5)*$F$54)/$F37)-$Z33*(($G37-$G$54)/$F37) ->  | ID15: =+((((1+$AK$15*$C$5)*($I38-$I$54))+$C$5*($J39-$J$54-(($B$54-$B35-$AK$15)*$I$54))+$C$6*(1+($B$54-$B35)*$C$5)*$F$54)/$F38)-$Z34*(($G38-$G$54)/$F38) ->  | IE15: =+((((1+$AK$15*$C$5)*($I39-$I$54))+$C$5*($J40-$J$54-(($B$54-$B36-$AK$15)*$I$54))+$C$6*(1+($B$54-$B36)*$C$5)*$F$54)/$F39)-$Z35*(($G39-$G$54)/$F39) ->  | IF15: =+((((1+$AK$15*$C$5)*($I40-$I$54))+$C$5*($J41-$J$54-(($B$54-$B37-$AK$15)*$I$54))+$C$6*(1+($B$54-$B37)*$C$5)*$F$54)/$F40)-$Z36*(($G40-$G$54)/$F40) ->  | IG15: =+((((1+$AK$15*$C$5)*($I41-$I$54))+$C$5*($J42-$J$54-(($B$54-$B38-$AK$15)*$I$54))+$C$6*(1+($B$54-$B38)*$C$5)*$F$54)/$F41)-$Z37*(($G41-$G$54)/$F41) ->  | IH15: =+((((1+$AK$15*$C$5)*($I42-$I$54))+$C$5*($J43-$J$54-(($B$54-$B39-$AK$15)*$I$54))+$C$6*(1+($B$54-$B39)*$C$5)*$F$54)/$F42)-$Z38*(($G42-$G$54)/$F42) ->  | II15: =+((((1+$AK$15*$C$5)*($I43-$I$54))+$C$5*($J44-$J$54-(($B$54-$B40-$AK$15)*$I$54))+$C$6*(1+($B$54-$B40)*$C$5)*$F$54)/$F43)-$Z39*(($G43-$G$54)/$F43) ->  | IJ15: =+((((1+$AK$15*$C$5)*($I44-$I$54))+$C$5*($J45-$J$54-(($B$54-$B41-$AK$15)*$I$54))+$C$6*(1+($B$54-$B41)*$C$5)*$F$54)/$F44)-$Z40*(($G44-$G$54)/$F44) ->  | IK15: =+((((1+$AK$15*$C$5)*($I45-$I$54))+$C$5*($J46-$J$54-(($B$54-$B42-$AK$15)*$I$54))+$C$6*(1+($B$54-$B42)*$C$5)*$F$54)/$F45)-$Z41*(($G45-$G$54)/$F45) ->  | IL15: =+((((1+$AK$15*$C$5)*($I46-$I$54))+$C$5*($J47-$J$54-(($B$54-$B43-$AK$15)*$I$54))+$C$6*(1+($B$54-$B43)*$C$5)*$F$54)/$F46)-$Z42*(($G46-$G$54)/$F46) ->  | IM15: =+((((1+$AK$15*$C$5)*($I47-$I$54))+$C$5*($J48-$J$54-(($B$54-$B44-$AK$15)*$I$54))+$C$6*(1+($B$54-$B44)*$C$5)*$F$54)/$F47)-$Z43*(($G47-$G$54)/$F47) ->  | IN15: =+((((1+$AK$15*$C$5)*($I48-$I$54))+$C$5*($J49-$J$54-(($B$54-$B45-$AK$15)*$I$54))+$C$6*(1+($B$54-$B45)*$C$5)*$F$54)/$F48)-$Z44*(($G48-$G$54)/$F48) ->  | IO15: =+((((1+$AK$15*$C$5)*($I49-$I$54))+$C$5*($J50-$J$54-(($B$54-$B46-$AK$15)*$I$54))+$C$6*(1+($B$54-$B46)*$C$5)*$F$54)/$F49)-$Z45*(($G49-$G$54)/$F49) ->  | IP15: =+((((1+$AK$15*$C$5)*($I50-$I$54))+$C$5*($J51-$J$54-(($B$54-$B47-$AK$15)*$I$54))+$C$6*(1+($B$54-$B47)*$C$5)*$F$54)/$F50)-$Z46*(($G50-$G$54)/$F50) ->  | IQ15: =+((((1+$AK$15*$C$5)*($I51-$I$54))+$C$5*($J52-$J$54-(($B$54-$B48-$AK$15)*$I$54))+$C$6*(1+($B$54-$B48)*$C$5)*$F$54)/$F51)-$Z47*(($G51-$G$54)/$F51) ->  | IR15: =+((((1+$AK$15*$C$5)*($I52-$I$54))+$C$5*($J53-$J$54-(($B$54-$B49-$AK$15)*$I$54))+$C$6*(1+($B$54-$B49)*$C$5)*$F$54)/$F52)-$Z48*(($G52-$G$54)/$F52) ->  | IS15: =+((((1+$AK$15*$C$5)*($I53-$I$54))+$C$5*($J54-$J$54-(($B$54-$B50-$AK$15)*$I$54))+$C$6*(1+($B$54-$B50)*$C$5)*$F$54)/$F53)-$Z49*(($G53-$G$54)/$F53) ->  | IT15: =+((((1+$AK$15*$C$5)*($I54-$I$54))+$C$5*($J55-$J$54-(($B$54-$B51-$AK$15)*$I$54))+$C$6*(1+($B$54-$B51)*$C$5)*$F$54)/$F54)-$Z50*(($G54-$G$54)/$F54) ->  | IY15: 4 | IZ15: =+((((1+$CC$15*$C$5)*($I16-$I$59))+$C$5*($J17-$J$59-(($B$59-$B13-$CC$15)*$I$59))+$C$6*(1+($B$59-$B13)*$C$5)*$F$59)/$F16)-$AA12*(($G16-$G$59)/$F16) ->  | JA15: =+((((1+$CC$15*$C$5)*($I17-$I$59))+$C$5*($J18-$J$59-(($B$59-$B14-$CC$15)*$I$59))+$C$6*(1+($B$59-$B14)*$C$5)*$F$59)/$F17)-$AA13*(($G17-$G$59)/$F17) ->  | JB15: =+((((1+$CC$15*$C$5)*($I18-$I$59))+$C$5*($J19-$J$59-(($B$59-$B15-$CC$15)*$I$59))+$C$6*(1+($B$59-$B15)*$C$5)*$F$59)/$F18)-$AA14*(($G18-$G$59)/$F18) ->  | JC15: =+((((1+$CC$15*$C$5)*($I19-$I$59))+$C$5*($J20-$J$59-(($B$59-$B16-$CC$15)*$I$59))+$C$6*(1+($B$59-$B16)*$C$5)*$F$59)/$F19)-$AA15*(($G19-$G$59)/$F19) ->  | JD15: =+((((1+$CC$15*$C$5)*($I20-$I$59))+$C$5*($J21-$J$59-(($B$59-$B17-$CC$15)*$I$59))+$C$6*(1+($B$59-$B17)*$C$5)*$F$59)/$F20)-$AA16*(($G20-$G$59)/$F20) ->  | JE15: =+((((1+$CC$15*$C$5)*($I21-$I$59))+$C$5*($J22-$J$59-(($B$59-$B18-$CC$15)*$I$59))+$C$6*(1+($B$59-$B18)*$C$5)*$F$59)/$F21)-$AA17*(($G21-$G$59)/$F21) ->  | JF15: =+((((1+$CC$15*$C$5)*($I22-$I$59))+$C$5*($J23-$J$59-(($B$59-$B19-$CC$15)*$I$59))+$C$6*(1+($B$59-$B19)*$C$5)*$F$59)/$F22)-$AA18*(($G22-$G$59)/$F22) ->  | JG15: =+((((1+$CC$15*$C$5)*($I23-$I$59))+$C$5*($J24-$J$59-(($B$59-$B20-$CC$15)*$I$59))+$C$6*(1+($B$59-$B20)*$C$5)*$F$59)/$F23)-$AA19*(($G23-$G$59)/$F23) ->  | JH15: =+((((1+$CC$15*$C$5)*($I24-$I$59))+$C$5*($J25-$J$59-(($B$59-$B21-$CC$15)*$I$59))+$C$6*(1+($B$59-$B21)*$C$5)*$F$59)/$F24)-$AA20*(($G24-$G$59)/$F24) ->  | JI15: =+((((1+$CC$15*$C$5)*($I25-$I$59))+$C$5*($J26-$J$59-(($B$59-$B22-$CC$15)*$I$59))+$C$6*(1+($B$59-$B22)*$C$5)*$F$59)/$F25)-$AA21*(($G25-$G$59)/$F25) ->  | JJ15: =+((((1+$CC$15*$C$5)*($I26-$I$59))+$C$5*($J27-$J$59-(($B$59-$B23-$CC$15)*$I$59))+$C$6*(1+($B$59-$B23)*$C$5)*$F$59)/$F26)-$AA22*(($G26-$G$59)/$F26) ->  | JK15: =+((((1+$CC$15*$C$5)*($I27-$I$59))+$C$5*($J28-$J$59-(($B$59-$B24-$CC$15)*$I$59))+$C$6*(1+($B$59-$B24)*$C$5)*$F$59)/$F27)-$AA23*(($G27-$G$59)/$F27) ->  | JL15: =+((((1+$CC$15*$C$5)*($I28-$I$59))+$C$5*($J29-$J$59-(($B$59-$B25-$CC$15)*$I$59))+$C$6*(1+($B$59-$B25)*$C$5)*$F$59)/$F28)-$AA24*(($G28-$G$59)/$F28) ->  | JM15: =+((((1+$CC$15*$C$5)*($I29-$I$59))+$C$5*($J30-$J$59-(($B$59-$B26-$CC$15)*$I$59))+$C$6*(1+($B$59-$B26)*$C$5)*$F$59)/$F29)-$AA25*(($G29-$G$59)/$F29) ->  | JN15: =+((((1+$CC$15*$C$5)*($I30-$I$59))+$C$5*($J31-$J$59-(($B$59-$B27-$CC$15)*$I$59))+$C$6*(1+($B$59-$B27)*$C$5)*$F$59)/$F30)-$AA26*(($G30-$G$59)/$F30) ->  | JO15: =+((((1+$CC$15*$C$5)*($I31-$I$59))+$C$5*($J32-$J$59-(($B$59-$B28-$CC$15)*$I$59))+$C$6*(1+($B$59-$B28)*$C$5)*$F$59)/$F31)-$AA27*(($G31-$G$59)/$F31) ->  | JP15: =+((((1+$CC$15*$C$5)*($I32-$I$59))+$C$5*($J33-$J$59-(($B$59-$B29-$CC$15)*$I$59))+$C$6*(1+($B$59-$B29)*$C$5)*$F$59)/$F32)-$AA28*(($G32-$G$59)/$F32) ->  | JQ15: =+((((1+$CC$15*$C$5)*($I33-$I$59))+$C$5*($J34-$J$59-(($B$59-$B30-$CC$15)*$I$59))+$C$6*(1+($B$59-$B30)*$C$5)*$F$59)/$F33)-$AA29*(($G33-$G$59)/$F33) ->  | JR15: =+((((1+$CC$15*$C$5)*($I34-$I$59))+$C$5*($J35-$J$59-(($B$59-$B31-$CC$15)*$I$59))+$C$6*(1+($B$59-$B31)*$C$5)*$F$59)/$F34)-$AA30*(($G34-$G$59)/$F34) ->  | JS15: =+((((1+$CC$15*$C$5)*($I35-$I$59))+$C$5*($J36-$J$59-(($B$59-$B32-$CC$15)*$I$59))+$C$6*(1+($B$59-$B32)*$C$5)*$F$59)/$F35)-$AA31*(($G35-$G$59)/$F35) ->  | JT15: =+((((1+$CC$15*$C$5)*($I36-$I$59))+$C$5*($J37-$J$59-(($B$59-$B33-$CC$15)*$I$59))+$C$6*(1+($B$59-$B33)*$C$5)*$F$59)/$F36)-$AA32*(($G36-$G$59)/$F36) ->  | JU15: =+((((1+$CC$15*$C$5)*($I37-$I$59))+$C$5*($J38-$J$59-(($B$59-$B34-$CC$15)*$I$59))+$C$6*(1+($B$59-$B34)*$C$5)*$F$59)/$F37)-$AA33*(($G37-$G$59)/$F37) ->  | JV15: =+((((1+$CC$15*$C$5)*($I38-$I$59))+$C$5*($J39-$J$59-(($B$59-$B35-$CC$15)*$I$59))+$C$6*(1+($B$59-$B35)*$C$5)*$F$59)/$F38)-$AA34*(($G38-$G$59)/$F38) ->  | JW15: =+((((1+$CC$15*$C$5)*($I39-$I$59))+$C$5*($J40-$J$59-(($B$59-$B36-$CC$15)*$I$59))+$C$6*(1+($B$59-$B36)*$C$5)*$F$59)/$F39)-$AA35*(($G39-$G$59)/$F39) ->  | JX15: =+((((1+$CC$15*$C$5)*($I40-$I$59))+$C$5*($J41-$J$59-(($B$59-$B37-$CC$15)*$I$59))+$C$6*(1+($B$59-$B37)*$C$5)*$F$59)/$F40)-$AA36*(($G40-$G$59)/$F40) ->  | JY15: =+((((1+$CC$15*$C$5)*($I41-$I$59))+$C$5*($J42-$J$59-(($B$59-$B38-$CC$15)*$I$59))+$C$6*(1+($B$59-$B38)*$C$5)*$F$59)/$F41)-$AA37*(($G41-$G$59)/$F41) ->  | JZ15: =+((((1+$CC$15*$C$5)*($I42-$I$59))+$C$5*($J43-$J$59-(($B$59-$B39-$CC$15)*$I$59))+$C$6*(1+($B$59-$B39)*$C$5)*$F$59)/$F42)-$AA38*(($G42-$G$59)/$F42) ->  | KA15: =+((((1+$CC$15*$C$5)*($I43-$I$59))+$C$5*($J44-$J$59-(($B$59-$B40-$CC$15)*$I$59))+$C$6*(1+($B$59-$B40)*$C$5)*$F$59)/$F43)-$AA39*(($G43-$G$59)/$F43) ->  | KB15: =+((((1+$CC$15*$C$5)*($I44-$I$59))+$C$5*($J45-$J$59-(($B$59-$B41-$CC$15)*$I$59))+$C$6*(1+($B$59-$B41)*$C$5)*$F$59)/$F44)-$AA40*(($G44-$G$59)/$F44) ->  | KC15: =+((((1+$CC$15*$C$5)*($I45-$I$59))+$C$5*($J46-$J$59-(($B$59-$B42-$CC$15)*$I$59))+$C$6*(1+($B$59-$B42)*$C$5)*$F$59)/$F45)-$AA41*(($G45-$G$59)/$F45) ->  | KD15: =+((((1+$CC$15*$C$5)*($I46-$I$59))+$C$5*($J47-$J$59-(($B$59-$B43-$CC$15)*$I$59))+$C$6*(1+($B$59-$B43)*$C$5)*$F$59)/$F46)-$AA42*(($G46-$G$59)/$F46) ->  | KE15: =+((((1+$CC$15*$C$5)*($I47-$I$59))+$C$5*($J48-$J$59-(($B$59-$B44-$CC$15)*$I$59))+$C$6*(1+($B$59-$B44)*$C$5)*$F$59)/$F47)-$AA43*(($G47-$G$59)/$F47) ->  | KF15: =+((((1+$CC$15*$C$5)*($I48-$I$59))+$C$5*($J49-$J$59-(($B$59-$B45-$CC$15)*$I$59))+$C$6*(1+($B$59-$B45)*$C$5)*$F$59)/$F48)-$AA44*(($G48-$G$59)/$F48) ->  | KG15: =+((((1+$CC$15*$C$5)*($I49-$I$59))+$C$5*($J50-$J$59-(($B$59-$B46-$CC$15)*$I$59))+$C$6*(1+($B$59-$B46)*$C$5)*$F$59)/$F49)-$AA45*(($G49-$G$59)/$F49) ->  | KH15: =+((((1+$CC$15*$C$5)*($I50-$I$59))+$C$5*($J51-$J$59-(($B$59-$B47-$CC$15)*$I$59))+$C$6*(1+($B$59-$B47)*$C$5)*$F$59)/$F50)-$AA46*(($G50-$G$59)/$F50) ->  | KI15: =+((((1+$CC$15*$C$5)*($I51-$I$59))+$C$5*($J52-$J$59-(($B$59-$B48-$CC$15)*$I$59))+$C$6*(1+($B$59-$B48)*$C$5)*$F$59)/$F51)-$AA47*(($G51-$G$59)/$F51) ->  | KJ15: =+((((1+$CC$15*$C$5)*($I52-$I$59))+$C$5*($J53-$J$59-(($B$59-$B49-$CC$15)*$I$59))+$C$6*(1+($B$59-$B49)*$C$5)*$F$59)/$F52)-$AA48*(($G52-$G$59)/$F52) ->  | KK15: =+((((1+$CC$15*$C$5)*($I53-$I$59))+$C$5*($J54-$J$59-(($B$59-$B50-$CC$15)*$I$59))+$C$6*(1+($B$59-$B50)*$C$5)*$F$59)/$F53)-$AA49*(($G53-$G$59)/$F53) ->  | KL15: =+((((1+$CC$15*$C$5)*($I54-$I$59))+$C$5*($J55-$J$59-(($B$59-$B51-$CC$15)*$I$59))+$C$6*(1+($B$59-$B51)*$C$5)*$F$59)/$F54)-$AA50*(($G54-$G$59)/$F54) ->  | KM15: =+((((1+$CC$15*$C$5)*($I55-$I$59))+$C$5*($J56-$J$59-(($B$59-$B52-$CC$15)*$I$59))+$C$6*(1+($B$59-$B52)*$C$5)*$F$59)/$F55)-$AA51*(($G55-$G$59)/$F55) ->  | KN15: =+((((1+$CC$15*$C$5)*($I56-$I$59))+$C$5*($J57-$J$59-(($B$59-$B53-$CC$15)*$I$59))+$C$6*(1+($B$59-$B53)*$C$5)*$F$59)/$F56)-$AA52*(($G56-$G$59)/$F56) ->  | KO15: =+((((1+$CC$15*$C$5)*($I57-$I$59))+$C$5*($J58-$J$59-(($B$59-$B54-$CC$15)*$I$59))+$C$6*(1+($B$59-$B54)*$C$5)*$F$59)/$F57)-$AA53*(($G57-$G$59)/$F57) ->  | KP15: =+((((1+$CC$15*$C$5)*($I58-$I$59))+$C$5*($J59-$J$59-(($B$59-$B55-$CC$15)*$I$59))+$C$6*(1+($B$59-$B55)*$C$5)*$F$59)/$F58)-$AA54*(($G58-$G$59)/$F58) ->  | KQ15: =+((((1+$CC$15*$C$5)*($I59-$I$59))+$C$5*($J60-$J$59-(($B$59-$B56-$CC$15)*$I$59))+$C$6*(1+($B$59-$B56)*$C$5)*$F$59)/$F59)-$AA55*(($G59-$G$59)/$F59) -> 
B16: 22 | C16: 99286 | D16: 361 | E16: 0.00363596076 | F16: 30572.70758 | G16: =+SUM($F16:F$95) -> 527645.3723 | H16: 105.3660332 | I16: =+SUM($H16:H$95) -> 3065.128928 | J16: =+SUM(I16:$I$94) -> 93225.75306 | K16: =+SUM($G16:G$94) -> 8332958.151 | P16: 1 | Q16: =+($G16-$G21)/$F16 -> 4.473939444 | R16: =+($G16-$G$59)/$F16 -> 16.38762341 | S16: 15.90105422 | U16: 22 | AC16: 22 | AK16: 5 | AL16: =+(((1+$AK$16*$C$5)*($I17-$I$54))+$C$5*($J18-$J$54-(($B$54-$B13-$AK$16)*$I$54))+$C$6*(1+($B$54-$B13)*$C$5)*$F$54)/$F17 ->  | AM16: =+(((1+$AK$16*$C$5)*($I18-$I$54))+$C$5*($J19-$J$54-(($B$54-$B14-$AK$16)*$I$54))+$C$6*(1+($B$54-$B14)*$C$5)*$F$54)/$F18 ->  | AN16: =+(((1+$AK$16*$C$5)*($I19-$I$54))+$C$5*($J20-$J$54-(($B$54-$B15-$AK$16)*$I$54))+$C$6*(1+($B$54-$B15)*$C$5)*$F$54)/$F19 ->  | AO16: =+(((1+$AK$16*$C$5)*($I20-$I$54))+$C$5*($J21-$J$54-(($B$54-$B16-$AK$16)*$I$54))+$C$6*(1+($B$54-$B16)*$C$5)*$F$54)/$F20 ->  | AP16: =+(((1+$AK$16*$C$5)*($I21-$I$54))+$C$5*($J22-$J$54-(($B$54-$B17-$AK$16)*$I$54))+$C$6*(1+($B$54-$B17)*$C$5)*$F$54)/$F21 ->  | AQ16: =+(((1+$AK$16*$C$5)*($I22-$I$54))+$C$5*($J23-$J$54-(($B$54-$B18-$AK$16)*$I$54))+$C$6*(1+($B$54-$B18)*$C$5)*$F$54)/$F22 ->  | AR16: =+(((1+$AK$16*$C$5)*($I23-$I$54))+$C$5*($J24-$J$54-(($B$54-$B19-$AK$16)*$I$54))+$C$6*(1+($B$54-$B19)*$C$5)*$F$54)/$F23 ->  | AS16: =+(((1+$AK$16*$C$5)*($I24-$I$54))+$C$5*($J25-$J$54-(($B$54-$B20-$AK$16)*$I$54))+$C$6*(1+($B$54-$B20)*$C$5)*$F$54)/$F24 ->  | AT16: =+(((1+$AK$16*$C$5)*($I25-$I$54))+$C$5*($J26-$J$54-(($B$54-$B21-$AK$16)*$I$54))+$C$6*(1+($B$54-$B21)*$C$5)*$F$54)/$F25 ->  | AU16: =+(((1+$AK$16*$C$5)*($I26-$I$54))+$C$5*($J27-$J$54-(($B$54-$B22-$AK$16)*$I$54))+$C$6*(1+($B$54-$B22)*$C$5)*$F$54)/$F26 ->  | AV16: =+(((1+$AK$16*$C$5)*($I27-$I$54))+$C$5*($J28-$J$54-(($B$54-$B23-$AK$16)*$I$54))+$C$6*(1+($B$54-$B23)*$C$5)*$F$54)/$F27 ->  | AW16: =+(((1+$AK$16*$C$5)*($I28-$I$54))+$C$5*($J29-$J$54-(($B$54-$B24-$AK$16)*$I$54))+$C$6*(1+($B$54-$B24)*$C$5)*$F$54)/$F28 ->  | AX16: =+(((1+$AK$16*$C$5)*($I29-$I$54))+$C$5*($J30-$J$54-(($B$54-$B25-$AK$16)*$I$54))+$C$6*(1+($B$54-$B25)*$C$5)*$F$54)/$F29 ->  | AY16: =+(((1+$AK$16*$C$5)*($I30-$I$54))+$C$5*($J31-$J$54-(($B$54-$B26-$AK$16)*$I$54))+$C$6*(1+($B$54-$B26)*$C$5)*$F$54)/$F30 ->  | AZ16: =+(((1+$AK$16*$C$5)*($I31-$I$54))+$C$5*($J32-$J$54-(($B$54-$B27-$AK$16)*$I$54))+$C$6*(1+($B$54-$B27)*$C$5)*$F$54)/$F31 ->  | BA16: =+(((1+$AK$16*$C$5)*($I32-$I$54))+$C$5*($J33-$J$54-(($B$54-$B28-$AK$16)*$I$54))+$C$6*(1+($B$54-$B28)*$C$5)*$F$54)/$F32 ->  | BB16: =+(((1+$AK$16*$C$5)*($I33-$I$54))+$C$5*($J34-$J$54-(($B$54-$B29-$AK$16)*$I$54))+$C$6*(1+($B$54-$B29)*$C$5)*$F$54)/$F33 ->  | BC16: =+(((1+$AK$16*$C$5)*($I34-$I$54))+$C$5*($J35-$J$54-(($B$54-$B30-$AK$16)*$I$54))+$C$6*(1+($B$54-$B30)*$C$5)*$F$54)/$F34 ->  | BD16: =+(((1+$AK$16*$C$5)*($I35-$I$54))+$C$5*($J36-$J$54-(($B$54-$B31-$AK$16)*$I$54))+$C$6*(1+($B$54-$B31)*$C$5)*$F$54)/$F35 ->  | BE16: =+(((1+$AK$16*$C$5)*($I36-$I$54))+$C$5*($J37-$J$54-(($B$54-$B32-$AK$16)*$I$54))+$C$6*(1+($B$54-$B32)*$C$5)*$F$54)/$F36 ->  | BF16: =+(((1+$AK$16*$C$5)*($I37-$I$54))+$C$5*($J38-$J$54-(($B$54-$B33-$AK$16)*$I$54))+$C$6*(1+($B$54-$B33)*$C$5)*$F$54)/$F37 ->  | BG16: =+(((1+$AK$16*$C$5)*($I38-$I$54))+$C$5*($J39-$J$54-(($B$54-$B34-$AK$16)*$I$54))+$C$6*(1+($B$54-$B34)*$C$5)*$F$54)/$F38 ->  | BH16: =+(((1+$AK$16*$C$5)*($I39-$I$54))+$C$5*($J40-$J$54-(($B$54-$B35-$AK$16)*$I$54))+$C$6*(1+($B$54-$B35)*$C$5)*$F$54)/$F39 ->  | BI16: =+(((1+$AK$16*$C$5)*($I40-$I$54))+$C$5*($J41-$J$54-(($B$54-$B36-$AK$16)*$I$54))+$C$6*(1+($B$54-$B36)*$C$5)*$F$54)/$F40 ->  | BJ16: =+(((1+$AK$16*$C$5)*($I41-$I$54))+$C$5*($J42-$J$54-(($B$54-$B37-$AK$16)*$I$54))+$C$6*(1+($B$54-$B37)*$C$5)*$F$54)/$F41 ->  | BK16: =+(((1+$AK$16*$C$5)*($I42-$I$54))+$C$5*($J43-$J$54-(($B$54-$B38-$AK$16)*$I$54))+$C$6*(1+($B$54-$B38)*$C$5)*$F$54)/$F42 ->  | BL16: =+(((1+$AK$16*$C$5)*($I43-$I$54))+$C$5*($J44-$J$54-(($B$54-$B39-$AK$16)*$I$54))+$C$6*(1+($B$54-$B39)*$C$5)*$F$54)/$F43 ->  | BM16: =+(((1+$AK$16*$C$5)*($I44-$I$54))+$C$5*($J45-$J$54-(($B$54-$B40-$AK$16)*$I$54))+$C$6*(1+($B$54-$B40)*$C$5)*$F$54)/$F44 ->  | BN16: =+(((1+$AK$16*$C$5)*($I45-$I$54))+$C$5*($J46-$J$54-(($B$54-$B41-$AK$16)*$I$54))+$C$6*(1+($B$54-$B41)*$C$5)*$F$54)/$F45 ->  | BO16: =+(((1+$AK$16*$C$5)*($I46-$I$54))+$C$5*($J47-$J$54-(($B$54-$B42-$AK$16)*$I$54))+$C$6*(1+($B$54-$B42)*$C$5)*$F$54)/$F46 ->  | BP16: =+(((1+$AK$16*$C$5)*($I47-$I$54))+$C$5*($J48-$J$54-(($B$54-$B43-$AK$16)*$I$54))+$C$6*(1+($B$54-$B43)*$C$5)*$F$54)/$F47 ->  | BQ16: =+(((1+$AK$16*$C$5)*($I48-$I$54))+$C$5*($J49-$J$54-(($B$54-$B44-$AK$16)*$I$54))+$C$6*(1+($B$54-$B44)*$C$5)*$F$54)/$F48 ->  | BR16: =+(((1+$AK$16*$C$5)*($I49-$I$54))+$C$5*($J50-$J$54-(($B$54-$B45-$AK$16)*$I$54))+$C$6*(1+($B$54-$B45)*$C$5)*$F$54)/$F49 ->  | BS16: =+(((1+$AK$16*$C$5)*($I50-$I$54))+$C$5*($J51-$J$54-(($B$54-$B46-$AK$16)*$I$54))+$C$6*(1+($B$54-$B46)*$C$5)*$F$54)/$F50 ->  | BT16: =+(((1+$AK$16*$C$5)*($I51-$I$54))+$C$5*($J52-$J$54-(($B$54-$B47-$AK$16)*$I$54))+$C$6*(1+($B$54-$B47)*$C$5)*$F$54)/$F51 ->  | BU16: =+(((1+$AK$16*$C$5)*($I52-$I$54))+$C$5*($J53-$J$54-(($B$54-$B48-$AK$16)*$I$54))+$C$6*(1+($B$54-$B48)*$C$5)*$F$54)/$F52 ->  | BV16: =+(((1+$AK$16*$C$5)*($I53-$I$54))+$C$5*($J54-$J$54-(($B$54-$B49-$AK$16)*$I$54))+$C$6*(1+($B$54-$B49)*$C$5)*$F$54)/$F53 ->  | BW16: =+(((1+$AK$16*$C$5)*($I54-$I$54))+$C$5*($J55-$J$54-(($B$54-$B50-$AK$16)*$I$54))+$C$6*(1+($B$54-$B50)*$C$5)*$F$54)/$F54 ->  | CC16: 5 | CD16: =+(((1+$CC$16*$C$5)*($I17-$I$59))+$C$5*($J18-$J$59-(($B$59-$B13-$CC$16)*$I$59))+$C$6*(1+($B$59-$B13)*$C$5)*$F$59)/$F17 ->  | CE16: =+(((1+$CC$16*$C$5)*($I18-$I$59))+$C$5*($J19-$J$59-(($B$59-$B14-$CC$16)*$I$59))+$C$6*(1+($B$59-$B14)*$C$5)*$F$59)/$F18 ->  | CF16: =+(((1+$CC$16*$C$5)*($I19-$I$59))+$C$5*($J20-$J$59-(($B$59-$B15-$CC$16)*$I$59))+$C$6*(1+($B$59-$B15)*$C$5)*$F$59)/$F19 ->  | CG16: =+(((1+$CC$16*$C$5)*($I20-$I$59))+$C$5*($J21-$J$59-(($B$59-$B16-$CC$16)*$I$59))+$C$6*(1+($B$59-$B16)*$C$5)*$F$59)/$F20 ->  | CH16: =+(((1+$CC$16*$C$5)*($I21-$I$59))+$C$5*($J22-$J$59-(($B$59-$B17-$CC$16)*$I$59))+$C$6*(1+($B$59-$B17)*$C$5)*$F$59)/$F21 ->  | CI16: =+(((1+$CC$16*$C$5)*($I22-$I$59))+$C$5*($J23-$J$59-(($B$59-$B18-$CC$16)*$I$59))+$C$6*(1+($B$59-$B18)*$C$5)*$F$59)/$F22 ->  | CJ16: =+(((1+$CC$16*$C$5)*($I23-$I$59))+$C$5*($J24-$J$59-(($B$59-$B19-$CC$16)*$I$59))+$C$6*(1+($B$59-$B19)*$C$5)*$F$59)/$F23 ->  | CK16: =+(((1+$CC$16*$C$5)*($I24-$I$59))+$C$5*($J25-$J$59-(($B$59-$B20-$CC$16)*$I$59))+$C$6*(1+($B$59-$B20)*$C$5)*$F$59)/$F24 ->  | CL16: =+(((1+$CC$16*$C$5)*($I25-$I$59))+$C$5*($J26-$J$59-(($B$59-$B21-$CC$16)*$I$59))+$C$6*(1+($B$59-$B21)*$C$5)*$F$59)/$F25 ->  | CM16: =+(((1+$CC$16*$C$5)*($I26-$I$59))+$C$5*($J27-$J$59-(($B$59-$B22-$CC$16)*$I$59))+$C$6*(1+($B$59-$B22)*$C$5)*$F$59)/$F26 ->  | CN16: =+(((1+$CC$16*$C$5)*($I27-$I$59))+$C$5*($J28-$J$59-(($B$59-$B23-$CC$16)*$I$59))+$C$6*(1+($B$59-$B23)*$C$5)*$F$59)/$F27 ->  | CO16: =+(((1+$CC$16*$C$5)*($I28-$I$59))+$C$5*($J29-$J$59-(($B$59-$B24-$CC$16)*$I$59))+$C$6*(1+($B$59-$B24)*$C$5)*$F$59)/$F28 ->  | CP16: =+(((1+$CC$16*$C$5)*($I29-$I$59))+$C$5*($J30-$J$59-(($B$59-$B25-$CC$16)*$I$59))+$C$6*(1+($B$59-$B25)*$C$5)*$F$59)/$F29 ->  | CQ16: =+(((1+$CC$16*$C$5)*($I30-$I$59))+$C$5*($J31-$J$59-(($B$59-$B26-$CC$16)*$I$59))+$C$6*(1+($B$59-$B26)*$C$5)*$F$59)/$F30 ->  | CR16: =+(((1+$CC$16*$C$5)*($I31-$I$59))+$C$5*($J32-$J$59-(($B$59-$B27-$CC$16)*$I$59))+$C$6*(1+($B$59-$B27)*$C$5)*$F$59)/$F31 ->  | CS16: =+(((1+$CC$16*$C$5)*($I32-$I$59))+$C$5*($J33-$J$59-(($B$59-$B28-$CC$16)*$I$59))+$C$6*(1+($B$59-$B28)*$C$5)*$F$59)/$F32 ->  | CT16: =+(((1+$CC$16*$C$5)*($I33-$I$59))+$C$5*($J34-$J$59-(($B$59-$B29-$CC$16)*$I$59))+$C$6*(1+($B$59-$B29)*$C$5)*$F$59)/$F33 ->  | CU16: =+(((1+$CC$16*$C$5)*($I34-$I$59))+$C$5*($J35-$J$59-(($B$59-$B30-$CC$16)*$I$59))+$C$6*(1+($B$59-$B30)*$C$5)*$F$59)/$F34 ->  | CV16: =+(((1+$CC$16*$C$5)*($I35-$I$59))+$C$5*($J36-$J$59-(($B$59-$B31-$CC$16)*$I$59))+$C$6*(1+($B$59-$B31)*$C$5)*$F$59)/$F35 ->  | CW16: =+(((1+$CC$16*$C$5)*($I36-$I$59))+$C$5*($J37-$J$59-(($B$59-$B32-$CC$16)*$I$59))+$C$6*(1+($B$59-$B32)*$C$5)*$F$59)/$F36 ->  | CX16: =+(((1+$CC$16*$C$5)*($I37-$I$59))+$C$5*($J38-$J$59-(($B$59-$B33-$CC$16)*$I$59))+$C$6*(1+($B$59-$B33)*$C$5)*$F$59)/$F37 ->  | CY16: =+(((1+$CC$16*$C$5)*($I38-$I$59))+$C$5*($J39-$J$59-(($B$59-$B34-$CC$16)*$I$59))+$C$6*(1+($B$59-$B34)*$C$5)*$F$59)/$F38 ->  | CZ16: =+(((1+$CC$16*$C$5)*($I39-$I$59))+$C$5*($J40-$J$59-(($B$59-$B35-$CC$16)*$I$59))+$C$6*(1+($B$59-$B35)*$C$5)*$F$59)/$F39 ->  | DA16: =+(((1+$CC$16*$C$5)*($I40-$I$59))+$C$5*($J41-$J$59-(($B$59-$B36-$CC$16)*$I$59))+$C$6*(1+($B$59-$B36)*$C$5)*$F$59)/$F40 ->  | DB16: =+(((1+$CC$16*$C$5)*($I41-$I$59))+$C$5*($J42-$J$59-(($B$59-$B37-$CC$16)*$I$59))+$C$6*(1+($B$59-$B37)*$C$5)*$F$59)/$F41 ->  | DC16: =+(((1+$CC$16*$C$5)*($I42-$I$59))+$C$5*($J43-$J$59-(($B$59-$B38-$CC$16)*$I$59))+$C$6*(1+($B$59-$B38)*$C$5)*$F$59)/$F42 ->  | DD16: =+(((1+$CC$16*$C$5)*($I43-$I$59))+$C$5*($J44-$J$59-(($B$59-$B39-$CC$16)*$I$59))+$C$6*(1+($B$59-$B39)*$C$5)*$F$59)/$F43 ->  | DE16: =+(((1+$CC$16*$C$5)*($I44-$I$59))+$C$5*($J45-$J$59-(($B$59-$B40-$CC$16)*$I$59))+$C$6*(1+($B$59-$B40)*$C$5)*$F$59)/$F44 ->  | DF16: =+(((1+$CC$16*$C$5)*($I45-$I$59))+$C$5*($J46-$J$59-(($B$59-$B41-$CC$16)*$I$59))+$C$6*(1+($B$59-$B41)*$C$5)*$F$59)/$F45 ->  | DG16: =+(((1+$CC$16*$C$5)*($I46-$I$59))+$C$5*($J47-$J$59-(($B$59-$B42-$CC$16)*$I$59))+$C$6*(1+($B$59-$B42)*$C$5)*$F$59)/$F46 ->  | DH16: =+(((1+$CC$16*$C$5)*($I47-$I$59))+$C$5*($J48-$J$59-(($B$59-$B43-$CC$16)*$I$59))+$C$6*(1+($B$59-$B43)*$C$5)*$F$59)/$F47 ->  | DI16: =+(((1+$CC$16*$C$5)*($I48-$I$59))+$C$5*($J49-$J$59-(($B$59-$B44-$CC$16)*$I$59))+$C$6*(1+($B$59-$B44)*$C$5)*$F$59)/$F48 ->  | DJ16: =+(((1+$CC$16*$C$5)*($I49-$I$59))+$C$5*($J50-$J$59-(($B$59-$B45-$CC$16)*$I$59))+$C$6*(1+($B$59-$B45)*$C$5)*$F$59)/$F49 ->  | DK16: =+(((1+$CC$16*$C$5)*($I50-$I$59))+$C$5*($J51-$J$59-(($B$59-$B46-$CC$16)*$I$59))+$C$6*(1+($B$59-$B46)*$C$5)*$F$59)/$F50 ->  | DL16: =+(((1+$CC$16*$C$5)*($I51-$I$59))+$C$5*($J52-$J$59-(($B$59-$B47-$CC$16)*$I$59))+$C$6*(1+($B$59-$B47)*$C$5)*$F$59)/$F51 ->  | DM16: =+(((1+$CC$16*$C$5)*($I52-$I$59))+$C$5*($J53-$J$59-(($B$59-$B48-$CC$16)*$I$59))+$C$6*(1+($B$59-$B48)*$C$5)*$F$59)/$F52 ->  | DN16: =+(((1+$CC$16*$C$5)*($I53-$I$59))+$C$5*($J54-$J$59-(($B$59-$B49-$CC$16)*$I$59))+$C$6*(1+($B$59-$B49)*$C$5)*$F$59)/$F53 ->  | DO16: =+(((1+$CC$16*$C$5)*($I54-$I$59))+$C$5*($J55-$J$59-(($B$59-$B50-$CC$16)*$I$59))+$C$6*(1+($B$59-$B50)*$C$5)*$F$59)/$F54 ->  | DP16: =+(((1+$CC$16*$C$5)*($I55-$I$59))+$C$5*($J56-$J$59-(($B$59-$B51-$CC$16)*$I$59))+$C$6*(1+($B$59-$B51)*$C$5)*$F$59)/$F55 ->  | DQ16: =+(((1+$CC$16*$C$5)*($I56-$I$59))+$C$5*($J57-$J$59-(($B$59-$B52-$CC$16)*$I$59))+$C$6*(1+($B$59-$B52)*$C$5)*$F$59)/$F56 ->  | DR16: =+(((1+$CC$16*$C$5)*($I57-$I$59))+$C$5*($J58-$J$59-(($B$59-$B53-$CC$16)*$I$59))+$C$6*(1+($B$59-$B53)*$C$5)*$F$59)/$F57 ->  | DS16: =+(((1+$CC$16*$C$5)*($I58-$I$59))+$C$5*($J59-$J$59-(($B$59-$B54-$CC$16)*$I$59))+$C$6*(1+($B$59-$B54)*$C$5)*$F$59)/$F58 ->  | DT16: =+(((1+$CC$16*$C$5)*($I59-$I$59))+$C$5*($J60-$J$59-(($B$59-$B55-$CC$16)*$I$59))+$C$6*(1+($B$59-$B55)*$C$5)*$F$59)/$F59 ->  | DZ16: 5 | EA16: =+(((1+$AK$16*$C$5)*($I17-$I$54))+$C$5*($J18-$J$54-(($B$54-$B13-$AK$16)*$I$54))+$C$6*(1+($B$54-$B13)*$C$5)*$F$54)/$F17 ->  | EB16: =+(((1+$AK$16*$C$5)*($I18-$I$54))+$C$5*($J19-$J$54-(($B$54-$B14-$AK$16)*$I$54))+$C$6*(1+($B$54-$B14)*$C$5)*$F$54)/$F18 ->  | EC16: =+(((1+$AK$16*$C$5)*($I19-$I$54))+$C$5*($J20-$J$54-(($B$54-$B15-$AK$16)*$I$54))+$C$6*(1+($B$54-$B15)*$C$5)*$F$54)/$F19 ->  | ED16: =+(((1+$AK$16*$C$5)*($I20-$I$54))+$C$5*($J21-$J$54-(($B$54-$B16-$AK$16)*$I$54))+$C$6*(1+($B$54-$B16)*$C$5)*$F$54)/$F20 ->  | EE16: =+(((1+$AK$16*$C$5)*($I21-$I$54))+$C$5*($J22-$J$54-(($B$54-$B17-$AK$16)*$I$54))+$C$6*(1+($B$54-$B17)*$C$5)*$F$54)/$F21 ->  | EF16: =+(((1+$AK$16*$C$5)*($I22-$I$54))+$C$5*($J23-$J$54-(($B$54-$B18-$AK$16)*$I$54))+$C$6*(1+($B$54-$B18)*$C$5)*$F$54)/$F22 ->  | EG16: =+(((1+$AK$16*$C$5)*($I23-$I$54))+$C$5*($J24-$J$54-(($B$54-$B19-$AK$16)*$I$54))+$C$6*(1+($B$54-$B19)*$C$5)*$F$54)/$F23 ->  | EH16: =+(((1+$AK$16*$C$5)*($I24-$I$54))+$C$5*($J25-$J$54-(($B$54-$B20-$AK$16)*$I$54))+$C$6*(1+($B$54-$B20)*$C$5)*$F$54)/$F24 ->  | EI16: =+(((1+$AK$16*$C$5)*($I25-$I$54))+$C$5*($J26-$J$54-(($B$54-$B21-$AK$16)*$I$54))+$C$6*(1+($B$54-$B21)*$C$5)*$F$54)/$F25 ->  | EJ16: =+(((1+$AK$16*$C$5)*($I26-$I$54))+$C$5*($J27-$J$54-(($B$54-$B22-$AK$16)*$I$54))+$C$6*(1+($B$54-$B22)*$C$5)*$F$54)/$F26 ->  | EK16: =+(((1+$AK$16*$C$5)*($I27-$I$54))+$C$5*($J28-$J$54-(($B$54-$B23-$AK$16)*$I$54))+$C$6*(1+($B$54-$B23)*$C$5)*$F$54)/$F27 ->  | EL16: =+(((1+$AK$16*$C$5)*($I28-$I$54))+$C$5*($J29-$J$54-(($B$54-$B24-$AK$16)*$I$54))+$C$6*(1+($B$54-$B24)*$C$5)*$F$54)/$F28 ->  | EM16: =+(((1+$AK$16*$C$5)*($I29-$I$54))+$C$5*($J30-$J$54-(($B$54-$B25-$AK$16)*$I$54))+$C$6*(1+($B$54-$B25)*$C$5)*$F$54)/$F29 ->  | EN16: =+(((1+$AK$16*$C$5)*($I30-$I$54))+$C$5*($J31-$J$54-(($B$54-$B26-$AK$16)*$I$54))+$C$6*(1+($B$54-$B26)*$C$5)*$F$54)/$F30 ->  | EO16: =+(((1+$AK$16*$C$5)*($I31-$I$54))+$C$5*($J32-$J$54-(($B$54-$B27-$AK$16)*$I$54))+$C$6*(1+($B$54-$B27)*$C$5)*$F$54)/$F31 ->  | EP16: =+(((1+$AK$16*$C$5)*($I32-$I$54))+$C$5*($J33-$J$54-(($B$54-$B28-$AK$16)*$I$54))+$C$6*(1+($B$54-$B28)*$C$5)*$F$54)/$F32 ->  | EQ16: =+(((1+$AK$16*$C$5)*($I33-$I$54))+$C$5*($J34-$J$54-(($B$54-$B29-$AK$16)*$I$54))+$C$6*(1+($B$54-$B29)*$C$5)*$F$54)/$F33 ->  | ER16: =+(((1+$AK$16*$C$5)*($I34-$I$54))+$C$5*($J35-$J$54-(($B$54-$B30-$AK$16)*$I$54))+$C$6*(1+($B$54-$B30)*$C$5)*$F$54)/$F34 ->  | ES16: =+(((1+$AK$16*$C$5)*($I35-$I$54))+$C$5*($J36-$J$54-(($B$54-$B31-$AK$16)*$I$54))+$C$6*(1+($B$54-$B31)*$C$5)*$F$54)/$F35 ->  | ET16: =+(((1+$AK$16*$C$5)*($I36-$I$54))+$C$5*($J37-$J$54-(($B$54-$B32-$AK$16)*$I$54))+$C$6*(1+($B$54-$B32)*$C$5)*$F$54)/$F36 ->  | EU16: =+(((1+$AK$16*$C$5)*($I37-$I$54))+$C$5*($J38-$J$54-(($B$54-$B33-$AK$16)*$I$54))+$C$6*(1+($B$54-$B33)*$C$5)*$F$54)/$F37 ->  | EV16: =+(((1+$AK$16*$C$5)*($I38-$I$54))+$C$5*($J39-$J$54-(($B$54-$B34-$AK$16)*$I$54))+$C$6*(1+($B$54-$B34)*$C$5)*$F$54)/$F38 ->  | EW16: =+(((1+$AK$16*$C$5)*($I39-$I$54))+$C$5*($J40-$J$54-(($B$54-$B35-$AK$16)*$I$54))+$C$6*(1+($B$54-$B35)*$C$5)*$F$54)/$F39 ->  | EX16: =+(((1+$AK$16*$C$5)*($I40-$I$54))+$C$5*($J41-$J$54-(($B$54-$B36-$AK$16)*$I$54))+$C$6*(1+($B$54-$B36)*$C$5)*$F$54)/$F40 ->  | EY16: =+(((1+$AK$16*$C$5)*($I41-$I$54))+$C$5*($J42-$J$54-(($B$54-$B37-$AK$16)*$I$54))+$C$6*(1+($B$54-$B37)*$C$5)*$F$54)/$F41 ->  | EZ16: =+(((1+$AK$16*$C$5)*($I42-$I$54))+$C$5*($J43-$J$54-(($B$54-$B38-$AK$16)*$I$54))+$C$6*(1+($B$54-$B38)*$C$5)*$F$54)/$F42 ->  | FA16: =+(((1+$AK$16*$C$5)*($I43-$I$54))+$C$5*($J44-$J$54-(($B$54-$B39-$AK$16)*$I$54))+$C$6*(1+($B$54-$B39)*$C$5)*$F$54)/$F43 ->  | FB16: =+(((1+$AK$16*$C$5)*($I44-$I$54))+$C$5*($J45-$J$54-(($B$54-$B40-$AK$16)*$I$54))+$C$6*(1+($B$54-$B40)*$C$5)*$F$54)/$F44 ->  | FC16: =+(((1+$AK$16*$C$5)*($I45-$I$54))+$C$5*($J46-$J$54-(($B$54-$B41-$AK$16)*$I$54))+$C$6*(1+($B$54-$B41)*$C$5)*$F$54)/$F45 ->  | FD16: =+(((1+$AK$16*$C$5)*($I46-$I$54))+$C$5*($J47-$J$54-(($B$54-$B42-$AK$16)*$I$54))+$C$6*(1+($B$54-$B42)*$C$5)*$F$54)/$F46 ->  | FE16: =+(((1+$AK$16*$C$5)*($I47-$I$54))+$C$5*($J48-$J$54-(($B$54-$B43-$AK$16)*$I$54))+$C$6*(1+($B$54-$B43)*$C$5)*$F$54)/$F47 ->  | FF16: =+(((1+$AK$16*$C$5)*($I48-$I$54))+$C$5*($J49-$J$54-(($B$54-$B44-$AK$16)*$I$54))+$C$6*(1+($B$54-$B44)*$C$5)*$F$54)/$F48 ->  | FG16: =+(((1+$AK$16*$C$5)*($I49-$I$54))+$C$5*($J50-$J$54-(($B$54-$B45-$AK$16)*$I$54))+$C$6*(1+($B$54-$B45)*$C$5)*$F$54)/$F49 ->  | FH16: =+(((1+$AK$16*$C$5)*($I50-$I$54))+$C$5*($J51-$J$54-(($B$54-$B46-$AK$16)*$I$54))+$C$6*(1+($B$54-$B46)*$C$5)*$F$54)/$F50 ->  | FI16: =+(((1+$AK$16*$C$5)*($I51-$I$54))+$C$5*($J52-$J$54-(($B$54-$B47-$AK$16)*$I$54))+$C$6*(1+($B$54-$B47)*$C$5)*$F$54)/$F51 ->  | FJ16: =+(((1+$AK$16*$C$5)*($I52-$I$54))+$C$5*($J53-$J$54-(($B$54-$B48-$AK$16)*$I$54))+$C$6*(1+($B$54-$B48)*$C$5)*$F$54)/$F52 ->  | FK16: =+(((1+$AK$16*$C$5)*($I53-$I$54))+$C$5*($J54-$J$54-(($B$54-$B49-$AK$16)*$I$54))+$C$6*(1+($B$54-$B49)*$C$5)*$F$54)/$F53 ->  | FL16: =+(((1+$AK$16*$C$5)*($I54-$I$54))+$C$5*($J55-$J$54-(($B$54-$B50-$AK$16)*$I$54))+$C$6*(1+($B$54-$B50)*$C$5)*$F$54)/$F54 ->  | FN16: 5 | FO16: =+(((1+$CC$16*$C$5)*($I17-$I$59))+$C$5*($J18-$J$59-(($B$59-$B13-$CC$16)*$I$59))+$C$6*(1+($B$59-$B13)*$C$5)*$F$59)/$F17 ->  | FP16: =+(((1+$CC$16*$C$5)*($I18-$I$59))+$C$5*($J19-$J$59-(($B$59-$B14-$CC$16)*$I$59))+$C$6*(1+($B$59-$B14)*$C$5)*$F$59)/$F18 ->  | FQ16: =+(((1+$CC$16*$C$5)*($I19-$I$59))+$C$5*($J20-$J$59-(($B$59-$B15-$CC$16)*$I$59))+$C$6*(1+($B$59-$B15)*$C$5)*$F$59)/$F19 ->  | FR16: =+(((1+$CC$16*$C$5)*($I20-$I$59))+$C$5*($J21-$J$59-(($B$59-$B16-$CC$16)*$I$59))+$C$6*(1+($B$59-$B16)*$C$5)*$F$59)/$F20 ->  | FS16: =+(((1+$CC$16*$C$5)*($I21-$I$59))+$C$5*($J22-$J$59-(($B$59-$B17-$CC$16)*$I$59))+$C$6*(1+($B$59-$B17)*$C$5)*$F$59)/$F21 ->  | FT16: =+(((1+$CC$16*$C$5)*($I22-$I$59))+$C$5*($J23-$J$59-(($B$59-$B18-$CC$16)*$I$59))+$C$6*(1+($B$59-$B18)*$C$5)*$F$59)/$F22 ->  | FU16: =+(((1+$CC$16*$C$5)*($I23-$I$59))+$C$5*($J24-$J$59-(($B$59-$B19-$CC$16)*$I$59))+$C$6*(1+($B$59-$B19)*$C$5)*$F$59)/$F23 ->  | FV16: =+(((1+$CC$16*$C$5)*($I24-$I$59))+$C$5*($J25-$J$59-(($B$59-$B20-$CC$16)*$I$59))+$C$6*(1+($B$59-$B20)*$C$5)*$F$59)/$F24 ->  | FW16: =+(((1+$CC$16*$C$5)*($I25-$I$59))+$C$5*($J26-$J$59-(($B$59-$B21-$CC$16)*$I$59))+$C$6*(1+($B$59-$B21)*$C$5)*$F$59)/$F25 ->  | FX16: =+(((1+$CC$16*$C$5)*($I26-$I$59))+$C$5*($J27-$J$59-(($B$59-$B22-$CC$16)*$I$59))+$C$6*(1+($B$59-$B22)*$C$5)*$F$59)/$F26 ->  | FY16: =+(((1+$CC$16*$C$5)*($I27-$I$59))+$C$5*($J28-$J$59-(($B$59-$B23-$CC$16)*$I$59))+$C$6*(1+($B$59-$B23)*$C$5)*$F$59)/$F27 ->  | FZ16: =+(((1+$CC$16*$C$5)*($I28-$I$59))+$C$5*($J29-$J$59-(($B$59-$B24-$CC$16)*$I$59))+$C$6*(1+($B$59-$B24)*$C$5)*$F$59)/$F28 ->  | GA16: =+(((1+$CC$16*$C$5)*($I29-$I$59))+$C$5*($J30-$J$59-(($B$59-$B25-$CC$16)*$I$59))+$C$6*(1+($B$59-$B25)*$C$5)*$F$59)/$F29 ->  | GB16: =+(((1+$CC$16*$C$5)*($I30-$I$59))+$C$5*($J31-$J$59-(($B$59-$B26-$CC$16)*$I$59))+$C$6*(1+($B$59-$B26)*$C$5)*$F$59)/$F30 ->  | GC16: =+(((1+$CC$16*$C$5)*($I31-$I$59))+$C$5*($J32-$J$59-(($B$59-$B27-$CC$16)*$I$59))+$C$6*(1+($B$59-$B27)*$C$5)*$F$59)/$F31 ->  | GD16: =+(((1+$CC$16*$C$5)*($I32-$I$59))+$C$5*($J33-$J$59-(($B$59-$B28-$CC$16)*$I$59))+$C$6*(1+($B$59-$B28)*$C$5)*$F$59)/$F32 ->  | GE16: =+(((1+$CC$16*$C$5)*($I33-$I$59))+$C$5*($J34-$J$59-(($B$59-$B29-$CC$16)*$I$59))+$C$6*(1+($B$59-$B29)*$C$5)*$F$59)/$F33 ->  | GF16: =+(((1+$CC$16*$C$5)*($I34-$I$59))+$C$5*($J35-$J$59-(($B$59-$B30-$CC$16)*$I$59))+$C$6*(1+($B$59-$B30)*$C$5)*$F$59)/$F34 ->  | GG16: =+(((1+$CC$16*$C$5)*($I35-$I$59))+$C$5*($J36-$J$59-(($B$59-$B31-$CC$16)*$I$59))+$C$6*(1+($B$59-$B31)*$C$5)*$F$59)/$F35 ->  | GH16: =+(((1+$CC$16*$C$5)*($I36-$I$59))+$C$5*($J37-$J$59-(($B$59-$B32-$CC$16)*$I$59))+$C$6*(1+($B$59-$B32)*$C$5)*$F$59)/$F36 ->  | GI16: =+(((1+$CC$16*$C$5)*($I37-$I$59))+$C$5*($J38-$J$59-(($B$59-$B33-$CC$16)*$I$59))+$C$6*(1+($B$59-$B33)*$C$5)*$F$59)/$F37 ->  | GJ16: =+(((1+$CC$16*$C$5)*($I38-$I$59))+$C$5*($J39-$J$59-(($B$59-$B34-$CC$16)*$I$59))+$C$6*(1+($B$59-$B34)*$C$5)*$F$59)/$F38 ->  | GK16: =+(((1+$CC$16*$C$5)*($I39-$I$59))+$C$5*($J40-$J$59-(($B$59-$B35-$CC$16)*$I$59))+$C$6*(1+($B$59-$B35)*$C$5)*$F$59)/$F39 ->  | GL16: =+(((1+$CC$16*$C$5)*($I40-$I$59))+$C$5*($J41-$J$59-(($B$59-$B36-$CC$16)*$I$59))+$C$6*(1+($B$59-$B36)*$C$5)*$F$59)/$F40 ->  | GM16: =+(((1+$CC$16*$C$5)*($I41-$I$59))+$C$5*($J42-$J$59-(($B$59-$B37-$CC$16)*$I$59))+$C$6*(1+($B$59-$B37)*$C$5)*$F$59)/$F41 ->  | GN16: =+(((1+$CC$16*$C$5)*($I42-$I$59))+$C$5*($J43-$J$59-(($B$59-$B38-$CC$16)*$I$59))+$C$6*(1+($B$59-$B38)*$C$5)*$F$59)/$F42 ->  | GO16: =+(((1+$CC$16*$C$5)*($I43-$I$59))+$C$5*($J44-$J$59-(($B$59-$B39-$CC$16)*$I$59))+$C$6*(1+($B$59-$B39)*$C$5)*$F$59)/$F43 ->  | GP16: =+(((1+$CC$16*$C$5)*($I44-$I$59))+$C$5*($J45-$J$59-(($B$59-$B40-$CC$16)*$I$59))+$C$6*(1+($B$59-$B40)*$C$5)*$F$59)/$F44 ->  | GQ16: =+(((1+$CC$16*$C$5)*($I45-$I$59))+$C$5*($J46-$J$59-(($B$59-$B41-$CC$16)*$I$59))+$C$6*(1+($B$59-$B41)*$C$5)*$F$59)/$F45 ->  | GR16: =+(((1+$CC$16*$C$5)*($I46-$I$59))+$C$5*($J47-$J$59-(($B$59-$B42-$CC$16)*$I$59))+$C$6*(1+($B$59-$B42)*$C$5)*$F$59)/$F46 ->  | GS16: =+(((1+$CC$16*$C$5)*($I47-$I$59))+$C$5*($J48-$J$59-(($B$59-$B43-$CC$16)*$I$59))+$C$6*(1+($B$59-$B43)*$C$5)*$F$59)/$F47 ->  | GT16: =+(((1+$CC$16*$C$5)*($I48-$I$59))+$C$5*($J49-$J$59-(($B$59-$B44-$CC$16)*$I$59))+$C$6*(1+($B$59-$B44)*$C$5)*$F$59)/$F48 ->  | GU16: =+(((1+$CC$16*$C$5)*($I49-$I$59))+$C$5*($J50-$J$59-(($B$59-$B45-$CC$16)*$I$59))+$C$6*(1+($B$59-$B45)*$C$5)*$F$59)/$F49 ->  | GV16: =+(((1+$CC$16*$C$5)*($I50-$I$59))+$C$5*($J51-$J$59-(($B$59-$B46-$CC$16)*$I$59))+$C$6*(1+($B$59-$B46)*$C$5)*$F$59)/$F50 ->  | GW16: =+(((1+$CC$16*$C$5)*($I51-$I$59))+$C$5*($J52-$J$59-(($B$59-$B47-$CC$16)*$I$59))+$C$6*(1+($B$59-$B47)*$C$5)*$F$59)/$F51 ->  | GX16: =+(((1+$CC$16*$C$5)*($I52-$I$59))+$C$5*($J53-$J$59-(($B$59-$B48-$CC$16)*$I$59))+$C$6*(1+($B$59-$B48)*$C$5)*$F$59)/$F52 ->  | GY16: =+(((1+$CC$16*$C$5)*($I53-$I$59))+$C$5*($J54-$J$59-(($B$59-$B49-$CC$16)*$I$59))+$C$6*(1+($B$59-$B49)*$C$5)*$F$59)/$F53 ->  | GZ16: =+(((1+$CC$16*$C$5)*($I54-$I$59))+$C$5*($J55-$J$59-(($B$59-$B50-$CC$16)*$I$59))+$C$6*(1+($B$59-$B50)*$C$5)*$F$59)/$F54 ->  | HA16: =+(((1+$CC$16*$C$5)*($I55-$I$59))+$C$5*($J56-$J$59-(($B$59-$B51-$CC$16)*$I$59))+$C$6*(1+($B$59-$B51)*$C$5)*$F$59)/$F55 ->  | HB16: =+(((1+$CC$16*$C$5)*($I56-$I$59))+$C$5*($J57-$J$59-(($B$59-$B52-$CC$16)*$I$59))+$C$6*(1+($B$59-$B52)*$C$5)*$F$59)/$F56 ->  | HC16: =+(((1+$CC$16*$C$5)*($I57-$I$59))+$C$5*($J58-$J$59-(($B$59-$B53-$CC$16)*$I$59))+$C$6*(1+($B$59-$B53)*$C$5)*$F$59)/$F57 ->  | HD16: =+(((1+$CC$16*$C$5)*($I58-$I$59))+$C$5*($J59-$J$59-(($B$59-$B54-$CC$16)*$I$59))+$C$6*(1+($B$59-$B54)*$C$5)*$F$59)/$F58 ->  | HE16: =+(((1+$CC$16*$C$5)*($I59-$I$59))+$C$5*($J60-$J$59-(($B$59-$B55-$CC$16)*$I$59))+$C$6*(1+($B$59-$B55)*$C$5)*$F$59)/$F59 ->  | HG16: 5 | HH16: =+((((1+$AK$16*$C$5)*($I17-$I$54))+$C$5*($J18-$J$54-(($B$54-$B13-$AK$16)*$I$54))+$C$6*(1+($B$54-$B13)*$C$5)*$F$54)/$F17)-$Z12*(($G17-$G$54)/$F17) ->  | HI16: =+((((1+$AK$16*$C$5)*($I18-$I$54))+$C$5*($J19-$J$54-(($B$54-$B14-$AK$16)*$I$54))+$C$6*(1+($B$54-$B14)*$C$5)*$F$54)/$F18)-$Z13*(($G18-$G$54)/$F18) ->  | HJ16: =+((((1+$AK$16*$C$5)*($I19-$I$54))+$C$5*($J20-$J$54-(($B$54-$B15-$AK$16)*$I$54))+$C$6*(1+($B$54-$B15)*$C$5)*$F$54)/$F19)-$Z14*(($G19-$G$54)/$F19) ->  | HK16: =+((((1+$AK$16*$C$5)*($I20-$I$54))+$C$5*($J21-$J$54-(($B$54-$B16-$AK$16)*$I$54))+$C$6*(1+($B$54-$B16)*$C$5)*$F$54)/$F20)-$Z15*(($G20-$G$54)/$F20) ->  | HL16: =+((((1+$AK$16*$C$5)*($I21-$I$54))+$C$5*($J22-$J$54-(($B$54-$B17-$AK$16)*$I$54))+$C$6*(1+($B$54-$B17)*$C$5)*$F$54)/$F21)-$Z16*(($G21-$G$54)/$F21) ->  | HM16: =+((((1+$AK$16*$C$5)*($I22-$I$54))+$C$5*($J23-$J$54-(($B$54-$B18-$AK$16)*$I$54))+$C$6*(1+($B$54-$B18)*$C$5)*$F$54)/$F22)-$Z17*(($G22-$G$54)/$F22) ->  | HN16: =+((((1+$AK$16*$C$5)*($I23-$I$54))+$C$5*($J24-$J$54-(($B$54-$B19-$AK$16)*$I$54))+$C$6*(1+($B$54-$B19)*$C$5)*$F$54)/$F23)-$Z18*(($G23-$G$54)/$F23) ->  | HO16: =+((((1+$AK$16*$C$5)*($I24-$I$54))+$C$5*($J25-$J$54-(($B$54-$B20-$AK$16)*$I$54))+$C$6*(1+($B$54-$B20)*$C$5)*$F$54)/$F24)-$Z19*(($G24-$G$54)/$F24) ->  | HP16: =+((((1+$AK$16*$C$5)*($I25-$I$54))+$C$5*($J26-$J$54-(($B$54-$B21-$AK$16)*$I$54))+$C$6*(1+($B$54-$B21)*$C$5)*$F$54)/$F25)-$Z20*(($G25-$G$54)/$F25) ->  | HQ16: =+((((1+$AK$16*$C$5)*($I26-$I$54))+$C$5*($J27-$J$54-(($B$54-$B22-$AK$16)*$I$54))+$C$6*(1+($B$54-$B22)*$C$5)*$F$54)/$F26)-$Z21*(($G26-$G$54)/$F26) ->  | HR16: =+((((1+$AK$16*$C$5)*($I27-$I$54))+$C$5*($J28-$J$54-(($B$54-$B23-$AK$16)*$I$54))+$C$6*(1+($B$54-$B23)*$C$5)*$F$54)/$F27)-$Z22*(($G27-$G$54)/$F27) ->  | HS16: =+((((1+$AK$16*$C$5)*($I28-$I$54))+$C$5*($J29-$J$54-(($B$54-$B24-$AK$16)*$I$54))+$C$6*(1+($B$54-$B24)*$C$5)*$F$54)/$F28)-$Z23*(($G28-$G$54)/$F28) ->  | HT16: =+((((1+$AK$16*$C$5)*($I29-$I$54))+$C$5*($J30-$J$54-(($B$54-$B25-$AK$16)*$I$54))+$C$6*(1+($B$54-$B25)*$C$5)*$F$54)/$F29)-$Z24*(($G29-$G$54)/$F29) ->  | HU16: =+((((1+$AK$16*$C$5)*($I30-$I$54))+$C$5*($J31-$J$54-(($B$54-$B26-$AK$16)*$I$54))+$C$6*(1+($B$54-$B26)*$C$5)*$F$54)/$F30)-$Z25*(($G30-$G$54)/$F30) ->  | HV16: =+((((1+$AK$16*$C$5)*($I31-$I$54))+$C$5*($J32-$J$54-(($B$54-$B27-$AK$16)*$I$54))+$C$6*(1+($B$54-$B27)*$C$5)*$F$54)/$F31)-$Z26*(($G31-$G$54)/$F31) ->  | HW16: =+((((1+$AK$16*$C$5)*($I32-$I$54))+$C$5*($J33-$J$54-(($B$54-$B28-$AK$16)*$I$54))+$C$6*(1+($B$54-$B28)*$C$5)*$F$54)/$F32)-$Z27*(($G32-$G$54)/$F32) ->  | HX16: =+((((1+$AK$16*$C$5)*($I33-$I$54))+$C$5*($J34-$J$54-(($B$54-$B29-$AK$16)*$I$54))+$C$6*(1+($B$54-$B29)*$C$5)*$F$54)/$F33)-$Z28*(($G33-$G$54)/$F33) ->  | HY16: =+((((1+$AK$16*$C$5)*($I34-$I$54))+$C$5*($J35-$J$54-(($B$54-$B30-$AK$16)*$I$54))+$C$6*(1+($B$54-$B30)*$C$5)*$F$54)/$F34)-$Z29*(($G34-$G$54)/$F34) ->  | HZ16: =+((((1+$AK$16*$C$5)*($I35-$I$54))+$C$5*($J36-$J$54-(($B$54-$B31-$AK$16)*$I$54))+$C$6*(1+($B$54-$B31)*$C$5)*$F$54)/$F35)-$Z30*(($G35-$G$54)/$F35) ->  | IA16: =+((((1+$AK$16*$C$5)*($I36-$I$54))+$C$5*($J37-$J$54-(($B$54-$B32-$AK$16)*$I$54))+$C$6*(1+($B$54-$B32)*$C$5)*$F$54)/$F36)-$Z31*(($G36-$G$54)/$F36) ->  | IB16: =+((((1+$AK$16*$C$5)*($I37-$I$54))+$C$5*($J38-$J$54-(($B$54-$B33-$AK$16)*$I$54))+$C$6*(1+($B$54-$B33)*$C$5)*$F$54)/$F37)-$Z32*(($G37-$G$54)/$F37) ->  | IC16: =+((((1+$AK$16*$C$5)*($I38-$I$54))+$C$5*($J39-$J$54-(($B$54-$B34-$AK$16)*$I$54))+$C$6*(1+($B$54-$B34)*$C$5)*$F$54)/$F38)-$Z33*(($G38-$G$54)/$F38) ->  | ID16: =+((((1+$AK$16*$C$5)*($I39-$I$54))+$C$5*($J40-$J$54-(($B$54-$B35-$AK$16)*$I$54))+$C$6*(1+($B$54-$B35)*$C$5)*$F$54)/$F39)-$Z34*(($G39-$G$54)/$F39) ->  | IE16: =+((((1+$AK$16*$C$5)*($I40-$I$54))+$C$5*($J41-$J$54-(($B$54-$B36-$AK$16)*$I$54))+$C$6*(1+($B$54-$B36)*$C$5)*$F$54)/$F40)-$Z35*(($G40-$G$54)/$F40) ->  | IF16: =+((((1+$AK$16*$C$5)*($I41-$I$54))+$C$5*($J42-$J$54-(($B$54-$B37-$AK$16)*$I$54))+$C$6*(1+($B$54-$B37)*$C$5)*$F$54)/$F41)-$Z36*(($G41-$G$54)/$F41) ->  | IG16: =+((((1+$AK$16*$C$5)*($I42-$I$54))+$C$5*($J43-$J$54-(($B$54-$B38-$AK$16)*$I$54))+$C$6*(1+($B$54-$B38)*$C$5)*$F$54)/$F42)-$Z37*(($G42-$G$54)/$F42) ->  | IH16: =+((((1+$AK$16*$C$5)*($I43-$I$54))+$C$5*($J44-$J$54-(($B$54-$B39-$AK$16)*$I$54))+$C$6*(1+($B$54-$B39)*$C$5)*$F$54)/$F43)-$Z38*(($G43-$G$54)/$F43) ->  | II16: =+((((1+$AK$16*$C$5)*($I44-$I$54))+$C$5*($J45-$J$54-(($B$54-$B40-$AK$16)*$I$54))+$C$6*(1+($B$54-$B40)*$C$5)*$F$54)/$F44)-$Z39*(($G44-$G$54)/$F44) ->  | IJ16: =+((((1+$AK$16*$C$5)*($I45-$I$54))+$C$5*($J46-$J$54-(($B$54-$B41-$AK$16)*$I$54))+$C$6*(1+($B$54-$B41)*$C$5)*$F$54)/$F45)-$Z40*(($G45-$G$54)/$F45) ->  | IK16: =+((((1+$AK$16*$C$5)*($I46-$I$54))+$C$5*($J47-$J$54-(($B$54-$B42-$AK$16)*$I$54))+$C$6*(1+($B$54-$B42)*$C$5)*$F$54)/$F46)-$Z41*(($G46-$G$54)/$F46) ->  | IL16: =+((((1+$AK$16*$C$5)*($I47-$I$54))+$C$5*($J48-$J$54-(($B$54-$B43-$AK$16)*$I$54))+$C$6*(1+($B$54-$B43)*$C$5)*$F$54)/$F47)-$Z42*(($G47-$G$54)/$F47) ->  | IM16: =+((((1+$AK$16*$C$5)*($I48-$I$54))+$C$5*($J49-$J$54-(($B$54-$B44-$AK$16)*$I$54))+$C$6*(1+($B$54-$B44)*$C$5)*$F$54)/$F48)-$Z43*(($G48-$G$54)/$F48) ->  | IN16: =+((((1+$AK$16*$C$5)*($I49-$I$54))+$C$5*($J50-$J$54-(($B$54-$B45-$AK$16)*$I$54))+$C$6*(1+($B$54-$B45)*$C$5)*$F$54)/$F49)-$Z44*(($G49-$G$54)/$F49) ->  | IO16: =+((((1+$AK$16*$C$5)*($I50-$I$54))+$C$5*($J51-$J$54-(($B$54-$B46-$AK$16)*$I$54))+$C$6*(1+($B$54-$B46)*$C$5)*$F$54)/$F50)-$Z45*(($G50-$G$54)/$F50) ->  | IP16: =+((((1+$AK$16*$C$5)*($I51-$I$54))+$C$5*($J52-$J$54-(($B$54-$B47-$AK$16)*$I$54))+$C$6*(1+($B$54-$B47)*$C$5)*$F$54)/$F51)-$Z46*(($G51-$G$54)/$F51) ->  | IQ16: =+((((1+$AK$16*$C$5)*($I52-$I$54))+$C$5*($J53-$J$54-(($B$54-$B48-$AK$16)*$I$54))+$C$6*(1+($B$54-$B48)*$C$5)*$F$54)/$F52)-$Z47*(($G52-$G$54)/$F52) ->  | IR16: =+((((1+$AK$16*$C$5)*($I53-$I$54))+$C$5*($J54-$J$54-(($B$54-$B49-$AK$16)*$I$54))+$C$6*(1+($B$54-$B49)*$C$5)*$F$54)/$F53)-$Z48*(($G53-$G$54)/$F53) ->  | IS16: =+((((1+$AK$16*$C$5)*($I54-$I$54))+$C$5*($J55-$J$54-(($B$54-$B50-$AK$16)*$I$54))+$C$6*(1+($B$54-$B50)*$C$5)*$F$54)/$F54)-$Z49*(($G54-$G$54)/$F54) ->  | IY16: 5 | IZ16: =+((((1+$CC$16*$C$5)*($I17-$I$59))+$C$5*($J18-$J$59-(($B$59-$B13-$CC$16)*$I$59))+$C$6*(1+($B$59-$B13)*$C$5)*$F$59)/$F17)-$AA12*(($G17-$G$59)/$F17) ->  | JA16: =+((((1+$CC$16*$C$5)*($I18-$I$59))+$C$5*($J19-$J$59-(($B$59-$B14-$CC$16)*$I$59))+$C$6*(1+($B$59-$B14)*$C$5)*$F$59)/$F18)-$AA13*(($G18-$G$59)/$F18) ->  | JB16: =+((((1+$CC$16*$C$5)*($I19-$I$59))+$C$5*($J20-$J$59-(($B$59-$B15-$CC$16)*$I$59))+$C$6*(1+($B$59-$B15)*$C$5)*$F$59)/$F19)-$AA14*(($G19-$G$59)/$F19) ->  | JC16: =+((((1+$CC$16*$C$5)*($I20-$I$59))+$C$5*($J21-$J$59-(($B$59-$B16-$CC$16)*$I$59))+$C$6*(1+($B$59-$B16)*$C$5)*$F$59)/$F20)-$AA15*(($G20-$G$59)/$F20) ->  | JD16: =+((((1+$CC$16*$C$5)*($I21-$I$59))+$C$5*($J22-$J$59-(($B$59-$B17-$CC$16)*$I$59))+$C$6*(1+($B$59-$B17)*$C$5)*$F$59)/$F21)-$AA16*(($G21-$G$59)/$F21) ->  | JE16: =+((((1+$CC$16*$C$5)*($I22-$I$59))+$C$5*($J23-$J$59-(($B$59-$B18-$CC$16)*$I$59))+$C$6*(1+($B$59-$B18)*$C$5)*$F$59)/$F22)-$AA17*(($G22-$G$59)/$F22) ->  | JF16: =+((((1+$CC$16*$C$5)*($I23-$I$59))+$C$5*($J24-$J$59-(($B$59-$B19-$CC$16)*$I$59))+$C$6*(1+($B$59-$B19)*$C$5)*$F$59)/$F23)-$AA18*(($G23-$G$59)/$F23) ->  | JG16: =+((((1+$CC$16*$C$5)*($I24-$I$59))+$C$5*($J25-$J$59-(($B$59-$B20-$CC$16)*$I$59))+$C$6*(1+($B$59-$B20)*$C$5)*$F$59)/$F24)-$AA19*(($G24-$G$59)/$F24) ->  | JH16: =+((((1+$CC$16*$C$5)*($I25-$I$59))+$C$5*($J26-$J$59-(($B$59-$B21-$CC$16)*$I$59))+$C$6*(1+($B$59-$B21)*$C$5)*$F$59)/$F25)-$AA20*(($G25-$G$59)/$F25) ->  | JI16: =+((((1+$CC$16*$C$5)*($I26-$I$59))+$C$5*($J27-$J$59-(($B$59-$B22-$CC$16)*$I$59))+$C$6*(1+($B$59-$B22)*$C$5)*$F$59)/$F26)-$AA21*(($G26-$G$59)/$F26) ->  | JJ16: =+((((1+$CC$16*$C$5)*($I27-$I$59))+$C$5*($J28-$J$59-(($B$59-$B23-$CC$16)*$I$59))+$C$6*(1+($B$59-$B23)*$C$5)*$F$59)/$F27)-$AA22*(($G27-$G$59)/$F27) ->  | JK16: =+((((1+$CC$16*$C$5)*($I28-$I$59))+$C$5*($J29-$J$59-(($B$59-$B24-$CC$16)*$I$59))+$C$6*(1+($B$59-$B24)*$C$5)*$F$59)/$F28)-$AA23*(($G28-$G$59)/$F28) ->  | JL16: =+((((1+$CC$16*$C$5)*($I29-$I$59))+$C$5*($J30-$J$59-(($B$59-$B25-$CC$16)*$I$59))+$C$6*(1+($B$59-$B25)*$C$5)*$F$59)/$F29)-$AA24*(($G29-$G$59)/$F29) ->  | JM16: =+((((1+$CC$16*$C$5)*($I30-$I$59))+$C$5*($J31-$J$59-(($B$59-$B26-$CC$16)*$I$59))+$C$6*(1+($B$59-$B26)*$C$5)*$F$59)/$F30)-$AA25*(($G30-$G$59)/$F30) ->  | JN16: =+((((1+$CC$16*$C$5)*($I31-$I$59))+$C$5*($J32-$J$59-(($B$59-$B27-$CC$16)*$I$59))+$C$6*(1+($B$59-$B27)*$C$5)*$F$59)/$F31)-$AA26*(($G31-$G$59)/$F31) ->  | JO16: =+((((1+$CC$16*$C$5)*($I32-$I$59))+$C$5*($J33-$J$59-(($B$59-$B28-$CC$16)*$I$59))+$C$6*(1+($B$59-$B28)*$C$5)*$F$59)/$F32)-$AA27*(($G32-$G$59)/$F32) ->  | JP16: =+((((1+$CC$16*$C$5)*($I33-$I$59))+$C$5*($J34-$J$59-(($B$59-$B29-$CC$16)*$I$59))+$C$6*(1+($B$59-$B29)*$C$5)*$F$59)/$F33)-$AA28*(($G33-$G$59)/$F33) ->  | JQ16: =+((((1+$CC$16*$C$5)*($I34-$I$59))+$C$5*($J35-$J$59-(($B$59-$B30-$CC$16)*$I$59))+$C$6*(1+($B$59-$B30)*$C$5)*$F$59)/$F34)-$AA29*(($G34-$G$59)/$F34) ->  | JR16: =+((((1+$CC$16*$C$5)*($I35-$I$59))+$C$5*($J36-$J$59-(($B$59-$B31-$CC$16)*$I$59))+$C$6*(1+($B$59-$B31)*$C$5)*$F$59)/$F35)-$AA30*(($G35-$G$59)/$F35) ->  | JS16: =+((((1+$CC$16*$C$5)*($I36-$I$59))+$C$5*($J37-$J$59-(($B$59-$B32-$CC$16)*$I$59))+$C$6*(1+($B$59-$B32)*$C$5)*$F$59)/$F36)-$AA31*(($G36-$G$59)/$F36) ->  | JT16: =+((((1+$CC$16*$C$5)*($I37-$I$59))+$C$5*($J38-$J$59-(($B$59-$B33-$CC$16)*$I$59))+$C$6*(1+($B$59-$B33)*$C$5)*$F$59)/$F37)-$AA32*(($G37-$G$59)/$F37) ->  | JU16: =+((((1+$CC$16*$C$5)*($I38-$I$59))+$C$5*($J39-$J$59-(($B$59-$B34-$CC$16)*$I$59))+$C$6*(1+($B$59-$B34)*$C$5)*$F$59)/$F38)-$AA33*(($G38-$G$59)/$F38) ->  | JV16: =+((((1+$CC$16*$C$5)*($I39-$I$59))+$C$5*($J40-$J$59-(($B$59-$B35-$CC$16)*$I$59))+$C$6*(1+($B$59-$B35)*$C$5)*$F$59)/$F39)-$AA34*(($G39-$G$59)/$F39) ->  | JW16: =+((((1+$CC$16*$C$5)*($I40-$I$59))+$C$5*($J41-$J$59-(($B$59-$B36-$CC$16)*$I$59))+$C$6*(1+($B$59-$B36)*$C$5)*$F$59)/$F40)-$AA35*(($G40-$G$59)/$F40) ->  | JX16: =+((((1+$CC$16*$C$5)*($I41-$I$59))+$C$5*($J42-$J$59-(($B$59-$B37-$CC$16)*$I$59))+$C$6*(1+($B$59-$B37)*$C$5)*$F$59)/$F41)-$AA36*(($G41-$G$59)/$F41) ->  | JY16: =+((((1+$CC$16*$C$5)*($I42-$I$59))+$C$5*($J43-$J$59-(($B$59-$B38-$CC$16)*$I$59))+$C$6*(1+($B$59-$B38)*$C$5)*$F$59)/$F42)-$AA37*(($G42-$G$59)/$F42) ->  | JZ16: =+((((1+$CC$16*$C$5)*($I43-$I$59))+$C$5*($J44-$J$59-(($B$59-$B39-$CC$16)*$I$59))+$C$6*(1+($B$59-$B39)*$C$5)*$F$59)/$F43)-$AA38*(($G43-$G$59)/$F43) ->  | KA16: =+((((1+$CC$16*$C$5)*($I44-$I$59))+$C$5*($J45-$J$59-(($B$59-$B40-$CC$16)*$I$59))+$C$6*(1+($B$59-$B40)*$C$5)*$F$59)/$F44)-$AA39*(($G44-$G$59)/$F44) ->  | KB16: =+((((1+$CC$16*$C$5)*($I45-$I$59))+$C$5*($J46-$J$59-(($B$59-$B41-$CC$16)*$I$59))+$C$6*(1+($B$59-$B41)*$C$5)*$F$59)/$F45)-$AA40*(($G45-$G$59)/$F45) ->  | KC16: =+((((1+$CC$16*$C$5)*($I46-$I$59))+$C$5*($J47-$J$59-(($B$59-$B42-$CC$16)*$I$59))+$C$6*(1+($B$59-$B42)*$C$5)*$F$59)/$F46)-$AA41*(($G46-$G$59)/$F46) ->  | KD16: =+((((1+$CC$16*$C$5)*($I47-$I$59))+$C$5*($J48-$J$59-(($B$59-$B43-$CC$16)*$I$59))+$C$6*(1+($B$59-$B43)*$C$5)*$F$59)/$F47)-$AA42*(($G47-$G$59)/$F47) ->  | KE16: =+((((1+$CC$16*$C$5)*($I48-$I$59))+$C$5*($J49-$J$59-(($B$59-$B44-$CC$16)*$I$59))+$C$6*(1+($B$59-$B44)*$C$5)*$F$59)/$F48)-$AA43*(($G48-$G$59)/$F48) ->  | KF16: =+((((1+$CC$16*$C$5)*($I49-$I$59))+$C$5*($J50-$J$59-(($B$59-$B45-$CC$16)*$I$59))+$C$6*(1+($B$59-$B45)*$C$5)*$F$59)/$F49)-$AA44*(($G49-$G$59)/$F49) ->  | KG16: =+((((1+$CC$16*$C$5)*($I50-$I$59))+$C$5*($J51-$J$59-(($B$59-$B46-$CC$16)*$I$59))+$C$6*(1+($B$59-$B46)*$C$5)*$F$59)/$F50)-$AA45*(($G50-$G$59)/$F50) ->  | KH16: =+((((1+$CC$16*$C$5)*($I51-$I$59))+$C$5*($J52-$J$59-(($B$59-$B47-$CC$16)*$I$59))+$C$6*(1+($B$59-$B47)*$C$5)*$F$59)/$F51)-$AA46*(($G51-$G$59)/$F51) ->  | KI16: =+((((1+$CC$16*$C$5)*($I52-$I$59))+$C$5*($J53-$J$59-(($B$59-$B48-$CC$16)*$I$59))+$C$6*(1+($B$59-$B48)*$C$5)*$F$59)/$F52)-$AA47*(($G52-$G$59)/$F52) ->  | KJ16: =+((((1+$CC$16*$C$5)*($I53-$I$59))+$C$5*($J54-$J$59-(($B$59-$B49-$CC$16)*$I$59))+$C$6*(1+($B$59-$B49)*$C$5)*$F$59)/$F53)-$AA48*(($G53-$G$59)/$F53) ->  | KK16: =+((((1+$CC$16*$C$5)*($I54-$I$59))+$C$5*($J55-$J$59-(($B$59-$B50-$CC$16)*$I$59))+$C$6*(1+($B$59-$B50)*$C$5)*$F$59)/$F54)-$AA49*(($G54-$G$59)/$F54) ->  | KL16: =+((((1+$CC$16*$C$5)*($I55-$I$59))+$C$5*($J56-$J$59-(($B$59-$B51-$CC$16)*$I$59))+$C$6*(1+($B$59-$B51)*$C$5)*$F$59)/$F55)-$AA50*(($G55-$G$59)/$F55) ->  | KM16: =+((((1+$CC$16*$C$5)*($I56-$I$59))+$C$5*($J57-$J$59-(($B$59-$B52-$CC$16)*$I$59))+$C$6*(1+($B$59-$B52)*$C$5)*$F$59)/$F56)-$AA51*(($G56-$G$59)/$F56) ->  | KN16: =+((((1+$CC$16*$C$5)*($I57-$I$59))+$C$5*($J58-$J$59-(($B$59-$B53-$CC$16)*$I$59))+$C$6*(1+($B$59-$B53)*$C$5)*$F$59)/$F57)-$AA52*(($G57-$G$59)/$F57) ->  | KO16: =+((((1+$CC$16*$C$5)*($I58-$I$59))+$C$5*($J59-$J$59-(($B$59-$B54-$CC$16)*$I$59))+$C$6*(1+($B$59-$B54)*$C$5)*$F$59)/$F58)-$AA53*(($G58-$G$59)/$F58) ->  | KP16: =+((((1+$CC$16*$C$5)*($I59-$I$59))+$C$5*($J60-$J$59-(($B$59-$B55-$CC$16)*$I$59))+$C$6*(1+($B$59-$B55)*$C$5)*$F$59)/$F59)-$AA54*(($G59-$G$59)/$F59) -> 
B17: 23 | C17: 98925 | D17: 364 | E17: 0.003679555219 | F17: 28873.50371 | G17: =+SUM($F17:F$95) -> 497072.6647 | H17: 100.702987 | I17: =+SUM($H17:H$95) -> 2959.762895 | J17: =+SUM(I17:$I$94) -> 90160.62413 | K17: =+SUM($G17:G$94) -> 7805312.779 | P17: 1 | Q17: =+($G17-$G22)/$F17 -> 4.47365939 | R17: =+($G17-$G$59)/$F17 -> 16.29318408 | S17: 15.77798032 | U17: 23 | AC17: 23 | AK17: 6 | AL17: =+(((1+$AK$17*$C$5)*($I18-$I$54))+$C$5*($J19-$J$54-(($B$54-$B13-$AK$17)*$I$54))+$C$6*(1+($B$54-$B13)*$C$5)*$F$54)/$F18 ->  | AM17: =+(((1+$AK$17*$C$5)*($I19-$I$54))+$C$5*($J20-$J$54-(($B$54-$B14-$AK$17)*$I$54))+$C$6*(1+($B$54-$B14)*$C$5)*$F$54)/$F19 ->  | AN17: =+(((1+$AK$17*$C$5)*($I20-$I$54))+$C$5*($J21-$J$54-(($B$54-$B15-$AK$17)*$I$54))+$C$6*(1+($B$54-$B15)*$C$5)*$F$54)/$F20 ->  | AO17: =+(((1+$AK$17*$C$5)*($I21-$I$54))+$C$5*($J22-$J$54-(($B$54-$B16-$AK$17)*$I$54))+$C$6*(1+($B$54-$B16)*$C$5)*$F$54)/$F21 ->  | AP17: =+(((1+$AK$17*$C$5)*($I22-$I$54))+$C$5*($J23-$J$54-(($B$54-$B17-$AK$17)*$I$54))+$C$6*(1+($B$54-$B17)*$C$5)*$F$54)/$F22 ->  | AQ17: =+(((1+$AK$17*$C$5)*($I23-$I$54))+$C$5*($J24-$J$54-(($B$54-$B18-$AK$17)*$I$54))+$C$6*(1+($B$54-$B18)*$C$5)*$F$54)/$F23 ->  | AR17: =+(((1+$AK$17*$C$5)*($I24-$I$54))+$C$5*($J25-$J$54-(($B$54-$B19-$AK$17)*$I$54))+$C$6*(1+($B$54-$B19)*$C$5)*$F$54)/$F24 ->  | AS17: =+(((1+$AK$17*$C$5)*($I25-$I$54))+$C$5*($J26-$J$54-(($B$54-$B20-$AK$17)*$I$54))+$C$6*(1+($B$54-$B20)*$C$5)*$F$54)/$F25 ->  | AT17: =+(((1+$AK$17*$C$5)*($I26-$I$54))+$C$5*($J27-$J$54-(($B$54-$B21-$AK$17)*$I$54))+$C$6*(1+($B$54-$B21)*$C$5)*$F$54)/$F26 ->  | AU17: =+(((1+$AK$17*$C$5)*($I27-$I$54))+$C$5*($J28-$J$54-(($B$54-$B22-$AK$17)*$I$54))+$C$6*(1+($B$54-$B22)*$C$5)*$F$54)/$F27 ->  | AV17: =+(((1+$AK$17*$C$5)*($I28-$I$54))+$C$5*($J29-$J$54-(($B$54-$B23-$AK$17)*$I$54))+$C$6*(1+($B$54-$B23)*$C$5)*$F$54)/$F28 ->  | AW17: =+(((1+$AK$17*$C$5)*($I29-$I$54))+$C$5*($J30-$J$54-(($B$54-$B24-$AK$17)*$I$54))+$C$6*(1+($B$54-$B24)*$C$5)*$F$54)/$F29 ->  | AX17: =+(((1+$AK$17*$C$5)*($I30-$I$54))+$C$5*($J31-$J$54-(($B$54-$B25-$AK$17)*$I$54))+$C$6*(1+($B$54-$B25)*$C$5)*$F$54)/$F30 ->  | AY17: =+(((1+$AK$17*$C$5)*($I31-$I$54))+$C$5*($J32-$J$54-(($B$54-$B26-$AK$17)*$I$54))+$C$6*(1+($B$54-$B26)*$C$5)*$F$54)/$F31 ->  | AZ17: =+(((1+$AK$17*$C$5)*($I32-$I$54))+$C$5*($J33-$J$54-(($B$54-$B27-$AK$17)*$I$54))+$C$6*(1+($B$54-$B27)*$C$5)*$F$54)/$F32 ->  | BA17: =+(((1+$AK$17*$C$5)*($I33-$I$54))+$C$5*($J34-$J$54-(($B$54-$B28-$AK$17)*$I$54))+$C$6*(1+($B$54-$B28)*$C$5)*$F$54)/$F33 ->  | BB17: =+(((1+$AK$17*$C$5)*($I34-$I$54))+$C$5*($J35-$J$54-(($B$54-$B29-$AK$17)*$I$54))+$C$6*(1+($B$54-$B29)*$C$5)*$F$54)/$F34 ->  | BC17: =+(((1+$AK$17*$C$5)*($I35-$I$54))+$C$5*($J36-$J$54-(($B$54-$B30-$AK$17)*$I$54))+$C$6*(1+($B$54-$B30)*$C$5)*$F$54)/$F35 ->  | BD17: =+(((1+$AK$17*$C$5)*($I36-$I$54))+$C$5*($J37-$J$54-(($B$54-$B31-$AK$17)*$I$54))+$C$6*(1+($B$54-$B31)*$C$5)*$F$54)/$F36 ->  | BE17: =+(((1+$AK$17*$C$5)*($I37-$I$54))+$C$5*($J38-$J$54-(($B$54-$B32-$AK$17)*$I$54))+$C$6*(1+($B$54-$B32)*$C$5)*$F$54)/$F37 ->  | BF17: =+(((1+$AK$17*$C$5)*($I38-$I$54))+$C$5*($J39-$J$54-(($B$54-$B33-$AK$17)*$I$54))+$C$6*(1+($B$54-$B33)*$C$5)*$F$54)/$F38 ->  | BG17: =+(((1+$AK$17*$C$5)*($I39-$I$54))+$C$5*($J40-$J$54-(($B$54-$B34-$AK$17)*$I$54))+$C$6*(1+($B$54-$B34)*$C$5)*$F$54)/$F39 ->  | BH17: =+(((1+$AK$17*$C$5)*($I40-$I$54))+$C$5*($J41-$J$54-(($B$54-$B35-$AK$17)*$I$54))+$C$6*(1+($B$54-$B35)*$C$5)*$F$54)/$F40 ->  | BI17: =+(((1+$AK$17*$C$5)*($I41-$I$54))+$C$5*($J42-$J$54-(($B$54-$B36-$AK$17)*$I$54))+$C$6*(1+($B$54-$B36)*$C$5)*$F$54)/$F41 ->  | BJ17: =+(((1+$AK$17*$C$5)*($I42-$I$54))+$C$5*($J43-$J$54-(($B$54-$B37-$AK$17)*$I$54))+$C$6*(1+($B$54-$B37)*$C$5)*$F$54)/$F42 ->  | BK17: =+(((1+$AK$17*$C$5)*($I43-$I$54))+$C$5*($J44-$J$54-(($B$54-$B38-$AK$17)*$I$54))+$C$6*(1+($B$54-$B38)*$C$5)*$F$54)/$F43 ->  | BL17: =+(((1+$AK$17*$C$5)*($I44-$I$54))+$C$5*($J45-$J$54-(($B$54-$B39-$AK$17)*$I$54))+$C$6*(1+($B$54-$B39)*$C$5)*$F$54)/$F44 ->  | BM17: =+(((1+$AK$17*$C$5)*($I45-$I$54))+$C$5*($J46-$J$54-(($B$54-$B40-$AK$17)*$I$54))+$C$6*(1+($B$54-$B40)*$C$5)*$F$54)/$F45 ->  | BN17: =+(((1+$AK$17*$C$5)*($I46-$I$54))+$C$5*($J47-$J$54-(($B$54-$B41-$AK$17)*$I$54))+$C$6*(1+($B$54-$B41)*$C$5)*$F$54)/$F46 ->  | BO17: =+(((1+$AK$17*$C$5)*($I47-$I$54))+$C$5*($J48-$J$54-(($B$54-$B42-$AK$17)*$I$54))+$C$6*(1+($B$54-$B42)*$C$5)*$F$54)/$F47 ->  | BP17: =+(((1+$AK$17*$C$5)*($I48-$I$54))+$C$5*($J49-$J$54-(($B$54-$B43-$AK$17)*$I$54))+$C$6*(1+($B$54-$B43)*$C$5)*$F$54)/$F48 ->  | BQ17: =+(((1+$AK$17*$C$5)*($I49-$I$54))+$C$5*($J50-$J$54-(($B$54-$B44-$AK$17)*$I$54))+$C$6*(1+($B$54-$B44)*$C$5)*$F$54)/$F49 ->  | BR17: =+(((1+$AK$17*$C$5)*($I50-$I$54))+$C$5*($J51-$J$54-(($B$54-$B45-$AK$17)*$I$54))+$C$6*(1+($B$54-$B45)*$C$5)*$F$54)/$F50 ->  | BS17: =+(((1+$AK$17*$C$5)*($I51-$I$54))+$C$5*($J52-$J$54-(($B$54-$B46-$AK$17)*$I$54))+$C$6*(1+($B$54-$B46)*$C$5)*$F$54)/$F51 ->  | BT17: =+(((1+$AK$17*$C$5)*($I52-$I$54))+$C$5*($J53-$J$54-(($B$54-$B47-$AK$17)*$I$54))+$C$6*(1+($B$54-$B47)*$C$5)*$F$54)/$F52 ->  | BU17: =+(((1+$AK$17*$C$5)*($I53-$I$54))+$C$5*($J54-$J$54-(($B$54-$B48-$AK$17)*$I$54))+$C$6*(1+($B$54-$B48)*$C$5)*$F$54)/$F53 ->  | BV17: =+(((1+$AK$17*$C$5)*($I54-$I$54))+$C$5*($J55-$J$54-(($B$54-$B49-$AK$17)*$I$54))+$C$6*(1+($B$54-$B49)*$C$5)*$F$54)/$F54 ->  | CC17: 6 | CD17: =+(((1+$CC$17*$C$5)*($I18-$I$59))+$C$5*($J19-$J$59-(($B$59-$B13-$CC$17)*$I$59))+$C$6*(1+($B$59-$B13)*$C$5)*$F$59)/$F18 ->  | CE17: =+(((1+$CC$17*$C$5)*($I19-$I$59))+$C$5*($J20-$J$59-(($B$59-$B14-$CC$17)*$I$59))+$C$6*(1+($B$59-$B14)*$C$5)*$F$59)/$F19 ->  | CF17: =+(((1+$CC$17*$C$5)*($I20-$I$59))+$C$5*($J21-$J$59-(($B$59-$B15-$CC$17)*$I$59))+$C$6*(1+($B$59-$B15)*$C$5)*$F$59)/$F20 ->  | CG17: =+(((1+$CC$17*$C$5)*($I21-$I$59))+$C$5*($J22-$J$59-(($B$59-$B16-$CC$17)*$I$59))+$C$6*(1+($B$59-$B16)*$C$5)*$F$59)/$F21 ->  | CH17: =+(((1+$CC$17*$C$5)*($I22-$I$59))+$C$5*($J23-$J$59-(($B$59-$B17-$CC$17)*$I$59))+$C$6*(1+($B$59-$B17)*$C$5)*$F$59)/$F22 ->  | CI17: =+(((1+$CC$17*$C$5)*($I23-$I$59))+$C$5*($J24-$J$59-(($B$59-$B18-$CC$17)*$I$59))+$C$6*(1+($B$59-$B18)*$C$5)*$F$59)/$F23 ->  | CJ17: =+(((1+$CC$17*$C$5)*($I24-$I$59))+$C$5*($J25-$J$59-(($B$59-$B19-$CC$17)*$I$59))+$C$6*(1+($B$59-$B19)*$C$5)*$F$59)/$F24 ->  | CK17: =+(((1+$CC$17*$C$5)*($I25-$I$59))+$C$5*($J26-$J$59-(($B$59-$B20-$CC$17)*$I$59))+$C$6*(1+($B$59-$B20)*$C$5)*$F$59)/$F25 ->  | CL17: =+(((1+$CC$17*$C$5)*($I26-$I$59))+$C$5*($J27-$J$59-(($B$59-$B21-$CC$17)*$I$59))+$C$6*(1+($B$59-$B21)*$C$5)*$F$59)/$F26 ->  | CM17: =+(((1+$CC$17*$C$5)*($I27-$I$59))+$C$5*($J28-$J$59-(($B$59-$B22-$CC$17)*$I$59))+$C$6*(1+($B$59-$B22)*$C$5)*$F$59)/$F27 ->  | CN17: =+(((1+$CC$17*$C$5)*($I28-$I$59))+$C$5*($J29-$J$59-(($B$59-$B23-$CC$17)*$I$59))+$C$6*(1+($B$59-$B23)*$C$5)*$F$59)/$F28 ->  | CO17: =+(((1+$CC$17*$C$5)*($I29-$I$59))+$C$5*($J30-$J$59-(($B$59-$B24-$CC$17)*$I$59))+$C$6*(1+($B$59-$B24)*$C$5)*$F$59)/$F29 ->  | CP17: =+(((1+$CC$17*$C$5)*($I30-$I$59))+$C$5*($J31-$J$59-(($B$59-$B25-$CC$17)*$I$59))+$C$6*(1+($B$59-$B25)*$C$5)*$F$59)/$F30 ->  | CQ17: =+(((1+$CC$17*$C$5)*($I31-$I$59))+$C$5*($J32-$J$59-(($B$59-$B26-$CC$17)*$I$59))+$C$6*(1+($B$59-$B26)*$C$5)*$F$59)/$F31 ->  | CR17: =+(((1+$CC$17*$C$5)*($I32-$I$59))+$C$5*($J33-$J$59-(($B$59-$B27-$CC$17)*$I$59))+$C$6*(1+($B$59-$B27)*$C$5)*$F$59)/$F32 ->  | CS17: =+(((1+$CC$17*$C$5)*($I33-$I$59))+$C$5*($J34-$J$59-(($B$59-$B28-$CC$17)*$I$59))+$C$6*(1+($B$59-$B28)*$C$5)*$F$59)/$F33 ->  | CT17: =+(((1+$CC$17*$C$5)*($I34-$I$59))+$C$5*($J35-$J$59-(($B$59-$B29-$CC$17)*$I$59))+$C$6*(1+($B$59-$B29)*$C$5)*$F$59)/$F34 ->  | CU17: =+(((1+$CC$17*$C$5)*($I35-$I$59))+$C$5*($J36-$J$59-(($B$59-$B30-$CC$17)*$I$59))+$C$6*(1+($B$59-$B30)*$C$5)*$F$59)/$F35 ->  | CV17: =+(((1+$CC$17*$C$5)*($I36-$I$59))+$C$5*($J37-$J$59-(($B$59-$B31-$CC$17)*$I$59))+$C$6*(1+($B$59-$B31)*$C$5)*$F$59)/$F36 ->  | CW17: =+(((1+$CC$17*$C$5)*($I37-$I$59))+$C$5*($J38-$J$59-(($B$59-$B32-$CC$17)*$I$59))+$C$6*(1+($B$59-$B32)*$C$5)*$F$59)/$F37 ->  | CX17: =+(((1+$CC$17*$C$5)*($I38-$I$59))+$C$5*($J39-$J$59-(($B$59-$B33-$CC$17)*$I$59))+$C$6*(1+($B$59-$B33)*$C$5)*$F$59)/$F38 ->  | CY17: =+(((1+$CC$17*$C$5)*($I39-$I$59))+$C$5*($J40-$J$59-(($B$59-$B34-$CC$17)*$I$59))+$C$6*(1+($B$59-$B34)*$C$5)*$F$59)/$F39 ->  | CZ17: =+(((1+$CC$17*$C$5)*($I40-$I$59))+$C$5*($J41-$J$59-(($B$59-$B35-$CC$17)*$I$59))+$C$6*(1+($B$59-$B35)*$C$5)*$F$59)/$F40 ->  | DA17: =+(((1+$CC$17*$C$5)*($I41-$I$59))+$C$5*($J42-$J$59-(($B$59-$B36-$CC$17)*$I$59))+$C$6*(1+($B$59-$B36)*$C$5)*$F$59)/$F41 ->  | DB17: =+(((1+$CC$17*$C$5)*($I42-$I$59))+$C$5*($J43-$J$59-(($B$59-$B37-$CC$17)*$I$59))+$C$6*(1+($B$59-$B37)*$C$5)*$F$59)/$F42 ->  | DC17: =+(((1+$CC$17*$C$5)*($I43-$I$59))+$C$5*($J44-$J$59-(($B$59-$B38-$CC$17)*$I$59))+$C$6*(1+($B$59-$B38)*$C$5)*$F$59)/$F43 ->  | DD17: =+(((1+$CC$17*$C$5)*($I44-$I$59))+$C$5*($J45-$J$59-(($B$59-$B39-$CC$17)*$I$59))+$C$6*(1+($B$59-$B39)*$C$5)*$F$59)/$F44 ->  | DE17: =+(((1+$CC$17*$C$5)*($I45-$I$59))+$C$5*($J46-$J$59-(($B$59-$B40-$CC$17)*$I$59))+$C$6*(1+($B$59-$B40)*$C$5)*$F$59)/$F45 ->  | DF17: =+(((1+$CC$17*$C$5)*($I46-$I$59))+$C$5*($J47-$J$59-(($B$59-$B41-$CC$17)*$I$59))+$C$6*(1+($B$59-$B41)*$C$5)*$F$59)/$F46 ->  | DG17: =+(((1+$CC$17*$C$5)*($I47-$I$59))+$C$5*($J48-$J$59-(($B$59-$B42-$CC$17)*$I$59))+$C$6*(1+($B$59-$B42)*$C$5)*$F$59)/$F47 ->  | DH17: =+(((1+$CC$17*$C$5)*($I48-$I$59))+$C$5*($J49-$J$59-(($B$59-$B43-$CC$17)*$I$59))+$C$6*(1+($B$59-$B43)*$C$5)*$F$59)/$F48 ->  | DI17: =+(((1+$CC$17*$C$5)*($I49-$I$59))+$C$5*($J50-$J$59-(($B$59-$B44-$CC$17)*$I$59))+$C$6*(1+($B$59-$B44)*$C$5)*$F$59)/$F49 ->  | DJ17: =+(((1+$CC$17*$C$5)*($I50-$I$59))+$C$5*($J51-$J$59-(($B$59-$B45-$CC$17)*$I$59))+$C$6*(1+($B$59-$B45)*$C$5)*$F$59)/$F50 ->  | DK17: =+(((1+$CC$17*$C$5)*($I51-$I$59))+$C$5*($J52-$J$59-(($B$59-$B46-$CC$17)*$I$59))+$C$6*(1+($B$59-$B46)*$C$5)*$F$59)/$F51 ->  | DL17: =+(((1+$CC$17*$C$5)*($I52-$I$59))+$C$5*($J53-$J$59-(($B$59-$B47-$CC$17)*$I$59))+$C$6*(1+($B$59-$B47)*$C$5)*$F$59)/$F52 ->  | DM17: =+(((1+$CC$17*$C$5)*($I53-$I$59))+$C$5*($J54-$J$59-(($B$59-$B48-$CC$17)*$I$59))+$C$6*(1+($B$59-$B48)*$C$5)*$F$59)/$F53 ->  | DN17: =+(((1+$CC$17*$C$5)*($I54-$I$59))+$C$5*($J55-$J$59-(($B$59-$B49-$CC$17)*$I$59))+$C$6*(1+($B$59-$B49)*$C$5)*$F$59)/$F54 ->  | DO17: =+(((1+$CC$17*$C$5)*($I55-$I$59))+$C$5*($J56-$J$59-(($B$59-$B50-$CC$17)*$I$59))+$C$6*(1+($B$59-$B50)*$C$5)*$F$59)/$F55 ->  | DP17: =+(((1+$CC$17*$C$5)*($I56-$I$59))+$C$5*($J57-$J$59-(($B$59-$B51-$CC$17)*$I$59))+$C$6*(1+($B$59-$B51)*$C$5)*$F$59)/$F56 ->  | DQ17: =+(((1+$CC$17*$C$5)*($I57-$I$59))+$C$5*($J58-$J$59-(($B$59-$B52-$CC$17)*$I$59))+$C$6*(1+($B$59-$B52)*$C$5)*$F$59)/$F57 ->  | DR17: =+(((1+$CC$17*$C$5)*($I58-$I$59))+$C$5*($J59-$J$59-(($B$59-$B53-$CC$17)*$I$59))+$C$6*(1+($B$59-$B53)*$C$5)*$F$59)/$F58 ->  | DS17: =+(((1+$CC$17*$C$5)*($I59-$I$59))+$C$5*($J60-$J$59-(($B$59-$B54-$CC$17)*$I$59))+$C$6*(1+($B$59-$B54)*$C$5)*$F$59)/$F59 ->  | DZ17: 6 | EA17: =+(((1+$AK$17*$C$5)*($I18-$I$54))+$C$5*($J19-$J$54-(($B$54-$B13-$AK$17)*$I$54))+$C$6*(1+($B$54-$B13)*$C$5)*$F$54)/$F18 ->  | EB17: =+(((1+$AK$17*$C$5)*($I19-$I$54))+$C$5*($J20-$J$54-(($B$54-$B14-$AK$17)*$I$54))+$C$6*(1+($B$54-$B14)*$C$5)*$F$54)/$F19 ->  | EC17: =+(((1+$AK$17*$C$5)*($I20-$I$54))+$C$5*($J21-$J$54-(($B$54-$B15-$AK$17)*$I$54))+$C$6*(1+($B$54-$B15)*$C$5)*$F$54)/$F20 ->  | ED17: =+(((1+$AK$17*$C$5)*($I21-$I$54))+$C$5*($J22-$J$54-(($B$54-$B16-$AK$17)*$I$54))+$C$6*(1+($B$54-$B16)*$C$5)*$F$54)/$F21 ->  | EE17: =+(((1+$AK$17*$C$5)*($I22-$I$54))+$C$5*($J23-$J$54-(($B$54-$B17-$AK$17)*$I$54))+$C$6*(1+($B$54-$B17)*$C$5)*$F$54)/$F22 ->  | EF17: =+(((1+$AK$17*$C$5)*($I23-$I$54))+$C$5*($J24-$J$54-(($B$54-$B18-$AK$17)*$I$54))+$C$6*(1+($B$54-$B18)*$C$5)*$F$54)/$F23 ->  | EG17: =+(((1+$AK$17*$C$5)*($I24-$I$54))+$C$5*($J25-$J$54-(($B$54-$B19-$AK$17)*$I$54))+$C$6*(1+($B$54-$B19)*$C$5)*$F$54)/$F24 ->  | EH17: =+(((1+$AK$17*$C$5)*($I25-$I$54))+$C$5*($J26-$J$54-(($B$54-$B20-$AK$17)*$I$54))+$C$6*(1+($B$54-$B20)*$C$5)*$F$54)/$F25 ->  | EI17: =+(((1+$AK$17*$C$5)*($I26-$I$54))+$C$5*($J27-$J$54-(($B$54-$B21-$AK$17)*$I$54))+$C$6*(1+($B$54-$B21)*$C$5)*$F$54)/$F26 ->  | EJ17: =+(((1+$AK$17*$C$5)*($I27-$I$54))+$C$5*($J28-$J$54-(($B$54-$B22-$AK$17)*$I$54))+$C$6*(1+($B$54-$B22)*$C$5)*$F$54)/$F27 ->  | EK17: =+(((1+$AK$17*$C$5)*($I28-$I$54))+$C$5*($J29-$J$54-(($B$54-$B23-$AK$17)*$I$54))+$C$6*(1+($B$54-$B23)*$C$5)*$F$54)/$F28 ->  | EL17: =+(((1+$AK$17*$C$5)*($I29-$I$54))+$C$5*($J30-$J$54-(($B$54-$B24-$AK$17)*$I$54))+$C$6*(1+($B$54-$B24)*$C$5)*$F$54)/$F29 ->  | EM17: =+(((1+$AK$17*$C$5)*($I30-$I$54))+$C$5*($J31-$J$54-(($B$54-$B25-$AK$17)*$I$54))+$C$6*(1+($B$54-$B25)*$C$5)*$F$54)/$F30 ->  | EN17: =+(((1+$AK$17*$C$5)*($I31-$I$54))+$C$5*($J32-$J$54-(($B$54-$B26-$AK$17)*$I$54))+$C$6*(1+($B$54-$B26)*$C$5)*$F$54)/$F31 ->  | EO17: =+(((1+$AK$17*$C$5)*($I32-$I$54))+$C$5*($J33-$J$54-(($B$54-$B27-$AK$17)*$I$54))+$C$6*(1+($B$54-$B27)*$C$5)*$F$54)/$F32 ->  | EP17: =+(((1+$AK$17*$C$5)*($I33-$I$54))+$C$5*($J34-$J$54-(($B$54-$B28-$AK$17)*$I$54))+$C$6*(1+($B$54-$B28)*$C$5)*$F$54)/$F33 ->  | EQ17: =+(((1+$AK$17*$C$5)*($I34-$I$54))+$C$5*($J35-$J$54-(($B$54-$B29-$AK$17)*$I$54))+$C$6*(1+($B$54-$B29)*$C$5)*$F$54)/$F34 ->  | ER17: =+(((1+$AK$17*$C$5)*($I35-$I$54))+$C$5*($J36-$J$54-(($B$54-$B30-$AK$17)*$I$54))+$C$6*(1+($B$54-$B30)*$C$5)*$F$54)/$F35 ->  | ES17: =+(((1+$AK$17*$C$5)*($I36-$I$54))+$C$5*($J37-$J$54-(($B$54-$B31-$AK$17)*$I$54))+$C$6*(1+($B$54-$B31)*$C$5)*$F$54)/$F36 ->  | ET17: =+(((1+$AK$17*$C$5)*($I37-$I$54))+$C$5*($J38-$J$54-(($B$54-$B32-$AK$17)*$I$54))+$C$6*(1+($B$54-$B32)*$C$5)*$F$54)/$F37 ->  | EU17: =+(((1+$AK$17*$C$5)*($I38-$I$54))+$C$5*($J39-$J$54-(($B$54-$B33-$AK$17)*$I$54))+$C$6*(1+($B$54-$B33)*$C$5)*$F$54)/$F38 ->  | EV17: =+(((1+$AK$17*$C$5)*($I39-$I$54))+$C$5*($J40-$J$54-(($B$54-$B34-$AK$17)*$I$54))+$C$6*(1+($B$54-$B34)*$C$5)*$F$54)/$F39 ->  | EW17: =+(((1+$AK$17*$C$5)*($I40-$I$54))+$C$5*($J41-$J$54-(($B$54-$B35-$AK$17)*$I$54))+$C$6*(1+($B$54-$B35)*$C$5)*$F$54)/$F40 ->  | EX17: =+(((1+$AK$17*$C$5)*($I41-$I$54))+$C$5*($J42-$J$54-(($B$54-$B36-$AK$17)*$I$54))+$C$6*(1+($B$54-$B36)*$C$5)*$F$54)/$F41 ->  | EY17: =+(((1+$AK$17*$C$5)*($I42-$I$54))+$C$5*($J43-$J$54-(($B$54-$B37-$AK$17)*$I$54))+$C$6*(1+($B$54-$B37)*$C$5)*$F$54)/$F42 ->  | EZ17: =+(((1+$AK$17*$C$5)*($I43-$I$54))+$C$5*($J44-$J$54-(($B$54-$B38-$AK$17)*$I$54))+$C$6*(1+($B$54-$B38)*$C$5)*$F$54)/$F43 ->  | FA17: =+(((1+$AK$17*$C$5)*($I44-$I$54))+$C$5*($J45-$J$54-(($B$54-$B39-$AK$17)*$I$54))+$C$6*(1+($B$54-$B39)*$C$5)*$F$54)/$F44 ->  | FB17: =+(((1+$AK$17*$C$5)*($I45-$I$54))+$C$5*($J46-$J$54-(($B$54-$B40-$AK$17)*$I$54))+$C$6*(1+($B$54-$B40)*$C$5)*$F$54)/$F45 ->  | FC17: =+(((1+$AK$17*$C$5)*($I46-$I$54))+$C$5*($J47-$J$54-(($B$54-$B41-$AK$17)*$I$54))+$C$6*(1+($B$54-$B41)*$C$5)*$F$54)/$F46 ->  | FD17: =+(((1+$AK$17*$C$5)*($I47-$I$54))+$C$5*($J48-$J$54-(($B$54-$B42-$AK$17)*$I$54))+$C$6*(1+($B$54-$B42)*$C$5)*$F$54)/$F47 ->  | FE17: =+(((1+$AK$17*$C$5)*($I48-$I$54))+$C$5*($J49-$J$54-(($B$54-$B43-$AK$17)*$I$54))+$C$6*(1+($B$54-$B43)*$C$5)*$F$54)/$F48 ->  | FF17: =+(((1+$AK$17*$C$5)*($I49-$I$54))+$C$5*($J50-$J$54-(($B$54-$B44-$AK$17)*$I$54))+$C$6*(1+($B$54-$B44)*$C$5)*$F$54)/$F49 ->  | FG17: =+(((1+$AK$17*$C$5)*($I50-$I$54))+$C$5*($J51-$J$54-(($B$54-$B45-$AK$17)*$I$54))+$C$6*(1+($B$54-$B45)*$C$5)*$F$54)/$F50 ->  | FH17: =+(((1+$AK$17*$C$5)*($I51-$I$54))+$C$5*($J52-$J$54-(($B$54-$B46-$AK$17)*$I$54))+$C$6*(1+($B$54-$B46)*$C$5)*$F$54)/$F51 ->  | FI17: =+(((1+$AK$17*$C$5)*($I52-$I$54))+$C$5*($J53-$J$54-(($B$54-$B47-$AK$17)*$I$54))+$C$6*(1+($B$54-$B47)*$C$5)*$F$54)/$F52 ->  | FJ17: =+(((1+$AK$17*$C$5)*($I53-$I$54))+$C$5*($J54-$J$54-(($B$54-$B48-$AK$17)*$I$54))+$C$6*(1+($B$54-$B48)*$C$5)*$F$54)/$F53 ->  | FK17: =+(((1+$AK$17*$C$5)*($I54-$I$54))+$C$5*($J55-$J$54-(($B$54-$B49-$AK$17)*$I$54))+$C$6*(1+($B$54-$B49)*$C$5)*$F$54)/$F54 ->  | FN17: 6 | FO17: =+(((1+$CC$17*$C$5)*($I18-$I$59))+$C$5*($J19-$J$59-(($B$59-$B13-$CC$17)*$I$59))+$C$6*(1+($B$59-$B13)*$C$5)*$F$59)/$F18 ->  | FP17: =+(((1+$CC$17*$C$5)*($I19-$I$59))+$C$5*($J20-$J$59-(($B$59-$B14-$CC$17)*$I$59))+$C$6*(1+($B$59-$B14)*$C$5)*$F$59)/$F19 ->  | FQ17: =+(((1+$CC$17*$C$5)*($I20-$I$59))+$C$5*($J21-$J$59-(($B$59-$B15-$CC$17)*$I$59))+$C$6*(1+($B$59-$B15)*$C$5)*$F$59)/$F20 ->  | FR17: =+(((1+$CC$17*$C$5)*($I21-$I$59))+$C$5*($J22-$J$59-(($B$59-$B16-$CC$17)*$I$59))+$C$6*(1+($B$59-$B16)*$C$5)*$F$59)/$F21 ->  | FS17: =+(((1+$CC$17*$C$5)*($I22-$I$59))+$C$5*($J23-$J$59-(($B$59-$B17-$CC$17)*$I$59))+$C$6*(1+($B$59-$B17)*$C$5)*$F$59)/$F22 ->  | FT17: =+(((1+$CC$17*$C$5)*($I23-$I$59))+$C$5*($J24-$J$59-(($B$59-$B18-$CC$17)*$I$59))+$C$6*(1+($B$59-$B18)*$C$5)*$F$59)/$F23 ->  | FU17: =+(((1+$CC$17*$C$5)*($I24-$I$59))+$C$5*($J25-$J$59-(($B$59-$B19-$CC$17)*$I$59))+$C$6*(1+($B$59-$B19)*$C$5)*$F$59)/$F24 ->  | FV17: =+(((1+$CC$17*$C$5)*($I25-$I$59))+$C$5*($J26-$J$59-(($B$59-$B20-$CC$17)*$I$59))+$C$6*(1+($B$59-$B20)*$C$5)*$F$59)/$F25 ->  | FW17: =+(((1+$CC$17*$C$5)*($I26-$I$59))+$C$5*($J27-$J$59-(($B$59-$B21-$CC$17)*$I$59))+$C$6*(1+($B$59-$B21)*$C$5)*$F$59)/$F26 ->  | FX17: =+(((1+$CC$17*$C$5)*($I27-$I$59))+$C$5*($J28-$J$59-(($B$59-$B22-$CC$17)*$I$59))+$C$6*(1+($B$59-$B22)*$C$5)*$F$59)/$F27 ->  | FY17: =+(((1+$CC$17*$C$5)*($I28-$I$59))+$C$5*($J29-$J$59-(($B$59-$B23-$CC$17)*$I$59))+$C$6*(1+($B$59-$B23)*$C$5)*$F$59)/$F28 ->  | FZ17: =+(((1+$CC$17*$C$5)*($I29-$I$59))+$C$5*($J30-$J$59-(($B$59-$B24-$CC$17)*$I$59))+$C$6*(1+($B$59-$B24)*$C$5)*$F$59)/$F29 ->  | GA17: =+(((1+$CC$17*$C$5)*($I30-$I$59))+$C$5*($J31-$J$59-(($B$59-$B25-$CC$17)*$I$59))+$C$6*(1+($B$59-$B25)*$C$5)*$F$59)/$F30 ->  | GB17: =+(((1+$CC$17*$C$5)*($I31-$I$59))+$C$5*($J32-$J$59-(($B$59-$B26-$CC$17)*$I$59))+$C$6*(1+($B$59-$B26)*$C$5)*$F$59)/$F31 ->  | GC17: =+(((1+$CC$17*$C$5)*($I32-$I$59))+$C$5*($J33-$J$59-(($B$59-$B27-$CC$17)*$I$59))+$C$6*(1+($B$59-$B27)*$C$5)*$F$59)/$F32 ->  | GD17: =+(((1+$CC$17*$C$5)*($I33-$I$59))+$C$5*($J34-$J$59-(($B$59-$B28-$CC$17)*$I$59))+$C$6*(1+($B$59-$B28)*$C$5)*$F$59)/$F33 ->  | GE17: =+(((1+$CC$17*$C$5)*($I34-$I$59))+$C$5*($J35-$J$59-(($B$59-$B29-$CC$17)*$I$59))+$C$6*(1+($B$59-$B29)*$C$5)*$F$59)/$F34 ->  | GF17: =+(((1+$CC$17*$C$5)*($I35-$I$59))+$C$5*($J36-$J$59-(($B$59-$B30-$CC$17)*$I$59))+$C$6*(1+($B$59-$B30)*$C$5)*$F$59)/$F35 ->  | GG17: =+(((1+$CC$17*$C$5)*($I36-$I$59))+$C$5*($J37-$J$59-(($B$59-$B31-$CC$17)*$I$59))+$C$6*(1+($B$59-$B31)*$C$5)*$F$59)/$F36 ->  | GH17: =+(((1+$CC$17*$C$5)*($I37-$I$59))+$C$5*($J38-$J$59-(($B$59-$B32-$CC$17)*$I$59))+$C$6*(1+($B$59-$B32)*$C$5)*$F$59)/$F37 ->  | GI17: =+(((1+$CC$17*$C$5)*($I38-$I$59))+$C$5*($J39-$J$59-(($B$59-$B33-$CC$17)*$I$59))+$C$6*(1+($B$59-$B33)*$C$5)*$F$59)/$F38 ->  | GJ17: =+(((1+$CC$17*$C$5)*($I39-$I$59))+$C$5*($J40-$J$59-(($B$59-$B34-$CC$17)*$I$59))+$C$6*(1+($B$59-$B34)*$C$5)*$F$59)/$F39 ->  | GK17: =+(((1+$CC$17*$C$5)*($I40-$I$59))+$C$5*($J41-$J$59-(($B$59-$B35-$CC$17)*$I$59))+$C$6*(1+($B$59-$B35)*$C$5)*$F$59)/$F40 ->  | GL17: =+(((1+$CC$17*$C$5)*($I41-$I$59))+$C$5*($J42-$J$59-(($B$59-$B36-$CC$17)*$I$59))+$C$6*(1+($B$59-$B36)*$C$5)*$F$59)/$F41 ->  | GM17: =+(((1+$CC$17*$C$5)*($I42-$I$59))+$C$5*($J43-$J$59-(($B$59-$B37-$CC$17)*$I$59))+$C$6*(1+($B$59-$B37)*$C$5)*$F$59)/$F42 ->  | GN17: =+(((1+$CC$17*$C$5)*($I43-$I$59))+$C$5*($J44-$J$59-(($B$59-$B38-$CC$17)*$I$59))+$C$6*(1+($B$59-$B38)*$C$5)*$F$59)/$F43 ->  | GO17: =+(((1+$CC$17*$C$5)*($I44-$I$59))+$C$5*($J45-$J$59-(($B$59-$B39-$CC$17)*$I$59))+$C$6*(1+($B$59-$B39)*$C$5)*$F$59)/$F44 ->  | GP17: =+(((1+$CC$17*$C$5)*($I45-$I$59))+$C$5*($J46-$J$59-(($B$59-$B40-$CC$17)*$I$59))+$C$6*(1+($B$59-$B40)*$C$5)*$F$59)/$F45 ->  | GQ17: =+(((1+$CC$17*$C$5)*($I46-$I$59))+$C$5*($J47-$J$59-(($B$59-$B41-$CC$17)*$I$59))+$C$6*(1+($B$59-$B41)*$C$5)*$F$59)/$F46 ->  | GR17: =+(((1+$CC$17*$C$5)*($I47-$I$59))+$C$5*($J48-$J$59-(($B$59-$B42-$CC$17)*$I$59))+$C$6*(1+($B$59-$B42)*$C$5)*$F$59)/$F47 ->  | GS17: =+(((1+$CC$17*$C$5)*($I48-$I$59))+$C$5*($J49-$J$59-(($B$59-$B43-$CC$17)*$I$59))+$C$6*(1+($B$59-$B43)*$C$5)*$F$59)/$F48 ->  | GT17: =+(((1+$CC$17*$C$5)*($I49-$I$59))+$C$5*($J50-$J$59-(($B$59-$B44-$CC$17)*$I$59))+$C$6*(1+($B$59-$B44)*$C$5)*$F$59)/$F49 ->  | GU17: =+(((1+$CC$17*$C$5)*($I50-$I$59))+$C$5*($J51-$J$59-(($B$59-$B45-$CC$17)*$I$59))+$C$6*(1+($B$59-$B45)*$C$5)*$F$59)/$F50 ->  | GV17: =+(((1+$CC$17*$C$5)*($I51-$I$59))+$C$5*($J52-$J$59-(($B$59-$B46-$CC$17)*$I$59))+$C$6*(1+($B$59-$B46)*$C$5)*$F$59)/$F51 ->  | GW17: =+(((1+$CC$17*$C$5)*($I52-$I$59))+$C$5*($J53-$J$59-(($B$59-$B47-$CC$17)*$I$59))+$C$6*(1+($B$59-$B47)*$C$5)*$F$59)/$F52 ->  | GX17: =+(((1+$CC$17*$C$5)*($I53-$I$59))+$C$5*($J54-$J$59-(($B$59-$B48-$CC$17)*$I$59))+$C$6*(1+($B$59-$B48)*$C$5)*$F$59)/$F53 ->  | GY17: =+(((1+$CC$17*$C$5)*($I54-$I$59))+$C$5*($J55-$J$59-(($B$59-$B49-$CC$17)*$I$59))+$C$6*(1+($B$59-$B49)*$C$5)*$F$59)/$F54 ->  | GZ17: =+(((1+$CC$17*$C$5)*($I55-$I$59))+$C$5*($J56-$J$59-(($B$59-$B50-$CC$17)*$I$59))+$C$6*(1+($B$59-$B50)*$C$5)*$F$59)/$F55 ->  | HA17: =+(((1+$CC$17*$C$5)*($I56-$I$59))+$C$5*($J57-$J$59-(($B$59-$B51-$CC$17)*$I$59))+$C$6*(1+($B$59-$B51)*$C$5)*$F$59)/$F56 ->  | HB17: =+(((1+$CC$17*$C$5)*($I57-$I$59))+$C$5*($J58-$J$59-(($B$59-$B52-$CC$17)*$I$59))+$C$6*(1+($B$59-$B52)*$C$5)*$F$59)/$F57 ->  | HC17: =+(((1+$CC$17*$C$5)*($I58-$I$59))+$C$5*($J59-$J$59-(($B$59-$B53-$CC$17)*$I$59))+$C$6*(1+($B$59-$B53)*$C$5)*$F$59)/$F58 ->  | HD17: =+(((1+$CC$17*$C$5)*($I59-$I$59))+$C$5*($J60-$J$59-(($B$59-$B54-$CC$17)*$I$59))+$C$6*(1+($B$59-$B54)*$C$5)*$F$59)/$F59 ->  | HG17: 6 | HH17: =+((((1+$AK$17*$C$5)*($I18-$I$54))+$C$5*($J19-$J$54-(($B$54-$B13-$AK$17)*$I$54))+$C$6*(1+($B$54-$B13)*$C$5)*$F$54)/$F18)-$Z12*(($G18-$G$54)/$F18) ->  | HI17: =+((((1+$AK$17*$C$5)*($I19-$I$54))+$C$5*($J20-$J$54-(($B$54-$B14-$AK$17)*$I$54))+$C$6*(1+($B$54-$B14)*$C$5)*$F$54)/$F19)-$Z13*(($G19-$G$54)/$F19) ->  | HJ17: =+((((1+$AK$17*$C$5)*($I20-$I$54))+$C$5*($J21-$J$54-(($B$54-$B15-$AK$17)*$I$54))+$C$6*(1+($B$54-$B15)*$C$5)*$F$54)/$F20)-$Z14*(($G20-$G$54)/$F20) ->  | HK17: =+((((1+$AK$17*$C$5)*($I21-$I$54))+$C$5*($J22-$J$54-(($B$54-$B16-$AK$17)*$I$54))+$C$6*(1+($B$54-$B16)*$C$5)*$F$54)/$F21)-$Z15*(($G21-$G$54)/$F21) ->  | HL17: =+((((1+$AK$17*$C$5)*($I22-$I$54))+$C$5*($J23-$J$54-(($B$54-$B17-$AK$17)*$I$54))+$C$6*(1+($B$54-$B17)*$C$5)*$F$54)/$F22)-$Z16*(($G22-$G$54)/$F22) ->  | HM17: =+((((1+$AK$17*$C$5)*($I23-$I$54))+$C$5*($J24-$J$54-(($B$54-$B18-$AK$17)*$I$54))+$C$6*(1+($B$54-$B18)*$C$5)*$F$54)/$F23)-$Z17*(($G23-$G$54)/$F23) ->  | HN17: =+((((1+$AK$17*$C$5)*($I24-$I$54))+$C$5*($J25-$J$54-(($B$54-$B19-$AK$17)*$I$54))+$C$6*(1+($B$54-$B19)*$C$5)*$F$54)/$F24)-$Z18*(($G24-$G$54)/$F24) ->  | HO17: =+((((1+$AK$17*$C$5)*($I25-$I$54))+$C$5*($J26-$J$54-(($B$54-$B20-$AK$17)*$I$54))+$C$6*(1+($B$54-$B20)*$C$5)*$F$54)/$F25)-$Z19*(($G25-$G$54)/$F25) ->  | HP17: =+((((1+$AK$17*$C$5)*($I26-$I$54))+$C$5*($J27-$J$54-(($B$54-$B21-$AK$17)*$I$54))+$C$6*(1+($B$54-$B21)*$C$5)*$F$54)/$F26)-$Z20*(($G26-$G$54)/$F26) ->  | HQ17: =+((((1+$AK$17*$C$5)*($I27-$I$54))+$C$5*($J28-$J$54-(($B$54-$B22-$AK$17)*$I$54))+$C$6*(1+($B$54-$B22)*$C$5)*$F$54)/$F27)-$Z21*(($G27-$G$54)/$F27) ->  | HR17: =+((((1+$AK$17*$C$5)*($I28-$I$54))+$C$5*($J29-$J$54-(($B$54-$B23-$AK$17)*$I$54))+$C$6*(1+($B$54-$B23)*$C$5)*$F$54)/$F28)-$Z22*(($G28-$G$54)/$F28) ->  | HS17: =+((((1+$AK$17*$C$5)*($I29-$I$54))+$C$5*($J30-$J$54-(($B$54-$B24-$AK$17)*$I$54))+$C$6*(1+($B$54-$B24)*$C$5)*$F$54)/$F29)-$Z23*(($G29-$G$54)/$F29) ->  | HT17: =+((((1+$AK$17*$C$5)*($I30-$I$54))+$C$5*($J31-$J$54-(($B$54-$B25-$AK$17)*$I$54))+$C$6*(1+($B$54-$B25)*$C$5)*$F$54)/$F30)-$Z24*(($G30-$G$54)/$F30) ->  | HU17: =+((((1+$AK$17*$C$5)*($I31-$I$54))+$C$5*($J32-$J$54-(($B$54-$B26-$AK$17)*$I$54))+$C$6*(1+($B$54-$B26)*$C$5)*$F$54)/$F31)-$Z25*(($G31-$G$54)/$F31) ->  | HV17: =+((((1+$AK$17*$C$5)*($I32-$I$54))+$C$5*($J33-$J$54-(($B$54-$B27-$AK$17)*$I$54))+$C$6*(1+($B$54-$B27)*$C$5)*$F$54)/$F32)-$Z26*(($G32-$G$54)/$F32) ->  | HW17: =+((((1+$AK$17*$C$5)*($I33-$I$54))+$C$5*($J34-$J$54-(($B$54-$B28-$AK$17)*$I$54))+$C$6*(1+($B$54-$B28)*$C$5)*$F$54)/$F33)-$Z27*(($G33-$G$54)/$F33) ->  | HX17: =+((((1+$AK$17*$C$5)*($I34-$I$54))+$C$5*($J35-$J$54-(($B$54-$B29-$AK$17)*$I$54))+$C$6*(1+($B$54-$B29)*$C$5)*$F$54)/$F34)-$Z28*(($G34-$G$54)/$F34) ->  | HY17: =+((((1+$AK$17*$C$5)*($I35-$I$54))+$C$5*($J36-$J$54-(($B$54-$B30-$AK$17)*$I$54))+$C$6*(1+($B$54-$B30)*$C$5)*$F$54)/$F35)-$Z29*(($G35-$G$54)/$F35) ->  | HZ17: =+((((1+$AK$17*$C$5)*($I36-$I$54))+$C$5*($J37-$J$54-(($B$54-$B31-$AK$17)*$I$54))+$C$6*(1+($B$54-$B31)*$C$5)*$F$54)/$F36)-$Z30*(($G36-$G$54)/$F36) ->  | IA17: =+((((1+$AK$17*$C$5)*($I37-$I$54))+$C$5*($J38-$J$54-(($B$54-$B32-$AK$17)*$I$54))+$C$6*(1+($B$54-$B32)*$C$5)*$F$54)/$F37)-$Z31*(($G37-$G$54)/$F37) ->  | IB17: =+((((1+$AK$17*$C$5)*($I38-$I$54))+$C$5*($J39-$J$54-(($B$54-$B33-$AK$17)*$I$54))+$C$6*(1+($B$54-$B33)*$C$5)*$F$54)/$F38)-$Z32*(($G38-$G$54)/$F38) ->  | IC17: =+((((1+$AK$17*$C$5)*($I39-$I$54))+$C$5*($J40-$J$54-(($B$54-$B34-$AK$17)*$I$54))+$C$6*(1+($B$54-$B34)*$C$5)*$F$54)/$F39)-$Z33*(($G39-$G$54)/$F39) ->  | ID17: =+((((1+$AK$17*$C$5)*($I40-$I$54))+$C$5*($J41-$J$54-(($B$54-$B35-$AK$17)*$I$54))+$C$6*(1+($B$54-$B35)*$C$5)*$F$54)/$F40)-$Z34*(($G40-$G$54)/$F40) ->  | IE17: =+((((1+$AK$17*$C$5)*($I41-$I$54))+$C$5*($J42-$J$54-(($B$54-$B36-$AK$17)*$I$54))+$C$6*(1+($B$54-$B36)*$C$5)*$F$54)/$F41)-$Z35*(($G41-$G$54)/$F41) ->  | IF17: =+((((1+$AK$17*$C$5)*($I42-$I$54))+$C$5*($J43-$J$54-(($B$54-$B37-$AK$17)*$I$54))+$C$6*(1+($B$54-$B37)*$C$5)*$F$54)/$F42)-$Z36*(($G42-$G$54)/$F42) ->  | IG17: =+((((1+$AK$17*$C$5)*($I43-$I$54))+$C$5*($J44-$J$54-(($B$54-$B38-$AK$17)*$I$54))+$C$6*(1+($B$54-$B38)*$C$5)*$F$54)/$F43)-$Z37*(($G43-$G$54)/$F43) ->  | IH17: =+((((1+$AK$17*$C$5)*($I44-$I$54))+$C$5*($J45-$J$54-(($B$54-$B39-$AK$17)*$I$54))+$C$6*(1+($B$54-$B39)*$C$5)*$F$54)/$F44)-$Z38*(($G44-$G$54)/$F44) ->  | II17: =+((((1+$AK$17*$C$5)*($I45-$I$54))+$C$5*($J46-$J$54-(($B$54-$B40-$AK$17)*$I$54))+$C$6*(1+($B$54-$B40)*$C$5)*$F$54)/$F45)-$Z39*(($G45-$G$54)/$F45) ->  | IJ17: =+((((1+$AK$17*$C$5)*($I46-$I$54))+$C$5*($J47-$J$54-(($B$54-$B41-$AK$17)*$I$54))+$C$6*(1+($B$54-$B41)*$C$5)*$F$54)/$F46)-$Z40*(($G46-$G$54)/$F46) ->  | IK17: =+((((1+$AK$17*$C$5)*($I47-$I$54))+$C$5*($J48-$J$54-(($B$54-$B42-$AK$17)*$I$54))+$C$6*(1+($B$54-$B42)*$C$5)*$F$54)/$F47)-$Z41*(($G47-$G$54)/$F47) ->  | IL17: =+((((1+$AK$17*$C$5)*($I48-$I$54))+$C$5*($J49-$J$54-(($B$54-$B43-$AK$17)*$I$54))+$C$6*(1+($B$54-$B43)*$C$5)*$F$54)/$F48)-$Z42*(($G48-$G$54)/$F48) ->  | IM17: =+((((1+$AK$17*$C$5)*($I49-$I$54))+$C$5*($J50-$J$54-(($B$54-$B44-$AK$17)*$I$54))+$C$6*(1+($B$54-$B44)*$C$5)*$F$54)/$F49)-$Z43*(($G49-$G$54)/$F49) ->  | IN17: =+((((1+$AK$17*$C$5)*($I50-$I$54))+$C$5*($J51-$J$54-(($B$54-$B45-$AK$17)*$I$54))+$C$6*(1+($B$54-$B45)*$C$5)*$F$54)/$F50)-$Z44*(($G50-$G$54)/$F50) ->  | IO17: =+((((1+$AK$17*$C$5)*($I51-$I$54))+$C$5*($J52-$J$54-(($B$54-$B46-$AK$17)*$I$54))+$C$6*(1+($B$54-$B46)*$C$5)*$F$54)/$F51)-$Z45*(($G51-$G$54)/$F51) ->  | IP17: =+((((1+$AK$17*$C$5)*($I52-$I$54))+$C$5*($J53-$J$54-(($B$54-$B47-$AK$17)*$I$54))+$C$6*(1+($B$54-$B47)*$C$5)*$F$54)/$F52)-$Z46*(($G52-$G$54)/$F52) ->  | IQ17: =+((((1+$AK$17*$C$5)*($I53-$I$54))+$C$5*($J54-$J$54-(($B$54-$B48-$AK$17)*$I$54))+$C$6*(1+($B$54-$B48)*$C$5)*$F$54)/$F53)-$Z47*(($G53-$G$54)/$F53) ->  | IR17: =+((((1+$AK$17*$C$5)*($I54-$I$54))+$C$5*($J55-$J$54-(($B$54-$B49-$AK$17)*$I$54))+$C$6*(1+($B$54-$B49)*$C$5)*$F$54)/$F54)-$Z48*(($G54-$G$54)/$F54) ->  | IY17: 6 | IZ17: =+((((1+$CC$17*$C$5)*($I18-$I$59))+$C$5*($J19-$J$59-(($B$59-$B13-$CC$17)*$I$59))+$C$6*(1+($B$59-$B13)*$C$5)*$F$59)/$F18)-$AA12*(($G18-$G$59)/$F18) ->  | JA17: =+((((1+$CC$17*$C$5)*($I19-$I$59))+$C$5*($J20-$J$59-(($B$59-$B14-$CC$17)*$I$59))+$C$6*(1+($B$59-$B14)*$C$5)*$F$59)/$F19)-$AA13*(($G19-$G$59)/$F19) ->  | JB17: =+((((1+$CC$17*$C$5)*($I20-$I$59))+$C$5*($J21-$J$59-(($B$59-$B15-$CC$17)*$I$59))+$C$6*(1+($B$59-$B15)*$C$5)*$F$59)/$F20)-$AA14*(($G20-$G$59)/$F20) ->  | JC17: =+((((1+$CC$17*$C$5)*($I21-$I$59))+$C$5*($J22-$J$59-(($B$59-$B16-$CC$17)*$I$59))+$C$6*(1+($B$59-$B16)*$C$5)*$F$59)/$F21)-$AA15*(($G21-$G$59)/$F21) ->  | JD17: =+((((1+$CC$17*$C$5)*($I22-$I$59))+$C$5*($J23-$J$59-(($B$59-$B17-$CC$17)*$I$59))+$C$6*(1+($B$59-$B17)*$C$5)*$F$59)/$F22)-$AA16*(($G22-$G$59)/$F22) ->  | JE17: =+((((1+$CC$17*$C$5)*($I23-$I$59))+$C$5*($J24-$J$59-(($B$59-$B18-$CC$17)*$I$59))+$C$6*(1+($B$59-$B18)*$C$5)*$F$59)/$F23)-$AA17*(($G23-$G$59)/$F23) ->  | JF17: =+((((1+$CC$17*$C$5)*($I24-$I$59))+$C$5*($J25-$J$59-(($B$59-$B19-$CC$17)*$I$59))+$C$6*(1+($B$59-$B19)*$C$5)*$F$59)/$F24)-$AA18*(($G24-$G$59)/$F24) ->  | JG17: =+((((1+$CC$17*$C$5)*($I25-$I$59))+$C$5*($J26-$J$59-(($B$59-$B20-$CC$17)*$I$59))+$C$6*(1+($B$59-$B20)*$C$5)*$F$59)/$F25)-$AA19*(($G25-$G$59)/$F25) ->  | JH17: =+((((1+$CC$17*$C$5)*($I26-$I$59))+$C$5*($J27-$J$59-(($B$59-$B21-$CC$17)*$I$59))+$C$6*(1+($B$59-$B21)*$C$5)*$F$59)/$F26)-$AA20*(($G26-$G$59)/$F26) ->  | JI17: =+((((1+$CC$17*$C$5)*($I27-$I$59))+$C$5*($J28-$J$59-(($B$59-$B22-$CC$17)*$I$59))+$C$6*(1+($B$59-$B22)*$C$5)*$F$59)/$F27)-$AA21*(($G27-$G$59)/$F27) ->  | JJ17: =+((((1+$CC$17*$C$5)*($I28-$I$59))+$C$5*($J29-$J$59-(($B$59-$B23-$CC$17)*$I$59))+$C$6*(1+($B$59-$B23)*$C$5)*$F$59)/$F28)-$AA22*(($G28-$G$59)/$F28) ->  | JK17: =+((((1+$CC$17*$C$5)*($I29-$I$59))+$C$5*($J30-$J$59-(($B$59-$B24-$CC$17)*$I$59))+$C$6*(1+($B$59-$B24)*$C$5)*$F$59)/$F29)-$AA23*(($G29-$G$59)/$F29) ->  | JL17: =+((((1+$CC$17*$C$5)*($I30-$I$59))+$C$5*($J31-$J$59-(($B$59-$B25-$CC$17)*$I$59))+$C$6*(1+($B$59-$B25)*$C$5)*$F$59)/$F30)-$AA24*(($G30-$G$59)/$F30) ->  | JM17: =+((((1+$CC$17*$C$5)*($I31-$I$59))+$C$5*($J32-$J$59-(($B$59-$B26-$CC$17)*$I$59))+$C$6*(1+($B$59-$B26)*$C$5)*$F$59)/$F31)-$AA25*(($G31-$G$59)/$F31) ->  | JN17: =+((((1+$CC$17*$C$5)*($I32-$I$59))+$C$5*($J33-$J$59-(($B$59-$B27-$CC$17)*$I$59))+$C$6*(1+($B$59-$B27)*$C$5)*$F$59)/$F32)-$AA26*(($G32-$G$59)/$F32) ->  | JO17: =+((((1+$CC$17*$C$5)*($I33-$I$59))+$C$5*($J34-$J$59-(($B$59-$B28-$CC$17)*$I$59))+$C$6*(1+($B$59-$B28)*$C$5)*$F$59)/$F33)-$AA27*(($G33-$G$59)/$F33) ->  | JP17: =+((((1+$CC$17*$C$5)*($I34-$I$59))+$C$5*($J35-$J$59-(($B$59-$B29-$CC$17)*$I$59))+$C$6*(1+($B$59-$B29)*$C$5)*$F$59)/$F34)-$AA28*(($G34-$G$59)/$F34) ->  | JQ17: =+((((1+$CC$17*$C$5)*($I35-$I$59))+$C$5*($J36-$J$59-(($B$59-$B30-$CC$17)*$I$59))+$C$6*(1+($B$59-$B30)*$C$5)*$F$59)/$F35)-$AA29*(($G35-$G$59)/$F35) ->  | JR17: =+((((1+$CC$17*$C$5)*($I36-$I$59))+$C$5*($J37-$J$59-(($B$59-$B31-$CC$17)*$I$59))+$C$6*(1+($B$59-$B31)*$C$5)*$F$59)/$F36)-$AA30*(($G36-$G$59)/$F36) ->  | JS17: =+((((1+$CC$17*$C$5)*($I37-$I$59))+$C$5*($J38-$J$59-(($B$59-$B32-$CC$17)*$I$59))+$C$6*(1+($B$59-$B32)*$C$5)*$F$59)/$F37)-$AA31*(($G37-$G$59)/$F37) ->  | JT17: =+((((1+$CC$17*$C$5)*($I38-$I$59))+$C$5*($J39-$J$59-(($B$59-$B33-$CC$17)*$I$59))+$C$6*(1+($B$59-$B33)*$C$5)*$F$59)/$F38)-$AA32*(($G38-$G$59)/$F38) ->  | JU17: =+((((1+$CC$17*$C$5)*($I39-$I$59))+$C$5*($J40-$J$59-(($B$59-$B34-$CC$17)*$I$59))+$C$6*(1+($B$59-$B34)*$C$5)*$F$59)/$F39)-$AA33*(($G39-$G$59)/$F39) ->  | JV17: =+((((1+$CC$17*$C$5)*($I40-$I$59))+$C$5*($J41-$J$59-(($B$59-$B35-$CC$17)*$I$59))+$C$6*(1+($B$59-$B35)*$C$5)*$F$59)/$F40)-$AA34*(($G40-$G$59)/$F40) ->  | JW17: =+((((1+$CC$17*$C$5)*($I41-$I$59))+$C$5*($J42-$J$59-(($B$59-$B36-$CC$17)*$I$59))+$C$6*(1+($B$59-$B36)*$C$5)*$F$59)/$F41)-$AA35*(($G41-$G$59)/$F41) ->  | JX17: =+((((1+$CC$17*$C$5)*($I42-$I$59))+$C$5*($J43-$J$59-(($B$59-$B37-$CC$17)*$I$59))+$C$6*(1+($B$59-$B37)*$C$5)*$F$59)/$F42)-$AA36*(($G42-$G$59)/$F42) ->  | JY17: =+((((1+$CC$17*$C$5)*($I43-$I$59))+$C$5*($J44-$J$59-(($B$59-$B38-$CC$17)*$I$59))+$C$6*(1+($B$59-$B38)*$C$5)*$F$59)/$F43)-$AA37*(($G43-$G$59)/$F43) ->  | JZ17: =+((((1+$CC$17*$C$5)*($I44-$I$59))+$C$5*($J45-$J$59-(($B$59-$B39-$CC$17)*$I$59))+$C$6*(1+($B$59-$B39)*$C$5)*$F$59)/$F44)-$AA38*(($G44-$G$59)/$F44) ->  | KA17: =+((((1+$CC$17*$C$5)*($I45-$I$59))+$C$5*($J46-$J$59-(($B$59-$B40-$CC$17)*$I$59))+$C$6*(1+($B$59-$B40)*$C$5)*$F$59)/$F45)-$AA39*(($G45-$G$59)/$F45) ->  | KB17: =+((((1+$CC$17*$C$5)*($I46-$I$59))+$C$5*($J47-$J$59-(($B$59-$B41-$CC$17)*$I$59))+$C$6*(1+($B$59-$B41)*$C$5)*$F$59)/$F46)-$AA40*(($G46-$G$59)/$F46) ->  | KC17: =+((((1+$CC$17*$C$5)*($I47-$I$59))+$C$5*($J48-$J$59-(($B$59-$B42-$CC$17)*$I$59))+$C$6*(1+($B$59-$B42)*$C$5)*$F$59)/$F47)-$AA41*(($G47-$G$59)/$F47) ->  | KD17: =+((((1+$CC$17*$C$5)*($I48-$I$59))+$C$5*($J49-$J$59-(($B$59-$B43-$CC$17)*$I$59))+$C$6*(1+($B$59-$B43)*$C$5)*$F$59)/$F48)-$AA42*(($G48-$G$59)/$F48) ->  | KE17: =+((((1+$CC$17*$C$5)*($I49-$I$59))+$C$5*($J50-$J$59-(($B$59-$B44-$CC$17)*$I$59))+$C$6*(1+($B$59-$B44)*$C$5)*$F$59)/$F49)-$AA43*(($G49-$G$59)/$F49) ->  | KF17: =+((((1+$CC$17*$C$5)*($I50-$I$59))+$C$5*($J51-$J$59-(($B$59-$B45-$CC$17)*$I$59))+$C$6*(1+($B$59-$B45)*$C$5)*$F$59)/$F50)-$AA44*(($G50-$G$59)/$F50) ->  | KG17: =+((((1+$CC$17*$C$5)*($I51-$I$59))+$C$5*($J52-$J$59-(($B$59-$B46-$CC$17)*$I$59))+$C$6*(1+($B$59-$B46)*$C$5)*$F$59)/$F51)-$AA45*(($G51-$G$59)/$F51) ->  | KH17: =+((((1+$CC$17*$C$5)*($I52-$I$59))+$C$5*($J53-$J$59-(($B$59-$B47-$CC$17)*$I$59))+$C$6*(1+($B$59-$B47)*$C$5)*$F$59)/$F52)-$AA46*(($G52-$G$59)/$F52) ->  | KI17: =+((((1+$CC$17*$C$5)*($I53-$I$59))+$C$5*($J54-$J$59-(($B$59-$B48-$CC$17)*$I$59))+$C$6*(1+($B$59-$B48)*$C$5)*$F$59)/$F53)-$AA47*(($G53-$G$59)/$F53) ->  | KJ17: =+((((1+$CC$17*$C$5)*($I54-$I$59))+$C$5*($J55-$J$59-(($B$59-$B49-$CC$17)*$I$59))+$C$6*(1+($B$59-$B49)*$C$5)*$F$59)/$F54)-$AA48*(($G54-$G$59)/$F54) ->  | KK17: =+((((1+$CC$17*$C$5)*($I55-$I$59))+$C$5*($J56-$J$59-(($B$59-$B50-$CC$17)*$I$59))+$C$6*(1+($B$59-$B50)*$C$5)*$F$59)/$F55)-$AA49*(($G55-$G$59)/$F55) ->  | KL17: =+((((1+$CC$17*$C$5)*($I56-$I$59))+$C$5*($J57-$J$59-(($B$59-$B51-$CC$17)*$I$59))+$C$6*(1+($B$59-$B51)*$C$5)*$F$59)/$F56)-$AA50*(($G56-$G$59)/$F56) ->  | KM17: =+((((1+$CC$17*$C$5)*($I57-$I$59))+$C$5*($J58-$J$59-(($B$59-$B52-$CC$17)*$I$59))+$C$6*(1+($B$59-$B52)*$C$5)*$F$59)/$F57)-$AA51*(($G57-$G$59)/$F57) ->  | KN17: =+((((1+$CC$17*$C$5)*($I58-$I$59))+$C$5*($J59-$J$59-(($B$59-$B53-$CC$17)*$I$59))+$C$6*(1+($B$59-$B53)*$C$5)*$F$59)/$F58)-$AA52*(($G58-$G$59)/$F58) ->  | KO17: =+((((1+$CC$17*$C$5)*($I59-$I$59))+$C$5*($J60-$J$59-(($B$59-$B54-$CC$17)*$I$59))+$C$6*(1+($B$59-$B54)*$C$5)*$F$59)/$F59)-$AA53*(($G59-$G$59)/$F59) -> 
